Workbook

Sheet Introduction
F12: Land-Based Wind Market Report
F13: 2021 Edition
F17: Ryan Wiser1, Mark Bolinger1, Ben Hoen, Dev Millstein, Joe Rand, Galen Barbose,
F18: Naïm Darghouth, Will Gorman, Seongeun Jeong, Andrew Mills, Ben Paulos
F20: Lawrence Berkeley National Laboratory
F21: 1 Corresponding authors
F23: August 2021
F26: For additional details and related products, see: windreport.lbl.gov
F28: Contact the authors: Ryan Wiser (rhwiser@lbl.gov), Mark Bolinger (mabolinger@lbl.gov)
A29: Photo source: Ed Collier, Ed Collier Photography
A32: Purpose, Scope, and Data
A33: Summarize publicly available data on key trends in U.S. wind power sector. Focus on land-based wind turbines over 100 kW in size. Separate DOE-funded data collection efforts on distributed and offshore wind. Focus on historical data, with some emphasis on the previous year. Data sources include EIA, FERC, SEC, AWEA, etc.
A35: Outline of Data File
A36: • Installation data and trends
A37: • Industry data and trends
A38: • Technology data and trends
A39: • Performance data and trends
A40: • Cost data and trends
A41: • Power sales price and levelized cost data and trends
A42: • Cost and value comparisons
A43: • Wind capacity forecasts
A45: Acknowledgments
A46: This work was funded by the Wind Energy Technologies Office, Office of Energy Efficiency and Renewable Energy of the U.S. Department of Energy under Contract No. DE-AC02-05CH11231. The authors are solely responsible for any omissions or errors contained herein.
A48: Disclaimer
A49: This work was prepared as an account of work sponsored by an agency of the United States government. Neither the United States government nor any agency thereof, nor any of their employees, makes any warranty, express or implied, or assumes any legal liability or responsibility for the accuracy, completeness, or usefulness of any information, apparatus, product, or process disclosed, or represents that its use would not infringe privately owned rights. Reference herein to any specific commercial product, process, or service by trade name, trademark, manufacturer, or otherwise does not necessarily constitute or imply its endorsement, recommendation, or favoring by the United States government or any agency thereof. The views and opinions of authors expressed herein do not necessarily state or reflect those of the United States government or any agency thereof.

Sheet Table of Contents
B2: Table of Contents
B4: # | C4: Sheet Name
B5: 1 | C5: Introduction
B6: 2 | C6: Regional Definitions
B7: 3 | C7: Wind Capacity Growth
B8: 4 | C8: Capacity Additions by Gen Type
B9: 5 | C9: Capacity Additions by Region
B10: 6 | C10: International Wind Ranking
B11: 7 | C11: International Wind Penetration
B12: 8 | C12: State Wind Deployment
B13: 9 | C13: Online Wind Hybrids
B14: 10 | C14: All Hybrid Comparison
B15: 11 | C15: Generator+Storage Hybrids
B16: 12 | C16: All Capacity in Queues
B17: 13 | C17: Capacity in Queues, Time+Region
B18: 14 | C18: Capacity in Queues, COD+Status
B19: 15 | C19: Wind Capacity in Queues, Region
B20: 16 | C20: Hybrid Capacity in Queues
B21: 17 | C21: Gen+Storage Hybrids in Queues
B22: 18 | C22: Queue Completion Rates
B23: 19 | C23: Queue Completion Time
B24: 20 | C24: OEM Market Share
B25: 21 | C25: Manufacturing Facilities
B26: 22 | C26: Manufacturing Capability
B27: 23 | C27: OEM Profitability
B28: 24 | C28: Wind Equip Imports over Time
B29: 25 | C29: Wind Equip Imports by Country
B30: 26 | C30: Equip Import by Country by Type
B31: 27 | C31: Domestic Content
B32: 28 | C32: Project Finance Terms
B33: 29 | C33: Capacity by Owner
B34: 30 | C34: Capacity by Offtake
B35: 31 | C35: Avg Capacity, Height & Diameter
B36: 32 | C36: Cap, Height & Diameter Trends
B37: 33 | C37: Trends in Specific Power
B38: 34 | C38: Wind Resource by Year
B39: 35 | C39: Location of Tall Tower & Low SP
B40: 36 | C40: Future Total Height Trends
B41: 37 | C41: Average Retrofit Tech Change
B42: 38 | C42: Capacity Factor in 2020 by COD
B43: 39 | C43: Capacity Factor by State
B44: 40 | C44: Capacity Factor Drivers
B45: 41 | C45: Influence of Specific Power
B46: 42 | C46: Curtailment and Penetration
B47: 43 | C47: Inter-Annual Variability
B48: 44 | C48: Performance with Project Age
B49: 45 | C49: Wind Turbine Prices
B50: 46 | C50: CapEx Over Time
B51: 47 | C51: CapEx Trend by Region
B52: 48 | C52: 2020 CapEx by Region
B53: 49 | C53: CapEx by Project Capacity
B54: 50 | C54: O&M Over Time
B55: 51 | C55: O&M by Project Age
B56: 52 | C56: Wind PPAs by Project
B57: 53 | C57: Wind PPA Average
B58: 54 | C58: Level10 Wind PPA Prices
B59: 55 | C59: Wind LCOE Over Time
B60: 56 | C60: Wind LCOE by Region
B61: 57 | C61: REC Prices
B62: 58 | C62: Wind & PV PPAs vs Gas
B63: 59 | C63: Recent Wind PPAs v Gas Forecast
B64: 60 | C64: Market Value and PPAs over Time
B65: 61 | C65: 2020 Market Value by Location
B66: 62 | C66: Value Relative to Flat Block
B67: 63 | C67: Health and Climate Benefits
B68: 64 | C68: Transmission Build
B69: 65 | C69: Integration Cost
B70: 66 | C70: Wind Capacity Forecasts

Sheet Regional Definitions
A1: Regional boundaries overlaid on a map of average annual wind speed at 80 meters
A24: Sources: AWS Truepower, National Renewable Energy Laboratory (NREL)

Sheet Wind Capacity Growth
A1: Annual and cumulative growth in U.S. wind power capacity
A22: Source: ACP
B24: Cumulative | C24: Annual | D24: Annual | E24: Annual | F24: Annual | G24: Annual | H24: Annual | I24: Annual | J24: Annual | K24: Annual | L24: Annual | M24: Annual
B25: US | C25: US | D25: Capacity | E25: Capacity | F25: Capacity | G25: Capacity | H25: Capacity | I25: Capacity | J25: Capacity | K25: Capacity | L25: Capacity | M25: Capacity
B26: Wind | C26: Wind | D26: in | E26: in | F26: in | G26: in | H26: in | I26: in | J26: in | K26: in the | L26: in the | M26: in the
B27: Capacity | C27: Capacity | D27: CAISO | E27: ERCOT | F27: SPP | G27: MISO | H27: PJM | I27: NYISO | J27: ISO-NE | K27: West (non-ISO) | L27: Southeast (non-ISO) | M27: Noncontiguous US
B28: (GW) | C28: (GW) | D28: (GW) | E28: (GW) | F28: (GW) | G28: (GW) | H28: (GW) | I28: (GW) | J28: (GW) | K28: (GW) | L28: (GW) | M28: (GW)
A29: 1998 | B29: 1.512 | C29: 0.14232 | D29: 0 | E29: 0 | F29: 0.00216 | G29: 0.11343 | H29: 0 | I29: 0 | J29: 0 | K29: 0.02673 | L29: 0 | M29: 0
A30: 1999 | B30: 2.431 | C30: 0.89247 | D30: 0.25442 | E30: 0.14432 | F30: 0.00357 | G30: 0.38931 | H30: 0 | I30: 0 | J30: 0 | K30: 0.093075 | L30: 0 | M30: 0.000575
A31: 2000 | B31: 2.502 | C31: 0.070955 | D31: 0.01 | E31: 0 | F31: 0 | G31: 0.01188 | H31: 0.0104 | I31: 0.01815 | J31: 0 | K31: 0.018345 | L31: 0.00198 | M31: 0.0001
A32: 2001 | B32: 4.195 | C32: 1.692 | D32: 0.0666 | E32: 0.83092 | F32: 0.196426 | G32: 0.14229 | H32: 0.024 | I32: 0.03 | J32: 0.00066 | K32: 0.39956 | L32: 0 | M32: 0
A33: 2002 | B33: 4.603 | C33: 0.409 | D33: 0.10242 | E33: 0 | F33: 0.002708 | G33: 0.11573 | H33: 0.066 | I33: 0.00025 | J33: 0 | K33: 0.1234 | L33: 0 | M33: 0.0001
A34: 2003 | B34: 6.268 | C34: 1.665 | D34: 0.2025 | E34: 0.1975 | F34: 0.18132 | G34: 0.32762 | H34: 0.1485 | I34: 0 | J34: 0 | K34: 0.607316 | L34: 0.0001 | M34: 0
A35: 2004 | B35: 6.665 | C35: 0.396 | D35: 0.09353 | E35: 0 | F35: 0.06 | G35: 0.204618 | H35: 0.0036 | I35: 0 | J35: 0 | K35: 0.0075 | L35: 0.027 | M35: 0.00015
A36: 2005 | B36: 9.046 | C36: 2.382 | D36: 0.05975 | E36: 0.67176 | F36: 0.6476 | G36: 0.35576 | H36: 0.062145 | I36: 0.13695 | J36: 0.0001 | K36: 0.44005 | L36: 0 | M36: 0.0003
A37: 2006 | B37: 11.512 | C37: 2.466 | D37: 0.212 | E37: 0.7337 | F37: 0.2005 | G37: 0.33038 | H37: 0.050225 | I37: 0.1848 | J37: 0.01347 | K37: 0.6876 | L37: 0 | M37: 0.040775
A38: 2007 | B38: 16.765 | C38: 5.253 | D38: 0.063 | E38: 1.5366 | F38: 0.4072 | G38: 0.86195 | H38: 0.7067 | I38: 0.0545 | J38: 0.0345 | K38: 1.56705 | L38: 0 | M38: 0.021
A39: 2008 | B39: 25.135 | C39: 8.37 | D39: 0.089 | E39: 2.5615 | F39: 0.8943 | G39: 3.06181 | H39: 0.5397 | I39: 0.282 | J39: 0.0298 | K39: 0.9026 | L39: 0 | M39: 0.001725
A40: 2009 | B40: 35.13 | C40: 9.997 | D40: 0.161225 | E40: 2.01916 | F40: 1.0691 | G40: 1.76445 | H40: 1.720258 | I40: 0.5675 | J40: 0.13765 | K40: 2.56015 | L40: 0.0001 | M40: 0.0056
A41: 2010 | B41: 40.346 | C41: 5.218 | D41: 0.4395 | E41: 0.65397 | F41: 0.8298 | G41: 0.88752 | H41: 0.9772 | I41: 0.0002 | J41: 0.0981 | K41: 1.3317 | L41: 0 | M41: 0.002
A42: 2011 | B42: 46.779 | C42: 6.604 | D42: 0.9233 | E42: 0.1995 | F42: 1.0231 | G42: 2.0381 | H42: 0.56725 | I42: 0.12855 | J42: 0.1983 | K42: 1.71145 | L42: 0 | M42: 0.03
A43: 2012 | B43: 60.067 | C43: 13.34 | D43: 1.65818 | E43: 1.50408 | F43: 3.03785 | G43: 2.246855 | H43: 1.612355 | I43: 0.2367 | J43: 0.316975 | K43: 2.235575 | L43: 0 | M43: 0.2871
A44: 2013 | B44: 61.137 | C44: 1.087 | D44: 0.26911 | E44: 0.1411 | F44: 0.32855 | G44: 0.22135 | H44: 0.0043 | I44: 0.08424 | J44: 0.00336 | K44: 0.0318 | L44: 0 | M44: 0.003525
A45: 2014 | B45: 65.874 | C45: 4.857 | D45: 0.1069 | E45: 1.54939 | F45: 1.2412 | G45: 1.132408 | H45: 0.24175 | I45: 0.02592 | J45: 0.00915 | K45: 0.54712 | L45: 0 | M45: 0
A46: 2015 | B46: 73.891 | C46: 8.599 | D46: 0.1939 | E46: 3.59548 | F46: 2.74066 | G46: 1.08 | H46: 0.3621 | I46: 0.0011 | J46: 0.1925 | K46: 0.4288 | L46: 0 | M46: 0
A47: 2016 | B47: 82.007 | C47: 8.203 | D47: 0 | E47: 2.61094 | F47: 3.117235 | G47: 1.278797 | H47: 0.4287 | I47: 0.0777 | J47: 0.3407 | K47: 0.34855 | L47: 0 | M47: 0
A48: 2017 | B48: 88.964 | C48: 7.017 | D48: 0.0497 | E48: 1.946315 | F48: 2.363985 | G48: 1.04367 | H48: 0.80625 | I48: 0.0015 | J48: 0.0543 | K48: 0.7475 | L48: 0 | M48: 0.0033
A49: 2018 | B49: 96.383 | C49: 7.588 | D49: 0.32985 | E49: 2.1244 | F49: 1.966975 | G49: 1.69015 | H49: 0.5095 | I49: 0.1584 | J49: 0.0225 | K49: 0.78571 | L49: 0 | M49: 0.0009
A50: 2019 | B50: 105.119 | C50: 9.137 | D50: 0.1328 | E50: 3.45997 | F50: 1.21297 | G50: 3.074305 | H50: 0.639855 | I50: 0 | J50: 0.0384 | K50: 0.57745 | L50: 0 | M50: 0.0009
A51: 2020 | B51: 121.985 | C51: 16.836 | D51: 0.111 | E51: 4.137175 | F51: 3.88961 | G51: 3.96957 | H51: 0.83606 | I51: 0 | J51: 0.0726 | K51: 3.313695 | L51: 0.4785 | M51: 0.0276

Sheet Capacity Additions by Gen Type
A1: Relative contribution of generation types in annual capacity additions
A21: Sources: ABB, ACP, Wood Mackenzie, Berkeley Lab
B23: Nameplate Capacity Additions (GW)
A24: Generation Type | B24: 1998 | C24: 1999 | D24: 2000 | E24: 2001 | F24: 2002 | G24: 2003 | H24: 2004 | I24: 2005 | J24: 2006 | K24: 2007 | L24: 2008 | M24: 2009 | N24: 2010 | O24: 2011 | P24: 2012 | Q24: 2013 | R24: 2014 | S24: 2015 | T24: 2016 | U24: 2017 | V24: 2018 | W24: 2019 | X24: 2020
A25: Wind | B25: 0.14232 | C25: 0.88527 | D25: 0.070855 | E25: 1.690456 | F25: 0.410608 | G25: 1.664856 | H25: 0.396398 | I25: 2.374415 | J25: 2.45345 | K25: 5.2525 | L25: 8.362435 | M25: 10.005193 | N25: 5.21999 | O25: 6.81955 | P25: 13.00807 | Q25: 1.08651 | R25: 4.853838 | S25: 8.59765 | T25: 8.202622 | U25: 7.01652 | V25: 7.588085 | W25: 9.13665 | X25: 16.83581
A26: Solar | B26: 0.00161169192 | C26: 0.002457953912 | D26: 0.003392273543 | E26: 0.00987426228 | F26: 0.01977209941 | G26: 0.03949361604 | H26: 0.05021548487 | I26: 0.06887647383 | J26: 0.09203530139 | K26: 0.2110786343 | L26: 0.2688474 | M26: 0.39470691 | N26: 0.7764497141 | O26: 1.599284409 | P26: 2.697566827 | Q26: 4.23526104 | R26: 5.76693831 | S26: 6.135657233 | T26: 12.02623325 | U26: 8.949718414 | V26: 8.728587875 | W26: 10.86663927 | X26: 15.2849895
A27: Other renewable | B27: 0.349387 | C27: 0.40942 | D27: 0.17577 | E27: 0.62294 | F27: 0.421315 | G27: 0.33204 | H27: 0.208315 | I27: 0.1147 | J27: 0.41684 | K27: 0.544695 | L27: 0.469208 | M27: 0.69136 | N27: 0.419086 | O27: 0.797348 | P27: 1.153598 | Q27: 1.456547 | R27: 0.681575 | S27: 0.497537 | T27: 0.515103 | U27: 0.526833 | V27: 0.378 | W27: 0.303573 | X27: 0.26381
A28: Gas | B28: 3.0109 | C28: 10.600925 | D28: 29.220833 | E28: 49.3293 | F28: 71.361145 | G28: 55.044326 | H28: 27.25453 | I28: 19.43669 | J28: 10.77198 | K28: 8.404936 | L28: 10.500352 | M28: 12.027325 | N28: 7.362212 | O28: 12.014277 | P28: 9.750338 | Q28: 7.866398 | R28: 8.99101 | S28: 6.5601 | T28: 9.2747 | U28: 12.37692 | V28: 21.702492 | W28: 8.800807 | X28: 7.8407
A29: Coal | B29: 0.0705 | C29: 0.3712 | D29: 0.1805 | E29: 0 | F29: 0.5242 | G29: 0.09 | H29: 0.742 | I29: 0.3727 | J29: 0.6047 | K29: 1.513504 | L29: 1.591 | M29: 3.5987 | N29: 6.014298 | O29: 1.734999 | P29: 4.76 | Q29: 1.8125 | R29: 0.1062 | S29: 0.0055 | T29: 0 | U29: 0 | V29: 0 | W29: 0.017 | X29: 0
A30: Other non-renewable | B30: 0.22756 | C30: 0.301923 | D30: 1.334302 | E30: 0.8177 | F30: 1.18125 | G30: 0.4059 | H30: 0.524 | I30: 0.25727 | J30: 0.344698 | K30: 0.370585 | L30: 0.144001 | M30: 0.251685 | N30: 1.1883 | O30: 0.845975 | P30: 0.30598 | Q30: 0.13889 | R30: 0.185948 | S30: 0.1881 | T30: 1.4283 | U30: 0.11055 | V30: 0.0802 | W30: 0.0903 | X30: 0.03
A31: Total | B31: 3.802278692 | C31: 12.57119595 | D31: 30.98565227 | E31: 52.47027026 | F31: 73.9182901 | G31: 57.57661562 | H31: 29.17545848 | I31: 22.62465147 | J31: 14.6837033 | K31: 16.29729863 | L31: 21.3358434 | M31: 26.96896991 | N31: 20.98033571 | O31: 23.81143341 | P31: 31.67555283 | Q31: 16.59610604 | R31: 20.58550931 | S31: 21.98454423 | T31: 31.44695825 | U31: 28.98054141 | V31: 38.47736487 | W31: 29.21496927 | X31: 40.2553095
A32: Wind % of Total | B32: 0.03743018635 | C32: 0.07042050758 | D32: 0.002286703516 | E32: 0.032217406 | F32: 0.005554890399 | G32: 0.02891548908 | H32: 0.01358669308 | I32: 0.104948136 | J32: 0.1670865959 | K32: 0.3222926767 | L32: 0.3919430249 | M32: 0.3709890676 | N32: 0.248803931 | O32: 0.28639813 | P32: 0.4106659186 | Q32: 0.0654677668 | R32: 0.2357890654 | S32: 0.391077018 | T32: 0.2608399177 | U32: 0.2421114188 | V32: 0.1972090611 | W32: 0.3127386483 | X32: 0.4182258243

Sheet Capacity Additions by Region
A1: Generation capacity additions by region over last ten years: 2011-2020
A21: Sources: ABB, ACP, Wood Mackenzie, Berkeley Lab
E23: Cumulative Capacity Additions (GW): 2011-2020
A24: Generation Type | B24: SPP | C24: ERCOT | D24: MISO | E24: West (non-ISO) | F24: ISO-NE | G24: PJM | H24: NYISO | I24: CAISO | J24: Southeast (non-ISO) | K24: U.S. Total*
A25: Wind | B25: 20.925235 | C25: 21.26836 | D25: 17.774905 | E25: 10.72765 | F25: 1.248785 | G25: 6.00512 | H25: 0.71411 | I25: 3.77474 | J25: 0.4785 | K25: 83.145305
A26: Solar | B26: 0.7633355933 | C26: 5.951168205 | D26: 3.298015622 | E26: 13.03973664 | F26: 4.213218883 | G26: 9.651273337 | H26: 2.301293051 | I26: 23.88823703 | J26: 12.02209614 | K26: 76.29073976
A27: Other renewable | B27: 0.115299 | C27: 0.2255 | D27: 0.751642 | E27: 2.226947 | F27: 0.189838 | G27: 0.797741 | H27: 0.08411 | I27: 0.383248 | J27: 1.497244 | K27: 6.573924
A28: Natural Gas | B28: 4.376998 | C28: 10.28156 | D28: 9.06274 | E28: 7.05342 | F28: 3.665981 | G28: 31.148944 | H28: 3.10573 | I28: 7.871395 | J28: 27.98734 | K28: 105.177742
A29: Coal | B29: 1.6427 | C29: 1.008 | D29: 3.377999 | E29: 0 | F29: 0 | G29: 1.478 | H29: 0.003 | I29: 0 | J29: 0.9095 | K29: 8.436199
A30: Other non-renewable | B30: 0.097598 | C30: 0.4011 | D30: 0.2219 | E30: 0.1071 | F30: 0.504371 | G30: 0.26103 | H30: 0.0955 | I30: 0.145925 | J30: 1.443019 | K30: 3.404243
A31: Total | B31: 27.92116559 | C31: 39.13568821 | D31: 34.48720162 | E31: 33.15485364 | F31: 9.822193883 | G31: 49.34210834 | H31: 6.303743051 | I31: 36.06354503 | J31: 44.33769914 | K31: 283.0281528
A32: Wind % of Total | B32: 0.7494398803 | C32: 0.5434517949 | D32: 0.5154058365 | E32: 0.3235619773 | F32: 0.1271391112 | G32: 0.1217037578 | H32: 0.113283488 | I32: 0.1046691332 | J32: 0.0107921703 | K32: 0.2937704401
A33: *U.S. Total also includes AK and HI, in addition to the regions listed

Sheet International Wind Ranking
A1: International rankings of wind power capacity: land-based and offshore
A3: Annual Capacity | D3: Cumulative Capacity
A4: (2020, MW) | D4: (end of 2020, MW)
A5: China | B5: 52000 | D5: China | E5: 288319.69
A6: United States | B6: 16836 | D6: United States | E6: 121985
A7: Brazil | B7: 2297.29 | D7: Germany | E7: 62849.94
A8: Netherlands | B8: 1979 | D8: India | E8: 38625.03
A9: Germany | B9: 1668 | D9: Spain | E9: 27249.8
A10: Norway | B10: 1532 | D10: United Kingdom | E10: 23937.275
A11: Spain | B11: 1400.03 | D11: France | E11: 17948.14
A12: France | B12: 1317.55 | D12: Brazil | E12: 17749.739
A13: Turkey | B13: 1224 | D13: Canada | E13: 13577.6
A14: India | B14: 1119 | D14: Italy | E14: 10542.97
A15: Rest of World | B15: 11537.62 | D15: Rest of World | E15: 119571.758
A16: TOTAL | B16: =SUM(B5:B15) -> 92910.49 | D16: TOTAL | E16: =SUM(E5:E15) -> 742356.942
A17: Sources: GWEC, ACP

Sheet International Wind Penetration
A1: Wind energy penetration in subset of top global wind markets
A21: Source: ACP
B23: Wind Energy
B24: Penetration
B25: 2020
A26: Denmark | B26: 0.48
A27: Ireland | B27: 0.38
A28: Germany | B28: 0.27
A29: U.K. | B29: 0.27
A30: Portugal | B30: 0.25
A31: Spain | B31: 0.22
A32: Sweden | B32: 0.2
A33: EU | B33: 0.15
A34: Greece | B34: 0.15
A35: Belgium | B35: 0.14
A36: Lithuania | B36: 0.13
A37: Austria | B37: 0.12
A38: Netherlands | B38: 0.12
A39: Romania | B39: 0.12
A40: Estonia | B40: 0.11
A41: Australia | B41: 0.1
A42: Croatia | B42: 0.1
A43: Brazil | B43: 0.097
A44: Poland | B44: 0.09
A45: France | B45: 0.09
A46: Finland | B46: 0.09
A47: Mexico | B47: 0.086
A48: United States | B48: 0.083
A49: Turkey | B49: 0.08
A50: Italy | B50: 0.07
A51: China | B51: 0.061
A52: Cyprus | B52: 0.06
A53: Canada | B53: 0.056
A54: India | B54: 0.05

Sheet State Wind Deployment
A1: U.S. wind power installations by state
N2: All 50 States (plus Puerto Rico)
A3: Installed Capacity (MW) | G3: 2020 Wind Generation as a Percentage of: | O3: Cumulative MW | P3: Annual MW
A4: Annual (2020) | D4: Cumulative (end of 2020) | G4: In-State Generation | J4: In-State Sales | N4: State | O4: at end of 2020 | P4: in 2020
A5: Texas | B5: 4137.175 | D5: Texas | E5: 32685.928 | G5: Iowa | H5: 0.5731044205 | J5: Iowa | K5: 0.6856540508 | N5: TX | O5: 32685.928 | P5: 4137.175
A6: Iowa | B6: 1214.64 | D6: Iowa | E6: 11376.555 | G6: Kansas | H6: 0.4322957842 | J6: North Dakota | K6: 0.6166908359 | N6: IA | O6: 11376.555 | P6: 1214.64
A7: Oklahoma | B7: 1161.67 | D7: Oklahoma | E7: 9344.445 | G7: Oklahoma | H7: 0.3536686001 | J7: Kansas | K7: 0.6119193234 | N7: OK | O7: 9344.445 | P7: 1161.67
A8: Wyoming | B8: 1071.58 | D8: Kansas | E8: 7027.515 | G8: South Dakota | H8: 0.3288539405 | J8: Oklahoma | K8: 0.4785887684 | N8: WY | O8: 2686.68 | P8: 1071.58
A9: Illinois | B9: 1059.02 | D9: Illinois | E9: 6409.328 | G9: North Dakota | H9: 0.3081148039 | J9: South Dakota | K9: 0.4483917427 | N9: IL | O9: 6409.328 | P9: 1059.02
A10: Missouri | B10: 1027.9 | D10: California | E10: 5922.245 | G10: Maine | H10: 0.2379047619 | J10: Wyoming | K10: 0.3354859752 | N10: MO | O10: 1987.31 | P10: 1027.9
A11: Colorado | B11: 967.48 | D11: Colorado | E11: 4692.215 | G11: Nebraska | H11: 0.236164963 | J11: Nebraska | K11: 0.2879910065 | N11: CO | O11: 4692.215 | P11: 967.48
A12: Kansas | B12: 895.77 | D12: Minnesota | E12: 4290.8 | G12: Colorado | H12: 0.2318003825 | J12: New Mexico | K12: 0.2855554232 | N12: KS | O12: 7027.515 | P12: 895.77
A13: South Dakota | B13: 773.84 | D13: North Dakota | E13: 3989.37 | G13: Minnesota | H13: 0.2159415688 | J13: Texas | K13: 0.2271531413 | N13: SD | O13: 2305.454 | P13: 773.84
A14: New Mexico | B14: 770.195 | D14: Oregon | E14: 3737.18 | G14: New Mexico | H14: 0.2068886139 | J14: Colorado | K14: 0.2257560976 | N14: NM | O14: 2722.575 | P14: 770.195
A15: Indiana | B15: 650.56 | D15: Washington | E15: 3395 | G15: Texas | H15: 0.1949034066 | J15: Maine | K15: 0.2227970032 | N15: IN | O15: 2967.66 | P15: 650.56
A16: Michigan | B16: 493.21 | D16: Indiana | E16: 2967.66 | G16: Vermont | H16: 0.1511216057 | J16: Montana | K16: 0.2083130265 | N16: MI | O16: 2681.44 | P16: 493.21
A17: Minnesota | B17: 455.4 | D17: New Mexico | E17: 2722.575 | G17: Idaho | H17: 0.141180105 | J17: Minnesota | K17: 0.1960030746 | N17: MN | O17: 4290.8 | P17: 455.4
A18: Nebraska | B18: 393.49 | D18: Wyoming | E18: 2686.68 | G18: Oregon | H18: 0.1313021177 | J18: Oregon | K18: 0.1795200202 | N18: NE | O18: 2530.68 | P18: 393.49
A19: Arizona | B19: 349.6 | D19: Michigan | E19: 2681.44 | G19: Montana | H19: 0.1259047298 | J19: Illinois | K19: 0.1298461819 | N19: AZ | O19: 617.9 | P19: 349.6
A20: North Dakota | B20: 343.24 | D20: Nebraska | E20: 2530.68 | G20: Wyoming | H20: 0.123442863 | J20: Idaho | K20: 0.113086155 | N20: ND | O20: 3989.37 | P20: 343.24
A21: Oregon | B21: 309.54 | D21: South Dakota | E21: 2305.454 | G21: Illinois | H21: 0.09833625471 | J21: Washington | K21: 0.09768516889 | N21: OR | O21: 3737.18 | P21: 309.54
A22: Washington | B22: 286.7 | D22: Missouri | E22: 1987.31 | G22: Washington | H22: 0.07274601802 | J22: Vermont | K22: 0.07252124646 | N22: WA | O22: 3395 | P22: 286.7
A23: Ohio | B23: 126 | D23: New York | E23: 1986.96 | G23: Indiana | H23: 0.07266163075 | J23: Michigan | K23: 0.07028690869 | N23: OH | O23: 864.2 | P23: 126
A24: California | B24: 111 | D24: Pennsylvania | E24: 1459.2 | G24: California | H24: 0.06448243923 | J24: Indiana | K24: 0.07007113168 | N24: CA | O24: 5922.245 | P24: 111
A25: Rest of U.S. | B25: 238 | D25: Rest of U.S. | E25: 7786 | G25: Rest of U.S. | H25: 0.012 | J25: Rest of U.S. | K25: 0.01 | N25: MT | O25: 880.269 | P25: 79.9
A26: Total | B26: 16836 | D26: Total | E26: 121985 | G26: Total | H26: 0.083 | J26: Total | K26: 0.092 | N26: ME | O26: 996 | P26: 72.6
N27: WV | O27: 742 | P27: 56.2
A28: Sources: ACP, EIA | N28: HI | O28: 233.46 | P28: 27.6
N29: ID | O29: 972.5 | P29: 1.5
N30: NY | O30: 1986.96 | P30: 0
N31: PA | O31: 1459.2 | P31: 0
N32: WI | O32: 745.64 | P32: 0
N33: UT | O33: 390.675 | P33: 0
N34: NH | O34: 214.15 | P34: 0
N35: NC | O35: 208.1 | P35: 0
N36: MD | O36: 191.05 | P36: 0
N37: NV | O37: 151.8 | P37: 0
N38: VT | O38: 149.45 | P38: 0
N39: PR | O39: 125.425 | P39: 0
N40: MA | O40: 120.28 | P40: 0
N41: AK | O41: 63.515 | P41: 0
N42: RI | O42: 74.885 | P42: 0
N43: TN | O43: 28.98 | P43: 0
N44: NJ | O44: 9 | P44: 0
N45: CT | O45: 5.1 | P45: 0
N46: DE | O46: 2 | P46: 0
N47: AR | O47: 0 | P47: 0
N48: AL | O48: 0 | P48: 0
N49: FL | O49: 0 | P49: 0
N50: GA | O50: 0 | P50: 0
N51: KY | O51: 0 | P51: 0
N52: LA | O52: 0 | P52: 0
N53: MS | O53: 0 | P53: 0
N54: SC | O54: 0 | P54: 0
N55: VA | O55: 0 | P55: 0
A57: Sources: ACP, Berkeley Lab

Sheet Online Wind Hybrids
A1: Online wind hybrid / co-located projects: wind+storage, wind+other generator(s), wind+other generator(s)+storage
A3: Wind hybrid / co-located projects over time | E3: Wind hybrid / co-located projects by region at end of 2020 | I3: Wind hybrid / co-located projects by state at end of 2020
A23: Sources: EIA 860 2020 Early Release, Berkeley Lab
E26: Sources: EIA 860 2020 Early Release, Berkeley Lab | I26: Sources: EIA 860 2020 Early Release, Berkeley Lab
A30: List of hybrid / co-located projects that include wind power | K30: Storage details | O30: Wind hybrid / co-located projects over time | V30: Wind hybrid / co-located projects by state | Y30: Wind hybrid / co-located projects by region
A31: State | B31: Project name | C31: Wind online date | D31: Storage online date | E31: Solar online date | F31: Fossil online date | G31: Wind capacity (MW) | H31: Storage capacity (MW) | I31: Solar capacity (MW) | J31: Fossil capacity (MW) | K31: Technology | L31: Duration (hrs) | M31: Storage:generator ratio | P31: axis | Q31: Wind | R31: Storage | S31: Solar | T31: Fossil | V31: State | W31: Hybrid Wind Capacity | Y31: Region | Z31: Hybrid Wind Capacity
A32: AK | B32: Kotzebue Hybrid | C32: 1997 | D32: 2015 | E32: n/a | F32: 1987 | G32: 3.3 | H32: 1.2 | I32: n/a | J32: 11.8 | K32: LIB | L32: 0.8333333333 | M32: 0.07947019868 | O32: 2001 | Q32: 3.3 | R32: 0 | S32: 0 | T32: 11.8 | V32: TX | W32: 858.8 | Y32: ERCOT | Z32: 855.8
A33: NY | B33: Harbec Energy | C33: 2001 | D33: n/a | E33: n/a | F33: 2015 | G33: 1.2 | H33: n/a | I33: n/a | J33: 0.5 | K33: n/a | L33: n/a | M33: n/a | O33: 2002 | P33: 2002 | Q33: 8.9 | R33: 0 | S33: 0 | T33: 25.8 | V33: IL | W33: 430.6 | Y33: PJM | Z33: 666.3
A34: MN | B34: Worthington | C34: 2002 | D34: n/a | E34: n/a | F34: 2002 | G34: 5.6 | H34: n/a | I34: n/a | J34: 14 | K34: n/a | L34: n/a | M34: n/a | O34: 2003 | Q34: 8.9 | R34: 0 | S34: 0 | T34: 25.8 | V34: WA | W34: 272.6 | Y34: West (non-ISO) | Z34: 422.9
A35: PA | B35: Meyersdale Battery | C35: 2003 | D35: 2015 | E35: n/a | F35: n/a | G35: 30 | H35: 18 | I35: n/a | J35: n/a | K35: LIB | L35: 0.6722222222 | M35: 0.6 | O35: 2004 | P35: 2004 | Q35: 14.9 | R35: 0 | S35: 0 | T35: 27.8 | V35: WV | W35: 198.1 | Y35: CAISO | Z35: 151.7
A36: CO | B36: Lamar Plant | C36: 2004 | D36: n/a | E36: n/a | F36: 1946 | G36: 6 | H36: n/a | I36: n/a | J36: 2 | K36: n/a | L36: n/a | M36: n/a | O36: 2005 | Q36: 14.9 | R36: 0 | S36: 0 | T36: 27.8 | V36: CA | W36: 151.7 | Y36: Hawaii | Z36: 114
A37: MN | B37: Carleton College | C37: 2004 | D37: n/a | E37: n/a | F37: 2009 | G37: 3.2 | H37: n/a | I37: n/a | J37: 4.6 | K37: n/a | L37: n/a | M37: n/a | O37: 2006 | P37: 2006 | Q37: 22.4 | R37: 0 | S37: 0.5 | T37: 27.8 | V37: HI | W37: 114 | Y37: SPP | Z37: 65.9
A38: WA | B38: Wild Horse | C38: 2006 | D38: n/a | E38: 2007 | F38: n/a | G38: 272.6 | H38: n/a | I38: 0.5 | J38: n/a | K38: n/a | L38: n/a | M38: n/a | O38: 2007 | Q38: 296.2 | R38: 0 | S38: 1 | T38: 35.8 | V38: NM | W38: 101.3 | Y38: MISO | Z38: 19.7
A39: NJ | B39: Jersey-Atlantic Wind Farm | C39: 2006 | D39: 2018 | E39: 2005 | F39: n/a | G39: 7.5 | H39: 1 | I39: 0.5 | J39: n/a | K39: LIB | L39: 1 | M39: 0.125 | O39: 2008 | P39: 2008 | Q39: 296.2 | R39: 0 | S39: 1.1 | T39: 105.3 | V39: NE | W39: 40.9 | Y39: Alaska | Z39: 6.9
A40: MN | B40: Mountain Lake | C40: 2007 | D40: n/a | E40: n/a | F40: 1954 | G40: 1.2 | H40: n/a | I40: n/a | J40: 8 | K40: n/a | L40: n/a | M40: n/a | O40: 2009 | Q40: 305.2 | R40: 0 | S40: 1.1 | T40: 155.9 | V40: AZ | W40: 40 | Y40: NYISO | Z40: 1.2
A41: IL | B41: Grand Ridge Battery Projects | C41: 2008 | D41: 2013 | E41: 2012 | F41: n/a | G41: 210 | H41: 33 | I41: 20 | J41: n/a | K41: LIB | L41: 0.4090909091 | M41: 0.1434782609 | O41: 2010 | P41: 2010 | Q41: 305.2 | R41: 0 | S41: 1.1 | T41: 155.9 | V41: PA | W41: 33.2 | Y41: ISO-NE | Z41: 1.2
A42: TX | B42: NRG Elbow Creek Energy Storage Project | C42: 2008 | D42: 2017 | E42: n/a | F42: n/a | G42: 121.9 | H42: 2 | I42: n/a | J42: n/a | K42: LIB | L42: 0.35 | M42: 0.01640689089 | O42: 2011 | Q42: 417 | R42: 16 | S42: 1.6 | T42: 160.5 | V42: SD | W42: 25 | Y42: Southwest (non-ISO) | Z42: 0
A43: IL | B43: FPL Energy Illinois Wind LLC Hybrid | C43: 2009 | D43: 2014 | E43: n/a | F43: n/a | G43: 217.5 | H43: 20 | I43: n/a | J43: n/a | K43: LIB | L43: 0.415 | M43: 0.09195402299 | O43: 2012 | P43: 2012 | Q43: 982.2 | R43: 75 | S43: 131.6 | T43: 167.5 | V43: MN | W43: 12
A44: SD | B44: Rolling Thunder Wind Farm Hybrid | C44: 2009 | D44: 2018 | E44: n/a | F44: n/a | G44: 25 | H44: 0.3 | I44: n/a | J44: n/a | K44: LIB | L44: 2.666666667 | M44: 0.012 | O44: 2013 | Q44: 984.8 | R44: 108 | S44: 131.6 | T44: 184.1 | V44: NJ | W44: 7.5
A45: TX | B45: Notrees Windpower Hybrid | C45: 2009 | D45: 2012 | E45: n/a | F45: n/a | G45: 152.5 | H45: 36 | I45: n/a | J45: n/a | K45: LIB | L45: 0.3777777778 | M45: 0.2360655738 | O45: 2014 | P45: 2014 | Q45: 1252.7 | R45: 128 | S45: 186.6 | T45: 184.1 | V45: AK | W45: 6.9
A46: TX | B46: Pyron Wind Farm LLC Hybrid | C46: 2009 | D46: 2018 | E46: n/a | F46: n/a | G46: 249 | H46: 9.9 | I46: n/a | J46: n/a | K46: LIB | L46: 1 | M46: 0.03975903614 | O46: 2015 | Q46: 1414.4 | R46: 178.7 | S46: 238.8 | T46: 184.6 | V46: CO | W46: 6
A47: TX | B47: Inadale Wind Farm LLC Hybrid | C47: 2009 | D47: 2018 | E47: n/a | F47: n/a | G47: 197 | H47: 9.9 | I47: n/a | J47: n/a | K47: LIB | L47: 1 | M47: 0.05025380711 | O47: 2016 | P47: 2016 | Q47: 1414.4 | R47: 178.7 | S47: 239.6 | T47: 184.6 | V47: WI | W47: 3
A48: MA | B48: Deer Island Treatment Plant | C48: 2009 | D48: n/a | E48: 2008 | F48: 1995 | G48: 1.2 | H48: n/a | I48: 0.1 | J48: 69.5 | K48: n/a | L48: n/a | M48: n/a | O48: 2017 | Q48: 1712.7 | R48: 211 | S48: 239.7 | T48: 355.6 | V48: IA | W48: 1.6
A49: IL | B49: Geneseo | C49: 2009 | D49: n/a | E49: 2015 | F49: 1957 | G49: 3 | H49: n/a | I49: 1.2 | J49: 29.4 | K49: n/a | L49: n/a | M49: n/a | O49: 2018 | P49: 2018 | Q49: 2236.6 | R49: 233.1 | S49: 242.5 | T49: 355.6 | V49: NY | W49: 1.2
A50: IA | B50: Osage (IA) | C50: 2009 | D50: n/a | E50: 2016 | F50: 1963 | G50: 1.6 | H50: n/a | I50: 0.8 | J50: 16.6 | K50: n/a | L50: n/a | M50: n/a | O50: 2019 | Q50: 2305.6 | R50: 233.1 | S50: 291.5 | T50: 355.6 | V50: MA | W50: 1.2
A51: WV | B51: Beech Ridge Energy Storage | C51: 2010 | D51: 2015 | E51: n/a | F51: n/a | G51: 100.5 | H51: 31.5 | I51: n/a | J51: n/a | K51: LIB | L51: 0.3968253968 | M51: 0.3134328358 | O51: 2020 | P51: 2020 | Q51: 2305.6 | R51: 233.1 | S51: 291.5 | T51: 355.6
A52: PA | B52: PPL Frey Farm Landfill Wind | C52: 2011 | D52: n/a | E52: n/a | F52: 2006 | G52: 3.2 | H52: n/a | I52: n/a | J52: 1.6 | K52: n/a | L52: n/a | M52: n/a
A53: NM | B53: Macho Springs Power I | C53: 2011 | D53: n/a | E53: 2014 | F53: n/a | G53: 50.4 | H53: n/a | I53: 55 | J53: n/a | K53: n/a | L53: n/a | M53: n/a
A54: WV | B54: Laurel Mountain Hybrid | C54: 2011 | D54: 2011 | E54: n/a | F54: n/a | G54: 97.6 | H54: 16 | I54: n/a | J54: n/a | K54: LIB | L54: 1 | M54: 0.1639344262
A55: AZ | B55: Kingman 1 | C55: 2011 | D55: n/a | E55: 2011 | F55: n/a | G55: 10 | H55: n/a | I55: 0.5 | J55: n/a | K55: n/a | L55: n/a | M55: n/a
A56: AK | B56: Sand Point | C56: 2011 | D56: n/a | E56: n/a | F56: 2000 | G56: 1 | H56: n/a | I56: n/a | J56: 3 | K56: n/a | L56: n/a | M56: n/a
A57: TX | B57: Blue Summit Storage, LLC | C57: 2012 | D57: 2017 | E57: n/a | F57: n/a | G57: 135.4 | H57: 30 | I57: n/a | J57: n/a | K57: LIB | L57: 0.42 | M57: 0.2215657312
A58: HI | B58: Kaheawa Wind Power II LLC | C58: 2012 | D58: 2012 | E58: n/a | F58: n/a | G58: 21 | H58: 10 | I58: n/a | J58: n/a | K58: LIB | L58: 2 | M58: 0.4761904762
A59: HI | B59: Auwahi Wind Energy Hybrid | C59: 2012 | D59: 2012 | E59: n/a | F59: n/a | G59: 24 | H59: 11 | I59: n/a | J59: n/a | K59: LIB | L59: 0.4 | M59: 0.4583333333
A60: WI | B60: Waxdale | C60: 2012 | D60: n/a | E60: n/a | F60: 2003 | G60: 3 | H60: n/a | I60: n/a | J60: 7 | K60: n/a | L60: n/a | M60: n/a
A61: TX | B61: Texas Dispatchable Wind 1 | C61: 2012 | D61: 2012 | E61: n/a | F61: n/a | G61: 3 | H61: 2 | I61: n/a | J61: n/a | K61: CAES | L61: n/a | M61: 0.6666666667
A62: CA | B62: Pacific Wind LLC | C62: 2012 | D62: n/a | E62: 2012 | F62: n/a | G62: 151.7 | H62: n/a | I62: 110 | J62: n/a | K62: n/a | L62: n/a | M62: n/a
A63: HI | B63: Kawailoa Wind | C63: 2012 | D63: n/a | E63: 2019 | F63: n/a | G63: 69 | H63: n/a | I63: 49 | J63: n/a | K63: n/a | L63: n/a | M63: n/a
A64: AK | B64: Snake River | C64: 2013 | D64: n/a | E64: n/a | F64: 1991 | G64: 2.6 | H64: n/a | I64: n/a | J64: 16.6 | K64: n/a | L64: n/a | M64: n/a
A65: AZ | B65: Red Horse 2 | C65: 2015 | D65: n/a | E65: 2015 | F65: n/a | G65: 30 | H65: n/a | I65: 51 | J65: n/a | K65: n/a | L65: n/a | M65: n/a
A66: NE | B66: Lon Wright | C66: 2017 | D66: n/a | E66: 2018 | F66: 1957 | G66: 40.9 | H66: n/a | I66: 2.3 | J66: 170 | K66: n/a | L66: n/a | M66: n/a
A67: IL | B67: TAC-Distributed Energy Resource Hybrid | C67: 2017 | D67: 2017 | E67: 2017 | F67: 2017 | G67: 0.1 | H67: 0.3 | I67: 0.1 | J67: 1 | K67: LIB | L67: 1.666666667 | M67: 0.25
A68: NM | B68: Casa Mesa Wind Energy Center Hybrid | C68: 2018 | D68: 2018 | E68: n/a | F68: n/a | G68: 50.9 | H68: 1 | I68: n/a | J68: n/a | K68: LIB | L68: 1 | M68: 0.01964636542
A69: MN | B69: Lake Region Community Hybrid, LLC | C69: 2018 | D69: n/a | E69: 2018 | F69: n/a | G69: 2 | H69: n/a | I69: 0.5 | J69: n/a | K69: n/a | L69: n/a | M69: n/a
A70: Source: EIA 860 2020 Early Release, Berkeley Lab

Sheet All Hybrid Comparison
A1: Online hybrid / co-located projects (all configuarions)
A3: Online hybrid / co-located projects at end of 2020: subset of configurations
B5: # projects | F5: Total capacity (MW) | K5: Storage ratio | L5: Duration (hrs)
D6: Wind | E6: PV | F6: Fossil | G6: Storage
A7: PV+Storage | B7: 73 | E7: 991.6 | G7: 249.65 | K7: 0.2517648245 | L7: 2.604245944
A8: Wind+Storage | B8: 14 | D8: 1425.3 | G8: 197.6 | K8: 0.1386374798 | L8: 0.6163967611
A9: Wind+PV+Storage | B9: 2 | D9: 217.5 | E9: 20.5 | G9: 34 | K9: 0.1428571429 | L9: 0.4264705882
A10: Fossil+Storage | B10: 21 | F10: 4003.1 | G10: 281.2 | K10: 0.07024555969 | L10: 1.256401138
A11: Wind+PV | B11: 7 | D11: 585.7 | E11: 266.5 | G11: 0 | K11: n/a | L11: n/a
A12: Notes: Not included in the figure are 111 other hybrid / co-located projects with other configurations; details on those projects are provided below.
A13: Storage ratio defined as storage capacity divided by total generator capacity.
A14: Sources: EIA 860 2020 Early Release, Berkeley Lab
A17: Hybrid / co-located projects newly completed in 2020: subset of configurations
B18: # projects | F18: Total capacity (MW) | K18: Storage ratio | L18: Duration (hrs)
D19: Fossil | E19: PV | F19: Wind | G19: Storage
A20: PV+Storage | B20: 28 | D20: 0 | E20: 80.4 | G20: 46.15 | K20: 0.5740049751 | L20: 2.080173348
A21: Fossil+Storage | B21: 4 | D21: 417.5 | E21: 0 | G21: 35.2 | K21: 0.08431137725 | L21: 0.5909090909
A22: Note: Not included in the figure are 6 other hybrid / co-located projects with other configurations; details on those projects are provided below.
A23: Sources: EIA 860 2020 Early Release, Berkeley Lab
A25: Online wind hybrid / co-located projects compared to other online hybrid / co-located plants
A26: Total end of 2020 | B26: # projects | C26: Gen 1 (MW) | D26: Gen 2 (MW) | E26: Gen 3 (MW) | F26: Total Gen (MW) | G26: Storage capacity (MW) | H26: Storage energy (MWh) | I26: Storage: generator ratio | J26: Duration (hrs)
A27: Wind+Storage | B27: 14 | C27: 1425.3 | D27: 0 | E27: 0 | F27: 1425.3 | G27: 197.6 | H27: 121.8 | I27: 0.1386374798 | J27: 0.6163967611
A28: Wind+PV+Storage | B28: 2 | C28: 217.5 | D28: 20.5 | E28: 0 | F28: 238 | G28: 34 | H28: 14.5 | I28: 0.1428571429 | J28: 0.4264705882
A29: Wind+Fossil+Storage | B29: 1 | C29: 3.3 | D29: 12 | E29: 0 | F29: 15.3 | G29: 1.2 | H29: 1 | I29: 0.07843137255 | J29: 0.8333333333
A30: Wind+PV+Fossil+Storage | B30: 1 | C30: 0.1 | D30: 0.1 | E30: 1 | F30: 1.2 | G30: 0.3 | H30: 0.5 | I30: 0.25 | J30: 1.666666667
A31: Wind+PV | B31: 7 | C31: 585.7 | D31: 266.5 | E31: 0 | F31: 852.2 | G31: 0 | H31: 0 | I31: 0 | J31: n/a
A32: Wind+PV+Fossil | B32: 4 | C32: 46.7 | D32: 4.4 | E32: 285.5 | F32: 336.6 | G32: 0 | H32: 0 | I32: 0 | J32: n/a
A33: Wind+Fossil | B33: 9 | C33: 27 | D33: 57.3 | E33: 0 | F33: 84.3 | G33: 0 | H33: 0 | I33: 0 | J33: n/a
A34: PV+Storage | B34: 73 | C34: 991.6 | D34: 0 | E34: 0 | F34: 991.6 | G34: 249.65 | H34: 650.15 | I34: 0.2517648245 | J34: 2.604245944
A35: PV+Fossil | B35: 34 | C35: 228.6 | D35: 9142.7 | E35: 0 | F35: 9371.3 | G35: 0 | H35: 0 | I35: 0 | J35: n/a
A36: PV+Fossil+Storage | B36: 4 | C36: 11.8 | D36: 716.3 | E36: 0 | F36: 728.1 | G36: 5.1 | H36: 9.6 | I36: 0.007004532344 | J36: 1.882352941
A37: PV+Biomass | B37: 4 | C37: 7.9 | D37: 102.2 | E37: 0 | F37: 110.1 | G37: 0 | H37: 0 | I37: 0 | J37: n/a
A38: PV+Geothermal | B38: 2 | C38: 17.9 | D38: 85 | E38: 0 | F38: 102.9 | G38: 0 | H38: 0 | I38: 0 | J38: n/a
A39: PV+Geothermal+CSP | B39: 1 | C39: 22 | D39: 47.2 | E39: 2 | F39: 71.2 | G39: 0 | H39: 0 | I39: 0 | J39: n/a
A40: Biomass+Storage | B40: 1 | C40: 1.2 | D40: 0 | E40: 0 | F40: 1.2 | G40: 1 | H40: 2 | I40: 0.8333333333 | J40: 2
A41: Fossil+Storage | B41: 21 | C41: 4003.1 | D41: 0 | E41: 0 | F41: 4003.1 | G41: 281.2 | H41: 353.3 | I41: 0.07024555969 | J41: 1.256401138
A42: Nuclear+Fossil | B42: 4 | C42: 6480.2 | D42: 1354.8 | E42: 0 | F42: 7835 | G42: 0 | H42: 0 | I42: 0 | J42: n/a
A43: Hydro+Nuclear | B43: 1 | C43: 1 | D43: 1959.4 | E43: 0 | F43: 1960.4 | G43: 0 | H43: 0 | I43: 0 | J43: n/a
A44: Hydro+Fossil | B44: 29 | C44: 81.3 | D44: 629 | E44: 0 | F44: 710.3 | G44: 0 | H44: 0 | I44: 0 | J44: n/a
A45: Hydro+Biomass | B45: 9 | C45: 53.8 | D45: 326.7 | E45: 0 | F45: 380.5 | G45: 0 | H45: 0 | I45: 0 | J45: n/a
A46: Hydro+Storage | B46: 5 | C46: 209.15 | D46: 0 | E46: 0 | F46: 209.15 | G46: 22 | H46: 31 | I46: 0.1051876644 | J46: 1.409090909
A48: Newly installed in 2020 | B48: # projects | C48: Gen 1 (MW) | D48: Gen 2 (MW) | E48: Gen 3 (MW) | F48: Total Gen (MW) | G48: Storage capacity (MW) | H48: Storage energy (MWh) | I48: Storage: generator ratio | J48: Duration (hrs)
A49: Wind+Storage | B49: 0 | C49: 0 | D49: 0 | E49: 0 | F49: 0 | G49: 0 | H49: 0 | I49: n/a | J49: n/a
A50: Wind+PV+Storage | B50: 0 | C50: 0 | D50: 0 | E50: 0 | F50: 0 | G50: 0 | H50: 0 | I50: n/a | J50: n/a
A51: Wind+Fossil+Storage | B51: 0 | C51: 0 | D51: 0 | E51: 0 | F51: 0 | G51: 0 | H51: 0 | I51: n/a | J51: n/a
A52: Wind+PV+Fossil+Storage | B52: 0 | C52: 0 | D52: 0 | E52: 0 | F52: 0 | G52: 0 | H52: 0 | I52: n/a | J52: n/a
A53: Wind+PV | B53: 0 | C53: 0 | D53: 0 | E53: 0 | F53: 0 | G53: 0 | H53: 0 | I53: n/a | J53: n/a
A54: Wind+PV+Fossil | B54: 0 | C54: 0 | D54: 0 | E54: 0 | F54: 0 | G54: 0 | H54: 0 | I54: n/a | J54: n/a
A55: Wind+Fossil | B55: 0 | C55: 0 | D55: 0 | E55: 0 | F55: 0 | G55: 0 | H55: 0 | I55: n/a | J55: n/a
A56: PV+Storage | B56: 28 | C56: 80.4 | D56: 0 | E56: 0 | F56: 80.4 | G56: 46.15 | H56: 96 | I56: 0.5740049751 | J56: 2.080173348
A57: PV+Fossil | B57: 1 | C57: 74.5 | D57: 748 | E57: 0 | F57: 822.5 | G57: 0 | H57: 0 | I57: n/a | J57: n/a
A58: PV+Fossil+Storage | B58: 1 | C58: 2.6 | D58: 705.9 | E58: 0 | F58: 708.5 | G58: 0.3 | H58: 0.6 | I58: 0.0004234297812 | J58: 2
A59: PV+Biomass | B59: 2 | C59: 5.5 | D59: 98.9 | E59: 0 | F59: 104.4 | G59: 0 | H59: 0 | I59: n/a | J59: n/a
A60: PV+Geothermal | B60: 0 | C60: 0 | D60: 0 | E60: 0 | F60: 0 | G60: 0 | H60: 0 | I60: n/a | J60: n/a
A61: PV+Geothermal+CSP | B61: 0 | C61: 0 | D61: 0 | E61: 0 | F61: 0 | G61: 0 | H61: 0 | I61: n/a | J61: n/a
A62: Biomass+Storage | B62: 1 | C62: 1.2 | D62: 0 | E62: 0 | F62: 1.2 | G62: 1 | H62: 2 | I62: 0.8333333333 | J62: 2
A63: Fossil+Storage | B63: 4 | C63: 417.5 | D63: 0 | E63: 0 | F63: 417.5 | G63: 35.2 | H63: 20.8 | I63: 0.08431137725 | J63: 0.5909090909
A64: Nuclear+Fossil | B64: 0 | C64: 0 | D64: 0 | E64: 0 | F64: 0 | G64: 0 | H64: 0 | I64: n/a | J64: n/a
A65: Hydro+Nuclear | B65: 0 | C65: 0 | D65: 0 | E65: 0 | F65: 0 | G65: 0 | H65: 0 | I65: n/a | J65: n/a
A66: Hydro+Fossil | B66: 0 | C66: 0 | D66: 0 | E66: 0 | F66: 0 | G66: 0 | H66: 0 | I66: n/a | J66: n/a
A67: Hydro+Biomass | B67: 0 | C67: 0 | D67: 0 | E67: 0 | F67: 0 | G67: 0 | H67: 0 | I67: n/a | J67: n/a
A68: Hydro+Storage | B68: 1 | C68: 138 | D68: 0 | E68: 0 | F68: 138 | G68: 10 | H68: 20 | I68: 0.07246376812 | J68: 2
A69: Note: New is defined as when the project became a hybrid / co-located project (e.g., if a battery was added to an older plant in 2020 then it would be defined as new in 2020)
A70: Sources: EIA 860 2020 Early Release, Berkeley Lab

Sheet Generator+Storage Hybrids
A1: Online generator+storage hybrid / co-located projects: wind+storage, PV+storage, fossil+storage
A19: Sources: EIA 860 2020 Early Release, Berkeley Lab | I19: Sources: EIA 860 2020 Early Release, Berkeley Lab
A21: Generator+storage hybrid / co-located projects by region at end of 2020 | I21: Generator+storage hybrid / co-located projects by state at end of 2020
A22: Region | B22: PV+Storage | C22: Wind+Storage | D22: Fossil+Storage | I22: State | J22: PV+Storage | K22: Wind+Storage | L22: Fossil+Storage
A23: ERCOT | B23: 228.3 | C23: 855.8 | D23: 0 | I23: TX | J23: 228.3 | K23: 858.8 | L23: 0
A24: PJM | B24: 4.8 | C24: 445.6 | D24: 232 | I24: IL | J24: 0 | K24: 217.5 | L24: 0
A25: West (non-ISO) | B25: 364.1 | C25: 53.9 | D25: 443.3 | I25: WV | J25: 0 | K25: 198.1 | L25: 0
A26: Hawaii | B26: 67 | C26: 45 | D26: 128.1 | I26: NM | J26: 0.5 | K26: 50.9 | L26: 0
A27: SPP | B27: 10 | C27: 25 | D27: 0 | I27: HI | J27: 67 | K27: 45 | L27: 128.1
A28: Southeast (non-ISO) | B28: 165.5 | C28: 0 | D28: 677.2 | I28: PA | J28: 0 | K28: 30 | L28: 0
A29: ISO-NE | B29: 106.3 | C29: 0 | D29: 1008.7 | I29: SD | J29: 0 | K29: 25 | L29: 0
A30: CAISO | B30: 17.9 | C30: 0 | D30: 336.1 | I30: CA | J30: 355 | K30: 0 | L30: 694.4
A31: MISO | B31: 15.1 | C31: 0 | D31: 1173.7 | I31: FL | J31: 154 | K31: 0 | L31: 0
A32: NYISO | B32: 12.6 | C32: 0 | D32: 4 | I32: MA | J32: 77.9 | K32: 0 | L32: 162.7
I33: AZ | J33: 22 | K33: 0 | L33: 85
I34: VT | J34: 21.4 | K34: 0 | L34: 0
I35: NY | J35: 12.6 | K35: 0 | L35: 4
I36: AL | J36: 10 | K36: 0 | L36: 676
I37: MN | J37: 10 | K37: 0 | L37: 0
I38: AR | J38: 10 | K38: 0 | L38: 0
I39: CT | J39: 7 | K39: 0 | L39: 0
I40: IN | J40: 4 | K40: 0 | L40: 1173.7
I41: WA | J41: 3.2 | K41: 0 | L41: 0
I42: OH | J42: 3 | K42: 0 | L42: 0
I43: NJ | J43: 1.8 | K43: 0 | L43: 0
I44: GA | J44: 1.5 | K44: 0 | L44: 1.2
I45: CO | J45: 1.3 | K45: 0 | L45: 0
I46: LA | J46: 1.1 | K46: 0 | L46: 0
I47: ME | J47: 0 | K47: 0 | L47: 846
I48: MD | J48: 0 | K48: 0 | L48: 229
I49: NC | J49: 0 | K49: 0 | L49: 3

Sheet All Capacity in Queues
A1: Generation capacity in 42 selected interconnection queues from 2015 to 2020, by resource type
A22: Source: Berkeley Lab review of interconnection queues
A23: Notes: Hybrid storage capacity is estimated using storage:generator ratios from projects that provide separate capacity data;
A24: storage capacity in hybrids was not estimated for years prior to 2020.
E26: Standalone | F26: Hybrid | G26: Standalone | H26: Hybrid | I26: Total
E27: Prior | F27: Prior | G27: New | H27: New | I27: GW
A28: Solar | D28: 2014 | E28: 25.05242 | F28: 0 | G28: 19.5117 | H28: 0 | I28: 44.56412
B29: Solar | D29: 2015 | E29: 33.05512 | F29: 0 | G29: 23.763492 | H29: 0 | I29: 56.818612
C30: 2015 - | D30: 2016 | E30: 36.977478 | F30: 0 | G30: 83.3325392 | H30: 0 | I30: 120.3100172
D31: 2017 | E31: 83.578314 | F31: 0 | G31: 104.9310342 | H31: 0 | I31: 188.5093483
D32: 2018 | E32: 138.1984375 | F32: 11.55625 | G32: 115.544645 | H32: 17.66671 | I32: 282.9660425
C33: =" 2020" -> 2020 | D33: 2019 | E33: 155.783796 | F33: 43.000118 | G33: 109.784725 | H33: 58.5830964 | I33: 367.1517354
D34: 2020 | E34: 195.5608 | F34: 95.9643 | G34: 107.6153274 | H34: 63.3043 | I34: 462.4447274
A36: Wind | D36: 2014 | E36: 66.67345 | F36: 0 | G36: 29.20245 | H36: 0 | I36: 95.8759
B37: Wind | D37: 2015 | E37: 65.027285 | F37: 0 | G37: 44.56256 | H37: 0 | I37: 109.589845
C38: 2015 - | D38: 2016 | E38: 74.75129 | F38: 0 | G38: 66.92416 | H38: 0 | I38: 141.67545
D39: 2017 | E39: 98.72616997 | F39: 0 | G39: 81.448315 | H39: 0 | I39: 180.174485
D40: 2018 | E40: 138.143055 | F40: 2.189989995 | G40: 91.00174495 | H40: 0.8284000122 | I40: 232.16319
C41: =" 2020" -> 2020 | D41: 2019 | E41: 158.948814 | F41: 2.3705 | G41: 55.64001 | H41: 8.5429 | I41: 225.502224
D42: 2020 | E42: 151.4145 | F42: 2.952 | G42: 44.4953 | H42: 10.277 | I42: 209.1388
A44: Storage | D44: 2014 | E44: 0 | G44: 0 | I44: 0
B45: Storage | D45: 2015 | E45: 1.76074 | G45: 5.5424 | I45: 7.30314
C46: 2015 - | D46: 2016 | E46: 5.10035 | G46: 6.637815 | I46: 11.738165
D47: 2017 | E47: 10.05593 | G47: 8.826424999 | I47: 18.882355
D48: 2018 | E48: 9.41003 | G48: 19.6233943 | I48: 29.0334243
C49: =" 2020" -> 2020 | D49: 2019 | E49: 18.066953 | G49: 37.336366 | I49: 55.403319
D50: 2020 | E50: 41.73935 | F50: 67.13188 | G50: 50.997 | H50: 44.59851 | I50: 204.46674
A52: Gas | D52: 2014 | E52: 79.96638 | F52: 0 | G52: 65.1747 | H52: 0 | I52: 145.14108
B53: Gas | D53: 2015 | E53: 105.119612 | F53: 0 | G53: 58.229666 | H53: 0 | I53: 163.349278
C54: 2015 - | D54: 2016 | E54: 93.619382 | F54: 0 | G54: 39.756319 | H54: 0 | I54: 133.375701
D55: 2017 | E55: 74.77010798 | F55: 0 | G55: 36.10036 | H55: 0 | I55: 110.870468
D56: 2018 | E56: 58.247327 | F56: 0.1058 | G56: 27.42094 | H56: 0.23845 | I56: 86.01251701
C57: =" 2020" -> 2020 | D57: 2019 | E57: 48.279304 | F57: 0.3488 | G57: 28.44703 | H57: 0.1315 | I57: 77.206634
D58: 2020 | E58: 48.0379 | F58: 1.221 | G58: 21.7908 | H58: 2.972 | I58: 74.0217
A60: Nuclear | D60: 2014 | E60: 5.758 | G60: 4.205 | I60: 9.963
D61: 2015 | E61: 9.554 | G61: 0 | I61: 9.554
B62: Nuclear | C62: 2015 - | D62: 2016 | E62: 1.408 | G62: 0.9522 | I62: 2.3602
D63: 2017 | E63: 0.7442 | G63: 0.0806 | I63: 0.8248
D64: 2018 | E64: 0.5848 | G64: 0.6451 | I64: 1.2299
C65: =" 2020" -> 2020 | D65: 2019 | E65: 3.2835 | G65: 0.05 | I65: 3.3335
D66: 2020 | E66: 3.2823 | F66: 0 | G66: 0.1 | H66: 0 | I66: 3.3823
A68: Coal | D68: 2014 | E68: 1.783 | G68: 1.8368 | I68: 3.6198
B69: Coal | D69: 2015 | E69: 3.169 | G69: 0.492 | I69: 3.661
C70: 2015 - | D70: 2016 | E70: 0.845 | G70: 0.03 | I70: 0.875
D71: 2017 | E71: 0.179 | G71: 0.014 | I71: 0.193
D72: 2018 | E72: 0.083 | G72: 0.736 | I72: 0.819
C73: =" 2020" -> 2020 | D73: 2019 | E73: 0.039 | G73: 0.011 | I73: 0.05
D74: 2020 | E74: 0.1307 | F74: 0 | G74: 0 | H74: 0 | I74: 0.1307
A76: Other | D76: 2014 | E76: 18.34909 | G76: 7.0573 | I76: 25.40639
D77: 2015 | E77: 9.364886 | G77: 3.796967 | I77: 13.161853
B78: Other | C78: 2015 - | D78: 2016 | E78: 6.03314 | G78: 4.43909 | I78: 10.47223
D79: 2017 | E79: 3.989000001 | G79: 2.24446 | I79: 6.233460001
D80: 2018 | E80: 3.621984001 | G80: 2.967451 | I80: 6.589435001
C81: =" 2020" -> 2020 | D81: 2019 | E81: 4.102279 | G81: 0.545401 | I81: 4.64768
D82: 2020 | E82: 5.41296 | F82: 0.0672 | G82: 0.8033 | H82: 1.629229 | I82: 7.912689

Sheet Capacity in Queues, Time+Region
A1: Capacity in 42 selected interconnection queues from 2015 to 2020, by resource type and region
A23: Source: Berkeley Lab review of interconnection queues
A24: Notes: (1) Wind capacity includes onshore and offshore for all years, but offshore is only broken out starting in 2020.
A25: (2) Storage capacity only includes standalone storage – storage in hybrid configuration is not included here.
A26: (3) Hybrid generator capacity is included in all generator categories.
A28: Region | B28: Year | C28: Wind | D28: Offshore Wind | E28: Solar | F28: Gas | G28: Standalone Storage
A29: West non-ISO | B29: 2007 | C29: 34.319 | D29: 0 | E29: 0.001 | F29: 5.962 | G29: 0
A30: West non-ISO | B30: 2008 | C30: 59.54 | D30: 0 | E30: 3.356 | F30: 9.545 | G30: 0
A31: West non-ISO | B31: 2009 | C31: 89.439 | D31: 0 | E31: 14.892 | F31: 11.415 | G31: 0
A32: West non-ISO | B32: 2010 | C32: 77.375 | D32: 0 | E32: 15.143 | F32: 10.598 | G32: 0
A33: West non-ISO | B33: 2011 | C33: 52.302 | D33: 0 | E33: 16.29 | F33: 9.819 | G33: 0
A34: West non-ISO | B34: 2012 | C34: 39.748 | D34: 0 | E34: 13.541 | F34: 12.219 | G34: 0
A35: West non-ISO | B35: 2013 | C35: 29.7989 | D35: 0 | E35: 17.2906 | F35: 12.5373 | G35: 0
A36: West non-ISO | B36: 2014 | C36: 22.7704 | D36: 0 | E36: 14.3196 | F36: 13.6941 | G36: 0
A37: West non-ISO | B37: 2015 | C37: 23.001645 | D37: 0 | E37: 14.728292 | F37: 7.670046 | G37: 0.207
A38: West non-ISO | B38: 2016 | C38: 22.53011 | D38: 0 | E38: 24.728377 | F38: 8.253209 | G38: 1.48205
A39: West non-ISO | B39: 2017 | C39: 37.57787 | D39: 0 | E39: 45.52383425 | F39: 9.40905 | G39: 3.95906
A40: West non-ISO | B40: 2018 | C40: 54.82653 | D40: 0 | E40: 73.882704 | F40: 8.0961 | G40: 9.5398
A41: West non-ISO | B41: 2019 | C41: 49.96762 | D41: 0 | E41: 71.89601 | F41: 4.4247 | G41: 14.8186
A42: West non-ISO | B42: 2020 | C42: 29.608 | D42: 0 | E42: 81.5168 | F42: 3.86 | G42: 15.3666
A43: Southeast non-ISO | B43: 2007 | C43: 0 | D43: 0 | E43: 0 | F43: 0 | G43: 0
A44: Southeast non-ISO | B44: 2008 | C44: 0 | D44: 0 | E44: 0 | F44: 0 | G44: 0
A45: Southeast non-ISO | B45: 2009 | C45: 0.021 | D45: 0 | E45: 0.643 | F45: 13.497 | G45: 0
A46: Southeast non-ISO | B46: 2010 | C46: 0.021 | D46: 0 | E46: 0.65 | F46: 25.527 | G46: 0
A47: Southeast non-ISO | B47: 2011 | C47: 1.088 | D47: 0 | E47: 0.674 | F47: 29.661 | G47: 0
A48: Southeast non-ISO | B48: 2012 | C48: 1.042 | D48: 0 | E48: 1.351 | F48: 25.709 | G48: 0
A49: Southeast non-ISO | B49: 2013 | C49: 0.8685 | D49: 0 | E49: 2.9275 | F49: 21.549 | G49: 0
A50: Southeast non-ISO | B50: 2014 | C50: 0.45 | D50: 0 | E50: 4.6305 | F50: 18.313 | G50: 0
A51: Southeast non-ISO | B51: 2015 | C51: 0.42006 | D51: 0 | E51: 6.01426 | F51: 22.842 | G51: 0
A52: Southeast non-ISO | B52: 2016 | C52: 1.32856 | D52: 0 | E52: 21.185383 | F52: 23.40122 | G52: 0
A53: Southeast non-ISO | B53: 2017 | C53: 0.4362 | D53: 0 | E53: 33.52845 | F53: 26.12652 | G53: 0.014
A54: Southeast non-ISO | B54: 2018 | C54: 0.7 | D54: 0 | E54: 39.360055 | F54: 17.4236 | G54: 0
A55: Southeast non-ISO | B55: 2019 | C55: 1.486 | D55: 0 | E55: 47.007804 | F55: 34.6092 | G55: 1.44875
A56: Southeast non-ISO | B56: 2020 | C56: 2.071 | D56: 0 | E56: 57.0872474 | F56: 38.98 | G56: 2.902
A57: CAISO | B57: 2007 | C57: 18.546 | D57: 0 | E57: 22.369 | F57: 29.361 | G57: 0
A58: CAISO | B58: 2008 | C58: 13.2 | D58: 0 | E58: 31.2 | F58: 19.7 | G58: 0
A59: CAISO | B59: 2009 | C59: 10.289 | D59: 0 | E59: 16.239 | F59: 14.32 | G59: 0
A60: CAISO | B60: 2010 | C60: 11.37 | D60: 0 | E60: 29.875 | F60: 14.308 | G60: 0
A61: CAISO | B61: 2011 | C61: 16.13 | D61: 0 | E61: 38.353 | F61: 10.539 | G61: 0
A62: CAISO | B62: 2012 | C62: 6.703 | D62: 0 | E62: 26.54 | F62: 13.101 | G62: 0
A63: CAISO | B63: 2013 | C63: 5.4231 | D63: 0 | E63: 14.3813 | F63: 13.2037 | G63: 0
A64: CAISO | B64: 2014 | C64: 4.2717 | D64: 0 | E64: 14.02292 | F64: 9.56183 | G64: 0
A65: CAISO | B65: 2015 | C65: 3.47054 | D65: 0 | E65: 19.12488 | F65: 6.965312 | G65: 5.205
A66: CAISO | B66: 2016 | C66: 4.2458 | D66: 0 | E66: 31.5486772 | F66: 5.677622 | G66: 8.616335
A67: CAISO | B67: 2017 | C67: 4.44939 | D67: 0 | E67: 31.674939 | F67: 3.39601 | G67: 12.84151
A68: CAISO | B68: 2018 | C68: 6.762045 | D68: 0 | E68: 37.3326815 | F68: 1.1738 | G68: 11.7775213
A69: CAISO | B69: 2019 | C69: 10.147909 | D69: 0 | E69: 43.8644494 | F69: 0.158 | G69: 16.542518
A70: CAISO | B70: 2020 | C70: 11.0453 | D70: 2.212 | E70: 47.309 | F70: 0.78 | G70: 22.712
A71: ERCOT | B71: 2007 | C71: 41.117 | D71: 0 | E71: 0 | F71: 30.075 | G71: 0
A72: ERCOT | B72: 2008 | C72: 51.6 | D72: 0 | E72: 0.95 | F72: 29.9 | G72: 0
A73: ERCOT | B73: 2009 | C73: 45.666 | D73: 0 | E73: 1.003 | F73: 17.697 | G73: 0
A74: ERCOT | B74: 2010 | C74: 37.867 | D74: 0 | E74: 1.279 | F74: 13 | G74: 0
A75: ERCOT | B75: 2011 | C75: 31.766 | D75: 0 | E75: 1.293 | F75: 12.083 | G75: 0
A76: ERCOT | B76: 2012 | C76: 21.43 | D76: 0 | E76: 1.315 | F76: 19.806 | G76: 0
A77: ERCOT | B77: 2013 | C77: 24.266 | D77: 0 | E77: 2.849 | F77: 22.854 | G77: 0
A78: ERCOT | B78: 2014 | C78: 23.932 | D78: 0 | E78: 6.425 | F78: 30.862 | G78: 0
A79: ERCOT | B79: 2015 | C79: 24.095 | D79: 0 | E79: 8.509 | F79: 27.686 | G79: 0.614
A80: ERCOT | B80: 2016 | C80: 26.732 | D80: 0 | E80: 13.724 | F80: 18.576 | G80: 0.624
A81: ERCOT | B81: 2017 | C81: 30.198 | D81: 0 | E81: 24.123 | F81: 13.969 | G81: 0.03
A82: ERCOT | B82: 2018 | C82: 25.3154 | D82: 0 | E82: 36.39543 | F82: 6.5518 | G82: 1.00121
A83: ERCOT | B83: 2019 | C83: 26.90256 | D83: 0 | E83: 53.53173 | F83: 5.2826 | G83: 2.02919
A84: ERCOT | B84: 2020 | C84: 17.68502 | D84: 0 | E84: 64.9132 | F84: 3.28 | G84: 12.779
A85: SPP | B85: 2007 | C85: 20.616 | D85: 0 | E85: 0 | F85: 3.005 | G85: 0
A86: SPP | B86: 2008 | C86: 47.9 | D86: 0 | E86: 0.07 | F86: 4.2 | G86: 0
A87: SPP | B87: 2009 | C87: 39.521 | D87: 0 | E87: 0.088 | F87: 4.653 | G87: 0
A88: SPP | B88: 2010 | C88: 15.979 | D88: 0 | E88: 0.08 | F88: 2.18 | G88: 0
A89: SPP | B89: 2011 | C89: 20.027 | D89: 0 | E89: 0.04 | F89: 0.778 | G89: 0
A90: SPP | B90: 2012 | C90: 19.246 | D90: 0 | E90: 0.056 | F90: 1.924 | G90: 0
A91: SPP | B91: 2013 | C91: 15.8216 | D91: 0 | E91: 0.025 | F91: 2.3248 | G91: 0
A92: SPP | B92: 2014 | C92: 14.327 | D92: 0 | E92: 1.1394 | F92: 2.851 | G92: 0
A93: SPP | B93: 2015 | C93: 19.9626 | D93: 0 | E93: 1.89848 | F93: 2.205 | G93: 0.06
A94: SPP | B94: 2016 | C94: 32.92242 | D94: 0 | E94: 3.7738 | F94: 0.507 | G94: 0.04019
A95: SPP | B95: 2017 | C95: 52.58053 | D95: 0 | E95: 17.0473 | F95: 1.583 | G95: 0.84144
A96: SPP | B96: 2018 | C96: 57.30919 | D96: 0 | E96: 25.306267 | F96: 0.255 | G96: 2.7984
A97: SPP | B97: 2019 | C97: 56.99028 | D97: 0 | E97: 28.668867 | F97: 0.29129 | G97: 4.2116
A98: SPP | B98: 2020 | C98: 45.4743 | D98: 0 | E98: 36.2603 | F98: 3.546 | G98: 5.734
A99: MISO | B99: 2007 | C99: 65.778 | D99: 0 | E99: 0 | F99: 8.474 | G99: 0
A100: MISO | B100: 2008 | C100: 63.65 | D100: 0 | E100: 0 | F100: 5.7 | G100: 0
A101: MISO | B101: 2009 | C101: 61.47 | D101: 0 | E101: 0 | F101: 2.153 | G101: 0
A102: MISO | B102: 2010 | C102: 62.362 | D102: 0 | E102: 0 | F102: 3.849 | G102: 0
A103: MISO | B103: 2011 | C103: 41.466 | D103: 0 | E103: 0.19 | F103: 2.858 | G103: 0
A104: MISO | B104: 2012 | C104: 13.022 | D104: 0 | E104: 0 | F104: 7.729 | G104: 0
A105: MISO | B105: 2013 | C105: 15.3499 | D105: 0 | E105: 0.11 | F105: 6.283 | G105: 0
A106: MISO | B106: 2014 | C106: 11.5414 | D106: 0 | E106: 1.3784 | F106: 18.0654 | G106: 0
A107: MISO | B107: 2015 | C107: 19.2734 | D107: 0 | E107: 2.48945 | F107: 18.6708 | G107: 0.19714
A108: MISO | B108: 2016 | C108: 36.08189 | D108: 0 | E108: 9.18081 | F108: 15.23045 | G108: 0.134
A109: MISO | B109: 2017 | C109: 29.25065 | D109: 0 | E109: 14.96256 | F109: 10.88266 | G109: 0.14
A110: MISO | B110: 2018 | C110: 33.66171 | D110: 0 | E110: 34.38263 | F110: 8.3971 | G110: 0.21
A111: MISO | B111: 2019 | C111: 20.74928 | D111: 0 | E111: 50.42645 | F111: 7.769 | G111: 1.0275
A112: MISO | B112: 2020 | C112: 19.1796 | D112: 0 | E112: 63.5528 | F112: 5.035 | G112: 2.536
A113: PJM | B113: 2007 | C113: 35.135 | D113: 0 | E113: 0 | F113: 17.708 | G113: 0
A114: PJM | B114: 2008 | C114: 42.6 | D114: 0 | E114: 0.055 | F114: 32.1 | G114: 0
A115: PJM | B115: 2009 | C115: 41.515 | D115: 0 | E115: 0.652 | F115: 22.124 | G115: 0
A116: PJM | B116: 2010 | C116: 36.937 | D116: 0 | E116: 3.904 | F116: 21.171 | G116: 0
A117: PJM | B117: 2011 | C117: 44.299 | D117: 0 | E117: 3.622 | F117: 58.108 | G117: 0
A118: PJM | B118: 2012 | C118: 18.113 | D118: 0 | E118: 1.258 | F118: 37.742 | G118: 0
A119: PJM | B119: 2013 | C119: 15.77318 | D119: 0 | E119: 1.8036 | F119: 41.6511 | G119: 0
A120: PJM | B120: 2014 | C120: 12.5379 | D120: 0 | E120: 2.432 | F120: 41.7836 | G120: 0
A121: PJM | B121: 2015 | C121: 11.6257 | D121: 0 | E121: 3.47025 | F121: 60.59812 | G121: 0.866
A122: PJM | B122: 2016 | C122: 7.64195 | D122: 0 | E122: 14.711 | F122: 48.53361 | G122: 0.46335
A123: PJM | B123: 2017 | C123: 10.961695 | D123: 0 | E123: 18.708785 | F123: 35.5361 | G123: 0.3331
A124: PJM | B124: 2018 | C124: 22.695175 | D124: 0 | E124: 30.355095 | F124: 32.85168 | G124: 1.081393
A125: PJM | B125: 2019 | C125: 27.117275 | D125: 0 | E125: 56.807195 | F125: 17.1699 | G125: 6.154792
A126: PJM | B126: 2020 | C126: 13.9873 | D126: 15.6983 | E126: 89.12312 | F126: 9.8801 | G126: 14.89825
A127: NYISO | B127: 2007 | C127: 7.491 | D127: 0 | E127: 0 | F127: 8.884 | G127: 0
A128: NYISO | B128: 2008 | C128: 7.96 | D128: 0 | E128: 0 | F128: 7.54 | G128: 0
A129: NYISO | B129: 2009 | C129: 6.984 | D129: 0 | E129: 0 | F129: 6.991 | G129: 0
A130: NYISO | B130: 2010 | C130: 7.039 | D130: 0 | E130: 0 | F130: 4.983 | G130: 0
A131: NYISO | B131: 2011 | C131: 5.699 | D131: 0 | E131: 0 | F131: 6.058 | G131: 0
A132: NYISO | B132: 2012 | C132: 2.302 | D132: 0 | E132: 0 | F132: 5.408 | G132: 0
A133: NYISO | B133: 2013 | C133: 2.217 | D133: 0 | E133: 0 | F133: 6.278 | G133: 0
A134: NYISO | B134: 2014 | C134: 2.0077 | D134: 0 | E134: 0.2103 | F134: 3.5732 | G134: 0
A135: NYISO | B135: 2015 | C135: 3.4589 | D135: 0 | E135: 0.153 | F135: 7.5 | G135: 0.06
A136: NYISO | B136: 2016 | C136: 4.3433 | D136: 0 | E136: 0.743 | F136: 6.8055 | G136: 0.2349
A137: NYISO | B137: 2017 | C137: 6.3122 | D137: 0 | E137: 1.9738 | F137: 5.5111 | G137: 0.2349
A138: NYISO | B138: 2018 | C138: 14.91292 | D138: 0 | E138: 4.1665 | F138: 6.49839 | G138: 1.4904
A139: NYISO | B139: 2019 | C139: 18.1184 | D139: 0 | E139: 10.07655 | F139: 6.0953 | G139: 6.883369
A140: NYISO | B140: 2020 | C140: 5.408 | D140: 28.162 | E140: 12.269 | F140: 3.51 | G140: 11.8885
A141: ISO-NE | B141: 2007 | C141: 2.076 | D141: 0 | E141: 0 | F141: 10.938 | G141: 0
A142: ISO-NE | B142: 2008 | C142: 5.8 | D142: 0 | E142: 0 | F142: 12 | G142: 0
A143: ISO-NE | B143: 2009 | C143: 3.648 | D143: 0 | E143: 0 | F143: 6.393 | G143: 0
A144: ISO-NE | B144: 2010 | C144: 3.92 | D144: 0 | E144: 0 | F144: 6.315 | G144: 0
A145: ISO-NE | B145: 2011 | C145: 3.077 | D145: 0 | E145: 0.016 | F145: 5.805 | G145: 0
A146: ISO-NE | B146: 2012 | C146: 2.137 | D146: 0 | E146: 0.016 | F146: 3.67 | G146: 0
A147: ISO-NE | B147: 2013 | C147: 2.5057 | D147: 0 | E147: 0.0158 | F147: 4.7416 | G147: 0
A148: ISO-NE | B148: 2014 | C148: 4.0378 | D148: 0 | E148: 0.006 | F148: 6.43695 | G148: 0
A149: ISO-NE | B149: 2015 | C149: 4.282 | D149: 0 | E149: 0.431 | F149: 9.212 | G149: 0.094
A150: ISO-NE | B150: 2016 | C150: 5.84942 | D150: 0 | E150: 0.71497 | F150: 6.39109 | G150: 0.14334
A151: ISO-NE | B151: 2017 | C151: 8.40794997 | D151: 0 | E151: 0.9666800003 | F151: 4.457027979 | G151: 0.4883449974
A152: ISO-NE | B152: 2018 | C152: 15.98021997 | D152: 0 | E152: 1.784679998 | F152: 4.420797007 | G152: 1.135200005
A153: ISO-NE | B153: 2019 | C153: 14.2514 | D153: 0 | E153: 1.70118 | F153: 0.9263440027 | G153: 2.287
A154: ISO-NE | B154: 2020 | C154: 0.2258 | D154: 14.907 | E154: 3.9767 | F154: 0.9576 | G154: 3.645
A155: All Regions | B155: 2007 | C155: =SUMIF($B$3:$B$136,$B155,C$3:C$136) -> 223.002 | D155: =SUMIF($B$3:$B$136,$B155,D$3:D$136) -> 0 | E155: 22.37 | F155: 103.469 | G155: 0
A156: All Regions | B156: 2008 | C156: =SUMIF($B$3:$B$136,$B156,C$3:C$136) -> 286.45 | D156: 0 | E156: 35.631 | F156: 108.685 | G156: 0
A157: All Regions | B157: 2009 | C157: 294.905 | D157: 0 | E157: 33.517 | F157: 92.85 | G157: 0
A158: All Regions | B158: 2010 | C158: 248.95 | D158: 0 | E158: 50.931 | F158: 95.616 | G158: 0
A159: All Regions | B159: 2011 | C159: 212.777 | D159: 0 | E159: 60.462 | F159: 129.904 | G159: 0
A160: All Regions | B160: 2012 | C160: 121.606 | D160: 0 | E160: 44.061 | F160: 123.638 | G160: 0
A161: All Regions | B161: 2013 | C161: 109.51818 | D161: 0 | E161: 39.387 | F161: 126.6809 | G161: 0
A162: All Regions | B162: 2014 | C162: 91.8381 | D162: 0 | E162: 44.55812 | F162: 138.70413 | G162: 0
A163: All Regions | B163: 2015 | C163: 105.307845 | D163: 0 | E163: 56.387612 | F163: 154.137278 | G163: 7.20914
A164: All Regions | B164: 2016 | C164: 135.82603 | D164: 0 | E164: 119.5950472 | F164: 126.984611 | G164: 11.594825
A165: All Regions | B165: 2017 | C165: 165.454335 | D165: 0 | E165: 185.5688682 | F165: 100.90234 | G165: 18.15911
A166: All Regions | B166: 2018 | C166: 201.27005 | D166: 0 | E166: 277.0148625 | F166: 74.74908 | G166: 26.4083243
A167: All Regions | B167: 2019 | C167: 193.360924 | D167: 0 | E167: 352.2025054 | F167: 69.70469 | G167: 46.23295
A168: All Regions | B168: 2020 | C168: 139.05052 | D168: 17.9103 | E168: 439.7624674 | F168: 65.3611 | G168: 76.92785

Sheet Capacity in Queues, COD+Status
A1: Capacity in queues for selected resource types, by requested online year and interconnection study status
A20: Source: Berkeley Lab review of interconnection queues | J20: Source: Berkeley Lab review of interconnection queues
A22: Capacity (GW) of Projects in Queues, by Expected Online Year | J22: Capacity (GW) of Projects in Queues, by Interconnection Status
A23: Online Year | B23: Wind | C23: Solar | D23: Standalone Storage | E23: Gas | K23: Wind | L23: Solar | M23: Standalone Storage | N23: Gas
A24: < 2021 | B24: 30.5118 | C24: 35.62177 | D24: 2.53335 | E24: 11.5221 | J24: IA Executed | K24: 36.7333 | L24: 52.95519 | M24: 7.249 | N24: 4.9672
A25: 2021 | B25: 32.38662 | C25: 67.75671 | D25: 9.6125 | E25: 8.519 | J25: In Progress | K25: 123.4185 | L25: 291.028 | M25: 52.15585 | N25: 65.3885
A26: 2022 | B26: 32.1798 | C26: 119.7092 | D26: 25.8945 | E26: 9.7573 | J26: Not Started | K26: 48.987 | L26: 115.3467 | M26: 33.3195 | N26: 3.666
A27: 2023 | B27: 23.454 | C27: 146.7727 | D27: 29.389 | E27: 10.4243 | J27: Unknown | K27: 0 | L27: 3.114817 | M27: 0.012 | N27: 0
A28: 2024 | B28: 25.337 | C28: 39.615 | D28: 11.723 | E28: 4.119 | J28: Total | K28: =SUM(K24:K27) -> 209.1388 | L28: =SUM(L24:L27) -> 462.444707 | M28: 92.73635 | N28: 74.0217
A29: 2025 | B29: 9.851 | C29: 13.925 | D29: 5.289 | E29: 4.027
A30: 2026 | B30: 9.5 | C30: 2.411 | D30: 2.357 | E30: 1.873
A31: 2027 | B31: 17.992 | C31: 0.4 | D31: 1.2 | E31: 0
A32: unknown | B32: 25.752 | C32: 35.893 | D32: 4.738 | E32: 23.78
A33: Total | B33: 206.96422 | C33: 462.10438 | D33: 92.73635 | E33: 74.0217

Sheet Wind Capacity in Queues, Region
A1: Wind power capacity within 42 selected interconnection queues at end of 2020, by region
A23: Source: Berkeley Lab review of interconnection queues
B26: Cumulative | C26: Annual | D26: Cumulative | E26: Annual
B27: Onshore Wind | C27: Onshore Wind | D27: Offshore Wind | E27: Offshore Wind
B28: Capacity (MW) | C28: Capacity (MW) | D28: Capacity (MW) | E28: Capacity (MW)
B29: end of 2020 | C29: added in 2020 | D29: end of 2020 | E29: added in 2020
A30: CAISO | B30: 11047.3 | C30: 7866.6 | D30: 2212 | E30: 2050
A31: ERCOT | B31: 17489.02 | C31: 848 | D31: 0 | E31: 0
A32: ISO-NE | B32: 225.8 | C32: 64.8 | D32: 14907 | E32: 3600
A33: MISO | B33: 18841.6 | C33: 5128.6 | D33: 0 | E33: 0
A34: NYISO | B34: 5408 | C34: 0 | D34: 28162 | E34: 16530
A35: PJM | B35: 13987.3 | C35: 3691.3 | D35: 15698.3 | E35: 2650
A36: SPP | B36: 45977.8 | C36: 3458 | D36: 0 | E36: 0
A37: Southeast (non-I | B37: 2071 | C37: 417 | D37: 0 | E37: 0
A38: West (non-ISO) | B38: 33111.7 | C38: 8468 | D38: 0 | E38: 0

Sheet Hybrid Capacity in Queues
A1: Hybrid / co-located capacity within 42 selected interconnection queues at end of 2020
R5: Region | S5: % of Proposed Capacity Hybridizing in Each Region
S7: Wind | T7: Solar | U7: Nat. Gas | V7: Battery
R8: CAISO | S8: =G32/(G32+L32) -> 0.3731720377 | T8: 0.8855349103 | U8: 0 | V8: 0.6426678141
R9: ERCOT | S9: 0.05717873271 | T9: 0.2064531587 | U9: 0.3353596758 | V9: 0.3741092113
R10: SPP | S10: 0.03538664312 | T10: 0.2211047968 | U10: 0.3255990871 | V10: 0.384301514
R11: MISO | S11: 0.05174719769 | T11: 0.1785591692 | U11: 0 | V11: n/a
R12: PJM | S12: 0.01313768292 | T12: 0.1933022542 | U12: 0.0131840473 | V12: n/a
R13: NYISO | S13: 0.003008638665 | T13: 0.04808867878 | U13: 0.06494751985 | V13: =J37/(J37+O37) -> 0.02325682301
R14: ISO-NE | S14: 0 | T14: 0.1191943068 | U14: 0 | V14: n/a
R15: West (non-ISO) | S15: 0.126480972 | T15: 0.6692619787 | U15: 0.05853658537 | V15: n/a
R16: Southeast (non-ISO) | S16: 0 | T16: 0.1328142449 | U16: 0.005358509824 | V16: n/a
R17: TOTAL | S17: 0.06325463632 | T17: 0.3444057128 | U17: 0.05664300237 | V17: n/a
A22: Notes: (1) Hybrid plants involving multiple generator types (e.g., wind+PV+storage, or just wind+PV) show up in all generator categories, presuming the capacity is known
A23: for each generator type. (2) Hybrid storage capacity is estimated using storage:generator ratios from projects that provide separate capacity data
A24: Source: Berkeley Lab review of interconnection queues
A27: Total capacity in 42 queues at end of 2020 | F27: Total capacity in queues at end of 2020, by region
G28: Hybrid | H28: Hybrid | I28: Hybrid | J28: Hybrid | K28: Hybrid | L28: Standalone | M28: Standalone | N28: Standalone | O28: Standalone | P28: Standalone | Q28: Standalone | R28: Standalone | S28: Standalone
G29: Wind | H29: Solar | I29: Nat. Gas | J29: Storage* | K29: Other | L29: Wind | M29: Solar | N29: Nat. Gas | O29: Battery | P29: Other Storage | Q29: Coal | R29: Nuclear | S29: Other
B30: Hybrid | C30: Standalone | D30: Hybrid | G30: Capacity (MW) | H30: Capacity (MW) | I30: Capacity (MW) | J30: Capacity (MW) | K30: Capacity (MW) | L30: Capacity (MW) | M30: Capacity (MW) | N30: Capacity (MW) | O30: Capacity (MW) | P30: Capacity (MW) | Q30: Capacity (MW) | R30: Capacity (MW) | S30: Capacity (MW)
B31: GW | C31: GW | D31: % | G31: end of 2020 | H31: end of 2020 | I31: end of 2020 | J31: end of 2020 | K31: end of 2020 | L31: end of 2020 | M31: end of 2020 | N31: end of 2020 | O31: end of 2020 | P31: end of 2020 | Q31: end of 2020 | R31: end of 2020 | S31: end of 2020
A32: Solar | B32: 159.3 | C32: 303.2 | D32: =B32/(B32+C32) -> 0.3444324324 | F32: CAISO | G32: 4948 | H32: 41892 | I32: 0 | J32: 37339 | K32: 1032 | L32: 8311.3 | M32: 5415 | N32: 780 | O32: 20761 | P32: 1951 | Q32: 0 | R32: 0 | S32: 5
A33: Wind | B33: 13.229 | C33: 195.9 | D33: =B33/(B33+C33) -> 0.06325760655 | F33: ERCOT | G33: 1000 | H33: 13442 | I33: 1655 | J33: 7638.3 | K33: 0 | L33: 16489.02 | M33: 51667.2 | N33: 3280 | O33: 12779 | P33: 0 | Q33: 0 | R33: 0 | S33: 200
A34: Storage | B34: 111.7 | C34: 92.7 | D34: =B34/(B34+C34) -> 0.5464774951 | F34: SPP | G34: 1627 | H34: 7906 | I34: 1712 | J34: 3579 | K34: 0 | L34: 44350.8 | M34: 27850.8 | N34: 3546 | O34: 5734 | P34: 0 | Q34: 0 | R34: 0 | S34: 0
A35: Natural Gas | B35: 4.193 | C35: 69.8287 | D35: =B35/(B35+C35) -> 0.05664555124 | F35: MISO | G35: 975 | H35: 11444 | I35: 0 | J35: 2673.935 | K35: 50 | L35: 17866.6 | M35: 52646.8 | N35: 5035 | O35: 2536 | P35: 0 | Q35: 0 | R35: 0 | S35: 191
A36: Other | B36: 1.696429 | C36: 9.729 | D36: =B36/(B36+C36) -> 0.1484783635 | F36: PJM | G36: 390 | H36: 17227.7 | I36: 132 | J36: 8046.016 | K36: 0 | L36: 29295.6 | M36: 71895.42 | N36: 9880.1 | O36: 14898.25 | P36: 0 | Q36: 11 | R36: 145.3 | S36: 844.5
F37: NYISO | G37: 101 | H37: 590 | I37: 243.8 | J37: 268 | K37: 0 | L37: 33469 | M37: 11679 | N37: 3510 | O37: 11255.5 | P37: 633 | Q37: 0 | R37: 0 | S37: 117
A38: *Note: Hybrid storage capacity is estimated using | F38: ISO-NE | G38: 0 | H38: 474 | I38: 0 | J38: 237 | K38: 0 | L38: 15132.8 | M38: 3502.7 | N38: 957.6 | O38: 3635 | P38: 10 | Q38: 0 | R38: 37 | S38: 94
A39: storage:generator ratios from projects that provide | F39: West (non-ISO) | G39: 4188 | H39: 58710.9 | I39: 240 | J39: 45459.84 | K39: 597.2 | L39: 28923.7 | M39: 29013.94 | N39: 3860 | O39: 14641.6 | P39: 1000 | Q39: 0 | R39: 600 | S39: 4649.19
A40: separate capacity data | F40: Southeast (non-ISO) | G40: 0 | H40: 7582 | I40: 210 | J40: 6489.3 | K40: 17.2 | L40: 2071 | M40: 49505.25 | N40: 38980 | O40: 2902 | P40: 0 | Q40: 119.7 | R40: 2600 | S40: 115.57
F41: TOTAL | G41: =SUM(G32:G40) -> 13229 | H41: 159268.6 | I41: 4192.8 | J41: 111730.391 | K41: 1696.4 | L41: 195909.82 | M41: 303176.11 | N41: 69828.7 | O41: 89142.35 | P41: 3594 | Q41: 130.7 | R41: 3382.3 | S41: 6216.26
F42: *Note: Hybrid storage capacity is estimated using storage:generator ratios from projects that provide separate capacity data
A44: Wind and solar hybrid / co-located capacity in queues at end of 2020, by configuration
B45: Wind Capacity in Hybrids (MW) | F45: Solar Capacity in Hybrids (MW)
B46: Wind+ Storage | C46: Wind+ Solar | D46: Wind+ Solar+ Storage | F46: Solar+ Storage | G46: Solar+ Wind | H46: Solar+ Wind+ Storage | I46: Solar+ Hydro | J46: Solar+ Nat. Gas
A47: CAISO | B47: 4327 | C47: 621 | D47: 0 | F47: 41275 | G47: 617 | H47: 0 | I47: 0 | J47: 0
A48: ERCOT | B48: 1000 | C48: 0 | D48: 0 | F48: 13050 | G48: 392 | H48: 0 | I48: 0 | J48: 0
A49: SPP | B49: 620 | C49: 1007 | D49: 0 | F49: 7906 | G49: 0 | H49: 0 | I49: 0 | J49: 0
A50: MISO | B50: 0 | C50: 810 | D50: 165 | F50: 9593 | G50: 1287 | H50: 364 | I50: 200 | J50: 0
A51: PJM | B51: 390 | C51: 0 | D51: 0 | F51: 17227.7 | G51: 0 | H51: 0 | I51: 0 | J51: 0
A52: NYISO | B52: 101 | C52: 0 | D52: 0 | F52: 590 | G52: 0 | H52: 0 | I52: 0 | J52: 0
A53: ISO-NE | B53: 0 | C53: 0 | D53: 0 | F53: 474 | G53: 0 | H53: 0 | I53: 0 | J53: 0
A54: West (non-ISO) | B54: 500 | C54: 1988 | D54: 1700 | F54: 57784.9 | G54: 260 | H54: 566 | I54: 0 | J54: 100
A55: Southeast (non-ISO) | B55: 0 | C55: 0 | D55: 0 | F55: 7582 | G55: 0 | H55: 0 | I55: 0 | J55: 0
A56: Total | B56: =SUM(B47:B55) -> 6938 | C56: =SUM(C47:C55) -> 4426 | D56: =SUM(D47:D55) -> 1865 | F56: =SUM(F47:F55) -> 155482.6 | G56: =SUM(G47:G55) -> 2556 | H56: =SUM(H47:H55) -> 930 | I56: =SUM(I47:I55) -> 200 | J56: =SUM(J47:J55) -> 100

Sheet Gen+Storage Hybrids in Queues
A1: Generator+storage hybrid / co-located projects and standalone storage in interconnection queues: wind+storage, PV+storage, standalone storage
A22: Source: Berkeley Lab review of interconnection queues
L24: Region | M24: Storage:Generation Capacity Ratio | V24: CAISO Generator+Storage Hybrids:
B25: Wind+Storage | C25: Solar+Storage | D25: Standalone Storage | G25: Wind+Storage | I25: Solar+Storage | M25: Wind+Storage | Q25: Solar+Storage | V25: Total Capacity as Percentage of POI Limit
A26: Region | B26: MW, end of 2020 | C26: MW, end of 2020 | D26: MW, end of 2020 | G26: Wind | H26: Storage | I26: Solar | J26: Storage | M26: n | N26: p25 | O26: median | P26: p75 | Q26: n | R26: p25 | S26: median | T26: p75 | W26: Solar+Storage | X26: Wind+Storage | Y26: Solar Only | Z26: Wind Only
A27: CAISO | B27: 4327 | C27: 41275 | D27: 22712 | F27: CAISO | G27: 4327 | H27: 1779 | I27: 41275 | J27: 35344 | L27: CAISO | M27: 9 | N27: 0.628866 | O27: 0.9855072 | P27: 0.9951456 | Q27: 150 | R27: 0.5346535 | S27: 0.9850837 | T27: 1 | V27: p25 | W27: 1.53 | X27: 1.11 | Y27: 1 | Z27: 0.648
A28: ERCOT | B28: 1000 | C28: 13050 | D28: 12779 | F28: ERCOT | G28: 1000 | H28: 392 | I28: 12520 | J28: 6209 | L28: ERCOT | M28: 5 | N28: 0.2366667 | O28: 0.2885714 | P28: 0.3485714 | Q28: 49 | R28: 0.2487562 | S28: 0.3990148 | T28: 0.6688741 | V28: median | W28: 2 | X28: 1.26 | Y28: 1.0125 | Z28: 1.036
A29: SPP | B29: 620 | C29: 7906 | D29: 5734 | F29: SPP | G29: 620 | H29: 144.1 | I29: 7906 | J29: 3435 | L29: MISO | M29: 0 | N29: . | O29: . | P29: . | Q29: 28 | R29: 0.2 | S29: 0.25 | T29: 0.5 | V29: p75 | W29: 2.03 | X29: 2.06 | Y29: 1.029426667 | Z29: 1.036
A30: MISO | B30: 0 | C30: 9593 | D30: 2536 | F30: MISO | G30: 0 | H30: 0 | I30: 6038 | J30: 1238 | L30: NYISO | M30: 1 | N30: 0.05 | O30: 0.05 | P30: 0.05 | Q30: 4 | R30: 0.087037 | S30: 0.15 | T30: 0.35 | V30: n | W30: 159 | X30: 9 | Y30: 159 | Z30: 9
A31: PJM | B31: 390 | C31: 17227.7 | D31: 14898.25 | F31: PJM | G31: 390 | H31: 49 | I31: 2219 | J31: 737.4 | L31: PJM | M31: 2 | N31: 0.0909091 | O31: 0.1307487 | P31: 0.1705882 | Q31: 11 | R31: 0.2254902 | S31: 0.32 | T31: 0.6853933
A32: NYISO | B32: 101 | C32: 590 | D32: 11888.5 | F32: NYISO | G32: 101 | H32: 5 | I32: 590 | J32: 134 | L32: SPP | M32: 3 | N32: 0.08 | O32: 0.2846154 | P32: 0.4545455 | Q32: 38 | R32: 0.2574258 | S32: 0.4027027 | T32: 0.625
A33: ISO-NE | B33: 0 | C33: 474 | D33: 3645 | F33: Southeast (non-ISO) | G33: 0 | H33: 0 | I33: 2357 | J33: 2113 | L33: Southeast (non-ISO) | M33: 0 | N33: . | O33: . | P33: . | Q33: 16 | R33: 0.4673295 | S33: 1 | T33: 1.064914
A34: Southeast (non-ISO) | B34: 0 | C34: 7582 | D34: 2902 | F34: West (non-ISO) | G34: 500 | H34: 250 | I34: 29421 | J34: 21454 | L34: West (non-ISO) | M34: 1 | N34: 0.5 | O34: 0.5 | P34: 0.5 | Q34: 103 | R34: 0.5 | S34: 0.8 | T34: 1 | V34: Data for figure:
A35: West (non-ISO) | B35: 500 | C35: 57784.9 | D35: 15641.6 | F35: Combined | G35: 6938 | H35: 2619.1 | I35: 102326 | J35: 70664.4 | L35: Combined | M35: 20 | N35: 0.2034439 | O35: 0.3485714 | P35: 0.9855 | Q35: =SUM(Q27:Q34) -> 399 | R35: 0.4289694 | S35: 0.6624204 | T35: 1 | W35: Solar+Storage | X35: Wind+Storage | Y35: Solar Portion Only | Z35: Wind Portion Only
A36: TOTAL | B36: =SUM(B27:B35) -> 6938 | C36: =SUM(C27:C35) -> 155482.6 | D36: =SUM(D27:D35) -> 92736.35 | F36: *Note: This table only includes values for projects | V36: p0-p25 | W36: 1.53 | X36: 1.11 | Y36: 1 | Z36: 0.648
F37: containing capacity data for both generator and storage. | L37: Data for Figure: | V37: 25-50th percentile | W37: =W28-W27 -> 0.47 | X37: =X28-X27 -> 0.15 | Y37: 0.0125 | Z37: 0.388
N38: p0-p25 | O38: 25-50th percentile | P38: 50-75th percentile | Q38: median | V38: 50-75th percentile | W38: =W29-W28 -> 0.03 | X38: 0.8 | Y38: 0.01692666667 | Z38: 0
L39: CAISO | M39: Wind+ | N39: 0.628866 | O39: 0.3566412 | P39: 0.0096384 | Q39: =N39+O39 -> 0.9855072 | V39: median | W39: =SUM(W36:W37) -> 2 | X39: =SUM(X36:X37) -> 1.26 | Y39: 1.0125 | Z39: 1.036
M40: Solar+ | N40: 0.5346535 | O40: 0.4504302 | P40: 0.0149163 | Q40: =N40+O40 -> 0.9850837
L41: ERCOT | M41: Wind+ | N41: 0.2366667 | O41: 0.0519047 | P41: 0.06 | Q41: 0.2885714
M42: Solar+ | N42: 0.2487562 | O42: 0.1502586 | P42: 0.2698593 | Q42: 0.3990148
L43: MISO | M43: Wind+
M44: Solar+ | N44: 0.2 | O44: 0.05 | P44: 0.25 | Q44: 0.25
L45: NYISO | M45: Wind+
M46: Solar+ | N46: 0.087037 | O46: 0.062963 | P46: 0.2 | Q46: 0.15
L47: PJM | M47: Wind+ | N47: 0.0909091 | O47: 0.0398396 | P47: 0.0398395 | Q47: 0.1307487
M48: Solar+ | N48: 0.2254902 | O48: 0.0945098 | P48: 0.3653933 | Q48: 0.32
L49: SPP | M49: Wind+ | N49: 0.08 | O49: 0.2046154 | P49: 0.1699301 | Q49: 0.2846154
M50: Solar+ | N50: 0.2574258 | O50: 0.1452769 | P50: 0.2222973 | Q50: 0.4027027
L51: Southeast (non-ISO) | M51: Wind+
M52: Solar+ | N52: 0.4673295 | O52: 0.5326705 | P52: 0.064914 | Q52: 1
L53: West (non-ISO) | M53: Wind+
M54: Solar+ | N54: 0.5 | O54: 0.3 | P54: 0.2 | Q54: 0.8

Sheet Queue Completion Rates
A1: Percentage of projects reaching COD by interconnection request year, for five ISOs (CAISO, MISO, PJM, NYISO, ISO-NE)
A20: Source: Berkeley Lab review of interconnection queues
B22: Percentage of Projects Reaching COD
B23: All Types | C23: Gas | D23: Solar | E23: Wind
A24: 2000 | B24: 0.2925531915 | C24: 0.3267326733 | E24: 0.75
A25: 2001 | B25: 0.2415458937 | C25: 0.2580645161 | E25: 0.4666666667
A26: 2002 | B26: 0.3311688312 | C26: 0.3035714286 | E26: 0.4418604651
A27: 2003 | B27: 0.4285714286 | C27: 0.48 | E27: 0.4226804124
A28: 2004 | B28: 0.3625730994 | C28: 0.347826087 | E28: 0.2727272727
A29: 2005 | B29: 0.3762711864 | C29: 0.2954545455 | E29: 0.3272727273
A30: 2006 | B30: 0.2378640777 | C30: 0.2328767123 | D30: 0.2352941176 | E30: 0.1717171717
A31: 2007 | B31: 0.2973421927 | C31: 0.35 | D31: 0.2380952381 | E31: 0.1111111111
A32: 2008 | B32: 0.1342281879 | C32: 0.1441441441 | D32: 0.1239669421 | E32: 0.1028806584
A33: 2009 | B33: 0.2454780362 | C33: 0.3333333333 | D33: 0.3055555556 | E33: 0.09032258065
A34: 2010 | B34: 0.1769134253 | C34: 0.2931034483 | D34: 0.1626984127 | E34: 0.08609271523
A35: 2011 | B35: 0.1376146789 | C35: 0.3026315789 | D35: 0.09592326139 | E35: 0.07692307692
A36: 2012 | B36: 0.2633451957 | C36: 0.3617021277 | D36: 0.1585365854 | E36: 0.1636363636
A37: 2013 | B37: 0.3517241379 | C37: 0.41 | D37: 0.1714285714 | E37: 0.2727272727
A38: 2014 | B38: 0.2857142857 | C38: 0.3591549296 | D38: 0.2236024845 | E38: 0.3275862069
A39: 2015 | B39: 0.1824561404 | C39: 0.2517006803 | D39: 0.1243781095 | E39: 0.2592592593
A40: 2016 | B40: 0.1120448179 | C40: 0.247311828 | D40: 0.05470459519 | E40: 0.06392694064
A41: 2017 | B41: 0.06055900621 | C41: 0.2386363636 | D41: 0.01114649682 | E41: 0.02916666667
A42: 2018 | B42: 0.02181025082 | C42: 0.1142857143 | D42: 0.004059539919 | E42: 0.009090909091
A43: 2019 | B43: 0.01301684533 | C43: 0.0875 | D43: 0.008088978766 | E43: 0
A44: 2020 | B44: 0 | C44: 0 | D44: 0 | E44: 0

Sheet Queue Completion Time
A1: Number of days from interconnection request to COD, for four ISOs (CAISO, PJM, NYISO, ISO-NE)
A20: Source: Berkeley Lab review of interconnection queues
B22: Days from Interconnection Request to COD
A23: Year Online | B23: Coal | C23: Gas | D23: Hydro | E23: Nuclear | F23: Other | G23: Solar | H23: Storage | I23: Wind | J23: Combined (All Types)
A24: 2000 | C24: 55 | J24: 251
A25: 2001 | B25: 384 | C25: 397 | J25: 541.5
A26: 2002 | C26: 1102 | J26: 977
A27: 2003 | C27: 928 | J27: 928
A28: 2004 | C28: 1145.5 | I28: 380 | J28: 923.5
A29: 2005 | C29: 1078 | F29: 406.5 | J29: 523
A30: 2006 | C30: 223 | F30: 684 | I30: 1182 | J30: 642
A31: 2007 | B31: 62 | C31: 153 | F31: 384 | I31: 901 | J31: 464
A32: 2008 | B32: 391 | C32: 306 | F32: 613.5 | I32: 1201 | J32: 607
A33: 2009 | C33: 1087 | F33: 588 | I33: 1421 | J33: 1102.5
A34: 2010 | B34: 1106.5 | C34: 1010 | D34: 1401 | E34: 1022 | F34: 865 | G34: 359.5 | I34: 1490 | J34: 1022
A35: 2011 | B35: 1501.5 | C35: 1344 | E35: 1677 | F35: 785 | G35: 675.5 | I35: 2113 | J35: 1041
A36: 2012 | B36: 1696 | C36: 1003 | D36: 1468.5 | E36: 2058 | F36: 770 | G36: 794 | I36: 2195 | J36: 1155
A37: 2013 | C37: 1234.5 | D37: 878 | E37: 893 | F37: 1010 | G37: 1362 | I37: 2973 | J37: 1316
A38: 2014 | C38: 1170.5 | D38: 573.5 | E38: 1505 | F38: 969 | G38: 1630 | I38: 2360 | J38: 1505
A39: 2015 | C39: 965 | D39: 893 | F39: 713 | G39: 1650 | H39: 664 | I39: 2553.5 | J39: 1034
A40: 2016 | C40: 820 | F40: 919.5 | G40: 1927 | I40: 1567 | J40: 1567
A41: 2017 | C41: 1238 | D41: 527.5 | F41: 494 | G41: 1346 | I41: 2584 | J41: 1233
A42: 2018 | C42: 1387 | D42: 959 | F42: 2318 | G42: 1448 | I42: 3046 | J42: 1348
A43: 2019 | C43: 1381 | F43: 1547 | G43: 1706 | I43: 2057 | J43: 1562
A44: 2020 | C44: 1014 | G44: 1767 | I44: 1481 | J44: 1502

Sheet OEM Market Share
A1: Annual U.S. market share of wind turbine manufacturers by MW, 2005–2020
A21: Source: ACP
A23: Turbine OEM | B23: 2005 | C23: 2006 | D23: 2007 | E23: 2008 | F23: 2009 | G23: 2010 | H23: 2011 | I23: 2012 | J23: 2013 | K23: 2014 | L23: 2015 | M23: 2016 | N23: 2017 | O23: 2018 | P23: 2019 | Q23: 2020
A24: GE Wind | B24: 1431 | C24: 1146 | D24: 2341.5 | E24: 3585 | F24: 3994.5 | G24: 2543.2 | H24: 2006.1 | I24: 5016.36 | J24: 983.6 | K24: 2912.21 | L24: 3468.065 | M24: 3421.045 | N24: 2066.22 | O24: 3010.915 | P24: 4146.11 | Q24: 8850.17
A25: Vestas | B25: 699.15 | C25: 439.25 | D25: 948.35 | E25: 1120.035 | F25: 1488.61 | G25: 221.1 | H25: 1969.35 | I25: 1818.08 | J25: 4 | K25: 584.25 | L25: 2869.6 | M25: 3530.45 | N25: 2481.05 | O25: 2886.25 | P25: 3002.65 | Q25: 5802.95
A26: Siemens (pre-2017) | B26: 0 | C26: 572.7 | D26: 862.5 | E26: 791.2 | F26: 1161.5 | G26: 828 | H26: 1233.1 | I26: 2637.93 | J26: 87.31 | K26: 1240.628 | L26: 1218.924 | M26: 829.127
A27: Gamesa (pre-2017) | B27: 50 | C27: 74 | D27: 494 | E27: 616 | F27: 600 | G27: 566 | H27: 154 | I27: 1341.1 | J27: 0 | K27: 22.85 | L27: 401.85 | M27: 318.4
A28: SGRE | N28: 1625.175 | O28: 629.6 | P28: 1424.155 | Q28: 1529.89
A29: Acciona (pre-2016) | B29: 0 | C29: 0 | D29: 0 | E29: 409.5 | F29: 204 | G29: 99 | H29: 0 | I29: 195 | J29: 0 | K29: 0 | L29: 465
A30: Nordex (pre-2016) | B30: 0 | C30: 0 | D30: 2.5 | E30: 0 | F30: 62.5 | G30: 20 | H30: 287.5 | I30: 275.1 | J30: 0 | K30: 90.4 | L30: 137.5
A31: Nordex Acciona | M31: 93 | N31: 806.325 | O31: 866.4 | P31: 548.835 | Q31: 451.2
A32: Goldwind | B32: 0 | C32: 0 | D32: 0 | E32: 0 | F32: 4.5 | G32: 0 | H32: 4.5 | I32: 157.5 | J32: 0 | K32: 0 | L32: 7.5 | M32: 1.5 | N32: 6 | O32: 171.07 | P32: 14 | Q32: 201.6
A33: Other | B33: 194.265 | C33: 221.5 | D33: 603.65 | E33: 1840.7 | F33: 2489.583 | G33: 942.69 | H33: 1165.48 | I33: 1694.6 | J33: 12.425 | K33: 1.5 | L33: 21.5 | M33: 15 | N33: 31.75 | O33: 24.15 | P33: 0.9 | Q33: 0

Sheet Manufacturing Facilities
A1: Location of wind turbine and component manufacturing facilities
A22: Source: ACP

Sheet Manufacturing Capability
A1: Domestic wind manufacturing capability vs. U.S. wind power capacity installations
A21: Sources: ACP, independent analyst projections, Berkeley Lab
A22: Note: Actual nacelle assembly, tower production, and blades production would be expected to be below maximum production capacity.
B24: 2006 | C24: 2007 | D24: 2008 | E24: 2009 | F24: 2010 | G24: 2011 | H24: 2012 | I24: 2013 | J24: 2014 | K24: 2015 | L24: 2016 | M24: 2017 | N24: 2018 | O24: 2019 | P24: 2020 | Q24: 2021E | R24: 2022e | S24: 2023e | T24: 2024e | U24: 2025e
A25: Actual wind power capacity additions (GW) | B25: 2.466 | C25: 5.253 | D25: 8.37 | E25: 9.997 | F25: 5.218 | G25: 6.604 | H25: 13.34 | I25: 1.087 | J25: 4.857 | K25: 8.599 | L25: 8.203 | M25: 7.017 | N25: 7.588 | O25: 9.137 | P25: 16.836
A26: Average forecast capacity additions (GW) | Q26: 14.5392 | R26: 7.9084 | S26: 7.333333333 | T26: 11.576 | U26: 12.76433333
A27: Nacelle manufacturing capacity (GW) | B27: 1.325 | C27: 2.825 | D27: 6.335 | E27: 5.923 | F27: 7.425 | G27: 11.885375 | H27: 13.41275 | I27: 12.94295 | J27: 11.41611 | K27: 10.21812 | L27: 11.7 | M27: 11.7 | N27: 15 | O27: 15 | P27: 15
A28: Tower production capacity (number of towers, in thousands) | H28: 3.823397651 | I28: 4.285327181 | J28: 3.713582215 | K28: 3.11864094 | L28: 3.15 | M28: 3.2 | N28: 3.65 | O28: 3.65 | P28: 3.75
A29: Blade production capacity (number of blades, in thousands) | H29: 12.54139262 | I29: 11.00667785 | J29: 10.83437919 | K29: 10.49770973 | L29: 11.3 | M29: 11.55 | N29: 11.4 | O29: 11.4 | P29: 10.2
A30: Average turbine capacity (MW) | H30: 1.9458 | I30: 1.8645 | J30: 1.9246 | K30: 1.99767658 | L30: 2.15 | M30: 2.32 | N30: 2.43 | O30: 2.55 | P30: 2.755
A31: Implied tower production capacity (GW) | H31: =H28*H30 -> 7.439567149 | I31: 7.989992529 | J31: 7.147160331 | K31: 6.230035966 | L31: 6.7725 | M31: 7.424 | N31: 8.8695 | O31: =O28*O30 -> 9.3075 | P31: =P28*P30 -> 10.33125
A32: Implied blade production capacity (GW) | H32: =H29/3*H30 -> 8.134347252 | I32: 6.840650285 | J32: 6.950615399 | K32: 6.990342958 | L32: 8.098333333 | M32: 8.932 | N32: 9.234 | O32: =O29/3*O30 -> 9.69 | P32: =P29/3*P30 -> 9.367

Sheet OEM Profitability
A1: Turbine OEM global profitability over time
A21: Sources: OEM annual reports and financial statements | K21: Sources: OEM annual reports and financial statements
A24: EBITDA | B24: 2008 | C24: 2009 | D24: 2010 | E24: 2011 | F24: 2012 | G24: 2013 | H24: 2014 | I24: 2015 | J24: 2016 | K24: 2017 | L24: 2018 | M24: 2019 | N24: 2020
A25: Gamesa/SGRE | B25: 0.136400986 | C25: 0.1381304208 | D25: 0.1288600839 | E25: 0.1182608696 | F25: 0.06529080675 | G25: 0.1232876712 | H25: 0.1285944521 | I25: 0.1484102127 | J25: 0.1649702949 | K25: 0.09330536301 | L25: 0.09383627237 | M25: 0.08790560639 | N25: -0.01191606032 | O25: Gamesa in 2016 and earlier, SGRE in 2017 and after
A26: Vestas | B26: 0.1268631436 | C26: 0.09234101201 | D26: 0.09884393064 | E26: 0.05226182317 | F26: 0.04143569845 | G26: 0.08711374096 | H26: 0.1413892909 | I26: 0.1493529621 | J26: 0.1783725701 | K26: 0.1658796343 | L26: 0.1360765739 | M26: 0.128 | N26: 0.09325865443
A27: Nordex | B27: 0.06947257198 | C27: 0.04895164018 | D27: 0.06440329218 | E27: -0.002172024327 | F27: 0.007625778852 | G27: 0.05849017001 | H27: 0.06976073796 | I27: 0.07505863956 | J27: 0.08409425626 | K27: 0.06520891546 | L27: 0.04135659388 | M27: 0.03769104305 | N27: 0.0202120111
A28: Goldwind | B28: 0.1971326165 | C28: 0.1920790362 | D28: 0.1681308201 | E28: 0.07896718164 | F28: 0.03138613119 | G28: 0.05734464064 | H28: 0.1411306727 | I28: 0.1227381641 | J28: 0.1680697315 | K28: 0.1817982058 | L28: 0.1693143414 | M28: 0.105170216 | N28: 0.08835702073
A31: EBIT | B31: 2008 | C31: 2009 | D31: 2010 | E31: 2011 | F31: 2012 | G31: 2013 | H31: 2014 | I31: 2015 | J31: 2016 | K31: 2017 | L31: 2018 | M31: 2019 | N31: 2020
A32: Gamesa/SGRE | B32: 0.05751848809 | C32: 0.07227754578 | D32: 0.04841784217 | E32: 0.04034782609 | F32: 0.008255159475 | G32: 0.05522260274 | H32: 0.06710803375 | I32: 0.08390885101 | J32: 0.1032090199 | K32: 0.07059467348 | L32: 0.07596791676 | M32: 0.07089161806 | N32: -0.02457028367 | O32: Gamesa in 2016 and earlier, SGRE in 2017 and after
A33: Vestas | B33: 0.10399729 | C33: 0.049419177 | D33: 0.04479768786 | E33: -0.01028101439 | F33: -0.09659090909 | G33: 0.016765286 | H33: 0.08784370478 | I33: 0.1075626261 | J33: 0.1388101983 | K33: 0.1235808299 | L33: 0.0908821788 | M33: 0.083 | N33: 0.04710169377
A34: Nordex | B34: 0.05294562568 | C34: 0.03495892327 | D34: 0.03978569303 | E34: -0.03203883495 | F34: -0.05550004542 | G34: 0.02948811822 | H34: 0.0448404714 | I34: 0.05223293738 | J34: 0.04965541615 | K34: 0.0138773422 | L34: -0.02291851664 | M34: -0.005062767991 | N34: -0.01422160856
A35: Goldwind | B35: 0.1852890759 | C35: 0.1843789507 | D35: 0.1585624451 | E35: 0.06355627992 | F35: 0.01048603795 | G35: 0.03837453182 | H35: 0.1164211832 | I35: 0.1044888162 | J35: 0.1327484655 | K35: 0.1367801277 | L35: 0.1210208061 | M35: 0.0615998567 | N35: 0.0524700972

Sheet Wind Equip Imports over Time
A1: Estimated imports of wind-powered generating sets, nacelles, towers, generators and generator parts, and blades and hubs
A21: Note: Wind-related trade codes and definitions are not consistent over the full time period.
A22: Source: Berkeley Lab analysis of data from USA Trade Online, https://usatrade.census.gov
C24: Billion US$2020
B25: Annual Capacity Additions (GW) | C25: Wind-powered generating sets and parts, including nacelles | D25: Wind towers | E25: Other wind-related equipment | F25: Wind generators and generator parts | G25: Wind blades and hubs
C26: (estimated for 2014−2019) | D26: (estimated for 2006−2010) | E26: (estimated for 2006−2011) | F26: (2012-2020) | G26: (2012−2020)
A27: 2006 | B27: 2.466 | C27: 1.554 | D27: 0.266 | E27: 0.649 | F27: na | G27: na
A28: 2007 | B28: 5.253 | C28: 2.968 | D28: 0.627 | E28: 1.301 | F28: na | G28: na
A29: 2008 | B29: 8.37 | C29: 3.015 | D29: 1.162 | E29: 1.913 | F29: na | G29: na
A30: 2009 | B30: 9.997 | C30: 2.745 | D30: 0.725 | E30: 1.248 | F30: na | G30: na
A31: 2010 | B31: 5.218 | C31: 1.45 | D31: 0.468 | E31: 0.908 | F31: na | G31: na
A32: 2011 | B32: 6.604 | C32: 1.42 | D32: 0.507 | E32: 1.159 | F32: na | G32: na
A33: 2012 | B33: 13.34 | C33: 1.1 | D33: 0.93 | E33: na | F33: 0.514 | G33: 1.005
A34: 2013 | B34: 1.087 | C34: 0.026 | D34: 0.11 | E34: na | F34: 0.222 | G34: 0.304
A35: 2014 | B35: 4.857 | C35: 0.455 | D35: 0.268 | E35: na | F35: 0.364 | G35: 0.533
A36: 2015 | B36: 8.599 | C36: 0.573 | D36: 0.32 | E36: na | F36: 0.378 | G36: 0.89
A37: 2016 | B37: 8.203 | C37: 0.71 | D37: 0.322 | E37: na | F37: 0.372 | G37: 0.975
A38: 2017 | B38: 7.017 | C38: 0.793 | D38: 0.235 | E38: na | F38: 0.311 | G38: 1.038
A39: 2018 | B39: 7.588 | C39: 0.556 | D39: 0.206 | E39: na | F39: 0.328 | G39: 0.998
A40: 2019 | B40: 9.137 | C40: 0.366 | D40: 0.465 | E40: na | F40: 0.275 | G40: 1.843
A41: 2020 | B41: 16.836 | C41: 1.099 | D41: 0.73 | E41: na | F41: 0.211 | G41: 2.611

Sheet Wind Equip Imports by Country
A1: Summary map of tracked wind-specific imports into the United States in 2020: top-10 countries of origin and states of entry (million 2020$)
A2: (wind-powered generating sets and parts, towers, generators and generator parts, blades and hubs, and nacelles)
A23: Notes: Line widths are proportional to amount of imports, by country. Figure does not intend to depict the destination of these imports, by state.
A24: Source: Berkeley Lab analysis of data from USA Trade Online, https://usatrade.census.gov
A26: Total wind-specific exports to U.S. (million US$2020) | D26: Total wind-specific imports by U.S. districts of entry (million US$2020) | G26: Total wind-specific imports by U.S. state (million US$2020)
A27: India | B27: 872.5 | D27: Houston-Galveston, TX | E27: 1373.47 | G27: TX | H27: 2944.12
A28: Spain | B28: 620.96 | D28: Laredo, TX | E28: 1097.74 | G28: FL | H28: 462.97
A29: China | B29: 618.82 | D29: Tampa, FL | E29: 462.23 | G29: MI | H29: 237.72
A30: Mexico | B30: 540.86 | D30: Port Arthur, TX | E30: 250.01 | G30: MN | H30: 196.32
A31: Germany | B31: 366.15 | D31: Detroit, MI | E31: 237.72 | G31: LA | H31: 141.23
A32: Brazil | B32: 364.7 | D32: El Paso, TX | E32: 221.97 | G32: IL | H32: 132.38
A33: Denmark | B33: 341.1 | D33: Minneapolis, MN | E33: 196.32 | G33: CA | H33: 116.15
A34: Canada | B34: 243.56 | D34: New Orleans, LA | E34: 141.23 | G34: OR | H34: 83.52
A35: Korea, South | B35: 159.5 | D35: Chicago, IL | E35: 132.38 | G35: NY | H35: 74.9
A36: Malaysia | B36: 114.73 | D36: Columbia-Snake, OR | E36: 83.52 | G36: AL | H36: 73
A37: Turkey | B37: 100.08 | D37: Mobile, AL | E37: 73 | G37: ME | H37: 46.41
A38: Vietnam | B38: 98.49 | D38: San Diego, CA | E38: 52.83 | G38: MT | H38: 43.47
A39: Indonesia | B39: 76.51 | D39: Portland, ME | E39: 46.41 | G39: VA | H39: 28.55
A40: Italy | B40: 54.34 | D40: Great Falls, MT | E40: 43.47 | G40: WI | H40: 20.38
A41: Serbia | B41: 23.16 | D41: San Francisco, CA | E41: 39.22 | G41: WA | H41: 17.98
A42: Argentina | B42: 15.68 | D42: Buffalo, NY | E42: 33.75 | G42: MO | H42: 9.04
A43: Marshall Islands | B43: 10 | D43: Norfolk, VA | E43: 28.55 | G43: MD | H43: 7.24
A44: Morocco | B44: 6.59 | D44: Los Angeles, CA | E44: 24.09 | G44: SC | H44: 4.2
A45: United Kingdom | B45: 4.12 | D45: Ogdensburg, NY | E45: 22.42 | G45: OH | H45: 3.87
A46: Japan | B46: 3.98 | D46: Milwaukee, WI | E46: 20.38 | G46: GA | H46: 3.78
A47: Czech Republic | B47: 2.75 | D47: New York City, NY | E47: 18.74 | G47: NC | H47: 1.62
A48: Taiwan | B48: 2.45 | D48: Seattle, WA | E48: 17.98 | G48: MA | H48: 0.71
A49: France | B49: 2 | D49: St. Louis, MO | E49: 9.04 | G49: VT | H49: 0.21
A50: Austria | B50: 1.63 | D50: Baltimore, MD | E50: 7.24 | G50: ND | H50: 0.2
A51: Poland | B51: 1.52 | D51: Charleston, SC | E51: 4.2 | G51: AZ | H51: 0.17
A52: Hungary | B52: 1.05 | D52: Cleveland, OH | E52: 3.87 | G52: AK | H52: 0.07
A53: Other | B53: 3.07 | D53: Savannah, GA | E53: 3.78 | G53: PA | H53: 0.06
D54: Wilmington, NC | E54: 1.62 | G54: PR | H54: 0.02
D55: Dallas-Fort Worth, TX | E55: 0.93 | G55: DC | H55: 0.01
D56: Miami, FL | E56: 0.74 | G56: HI | H56: 0.004284
D57: Boston, MA | E57: 0.71
D58: St. Albans, VT | E58: 0.21
D59: Pembina, ND | E59: 0.2
D60: Nogales, AZ | E60: 0.17
D61: Anchorage, AK | E61: 0.07
D62: Philadelphia, PA | E62: 0.06
D63: San Juan, PR | E63: 0.02
D64: Washington, DC | E64: 0.01
D65: Honolulu, HI | E65: 0.004284

Sheet Equip Import by Country by Type
A1: Origins of U.S. imports of selected wind turbine equipment
A33: Source: Berkeley Lab analysis of data from USA Trade Online, https://usatrade.census.gov
A35: Wind-powered generating sets and nacelles (nacelles for 2020 only)
C36: 2005 | D36: 2006 | E36: 2007 | F36: 2008 | G36: 2009 | H36: 2010 | I36: 2011 | J36: 2012 | K36: 2013 | L36: 2014 | M36: 2015 | N36: 2016 | O36: 2017 | P36: 2018 | Q36: 2019 | R36: 2020
B37: Asia | C37: 0.156 | D37: 0.266 | E37: 0.272 | F37: 0.23 | G37: 0.364 | H37: 0.237 | I37: 0.034 | J37: 0.315 | K37: 0.434 | L37: 0.276 | M37: 0.122 | N37: 0.301 | O37: 0.256 | P37: 0.005 | Q37: 0.205 | R37: 0.467
B38: Europe | C38: 0.844 | D38: 0.733 | E38: 0.727 | F38: 0.769 | G38: 0.628 | H38: 0.756 | I38: 0.957 | J38: 0.672 | K38: 0.54 | L38: 0.718 | M38: 0.873 | N38: 0.673 | O38: 0.724 | P38: 0.982 | Q38: 0.744 | R38: 0.432
B39: South America | C39: 0 | D39: 0 | E39: 0 | F39: 0 | G39: 0 | H39: 0.001 | I39: 0 | J39: 0.006 | K39: 0 | L39: 0 | M39: 0 | N39: 0.002 | O39: 0.014 | P39: 0.001 | Q39: 0.003 | R39: 0.096
B40: North America | C40: 0 | D40: 0.001 | E40: 0.001 | F40: 0.001 | G40: 0.008 | H40: 0.006 | I40: 0.009 | J40: 0.006 | K40: 0.026 | L40: 0.007 | M40: 0.005 | N40: 0.024 | O40: 0.006 | P40: 0.012 | Q40: 0.047 | R40: 0.005
B41: Other | C41: 0 | D41: 0 | E41: 0 | F41: 0 | G41: 0 | H41: 0 | I41: 0 | J41: 0 | K41: 0 | L41: 0 | M41: 0 | N41: 0 | O41: 0 | P41: 0 | Q41: 0.002 | R41: 0
B42: Total Imports (Billion US$2020) | C42: 0.639 | D42: 1.554 | E42: 2.968 | F42: 3.015 | G42: 2.745 | H42: 1.45 | I42: 1.42 | J42: 1.1 | K42: 0.026 | L42: 0.277 | M42: 0.247 | N42: 0.138 | O42: 0.221 | P42: 0.206 | Q42: 0.084 | R42: 1.099
A44: Wind Towers
C45: 2011 | D45: 2012 | E45: 2013 | F45: 2014 | G45: 2015 | H45: 2016 | I45: 2017 | J45: 2018 | K45: 2019 | L45: 2020
B46: Asia | C46: 0.805 | D46: 0.812 | E46: 0.61 | F46: 0.563 | G46: 0.392 | H46: 0.515 | I46: 0.301 | J46: 0.563 | K46: 0.785 | L46: 0.49
B47: North America | C47: 0.168 | D47: 0.131 | E47: 0.363 | F47: 0.171 | G47: 0.368 | H47: 0.169 | I47: 0.351 | J47: 0.311 | K47: 0.153 | L47: 0.293
B48: Europe | C48: 0.027 | D48: 0.051 | E48: 0.026 | F48: 0.25 | G48: 0.24 | H48: 0.316 | I48: 0.348 | J48: 0.126 | K48: 0.061 | L48: 0.182
B49: South America | C49: 0 | D49: 0.005 | E49: 0.002 | F49: 0.016 | G49: 0 | H49: 0 | I49: 0 | J49: 0 | K49: 0.002 | L49: 0.022
B50: Other | C50: 0 | D50: 0.002 | E50: 0 | F50: 0 | G50: 0 | H50: 0 | I50: 0 | J50: 0 | K50: 0 | L50: 0.014
B51: Total Imports (Billion US$2020) | C51: 0.507 | D51: 0.93 | E51: 0.11 | F51: 0.268 | G51: 0.32 | H51: 0.322 | I51: 0.235 | J51: 0.206 | K51: 0.465 | L51: 0.73
A53: Wind blades and hubs
C54: 2012 | D54: 2013 | E54: 2014 | F54: 2015 | G54: 2016 | H54: 2017 | I54: 2018 | J54: 2019 | K54: 2020
B55: Asia | C55: 0.232 | D55: 0.258 | E55: 0.385 | F55: 0.446 | G55: 0.596 | H55: 0.682 | I55: 0.609 | J55: 0.468 | K55: 0.424
B56: Europe | C56: 0.264 | D56: 0.075 | E56: 0.245 | F56: 0.356 | G56: 0.226 | H56: 0.214 | I56: 0.226 | J56: 0.201 | K56: 0.259
B57: North America | C57: 0.021 | D57: 0.006 | E57: 0.001 | F57: 0.001 | G57: 0.006 | H57: 0.095 | I57: 0.095 | J57: 0.189 | K57: 0.215
B58: South America | C58: 0.484 | D58: 0.661 | E58: 0.369 | F58: 0.198 | G58: 0.171 | H58: 0.009 | I58: 0.07 | J58: 0.142 | K58: 0.099
B59: Other | C59: 0 | D59: 0 | E59: 0 | F59: 0 | G59: 0 | H59: 0 | I59: 0 | J59: 0 | K59: 0.003
B60: Total Imports (Billion US$2020) | C60: 1.005 | D60: 0.304 | E60: 0.533 | F60: 0.89 | G60: 0.975 | H60: 1.038 | I60: 0.998 | J60: 1.843 | K60: 2.611
A62: Wind generators and generator parts
C63: 2012 | D63: 2013 | E63: 2014 | F63: 2015 | G63: 2016 | H63: 2017 | I63: 2018 | J63: 2019 | K63: 2020
B64: Europe | C64: 0.297 | D64: 0.302 | E64: 0.448 | F64: 0.283 | G64: 0.402 | H64: 0.267 | I64: 0.148 | J64: 0.536 | K64: 0.657
B65: Asia | C65: 0.465 | D65: 0.647 | E65: 0.461 | F65: 0.415 | G65: 0.285 | H65: 0.266 | I65: 0.297 | J65: 0.446 | K65: 0.328
B66: North America | C66: 0.234 | D66: 0.049 | E66: 0.09 | F66: 0.301 | G66: 0.311 | H66: 0.467 | I66: 0.553 | J66: 0.018 | K66: 0.015
B67: South America | C67: 0.003 | D67: 0.001 | E67: 0.001 | F67: 0.002 | G67: 0.002 | H67: 0 | I67: 0.002 | J67: 0 | K67: 0
B68: Other | C68: 0 | D68: 0 | E68: 0 | F68: 0 | G68: 0 | H68: 0 | I68: 0 | J68: 0 | K68: 0.001
B69: Total Imports (Billion US$2020) | C69: 0.514 | D69: 0.222 | E69: 0.364 | F69: 0.378 | G69: 0.372 | H69: 0.311 | I69: 0.328 | J69: 0.275 | K69: 0.211
A72: Top 5 import countries for 2020
C73: Wind-powered generating sets and nacelles | E73: Towers | G73: Wind blades and hubs | I73: Wind generators and generator parts | K73: Nacelles
C74: country | D74: import percentage | E74: country | F74: import percentage | G74: country | H74: import percentage | I74: country | J74: import percentage | K74: country | L74: import percentage
B75: 1 | C75: India | D75: 0.264 | E75: Canada | F75: 0.203 | G75: China | H75: 0.191 | I75: Spain | J75: 0.35 | K75: India | L75: 0.435
B76: 2 | C76: Denmark | D76: 0.154 | E76: India | F76: 0.192 | G76: Mexico | H76: 0.18 | I76: Vietnam | J76: 0.299 | K76: Denmark | L76: 0.255
B77: 3 | C77: Germany | D77: 0.146 | E77: Malaysia | F77: 0.157 | G77: India | H77: 0.142 | I77: Germany | J77: 0.128 | K77: Brazil | L77: 0.157
B78: 4 | C78: Brazil | D78: 0.095 | E78: Spain | F78: 0.145 | G78: Spain | H78: 0.134 | I78: Serbia | J78: 0.109 | K78: China | L78: 0.066
B79: 5 | C79: Spain | D79: 0.079 | E79: Indonesia | F79: 0.105 | G79: Brazil | H79: 0.099 | I79: Denmark | J79: 0.014 | K79: Italy | L79: 0.03

Sheet Domestic Content
A1: Approximate domestic content of major components in 2020
A18: Source: Berkeley Lab
A19: Note: Figure reflects estimated percentage of blades, towers, and nacelles that were installed in the U.S. in 2020 that were also manufactured / assembled domestically.
A24: Component | B24: low end | C24: high end | D24: diff
A25: Blades and Hubs | B25: 0.3 | C25: 0.5 | D25: =C25-B25 -> 0.2
A26: Wind Towers | B26: 0.6 | C26: 0.75 | D26: =C26-B26 -> 0.15
A27: Nacelle Assembly | B27: 0.85 | C27: 1 | D27: =C27-B27 -> 0.15

Sheet Project Finance Terms
A1: Cost of 15-year debt and tax equity for utility-scale wind projects over time
A22: Sources: Intercontinental Exchange Benchmark Administration, BNEF, Norton Rose Fulbright, Berkeley Lab estimates
B24: 15-Year | C24: 15-Year | D24: Tax Equity
B25: Debt | C25: Debt | D25: Yield
A26: Date | B26: Pre-Tax | C26: Post-Tax | D26: Post-Tax
A27: 2005-01-03 | B27: 0.06435 | C27: 0.0418275 | D27: 0.065
A28: 2005-01-04 | B28: 0.0644 | C28: 0.04186 | D28: 0.065
A29: 2005-01-05 | B29: 0.06465 | C29: 0.0420225 | D29: 0.065
A30: 2005-01-06 | B30: 0.0645 | C30: 0.041925 | D30: 0.065
A31: 2005-01-07 | B31: 0.0644 | C31: 0.04186 | D31: 0.065
A32: 2005-01-10 | B32: 0.06455 | C32: 0.0419575 | D32: 0.065
A33: 2005-01-11 | B33: 0.0644 | C33: 0.04186 | D33: 0.065
A34: 2005-01-12 | B34: 0.0641 | C34: 0.041665 | D34: 0.065
A35: 2005-01-13 | B35: 0.06345 | C35: 0.0412425 | D35: 0.065
A36: 2005-01-14 | B36: 0.06345 | C36: 0.0412425 | D36: 0.065
A37: 2005-01-18 | B37: 0.06365 | C37: 0.0413725 | D37: 0.065
A38: 2005-01-19 | B38: 0.0632 | C38: 0.04108 | D38: 0.065
A39: 2005-01-20 | B39: 0.0632 | C39: 0.04108 | D39: 0.065
A40: 2005-01-21 | B40: 0.06295 | C40: 0.0409175 | D40: 0.065
A41: 2005-01-24 | B41: 0.06275 | C41: 0.0407875 | D41: 0.065
A42: 2005-01-25 | B42: 0.0629 | C42: 0.040885 | D42: 0.065
A43: 2005-01-26 | B43: 0.0631 | C43: 0.041015 | D43: 0.065
A44: 2005-01-27 | B44: 0.0632 | C44: 0.04108 | D44: 0.065
A45: 2005-01-28 | B45: 0.0626 | C45: 0.04069 | D45: 0.065
A46: 2005-01-31 | B46: 0.0626 | C46: 0.04069 | D46: 0.065
A47: 2005-02-01 | B47: 0.0626 | C47: 0.04069 | D47: 0.065
A48: 2005-02-02 | B48: 0.06265 | C48: 0.0407225 | D48: 0.065
A49: 2005-02-03 | B49: 0.0627 | C49: 0.040755 | D49: 0.065
A50: 2005-02-04 | B50: 0.06165 | C50: 0.0400725 | D50: 0.065
A51: 2005-02-07 | B51: 0.06155 | C51: 0.0400075 | D51: 0.065
A52: 2005-02-08 | B52: 0.061 | C52: 0.03965 | D52: 0.065
A53: 2005-02-09 | B53: 0.0608 | C53: 0.03952 | D53: 0.065
A54: 2005-02-10 | B54: 0.06115 | C54: 0.0397475 | D54: 0.065
A55: 2005-02-11 | B55: 0.0617 | C55: 0.040105 | D55: 0.065
A56: 2005-02-14 | B56: 0.0617 | C56: 0.040105 | D56: 0.065
A57: 2005-02-15 | B57: 0.06175 | C57: 0.0401375 | D57: 0.065
A58: 2005-02-16 | B58: 0.06235 | C58: 0.0405275 | D58: 0.065
A59: 2005-02-17 | B59: 0.06255 | C59: 0.0406575 | D59: 0.065
A60: 2005-02-18 | B60: 0.06355 | C60: 0.0413075 | D60: 0.065
A61: 2005-02-22 | B61: 0.0638 | C61: 0.04147 | D61: 0.065
A62: 2005-02-23 | B62: 0.06335 | C62: 0.0411775 | D62: 0.065
A63: 2005-02-24 | B63: 0.06365 | C63: 0.0413725 | D63: 0.065
A64: 2005-02-25 | B64: 0.06375 | C64: 0.0414375 | D64: 0.065
A65: 2005-02-28 | B65: 0.06375 | C65: 0.0414375 | D65: 0.065
A66: 2005-03-01 | B66: 0.06485 | C66: 0.0421525 | D66: 0.065
A67: 2005-03-02 | B67: 0.06495 | C67: 0.0422175 | D67: 0.065
A68: 2005-03-03 | B68: 0.0648 | C68: 0.04212 | D68: 0.065
A69: 2005-03-04 | B69: 0.06435 | C69: 0.0418275 | D69: 0.065
A70: 2005-03-07 | B70: 0.0638 | C70: 0.04147 | D70: 0.065
A71: 2005-03-08 | B71: 0.0646 | C71: 0.04199 | D71: 0.065
A72: 2005-03-09 | B72: 0.06565 | C72: 0.0426725 | D72: 0.065
A73: 2005-03-10 | B73: 0.066 | C73: 0.0429 | D73: 0.065
A74: 2005-03-11 | B74: 0.0662 | C74: 0.04303 | D74: 0.065
A75: 2005-03-14 | B75: 0.0663 | C75: 0.043095 | D75: 0.065
A76: 2005-03-15 | B76: 0.06575 | C76: 0.0427375 | D76: 0.065
A77: 2005-03-16 | B77: 0.066 | C77: 0.0429 | D77: 0.065
A78: 2005-03-17 | B78: 0.06585 | C78: 0.0428025 | D78: 0.065
A79: 2005-03-18 | B79: 0.06595 | C79: 0.0428675 | D79: 0.065
A80: 2005-03-21 | B80: 0.0663 | C80: 0.043095 | D80: 0.065
A81: 2005-03-22 | B81: 0.06605 | C81: 0.0429325 | D81: 0.065
A82: 2005-03-23 | B82: 0.06745 | C82: 0.0438425 | D82: 0.065
A83: 2005-03-24 | B83: 0.06685 | C83: 0.0434525 | D83: 0.065
A84: 2005-03-28 | B84: 0.0673 | C84: 0.043745 | D84: 0.065
A85: 2005-03-29 | B85: 0.0671 | C85: 0.043615 | D85: 0.065
A86: 2005-03-30 | B86: 0.06685 | C86: 0.0434525 | D86: 0.065
A87: 2005-03-31 | B87: 0.0662 | C87: 0.04303 | D87: 0.065
A88: 2005-04-01 | B88: 0.06635 | C88: 0.0431275 | D88: 0.065
A89: 2005-04-04 | B89: 0.0658 | C89: 0.04277 | D89: 0.065
A90: 2005-04-05 | B90: 0.066 | C90: 0.0429 | D90: 0.065
A91: 2005-04-06 | B91: 0.06575 | C91: 0.0427375 | D91: 0.065
A92: 2005-04-07 | B92: 0.0656 | C92: 0.04264 | D92: 0.065
A93: 2005-04-08 | B93: 0.06665 | C93: 0.0433225 | D93: 0.065
A94: 2005-04-11 | B94: 0.06605 | C94: 0.0429325 | D94: 0.065
A95: 2005-04-12 | B95: 0.06585 | C95: 0.0428025 | D95: 0.065
A96: 2005-04-13 | B96: 0.06495 | C96: 0.0422175 | D96: 0.065
A97: 2005-04-14 | B97: 0.0649 | C97: 0.042185 | D97: 0.065
A98: 2005-04-15 | B98: 0.0647 | C98: 0.042055 | D98: 0.065
A99: 2005-04-18 | B99: 0.0639 | C99: 0.041535 | D99: 0.065
A100: 2005-04-19 | B100: 0.0633 | C100: 0.041145 | D100: 0.065
A101: 2005-04-20 | B101: 0.0638 | C101: 0.04147 | D101: 0.065
A102: 2005-04-21 | B102: 0.0638 | C102: 0.04147 | D102: 0.065
A103: 2005-04-22 | B103: 0.0639 | C103: 0.041535 | D103: 0.065
A104: 2005-04-25 | B104: 0.0637 | C104: 0.041405 | D104: 0.065
A105: 2005-04-26 | B105: 0.06405 | C105: 0.0416325 | D105: 0.065
A106: 2005-04-27 | B106: 0.0634 | C106: 0.04121 | D106: 0.065
A107: 2005-04-28 | B107: 0.06345 | C107: 0.0412425 | D107: 0.065
A108: 2005-04-29 | B108: 0.06275 | C108: 0.0407875 | D108: 0.065
A109: 2005-05-02 | B109: 0.06345 | C109: 0.0412425 | D109: 0.065
A110: 2005-05-03 | B110: 0.06315 | C110: 0.0410475 | D110: 0.065
A111: 2005-05-04 | B111: 0.06365 | C111: 0.0413725 | D111: 0.065
A112: 2005-05-05 | B112: 0.06325 | C112: 0.0411125 | D112: 0.065
A113: 2005-05-06 | B113: 0.0638 | C113: 0.04147 | D113: 0.065
A114: 2005-05-09 | B114: 0.0638 | C114: 0.04147 | D114: 0.065
A115: 2005-05-10 | B115: 0.06355 | C115: 0.0413075 | D115: 0.065
A116: 2005-05-11 | B116: 0.06295 | C116: 0.0409175 | D116: 0.065
A117: 2005-05-12 | B117: 0.0634 | C117: 0.04121 | D117: 0.065
A118: 2005-05-13 | B118: 0.0627 | C118: 0.040755 | D118: 0.065
A119: 2005-05-16 | B119: 0.0627 | C119: 0.040755 | D119: 0.065
A120: 2005-05-17 | B120: 0.0625 | C120: 0.040625 | D120: 0.065
A121: 2005-05-18 | B121: 0.0619 | C121: 0.040235 | D121: 0.065
A122: 2005-05-19 | B122: 0.06205 | C122: 0.0403325 | D122: 0.065
A123: 2005-05-20 | B123: 0.06235 | C123: 0.0405275 | D123: 0.065
A124: 2005-05-23 | B124: 0.06195 | C124: 0.0402675 | D124: 0.065
A125: 2005-05-24 | B125: 0.06145 | C125: 0.0399425 | D125: 0.065
A126: 2005-05-25 | B126: 0.06115 | C126: 0.0397475 | D126: 0.065
A127: 2005-05-26 | B127: 0.06175 | C127: 0.0401375 | D127: 0.065
A128: 2005-05-27 | B128: 0.06185 | C128: 0.0402025 | D128: 0.065
A129: 2005-05-31 | B129: 0.06095 | C129: 0.0396175 | D129: 0.065
A130: 2005-06-01 | B130: 0.05985 | C130: 0.0389025 | D130: 0.065
A131: 2005-06-02 | B131: 0.0598 | C131: 0.03887 | D131: 0.065
A132: 2005-06-03 | B132: 0.05965 | C132: 0.0387725 | D132: 0.065
A133: 2005-06-06 | B133: 0.06045 | C133: 0.0392925 | D133: 0.065
A134: 2005-06-07 | B134: 0.05875 | C134: 0.0381875 | D134: 0.065
A135: 2005-06-08 | B135: 0.05855 | C135: 0.0380575 | D135: 0.065
A136: 2005-06-09 | B136: 0.05915 | C136: 0.0384475 | D136: 0.065
A137: 2005-06-10 | B137: 0.05955 | C137: 0.0387075 | D137: 0.065
A138: 2005-06-13 | B138: 0.06025 | C138: 0.0391625 | D138: 0.065
A139: 2005-06-14 | B139: 0.0606 | C139: 0.03939 | D139: 0.065
A140: 2005-06-15 | B140: 0.06095 | C140: 0.0396175 | D140: 0.065
A141: 2005-06-16 | B141: 0.0608 | C141: 0.03952 | D141: 0.065
A142: 2005-06-17 | B142: 0.06025 | C142: 0.0391625 | D142: 0.065
A143: 2005-06-20 | B143: 0.06065 | C143: 0.0394225 | D143: 0.065
A144: 2005-06-21 | B144: 0.0599 | C144: 0.038935 | D144: 0.065
A145: 2005-06-22 | B145: 0.05925 | C145: 0.0385125 | D145: 0.065
A146: 2005-06-23 | B146: 0.05905 | C146: 0.0383825 | D146: 0.065
A147: 2005-06-24 | B147: 0.0587 | C147: 0.038155 | D147: 0.065
A148: 2005-06-27 | B148: 0.0584 | C148: 0.03796 | D148: 0.065
A149: 2005-06-28 | B149: 0.0589 | C149: 0.038285 | D149: 0.065
A150: 2005-06-29 | B150: 0.0588 | C150: 0.03822 | D150: 0.065
A151: 2005-06-30 | B151: 0.05915 | C151: 0.0384475 | D151: 0.065
A152: 2005-07-01 | B152: 0.0597 | C152: 0.038805 | D152: 0.065
A153: 2005-07-05 | B153: 0.06045 | C153: 0.0392925 | D153: 0.065
A154: 2005-07-06 | B154: 0.06025 | C154: 0.0391625 | D154: 0.065
A155: 2005-07-07 | B155: 0.0598 | C155: 0.03887 | D155: 0.065
A156: 2005-07-08 | B156: 0.06015 | C156: 0.0390975 | D156: 0.065
A157: 2005-07-11 | B157: 0.06085 | C157: 0.0395525 | D157: 0.065
A158: 2005-07-12 | B158: 0.06075 | C158: 0.0394875 | D158: 0.065
A159: 2005-07-13 | B159: 0.06105 | C159: 0.0396825 | D159: 0.065
A160: 2005-07-14 | B160: 0.0611 | C160: 0.039715 | D160: 0.065
A161: 2005-07-15 | B161: 0.06125 | C161: 0.0398125 | D161: 0.065
A162: 2005-07-18 | B162: 0.0613 | C162: 0.039845 | D162: 0.065
A163: 2005-07-19 | B163: 0.06165 | C163: 0.0400725 | D163: 0.065
A164: 2005-07-20 | B164: 0.06185 | C164: 0.0402025 | D164: 0.065
A165: 2005-07-21 | B165: 0.06215 | C165: 0.0403975 | D165: 0.065
A166: 2005-07-22 | B166: 0.06175 | C166: 0.0401375 | D166: 0.065
A167: 2005-07-25 | B167: 0.06175 | C167: 0.0401375 | D167: 0.065
A168: 2005-07-26 | B168: 0.06195 | C168: 0.0402675 | D168: 0.065
A169: 2005-07-27 | B169: 0.062 | C169: 0.0403 | D169: 0.065
A170: 2005-07-28 | B170: 0.0617 | C170: 0.040105 | D170: 0.065
A171: 2005-07-29 | B171: 0.0622 | C171: 0.04043 | D171: 0.065
A172: 2005-08-01 | B172: 0.06275 | C172: 0.0407875 | D172: 0.065
A173: 2005-08-02 | B173: 0.0627 | C173: 0.040755 | D173: 0.065
A174: 2005-08-03 | B174: 0.0625 | C174: 0.040625 | D174: 0.065
A175: 2005-08-04 | B175: 0.0624 | C175: 0.04056 | D175: 0.065
A176: 2005-08-05 | B176: 0.0632 | C176: 0.04108 | D176: 0.065
A177: 2005-08-08 | B177: 0.06335 | C177: 0.0411775 | D177: 0.065
A178: 2005-08-09 | B178: 0.06365 | C178: 0.0413725 | D178: 0.065
A179: 2005-08-10 | B179: 0.0631 | C179: 0.041015 | D179: 0.065
A180: 2005-08-11 | B180: 0.0631 | C180: 0.041015 | D180: 0.065
A181: 2005-08-12 | B181: 0.06215 | C181: 0.0403975 | D181: 0.065
A182: 2005-08-15 | B182: 0.06205 | C182: 0.0403325 | D182: 0.065
A183: 2005-08-16 | B183: 0.0614 | C183: 0.03991 | D183: 0.065
A184: 2005-08-17 | B184: 0.06165 | C184: 0.0400725 | D184: 0.065
A185: 2005-08-18 | B185: 0.06175 | C185: 0.0401375 | D185: 0.065
A186: 2005-08-19 | B186: 0.06175 | C186: 0.0401375 | D186: 0.065
A187: 2005-08-22 | B187: 0.06185 | C187: 0.0402025 | D187: 0.065
A188: 2005-08-23 | B188: 0.06135 | C188: 0.0398775 | D188: 0.065
A189: 2005-08-24 | B189: 0.06135 | C189: 0.0398775 | D189: 0.065
A190: 2005-08-25 | B190: 0.0611 | C190: 0.039715 | D190: 0.065
A191: 2005-08-26 | B191: 0.0609 | C191: 0.039585 | D191: 0.065
A192: 2005-08-29 | B192: 0.0608 | C192: 0.03952 | D192: 0.065
A193: 2005-08-30 | B193: 0.06065 | C193: 0.0394225 | D193: 0.065
A194: 2005-08-31 | B194: 0.05965 | C194: 0.0387725 | D194: 0.065
A195: 2005-09-01 | B195: 0.0596 | C195: 0.03874 | D195: 0.065
A196: 2005-09-02 | B196: 0.05985 | C196: 0.0389025 | D196: 0.065
A197: 2005-09-06 | B197: 0.0603 | C197: 0.039195 | D197: 0.065
A198: 2005-09-07 | B198: 0.06095 | C198: 0.0396175 | D198: 0.065
A199: 2005-09-08 | B199: 0.06205 | C199: 0.0403325 | D199: 0.065
A200: 2005-09-09 | B200: 0.06175 | C200: 0.0401375 | D200: 0.065
A201: 2005-09-12 | B201: 0.0623 | C201: 0.040495 | D201: 0.065
A202: 2005-09-13 | B202: 0.06185 | C202: 0.0402025 | D202: 0.065
A203: 2005-09-14 | B203: 0.06195 | C203: 0.0402675 | D203: 0.065
A204: 2005-09-15 | B204: 0.0626 | C204: 0.04069 | D204: 0.065
A205: 2005-09-16 | B205: 0.0636 | C205: 0.04134 | D205: 0.065
A206: 2005-09-19 | B206: 0.0634 | C206: 0.04121 | D206: 0.065
A207: 2005-09-20 | B207: 0.06355 | C207: 0.0413075 | D207: 0.065
A208: 2005-09-21 | B208: 0.0626 | C208: 0.04069 | D208: 0.065
A209: 2005-09-22 | B209: 0.06255 | C209: 0.0406575 | D209: 0.065
A210: 2005-09-23 | B210: 0.06295 | C210: 0.0409175 | D210: 0.065
A211: 2005-09-26 | B211: 0.0637 | C211: 0.041405 | D211: 0.065
A212: 2005-09-27 | B212: 0.0639 | C212: 0.041535 | D212: 0.065
A213: 2005-09-28 | B213: 0.0636 | C213: 0.04134 | D213: 0.065
A214: 2005-09-29 | B214: 0.06365 | C214: 0.0413725 | D214: 0.065
A215: 2005-09-30 | B215: 0.0641 | C215: 0.041665 | D215: 0.065
A216: 2005-10-03 | B216: 0.0648 | C216: 0.04212 | D216: 0.065
A217: 2005-10-04 | B217: 0.06445 | C217: 0.0418925 | D217: 0.065
A218: 2005-10-05 | B218: 0.0642 | C218: 0.04173 | D218: 0.065
A219: 2005-10-06 | B219: 0.06435 | C219: 0.0418275 | D219: 0.065
A220: 2005-10-07 | B220: 0.0647 | C220: 0.042055 | D220: 0.065
A221: 2005-10-11 | B221: 0.06455 | C221: 0.0419575 | D221: 0.065
... 3952 more rows

Sheet Capacity by Owner
A1: Cumulative and 2020 wind power capacity categorized by owner type
A21: Source: Berkeley Lab estimates based on ACP
A25: Through Year | B25: GW | F25: Percent of Total
B26: IOU | C26: POU | D26: IPP | E26: Other | F26: IOU | G26: POU | H26: IPP | I26: Other
A27: 1998 | B27: 0.00725 | C27: 0.008405 | D27: 1.484896 | E27: 0.002475 | F27: 0.004823602519 | G27: 0.0055920523 | H27: 0.9879376671 | I27: 0.001646678101
A28: 1999 | B28: 0.079736 | C28: 0.022159 | D28: 2.282276 | E28: 0.004125 | F28: 0.03338614644 | G28: 0.009278163176 | H28: 0.9556085175 | I28: 0.001727172846
A29: 2000 | B29: 0.079736 | C29: 0.025559 | D29: 2.349506 | E29: 0.00435 | F29: 0.03242419843 | G29: 0.0103934244 | H29: 0.955413474 | I29: 0.00176890317
A30: 2001 | B30: 0.091856 | C30: 0.035989 | D30: 4.013446 | E30: 0.008316 | F30: 0.02213607216 | G30: 0.008672869503 | H30: 0.9671870131 | I30: 0.002004045202
A31: 2002 | B31: 0.091856 | C31: 0.101789 | D31: 4.344346 | E31: 0.022224 | F31: 0.02014290993 | G31: 0.0223210967 | H31: 0.9526625389 | I31: 0.004873454431
A32: 2003 | B32: 0.091856 | C32: 0.134859 | D32: 5.908416 | E32: 0.08994 | F32: 0.01475581564 | G32: 0.0216638493 | H32: 0.9491323071 | I32: 0.01444802798
A33: 2004 | B33: 0.252356 | C33: 0.155087 | D33: 6.091626 | E33: 0.1224 | F33: 0.03811178456 | G33: 0.02342184189 | H33: 0.9199810495 | I33: 0.01848532403
A34: 2005 | B34: 0.601756 | C34: 0.220397 | D34: 8.028326 | E34: 0.145405 | F34: 0.06689236989 | G34: 0.02449976011 | H34: 0.8924443668 | I34: 0.01616350322
A35: 2006 | B35: 1.190356 | C35: 0.246412 | D35: 9.772266 | E35: 0.2403 | F35: 0.1039672701 | G35: 0.02152195053 | H35: 0.853522659 | I35: 0.02098812036
A36: 2007 | B36: 1.717656 | C36: 0.514112 | D36: 14.176816 | E36: 0.29325 | F36: 0.1028423585 | G36: 0.03078176924 | H36: 0.8488179202 | I36: 0.01755795202
A37: 2008 | B37: 3.205906 | C37: 0.551012 | D37: 20.833616 | E37: 0.473735 | F37: 0.1279074207 | G37: 0.0219839645 | H37: 0.8312078042 | I37: 0.01890081055
A38: 2009 | B38: 4.263256 | C38: 1.066212 | D38: 29.081026 | E38: 0.658968 | F38: 0.1215660508 | G38: 0.03040286161 | H38: 0.8292407223 | I38: 0.01879036525
A39: 2010 | B39: 4.864856 | C39: 1.221632 | D39: 33.446576 | E39: 0.756388 | F39: 0.1207476339 | G39: 0.03032138536 | H39: 0.8301571339 | I39: 0.01877384681
A40: 2011 | B40: 6.356656 | C40: 1.425532 | D40: 38.412026 | E40: 0.914788 | F40: 0.1349350598 | G40: 0.03026028868 | H40: 0.8153861124 | I40: 0.01941853916
A41: 2012 | B41: 7.484806 | C41: 1.644232 | D41: 49.969766 | E41: 1.145868 | F41: 0.124240132 | G41: 0.0272925712 | H41: 0.8294470588 | I41: 0.01902023801
A42: 2013 | B42: 7.529456 | C42: 1.646032 | D42: 50.999966 | E42: 1.156553 | F42: 0.1227655244 | G42: 0.02683805863 | H42: 0.8315391668 | I42: 0.01885725018
A43: 2014 | B43: 8.810264 | C43: 1.646032 | D43: 54.572396 | E43: 1.157153 | F43: 0.1331140216 | G43: 0.02486984944 | H43: 0.8245327381 | I43: 0.0174833909
A44: 2015 | B44: 9.849364 | C44: 1.646032 | D44: 61.862286 | E44: 1.422703 | F44: 0.1317105281 | G44: 0.02201154755 | H44: 0.8272528418 | I44: 0.01902508258
A45: 2016 | B45: 10.866831 | C45: 1.646032 | D45: 69.004461 | E45: 1.465683 | F45: 0.1309524852 | G45: 0.01983577192 | H45: 0.8315492954 | I45: 0.01766244745
A46: 2017 | B46: 11.481431 | C46: 1.646032 | D46: 75.404131 | E46: 1.467933 | F46: 0.127572126 | G46: 0.01828934057 | H46: 0.837828081 | I46: 0.01631045239
A47: 2018 | B47: 12.989956 | C47: 1.648432 | D47: 81.477271 | E47: 1.472253 | F47: 0.1331102975 | G47: 0.01689176422 | H47: 0.8349115104 | I47: 0.01508642792
A48: 2019 | B48: 15.482116 | C48: 1.653932 | D48: 88.106661 | E48: 1.477253 | F48: 0.145072353 | G48: 0.01549786909 | H48: 0.8255874473 | I48: 0.01384233064
A49: 2020 | B49: 19.974261 | C49: 1.653932 | D49: 100.450326 | E49: 1.477253 | F49: 0.1616619012 | G49: 0.01338611684 | H49: 0.8129958186 | I49: 0.01195616341
A51: Latest-year annual data (MW): | F51: Pecent of total
A52: 2020 | B52: 4492.145 | C52: 0 | D52: 12343.665 | E52: 0 | F52: 0.266820842 | G52: 0 | H52: 0.733179158 | I52: 0

Sheet Capacity by Offtake
A1: Cumulative and 2020 wind power capacity categorized by power off-take arrangement
A21: Source: Berkeley Lab estimates based on ACP
A25: Through Year | B25: GW | I25: Percent of Total
B26: IOU | C26: POU | D26: Undisclosed | E26: Power Marketer | F26: Retail | G26: On-Site | H26: Merchant/Quasi-Merchant | I26: IOU | J26: POU | K26: Undisclosed | L26: Power Marketer | M26: Retail | N26: On-Site | O26: Merchant/Quasi-Merchant
A27: 1998 | B27: 1.452246 | C27: 0.048555 | D27: 0 | E27: 0 | F27: 0 | G27: 0.002225 | H27: 0 | I27: 0.9662148226 | J27: 0.03230483039 | K27: 0 | L27: 0 | M27: 0 | N27: 0.00148034698 | O27: 0
A28: 1999 | B28: 2.291812 | C28: 0.093209 | D28: 0 | E28: 0 | F28: 0 | G28: 0.003275 | H28: 0 | I28: 0.9596013224 | J28: 0.03902740699 | K28: 0 | L28: 0 | M28: 0 | N28: 0.001371270563 | O28: 0
A29: 2000 | B29: 2.320292 | C29: 0.113409 | D29: 0 | E29: 0.0104 | F29: 0 | G29: 0.0035 | H29: 0.01155 | I29: 0.9435337643 | J29: 0.04611713555 | K29: 0 | L29: 0.004229101832 | M29: 0 | N29: 0.001423255424 | O29: 0.0046967429
A30: 2001 | B30: 2.808392 | C30: 0.460639 | D30: 0 | E30: 0.83456 | F30: 0 | G30: 0.004466 | H30: 0.04155 | I30: 0.6767850546 | J30: 0.1110078617 | K30: 0 | L30: 0.2011178408 | M30: 0 | N30: 0.001076246498 | O30: 0.01001299641
A31: 2002 | B31: 2.980373969 | C31: 0.5925570313 | D31: 0 | E31: 0.94016 | F31: 0 | G31: 0.005574 | H31: 0.04155 | I31: 0.6535599678 | J31: 0.1299405908 | K31: 0 | L31: 0.2061657181 | M31: 0 | N31: 0.00122231079 | O31: 0.00911141251
A32: 2003 | B32: 3.778909969 | C32: 0.8570270313 | D32: 0 | E32: 1.54116 | F32: 0 | G32: 0.006424 | H32: 0.04155 | I32: 0.6070468865 | J32: 0.1376734549 | K32: 0 | L32: 0.2475730799 | M32: 0 | N32: 0.001031956101 | O32: 0.006674622667
A33: 2004 | B33: 4.127419969 | C33: 0.9033050313 | D33: 0 | E33: 1.54116 | F33: 0 | G33: 0.008034 | H33: 0.04155 | I33: 0.6233390157 | J33: 0.1364206389 | K33: 0 | L33: 0.2327519769 | M33: 0 | N33: 0.001213325925 | O33: 0.006275042593
A34: 2005 | B34: 5.479489969 | C34: 1.331265031 | D34: 0 | E34: 1.86576 | F34: 0 | G34: 0.020869 | H34: 0.2985 | I34: 0.6091107854 | J34: 0.1479860157 | K34: 0 | L34: 0.2074015183 | M34: 0 | N34: 0.002319838717 | O34: 0.03318184183
A35: 2006 | B35: 6.624529969 | C35: 1.667980031 | D35: 0 | E35: 2.03996 | F35: 0 | G35: 0.024064 | H35: 1.0928 | I35: 0.5785952239 | J35: 0.1456835857 | K35: 0 | L35: 0.178172809 | M35: 0 | N35: 0.002101781641 | O35: 0.09544659978
A36: 2007 | B36: 9.077379969 | C36: 2.586980031 | D36: 0 | E36: 3.09186 | F36: 0 | G36: 0.028814 | H36: 1.9168 | I36: 0.5434959998 | J36: 0.1548919736 | K36: 0 | L36: 0.1851209873 | M36: 0 | N36: 0.001725199759 | O36: 0.1147658395
A37: 2008 | B37: 11.83627997 | C37: 4.353730031 | D37: 0 | E37: 3.69276 | F37: 0 | G37: 0.076599 | H37: 5.1049 | I37: 0.4722371903 | J37: 0.1737026534 | K37: 0 | L37: 0.1473316457 | M37: 0 | N37: 0.003056103491 | O37: 0.2036724071
A38: 2009 | B38: 15.39157997 | C38: 6.850480031 | D38: 0 | E38: 3.95536 | F38: 0.204 | G38: 0.129882 | H38: 8.53816 | I38: 0.4388883972 | J38: 0.1953403229 | K38: 0 | L38: 0.1127864465 | M38: 0.005817026791 | N38: 0.003703564087 | O38: 0.2434642425
A39: 2010 | B39: 17.55262997 | C39: 8.463350031 | D39: 0 | E39: 4.25416 | F39: 0.21675 | G39: 0.147852 | H39: 9.65471 | I39: 0.4356631599 | J39: 0.2100636671 | K39: 0 | L39: 0.1055899197 | M39: 0.005379820008 | N39: 0.003669744627 | O39: 0.2396336887
A40: 2011 | B40: 21.81372997 | C40: 9.402550031 | D40: 0 | E40: 4.60666 | F40: 0.36355 | G40: 0.186452 | H40: 10.73606 | I40: 0.4630480172 | J40: 0.1995913654 | K40: 0 | L40: 0.09778725518 | M40: 0.007717208698 | N40: 0.003957884737 | O40: 0.2278982688
A41: 2012 | B41: 29.23075697 | C41: 12.37429003 | D41: 0 | E41: 4.74416 | F41: 0.43275 | G41: 0.283302 | H41: 13.179413 | I41: 0.4852006991 | J41: 0.205400571 | K41: 0 | L41: 0.07874820864 | M41: 0.007183207836 | N41: 0.004702523735 | O41: 0.2187647897
A42: 2013 | B42: 29.92161697 | C42: 12.48359003 | D42: 0 | E42: 4.74416 | F42: 0.43275 | G42: 0.297387 | H42: 13.452503 | I42: 0.4878630006 | J42: 0.2035411956 | K42: 0 | L42: 0.07735210752 | M42: 0.007055859105 | N42: 0.004848805942 | O42: 0.2193390313
A43: 2014 | B43: 32.41856497 | C43: 13.20392003 | D43: 0 | E43: 4.74416 | F43: 0.43275 | G43: 0.320637 | H43: 15.065813 | I43: 0.4898111517 | J43: 0.1994976423 | K43: 0 | L43: 0.07167937495 | M43: 0.006538407117 | N43: 0.004844495073 | O43: 0.2276289288
A44: 2015 | B44: 35.62126497 | C44: 15.19963003 | D44: 0 | E44: 4.77416 | F44: 1.276525 | G44: 0.323187 | H44: 17.585628 | I44: 0.4763449694 | J44: 0.2032568835 | K44: 0 | L44: 0.06384240147 | M44: 0.01707031636 | N44: 0.004321814561 | O44: 0.2351636147
A45: 2016 | B45: 37.90461697 | C45: 17.21348003 | D45: 0 | E45: 4.85496 | F45: 3.281635 | G45: 0.326477 | H45: 19.401848 | I45: 0.456775595 | J45: 0.2074337696 | K45: 0 | L45: 0.05850546504 | M45: 0.03954586274 | N45: 0.003934262838 | O45: 0.2338050447
A46: 2017 | B46: 39.80096697 | C46: 18.45576003 | D46: 0.3733 | E46: 5.25616 | F46: 4.9783525 | G46: 0.332427 | H46: 20.8025705 | I46: 0.4422352414 | J46: 0.2050650553 | K46: 0.004147799116 | L46: 0.05840207822 | M46: 0.05531531234 | N46: 0.003693652335 | O46: 0.2311408613
A47: 2018 | B47: 42.41652197 | C47: 19.37865503 | D47: 0.62497 | E47: 5.46766 | F47: 6.7724425 | G47: 0.349327 | H47: 22.5783455 | I47: 0.4346492998 | J47: 0.1985763672 | K47: 0.006404173664 | L47: 0.05602804003 | M47: 0.06939836776 | N47: 0.003579613059 | O47: 0.2313641385
A48: 2019 | B48: 45.60525697 | C48: 20.46625003 | D48: 0.62497 | E48: 6.36266 | F48: 8.8390375 | G48: 0.360027 | H48: 24.4617705 | I48: 0.4273357284 | J48: 0.1917752568 | K48: 0.005856167204 | L48: 0.05962014308 | M48: 0.08282458601 | N48: 0.003373567227 | O48: 0.2292145513
A49: 2020 | B49: 53.12642197 | C49: 22.87235003 | D49: 0.62497 | E49: 6.76818 | F49: 13.3346775 | G49: 0.360027 | H49: 26.4691555 | I49: 0.4299792459 | J49: 0.1851176016 | K49: 0.005058201161 | L49: 0.05477833486 | M49: 0.1079243503 | N49: 0.00291388225 | O49: 0.2142283839
A51: Latest-year annual data (MW): | I51: Percent of total
A52: 2020 | B52: 7521.165 | C52: 2406.1 | D52: 0 | E52: 405.52 | F52: 4495.64 | G52: 0 | H52: 2007.385 | I52: 0.4467361535 | J52: 0.1429156067 | K52: 0 | L52: 0.02408675318 | M52: 0.2670284352 | N52: 0 | O52: 0.1192330515

Sheet Avg Capacity, Height & Diameter
A1: Average turbine nameplate capacity, hub height, and rotor diameter for land-based wind
A22: Sources: ACP, Berkeley Lab
B24: '98−99 | C24: '00−01 | D24: '02−03 | E24: '04−05 | F24: 2006 | G24: 2007 | H24: 2008 | I24: 2009 | J24: 2010 | K24: 2011 | L24: 2012 | M24: 2013 | N24: 2014 | O24: 2015 | P24: 2016 | Q24: 2017 | R24: 2018 | S24: 2019 | T24: 2020
A25: Average Nameplate Capacity (left scale) | B25: 0.7163891 | C25: 0.8882648 | D25: 1.233567 | E25: 1.455627 | F25: 1.612465 | G25: 1.645533 | H25: 1.666853 | I25: 1.741606 | J25: 1.791247 | K25: 1.966372 | L25: 1.945639 | M25: 1.864476 | N25: 1.940735 | O25: 2.006226 | P25: 2.15111 | Q25: 2.321813 | R25: 2.430376 | S25: 2.550852 | T25: 2.754183
A26: Average Rotor Diameter (right scale) | B26: 48.2067 | C26: 52.945 | D26: 63.6304 | E26: 73.6148 | F26: 77.8719 | G26: 79.0393 | H26: 79.2742 | I26: 81.508 | J26: 84.0837 | K26: 88.9857 | L26: 93.4008 | M26: 96.8857 | N26: 99.4508 | O26: 102.389 | P26: 108.231 | Q26: 113.004 | R26: 115.622 | S26: 121.16 | T26: 124.795
A27: Average Hub Height (right scale) | B27: 56.5707 | C27: 58.1971 | D27: 66.163 | E27: 74.1071 | F27: 75.9643 | G27: 78.1616 | H27: 78.4722 | I27: 78.822 | J27: 79.6662 | K27: 80.9657 | L27: 83.773 | M27: 80.4948 | N27: 82.6772 | O27: 82.4325 | P27: 82.9966 | Q27: 86.0076 | R27: 88.093 | S27: 90.0848 | T27: 90.1163

Sheet Cap, Height & Diameter Trends
A1: Trends in turbine nameplate capacity, hub height, and rotor diameter
A14: Sources: ACP, Berkeley Lab
A16: Capacity
B17: 2010 | C17: 2011 | D17: 2012 | E17: 2013 | F17: 2014 | G17: 2015 | H17: 2016 | I17: 2017 | J17: 2018 | K17: 2019 | L17: 2020
A18: <2.0 MW | B18: 0.6107 | C18: 0.5606 | D18: 0.528 | E18: 0.8316 | F18: 0.6704 | G18: 0.4192 | H18: 0.2217 | I18: 0.0142 | J18: 0.0593 | K18: 0.0232 | L18: 0.0144
A19: 2.0−2.75 MW | B19: 0.3646 | C19: 0.3711 | D19: 0.4117 | E19: 0.0739 | F19: 0.2908 | G19: 0.5227 | H19: 0.6802 | I19: 0.8405 | J19: 0.7611 | K19: 0.7838 | L19: 0.4886
A20: 2.75−3.5 MW | B20: 0.0247 | C20: 0.0683 | D20: 0.0578 | E20: 0.0945 | F20: 0.0388 | G20: 0.0582 | H20: 0.0981 | I20: 0.1453 | J20: 0.1355 | K20: 0.0922 | L20: 0.3546
A21: ≥3.5 MW | B21: 0 | C21: 0 | D21: 0.0025 | E21: 0 | F21: 0 | G21: 0 | H21: 0 | I21: 0 | J21: 0.0442 | K21: 0.1008 | L21: 0.1424
A22: Average | B22: 1.791247 | C22: 1.966372 | D22: 1.945639 | E22: 1.864476 | F22: 1.940735 | G22: 2.006226 | H22: 2.15111 | I22: 2.321813 | J22: 2.430376 | K22: 2.550852 | L22: 2.754183
A24: Hub height
B25: 2010 | C25: 2011 | D25: 2012 | E25: 2013 | F25: 2014 | G25: 2015 | H25: 2016 | I25: 2017 | J25: 2018 | K25: 2019 | L25: 2020
A26: <80 m | B26: 0.1639 | C26: 0.0484 | D26: 0.1054 | E26: 0.012 | F26: 0.0016 | G26: 0.0056 | H26: 0.0129 | I26: 0.0069 | J26: 0.0003 | K26: 0.0006 | L26: 0
A27: 80−90 m | B27: 0.8302 | C27: 0.8832 | D27: 0.6526 | E27: 0.9811 | F27: 0.8408 | G27: 0.816 | H27: 0.7877 | I27: 0.6195 | J27: 0.5288 | K27: 0.536 | L27: 0.6254
A28: 90−100 m | B28: 0 | C28: 0.0314 | D28: 0.0811 | E28: 0 | F28: 0.1512 | G28: 0.1756 | H28: 0.1928 | I28: 0.3736 | J28: 0.4548 | K28: 0.4008 | L28: 0.225
A29: ≥100 m | B29: 0.0058 | C29: 0.0369 | D29: 0.1609 | E29: 0.0069 | F29: 0.0064 | G29: 0.0028 | H29: 0.0066 | I29: 0 | J29: 0.016 | K29: 0.0626 | L29: 0.1496
A30: Average | B30: 79.6662 | C30: 80.9657 | D30: 83.773 | E30: 80.4948 | F30: 82.6772 | G30: 82.4325 | H30: 82.9966 | I30: 86.0076 | J30: 88.093 | K30: 90.0848 | L30: 90.1163
A32: Rotor diameter
B33: 2010 | C33: 2011 | D33: 2012 | E33: 2013 | F33: 2014 | G33: 2015 | H33: 2016 | I33: 2017 | J33: 2018 | K33: 2019 | L33: 2020
A34: <100 m | B34: 0.9237 | C34: 0.7664 | D34: 0.5268 | E34: 0.256 | F34: 0.1952 | G34: 0.1364 | H34: 0.0289 | I34: 0.0096 | J34: 0.0083 | K34: 0.002 | L34: 0.0002
A35: 100-115 m | B35: 0.0763 | C35: 0.2336 | D35: 0.4653 | E35: 0.744 | F35: 0.7952 | G35: 0.7915 | H35: 0.7038 | I35: 0.5993 | J35: 0.4327 | K35: 0.1595 | L35: 0.0871
A36: 115-130 m | B36: 0 | C36: 0 | D36: 0.0079 | E36: 0 | F36: 0.0096 | G36: 0.0722 | H36: 0.2672 | I36: 0.3911 | J36: 0.525 | K36: 0.6919 | L36: 0.7414
A37: ≥130 m | B37: 0 | C37: 0 | D37: 0 | E37: 0 | F37: 0 | G37: 0 | H37: 0 | I37: 0 | J37: 0.034 | K37: 0.1466 | L37: 0.1713
A38: Average | B38: 84.0837 | C38: 88.9857 | D38: 93.4008 | E38: 96.8857 | F38: 99.4508 | G38: 102.389 | H38: 108.231 | I38: 113.004 | J38: 115.622 | K38: 121.16 | L38: 124.795

Sheet Trends in Specific Power
A1: Trends in turbine specific power
A20: Sources: ACP, Berkeley Lab
B24: '98−99 | C24: '00−01 | D24: '02−03 | E24: '04−05 | F24: 2006 | G24: 2007 | H24: 2008 | I24: 2009 | J24: 2010 | K24: 2011 | L24: 2012 | M24: 2013 | N24: 2014 | O24: 2015 | P24: 2016 | Q24: 2017 | R24: 2018 | S24: 2019 | T24: 2020
A25: 180−200 | B25: 0 | C25: 0 | D25: 0 | E25: 0 | F25: 0 | G25: 0 | H25: 0 | I25: 0 | J25: 0 | K25: 0 | L25: 0 | M25: 0 | N25: 0.0108 | O25: 0.0371 | P25: 0.0997 | Q25: 0.0834 | R25: 0.0951 | S25: 0.3591 | T25: 0.2673
A26: ≥200−250 | B26: 0 | C26: 0 | D26: 0 | E26: 0 | F26: 0 | G26: 0 | H26: 0 | I26: 0 | J26: 0.0003 | K26: 0.0516 | L26: 0.2244 | M26: 0.5825 | N26: 0.4784 | O26: 0.4519 | P26: 0.5318 | Q26: 0.6085 | R26: 0.6989 | S26: 0.492 | T26: 0.5404
A27: ≥250−300 | B27: 0 | C27: 0 | D27: 0.0107 | E27: 0 | F27: 0.002 | G27: 0 | H27: 0.0484 | I27: 0.0751 | J27: 0.3505 | K27: 0.4755 | L27: 0.381 | M27: 0.0687 | N27: 0.2856 | O27: 0.3657 | P27: 0.2859 | Q27: 0.2816 | R27: 0.1823 | S27: 0.1353 | T27: 0.1893
A28: ≥300−350 | B28: 0.0603 | C28: 0.0208 | D28: 0.1499 | E28: 0.6891 | F28: 0.8321 | G28: 0.9248 | H28: 0.8676 | I28: 0.8355 | J28: 0.5852 | K28: 0.3746 | L28: 0.3414 | M28: 0.3351 | N28: 0.2244 | O28: 0.1401 | P28: 0.0826 | Q28: 0.0248 | R28: 0.0215 | S28: 0.0026 | T28: 0.001
A29: ≥350 | B29: 0.9397 | C29: 0.9792 | D29: 0.8394 | E29: 0.3109 | F29: 0.1659 | G29: 0.0752 | H29: 0.0839 | I29: 0.0894 | J29: 0.0639 | K29: 0.0983 | L29: 0.0532 | M29: 0.0137 | N29: 0.0008 | O29: 0.0051 | P29: 0 | Q29: 0.0017 | R29: 0.0022 | S29: 0.0111 | T29: 0.002
A30: Average | B30: 392.8353 | C30: 389.8783 | D30: 377.0353 | E30: 340.0634 | F30: 334.2662 | G30: 330.7503 | H30: 332.562 | I30: 329.2824 | J30: 319.1867 | K30: 314.9132 | L30: 285.9007 | M30: 255.2573 | N30: 250.6265 | O30: 245.0146 | P30: 233.4347 | Q30: 230.6828 | R30: 229.8354 | S30: 219.8276 | T30: 222.7913

Sheet Wind Resource by Year
A1: Wind resource quality by year of installation at 80 meters
A22: Sources: ACP, Berkeley Lab, AWS Truepower, FAA Obstacle Evaluation / Airport Airspace Analysis files
A23: Notes: Turbines used in this figure have been screened to remove offshore turbines and those >1000ft. The wind resource quality index is based on site estimates of gross capacity factor at 80 meters by AWS Truepower. A single, common wind-turbine power curve is used across all sites and timeframes, and no losses are assumed. Values are indexed to those projects built in 1998—1999.
A26: Year | B26: label | C26: Wind speed | D26: Wind speed | E26: Wind resource quality | F26: Wind resource quality
C27: m/s, 80m | D27: m/s, 80m FAA | E27: index, 80m | F27: index, 80m FAA
A28: 1998-99 | B28: 98-99 | C28: 8.550076 | E28: 100
A29: 2000-1 | C29: 8.062984 | E29: 93.89046115
A30: 2002-3 | B30: 02-03 | C30: 7.9836 | E30: 91.52490817
A31: 2004-5 | C31: 7.988527 | E31: 90.8733125
A32: 2006 | B32: =A32 -> 2006 | C32: 7.730247 | E32: 87.46012481
A33: 2007 | C33: 7.906434 | E33: 89.37039075
A34: 2008 | B34: =A34 -> 2008 | C34: 7.873185 | E34: 89.12774618
A35: 2009 | C35: 7.567566 | E35: 83.91318485
A36: 2010 | B36: =A36 -> 2010 | C36: 7.561085 | E36: 83.42076856
A37: 2011 | C37: 7.35487 | E37: 80.6901806
A38: 2012 | B38: =A38 -> 2012 | C38: 7.36937 | E38: 81.18836289
A39: 2013 | C39: 7.658392 | E39: 84.62726126
A40: 2014 | B40: =A40 -> 2014 | C40: 7.999244 | E40: 90.05293376
A41: 2015 | C41: 7.920558 | E41: 88.47176457
A42: 2016 | B42: =A42 -> 2016 | C42: 7.916281 | E42: 89.25828461
A43: 2017 | C43: 7.739386 | E43: 85.37411879
A44: 2018 | B44: =A44 -> 2018 | C44: 7.753327 | E44: 85.76076209
A45: 2019 | C45: 7.834476 | E45: 88.14656224
A46: 2020 | B46: =A46 -> 2020 | C46: 7.665047 | E46: 83.65276966
A48: Under Construction (Under Const.) | D48: 7.4851 | F48: 80.87386074
A49: Advanced Development (Adv. Dev.) | D49: 7.575305 | F49: 83.04781242
A50: Pending | D50: 7.84847 | F50: 85.67413978
A51: Proposed | D51: 7.64613 | F51: 83.0358078

Sheet Location of Tall Tower & Low SP
A1: Locations of tall tower and low specific power installations at end of 2020
A27: Sources: ACP, U.S. Wind Turbine Database, AWS Truepower, Berkeley Lab

Sheet Future Total Height Trends
A1: Total turbine height trends based on to-be-built projects via FAA applications, and compared to FAA heights for 2020 installations (note: blade tip height, not hub height)
A21: Sources: ACP, FAA Obstacle Evaluation / Airport Airspace Analysis files, Berkeley Lab | K21: Sources: FAA Obstacle Evaluation / Airport Airspace Analysis files, AWS Truepower, ACP, Berkeley Lab
K22: Note: Figure includes FAA data on under construction, advanced development, pending. and proposed turbines
A24: Total height | B24: 2020 projects | C24: Under const. | D24: Adv. dev. | E24: Pending | F24: Proposed
A25: <450 ft | B25: 9 | C25: 0 | D25: 334 | E25: 133 | F25: 3
A26: 450−550 ft | B26: 4578 | C26: 1592 | D26: 3133 | E26: 4414 | F26: 513
A27: 550−650 ft | B27: 934 | C27: 879 | D27: 998 | E27: 4291 | F27: 1581
A28: 650−750 ft | B28: 470 | C28: 616 | D28: 491 | E28: 3272 | F28: 2414
A29: 750−850 ft | B29: 0 | C29: 0 | D29: 0 | E29: 3 | F29: 865
A30: Average: right axis | B30: 524.7618 | C30: 563.4305 | D30: 532.2528 | E30: 580.737 | F30: 660.5178

Sheet Average Retrofit Tech Change
A1: 2020 retrofitted turbine changes in average hub height, rotor diameter, capacity, and specific power
A22: Sources: ACP, Berkeley Lab, turbine manufacturers
A23: Note: Average changes above are derived from all turbines that received any retrofit change (n=1,644)
L25: 2015 | M25: 2016 | N25: 2017 | O25: 2018 | P25: 2019 | Q25: 2020
B26: 2020 Changes | D26: average | E26: average | G26: Number of Turbines Undergoing Any Change in Year | L26: 9 | M26: 0 | N26: 1317 | O26: 1106 | P26: 1828 | Q26: 1827
B27: Hub Height | C27: Original | D27: 79.07482 | G27: Hub Height | H27: Number of Turbines with Change | L27: 0 | M27: n/a | N27: 0 | O27: 138 | P27: 47 | Q27: 0
C28: Retrofitted | D28: 79.07482 | H28: Average Pre-Retrofit | L28: n/a | M28: n/a | N28: n/a | O28: 64.7826 | P28: 79.7826 | Q28: n/a
B29: Rotor Diameter | C29: Original | D29: 79.7998 | H29: Average Change | L29: 0 | M29: n/a | N29: 0 | O29: 15 | P29: 6.5 | Q29: 0
C30: Retrofitted | D30: 93.6251 | G30: Rotor Diameter | H30: Number of Turbines with Change | L30: 0 | M30: n/a | N30: 1317 | O30: 681 | P30: 1648 | Q30: 1769
B31: Capacity | C31: Original | E31: 1.6888 | H31: Average Pre-Retrofit | L31: n/a | M31: n/a | N31: 78.2168 | O31: 70.9435 | P31: 80.142 | Q31: 81.183
C32: Retrofitted | E32: 1.7245 | H32: Average Change | L32: 0 | M32: n/a | N32: 12.19894 | O32: 10.63877 | P32: 14.40686 | Q32: 13.8662
B33: Hub Height | C33: Original | G33: Capacity | H33: Number of Turbines with Change | L33: 9 | M33: n/a | N33: 113 | O33: 93 | P33: 1102 | Q33: 1502
C34: Retrofitted | H34: Average Pre-Retrofit | L34: 0.646667 | M34: n/a | N34: 1.5 | O34: 1.5 | P34: 1.42666 | Q34: 1.6364
B35: Rotor Diameter | C35: Original | H35: Average Change | L35: 0.05 | M35: n/a | N35: 0.1107965 | O35: 0.12 | P35: 0.1647623 | Q35: 0.039588
C36: Retrofitted | G36: Specific Power | H36: Number of Turbines with Change | L36: 9 | M36: n/a | N36: 1317 | O36: 681 | P36: 1796 | Q36: 1827
B37: Specific Power | C37: Original | D37: 334 | H37: Average Pre-Retrofit | L37: 392.117 | M37: n/a | N37: 335.445 | O37: 373.121 | P37: 328.338 | Q37: 334.2992
C38: Retrofitted | D38: 251 | H38: Average Change | L38: 30.4348 | M38: n/a | N38: -82.8436 | O38: -82.4208 | P38: -67.2547 | Q38: -82.9167
G39: Note: Table above shows changes for only turbines that received that change, rather than for all turbines that received any change, as is shown in the figure and the table to the left.

Sheet Capacity Factor in 2020 by COD
A1: Calendar year 2020 capacity factors by commercial operation date
A22: Source: EIA, FERC, Berkeley Lab
A25: Capacity Factor in 2020 | D25: Capacity-
D26: Weighted | E26: Fleet-wide | H26: Fleet-wide | J26: 2020
D27: Average | E27: Average | H27: Average | J27: Capacity | K27: COD
A28: Project | B28: Sample | C28: Sample | D28: Capacity | E28: Capacity | H28: Capacity | J28: Factor | K28: Code
A29: COD | B29: Projects | C29: GW | D29: Factor | E29: Factor | H29: Factor | J29: 0.6440552086 | K29: 6
A30: 1 | B30: 17 | C30: 0.6945 | D30: 0.2525694928 | E30: =$H$51 -> 0.3558609039 | G30: 1999 | H30: 0.2660661425 | J30: 0.5717576094 | K30: 17
A31: 2 | B31: 33 | C31: 0.9252 | D31: 0.2511583743 | E31: 0.3558609039 | G31: =G30+1 -> 2000 | H31: 0.3150263294 | J31: 0.5586305307 | K31: 18
A32: 3 | B32: 35 | C32: 1.3463 | D32: 0.2618075757 | E32: 0.3558609039 | G32: =G31+1 -> 2001 | H32: 0.3158584174 | J32: 0.5574782433 | K32: 11
A33: 4 | B33: 29 | C33: 1.8381 | D33: 0.3040760813 | E33: 0.3558609039 | G33: 2002 | H33: 0.3001339847 | J33: 0.5546448087 | K33: 17
A34: 5 | B34: 27 | C34: 1.2777 | D34: 0.2983201658 | E34: 0.3558609039 | G34: 2003 | H34: 0.2874212626 | J34: 0.5494501788 | K34: 10
A35: 6 | B35: 32 | C35: 4.1692 | D35: 0.2987834597 | E35: 0.3558609039 | G35: 2004 | H35: 0.2992920964 | J35: 0.5490308212 | K35: 16
A36: 7 | B36: 70 | C36: 5.3408 | D36: 0.2685940541 | E36: 0.3558609039 | G36: 2005 | H36: 0.2987657724 | J36: 0.5385595021 | K36: 17
A37: 8 | B37: 96 | C37: 8.1185 | D37: 0.284004458 | E37: 0.3558609039 | G37: 2006 | H37: 0.3214115141 | J37: 0.5326203893 | K37: 17
A38: 9 | B38: 50 | C38: 4.24185 | D38: 0.3013258982 | E38: 0.3558609039 | G38: 2007 | H38: 0.3237302892 | J38: 0.5284340512 | K38: 15
A39: 10 | B39: 84 | C39: 5.8059 | D39: 0.2988022789 | E39: 0.3558609039 | G39: 2008 | H39: 0.3434862821 | J39: 0.5275417426 | K39: 15
A40: 11 | B40: 147 | C40: 13.3734 | D40: 0.3290478447 | E40: 0.3558609039 | G40: 2009 | H40: 0.2978219643 | J40: 0.5251300632 | K40: 16
A41: 12 | B41: 14 | C41: 0.9954 | D41: 0.3775796487 | E41: 0.3558609039 | G41: 2010 | H41: 0.3071462072 | J41: 0.5240932887 | K41: 16
A42: 13 | B42: 45 | C42: 5.1742 | D42: 0.4072927553 | E42: 0.3558609039 | G42: 2011 | H42: 0.3338801427 | J42: 0.524058895 | K42: 16
A43: 14 | B43: 60 | C43: 8.34759 | D43: 0.4037242116 | E43: 0.3558609039 | G43: 2012 | H43: 0.3248112324 | J43: 0.5201301832 | K43: 16
A44: 15 | B44: 63 | C44: 8.18816 | D44: 0.4175824482 | E44: 0.3558609039 | G44: 2013 | H44: 0.3234993729 | J44: 0.5188723157 | K44: 17
A45: 16 | B45: 67 | C45: 7.116 | D45: 0.4136074706 | E45: 0.3558609039 | G45: 2014 | H45: 0.3378293768 | J45: 0.5188532608 | K45: 13
A46: 17 | B46: 60 | C46: 7.868028033 | D46: 0.4248692445 | E46: 0.3558609039 | G46: 2015 | H46: 0.3197208257 | J46: 0.517603218 | K46: 15
A47: 18 | B47: 42 | C47: 7.289902295 | D47: 0.4147511462 | E47: 0.3558609039 | G47: 2016 | H47: 0.3426148425 | J47: 0.5175648907 | K47: 16
G48: 2017 | H48: 0.3452694088 | J48: 0.5169476621 | K48: 1
G49: 2018 | H49: 0.3489382898 | J49: 0.515919939 | K49: 18
G50: 2019 | H50: 0.347346493 | J50: 0.5141423801 | K50: 16
G51: 2020 | H51: 0.3558609039 | J51: 0.5137044627 | K51: 15
J52: 0.5119633633 | K52: 13
J53: 0.5115480209 | K53: 11
J54: 0.5110557073 | K54: 14
J55: 0.5096442395 | K55: 17
J56: 0.5095297442 | K56: 15
J57: 0.508328079 | K57: 15
J58: 0.5077050831 | K58: 14
J59: 0.5055201651 | K59: 16
J60: 0.5031547258 | K60: 15
J61: 0.5030965392 | K61: 13
J62: 0.503004753 | K62: 18
J63: 0.5016239754 | K63: 15
J64: 0.5006084927 | K64: 18
J65: 0.5005815118 | K65: 14
J66: 0.4997723133 | K66: 13
J67: 0.4985147237 | K67: 14
J68: 0.497054372 | K68: 17
J69: 0.4964940146 | K69: 14
J70: 0.4962610318 | K70: 18
J71: 0.4932741348 | K71: 14
J72: 0.4903986979 | K72: 14
J73: 0.4892131671 | K73: 17
J74: 0.4883663479 | K74: 18
J75: 0.4878733281 | K75: 16
J76: 0.4875171468 | K76: 17
J77: 0.4855817395 | K77: 17
J78: 0.4853704684 | K78: 18
J79: 0.4851187766 | K79: 17
J80: 0.4843062077 | K80: 11
J81: 0.4841029144 | K81: 16
J82: 0.4838911658 | K82: 11
J83: 0.4830641273 | K83: 14
J84: 0.4825521928 | K84: 17
J85: 0.4825431213 | K85: 14
J86: 0.4821573315 | K86: 18
J87: 0.4816218883 | K87: 15
J88: 0.4811862999 | K88: 11
J89: 0.4810612148 | K89: 12
J90: 0.4810002014 | K90: 11
J91: 0.4808330604 | K91: 14
J92: 0.4785519126 | K92: 16
J93: 0.4782962394 | K93: 13
J94: 0.477174408 | K94: 18
J95: 0.4768754056 | K95: 15
J96: 0.4759536278 | K96: 17
J97: 0.4753795682 | K97: 18
J98: 0.4735314208 | K98: 17
J99: 0.4734005596 | K99: 13
J100: 0.4731523341 | K100: 14
J101: 0.4712762661 | K101: 18
J102: 0.4704370186 | K102: 15
J103: 0.4700855881 | K103: 17
J104: 0.469795082 | K104: 14
J105: 0.469400337 | K105: 11
J106: 0.4681238616 | K106: 10
J107: 0.4676996053 | K107: 14
J108: 0.4668014388 | K108: 15
J109: 0.4667869446 | K109: 15
J110: 0.466657588 | K110: 18
J111: 0.4663608075 | K111: 18
J112: 0.4662384559 | K112: 17
J113: 0.464860991 | K113: 16
J114: 0.4632905891 | K114: 14
J115: 0.4626479964 | K115: 17
J116: 0.4624185362 | K116: 13
J117: 0.461423529 | K117: 16
J118: 0.4613288578 | K118: 18
J119: 0.4606388031 | K119: 13
J120: 0.4605865328 | K120: 18
J121: 0.4603460838 | K121: 18
J122: 0.460055214 | K122: 14
J123: 0.4598720103 | K123: 13
J124: 0.4596614232 | K124: 18
J125: 0.4593403189 | K125: 11
J126: 0.4564033328 | K126: 11
J127: 0.4549663685 | K127: 15
J128: 0.4547197893 | K128: 14
J129: 0.4537979057 | K129: 13
J130: 0.4527419171 | K130: 15
J131: 0.4509641656 | K131: 14
J132: 0.4502848838 | K132: 11
J133: 0.4502167811 | K133: 16
J134: 0.4499838669 | K134: 15
J135: 0.4499713414 | K135: 16
J136: 0.4494051685 | K136: 14
J137: 0.4491935708 | K137: 18
J138: 0.4491539274 | K138: 14
J139: 0.4485428051 | K139: 16
J140: 0.4480026119 | K140: 11
J141: 0.4479077763 | K141: 13
J142: 0.4475970723 | K142: 13
J143: 0.4471681997 | K143: 11
J144: 0.4469954976 | K144: 17
J145: 0.4461531297 | K145: 14
J146: 0.4459542844 | K146: 17
J147: 0.4457379689 | K147: 14
J148: 0.4449324529 | K148: 13
J149: 0.4441720336 | K149: 11
J150: 0.4437849004 | K150: 12
J151: 0.4431998056 | K151: 13
J152: 0.4431213059 | K152: 16
J153: 0.4427413479 | K153: 17
J154: 0.4418306011 | K154: 15
J155: 0.4412112933 | K155: 17
J156: 0.4411429872 | K156: 12
J157: 0.4407858037 | K157: 14
J158: 0.4406370168 | K158: 16
J159: 0.4404007286 | K159: 15
J160: 0.4398155648 | K160: 9
J161: 0.4395034224 | K161: 17
J162: 0.4393591974 | K162: 14
J163: 0.4389994503 | K163: 13
J164: 0.4389696791 | K164: 17
J165: 0.4366169843 | K165: 15
J166: 0.4363118127 | K166: 4
J167: 0.4361823686 | K167: 11
J168: 0.4346353941 | K168: 16
J169: 0.4344813297 | K169: 16
J170: 0.4344556584 | K170: 15
J171: 0.4336480167 | K171: 11
J172: 0.4335753742 | K172: 15
J173: 0.4331117183 | K173: 17
J174: 0.4330882947 | K174: 14
J175: 0.4328577211 | K175: 16
J176: 0.4325193534 | K176: 11
J177: 0.4320141678 | K177: 17
J178: 0.4314663024 | K178: 16
J179: 0.4313281586 | K179: 17
J180: 0.4313187277 | K180: 15
J181: 0.4313144292 | K181: 14
J182: 0.430792503 | K182: 16
J183: 0.4301110244 | K183: 18
J184: 0.4296806667 | K184: 16
J185: 0.4296132017 | K185: 11
J186: 0.4286367259 | K186: 13
J187: 0.4283545841 | K187: 10
J188: 0.4282070117 | K188: 16
J189: 0.4281746861 | K189: 18
J190: 0.4277696141 | K190: 11
J191: 0.4275380318 | K191: 15
J192: 0.4271566802 | K192: 18
J193: 0.4267899678 | K193: 13
J194: 0.4250061439 | K194: 11
J195: 0.4239871392 | K195: 10
J196: 0.4232830545 | K196: 14
J197: 0.4226092896 | K197: 11
J198: 0.4207389288 | K198: 16
J199: 0.4205048139 | K199: 8
J200: 0.4204913621 | K200: 17
J201: 0.4202178177 | K201: 18
J202: 0.4194200016 | K202: 16
J203: 0.4193140826 | K203: 9
J204: 0.4192141633 | K204: 17
J205: 0.418597316 | K205: 17
J206: 0.4176722829 | K206: 12
J207: 0.4172015156 | K207: 17
J208: 0.416854631 | K208: 16
J209: 0.4161675074 | K209: 15
J210: 0.4159956362 | K210: 13
J211: 0.4159456588 | K211: 16
J212: 0.4158847123 | K212: 13
J213: 0.415862648 | K213: 15
J214: 0.4155676988 | K214: 16
J215: 0.4154997723 | K215: 11
J216: 0.4150045537 | K216: 13
J217: 0.4148444654 | K217: 17
J218: 0.4139833254 | K218: 16
J219: 0.4123314198 | K219: 13
J220: 0.4121814597 | K220: 16
J221: 0.4117448391 | K221: 5
J222: 0.4114829739 | K222: 16
... 777 more rows

Sheet Capacity Factor by State
A1: Average calendar year 2020 capacity factors by state
A25: Source: EIA, FERC, Berkeley Lab
A26: Note: States shaded in white have no projects in full sample (left) or in newer sample (right)
B28: 1998- | C28: 2015-
B29: 2019 | C29: 2019
B30: Projects | C30: Projects
A31: NE | B31: 0.446103046 | C31: 0.4655320512
A32: ND | B32: 0.4315067342 | C32: 0.4822687736
A33: KS | B33: 0.42912476 | C33: 0.460788185
A34: NM | B34: 0.4085256882 | C34: 0.444218786
A35: OK | B35: 0.4070923691 | C35: 0.4367540895
A36: MT | B36: 0.3997244239 | C36: 0.4318800549
A37: CO | B37: 0.3748949738 | C37: 0.4050409668
A38: SD | B38: 0.3702724319 | C38: 0.4637410359
A39: TX | B39: 0.3692662617 | C39: 0.4114648666
A40: IA | B40: 0.3607481388 | C40: 0.3923612237
A41: WA | B41: 0.3370736521
A42: MN | B42: 0.3365459499 | C42: 0.4512874955
A43: WY | B43: 0.3351998438 | C43: 0.415862648
A44: MI | B44: 0.3312989662 | C44: 0.3403031102
A45: IL | B45: 0.3292244895 | C45: 0.3796385044
A46: ID | B46: 0.3231751719
A47: MO | B47: 0.3220577605 | C47: 0.4062691709
A48: MD | B48: 0.3217582686 | C48: 0.3432550471
A49: HI | B49: 0.3145481836
A50: OH | B50: 0.3130591736 | C50: 0.3224878572
A51: WI | B51: 0.302978351 | C51: 0.4431213059
A52: NC | B52: 0.2989849333 | C52: 0.2989849333
A53: IN | B53: 0.2981226769 | C53: 0.3448622841
A54: WV | B54: 0.2965978438 | C54: 0.3576471785
A55: DE | B55: 0.2947973588
A56: ME | B56: 0.2932304798 | C56: 0.3051663219
A57: VT | B57: 0.2915457572 | C57: 0.3950781724
A58: PA | B58: 0.2914004603 | C58: 0.3405984497
A59: OR | B59: 0.2875745838 | C59: 0.3326314453
A60: MA | B60: 0.2821611759 | C60: 0.2074696941
A61: CT | B61: 0.2774134791 | C61: 0.2774134791
A62: NH | B62: 0.2739828221 | C62: 0.2786811287
A63: CA | B63: 0.2676224414 | C63: 0.3359421065
A64: NY | B64: 0.2551584816 | C64: 0.3643590233
A65: NJ | B65: 0.2531623153
A66: AK | B66: 0.25204431
A67: RI | B67: 0.2459803459 | C67: 0.2555403764
A68: UT | B68: 0.2344696869 | C68: 0.2890679699
A69: AZ | B69: 0.2269545792 | C69: 0.2612591075
A70: NV | B70: 0.2223671828
A71: TN | B71: 0.1652204345
A72: U.S. | B72: 0.3558609039 | C72: 0.4148182921

Sheet Capacity Factor Drivers
A1: 2020 capacity factors and various drivers by commercial operation date
A22: Note: In order to have all three indices be directionally consistent with their influence on capacity factor, this figure indexes the inverse of specific power (i.e., a decline in specific power causes the index to increase rather than decrease).
A23: Source: EIA, FERC, Berkeley Lab
B26: Weighted- | C26: Index of | D26: Index of | E26: Index of
B27: Average | C27: the Inverse | D27: Built | E27: Built Wind
B28: Capacity | C28: of Built | D28: Turbine | E28: Resource
B29: Factor | C29: Specific | D29: Hub | E29: Quality
B30: in 2020 | C30: Power | D30: Height | E30: at 80m
A31: 1998-99 | B31: 0.2525694928 | C31: 100 | D31: 100 | E31: 100
A32: 2000-01 | B32: 0.2511583743 | C32: 100.7584418 | D32: 102.8749865 | E32: 93.89046115
A33: 2002-03 | B33: 0.2618075757 | C33: 104.1905891 | D33: 116.9563042 | E33: 91.52490817
A34: 2004-05 | B34: 0.3040760813 | C34: 115.5182534 | D34: 130.9990861 | E34: 90.8733125
A35: 2006 | B35: 0.2983201658 | C35: 117.5216938 | D35: 134.2820577 | E35: 87.46012481
A36: 2007 | B36: 0.2987834597 | C36: 118.770958 | D36: 138.1662239 | E36: 89.37039075
A37: 2008 | B37: 0.2685940541 | C37: 118.1239288 | D37: 138.7152713 | E37: 89.12774618
A38: 2009 | B38: 0.284004458 | C38: 119.3004242 | D38: 139.3336126 | E38: 83.91318485
A39: 2010 | B39: 0.3013258982 | C39: 123.0738311 | D39: 140.8259046 | E39: 83.42076856
A40: 2011 | B40: 0.2988022789 | C40: 124.7439929 | D40: 143.1230301 | E40: 80.6901806
A41: 2012 | B41: 0.3290478447 | C41: 137.4027066 | D41: 148.085493 | E41: 81.18836289
A42: 2013 | B42: 0.3775796487 | C42: 153.897773 | D42: 142.2906204 | E42: 84.62726126
A43: 2014 | B43: 0.4072927553 | C43: 156.7413262 | D43: 146.1484479 | E43: 90.05293376
A44: 2015 | B44: 0.4037242116 | C44: 160.3313843 | D44: 145.7158918 | E44: 88.47176457
A45: 2016 | B45: 0.4175824482 | C45: 168.284878 | D45: 146.7130511 | E45: 89.25828461
A46: 2017 | B46: 0.4136074706 | C46: 170.2924102 | D46: 152.0355944 | E46: 85.37411879
A47: 2018 | B47: 0.4248692445 | C47: 170.920276 | D47: 155.721955 | E47: 85.76076209
A48: 2019 | B48: 0.4147511462 | C48: 178.701537 | D48: 159.2428589 | E48: 88.14656224
A49: 2020 | C49: 176.3243448 | D49: 159.2985415 | E49: 83.65276966

Sheet Influence of Specific Power
A1: Calendar year 2020 capacity factors by wind resource quality and specific power
A22: Source: EIA, FERC, Berkeley Lab
A23: Note: Wind resource quality is based on site estimates of gross capacity factor at 80 meters by AWS Truepower, using a single, common wind-turbine power curve. The “lower” category includes all projects with an estimated gross capacity factor of less than 40%; “medium” corresponds to ≥40%–45%; “higher” ≥45%–50%; and “highest” ≥50%.
A25: 1998-2019 Projects | J25: 2010-2019 Projects
A26: Average Capacity Factor | C26: Wind Resource Quality | J26: Average Capacity Factor | L26: Wind Resource Quality
A27: Specific Power Range | C27: Lower | D27: Medium | E27: Higher | F27: Highest | J27: Specific Power Range | L27: Lower | M27: Medium | N27: Higher | O27: Highest
B28: ≥ 400 W/m2 | C28: 0.1707395996 | D28: 0.223121308 | E28: 0.2160514198 | F28: 0.2494518394 | K28: ≥ 400 W/m2 | L28: 0.1781130982 | M28: 0.2006279509 | N28: 0.2118096601 | O28: 0.2785715189
A29: < 400 W/m2 | B29: ≥ 350 W/m2 | C29: 0.2181709429 | D29: 0.2653122875 | E29: 0.2644431525 | F29: 0.2965920266 | J29: < 400 W/m2 | K29: ≥ 350 W/m2 | L29: 0.2028008658 | M29: 0.237331475 | N29: 0.3161768816 | O29: 0.3395748795
A30: < 350 W/m2 | B30: ≥ 300 W/m2 | C30: 0.2780793168 | D30: 0.2880616273 | E30: 0.3071375477 | F30: 0.3315584089 | J30: < 350 W/m2 | K30: ≥ 300 W/m2 | L30: 0.2793120633 | M30: 0.2808770606 | N30: 0.3280964156 | O30: 0.3708952356
A31: < 300 W/m2 | B31: ≥ 250 W/m2 | C31: 0.3064964741 | D31: 0.3260604491 | E31: 0.3924690941 | F31: 0.4142600273 | J31: < 300 W/m2 | K31: ≥ 250 W/m2 | L31: 0.3068913662 | M31: 0.3260604491 | N31: 0.3976967812 | O31: 0.4196269804
A32: < 250 W/m2 | C32: 0.3460550496 | D32: 0.404296327 | E32: 0.4401668654 | F32: 0.4778615512 | J32: < 250 W/m2 | L32: 0.3460550496 | M32: 0.404296327 | N32: 0.4401668654 | O32: 0.4778615512
A35: Projects in Sample | C35: Wind Resource Quality | J35: Projects in Sample | L35: Wind Resource Quality
A36: Specific Power Range | C36: Lower | D36: Medium | E36: Higher | F36: Highest | J36: Specific Power Range | L36: Lower | M36: Medium | N36: Higher | O36: Highest
B37: ≥ 400 W/m2 | C37: 5 | D37: 4 | E37: 11 | F37: 15 | K37: ≥ 400 W/m2 | L37: 1 | M37: 3 | N37: 5 | O37: 2
A38: < 400 W/m2 | B38: ≥ 350 W/m2 | C38: 16 | D38: 21 | E38: 12 | F38: 41 | J38: < 400 W/m2 | K38: ≥ 350 W/m2 | L38: 3 | M38: 4 | N38: 2 | O38: 5
A39: < 350 W/m2 | B39: ≥ 300 W/m2 | C39: 117 | D39: 59 | E39: 71 | F39: 84 | J39: < 350 W/m2 | K39: ≥ 300 W/m2 | L39: 59 | M39: 21 | N39: 26 | O39: 40
A40: < 300 W/m2 | B40: ≥ 250 W/m2 | C40: 86 | D40: 39 | E40: 57 | F40: 41 | J40: < 300 W/m2 | K40: ≥ 250 W/m2 | L40: 82 | M40: 39 | N40: 53 | O40: 40
A41: < 250 W/m2 | C41: 66 | D41: 56 | E41: 54 | F41: 48 | J41: < 250 W/m2 | L41: 66 | M41: 56 | N41: 54 | O41: 48
A44: MW in Sample | C44: Wind Resource Quality | J44: MW in Sample | L44: Wind Resource Quality
A45: Specific Power Range | C45: Lower | D45: Medium | E45: Higher | F45: Highest | J45: Specific Power Range | L45: Lower | M45: Medium | N45: Higher | O45: Highest
B46: ≥ 400 W/m2 | C46: 156.7 | D46: 497.9 | E46: 989.3 | F46: 1087.6 | K46: ≥ 400 W/m2 | L46: 132 | M46: 402 | N46: 735 | O46: 108
A47: < 400 W/m2 | B47: ≥ 350 W/m2 | C47: 373.1 | D47: 1750.6 | E47: 957.3 | F47: 1923.5 | J47: < 400 W/m2 | K47: ≥ 350 W/m2 | L47: 49.9 | M47: 371 | N47: 250.9 | O47: 377.6
A48: < 350 W/m2 | B48: ≥ 300 W/m2 | C48: 7783.5 | D48: 6653.75 | E48: 6848.5 | F48: 9121.8 | J48: < 350 W/m2 | K48: ≥ 300 W/m2 | L48: 4297.9 | M48: 1545.6 | N48: 2210.7 | O48: 4881.7
A49: < 300 W/m2 | B49: ≥ 250 W/m2 | C49: 3803.562295 | D49: 5105 | E49: 7097.7 | F49: 6157.45 | J49: < 300 W/m2 | K49: ≥ 250 W/m2 | L49: 3629.062295 | M49: 5105 | N49: 6726.2 | O49: 5977.45
A50: < 250 W/m2 | C50: 7066.9 | D50: 7144.85 | E50: 9034.6 | F50: 7954.4 | J50: < 250 W/m2 | L50: 7066.9 | M50: 7144.85 | N50: 9034.6 | O50: 7954.4

Sheet Curtailment and Penetration
A1: Wind curtailment and penetration rates by ISO
A21: Sources: ERCOT, MISO, CAISO, NYISO, PJM, ISO-NE, SPP | M21: Sources: ERCOT, MISO, CAISO, NYISO, PJM, ISO-NE, SPP
D23: Wind | E23: Wind
D24: Penetration | E24: Curtailment
D25: % | E25: % | F25: Year
A26: 2014-20 SPP | F26: 2007
F27: 2008
F28: 2009
F29: 2010 | I29: Wind
F30: 2011 | H30: ISO | I30: Curtailment
F31: 2012 | H31: Region | I31: 2020 %
F32: 2013 | H32: MISO | I32: 0.05031808743
D33: 0.1196495057 | E33: 0.007119886646 | F33: 2014 | H33: ERCOT | I33: 0.04611486993
D34: 0.1347678589 | E34: 0.00929959518 | F34: 2015 | H34: SPP | I34: 0.02528591583
D35: 0.1753955116 | E35: 0.01655975111 | F35: 2016 | H35: ISO-NE | I35: 0.01506205994
D36: 0.2298008427 | E36: 0.02800968575 | F36: 2017 | H36: NYISO | I36: 0.01353997946
D37: 0.2383081156 | E37: 0.0128608194 | F37: 2018 | H37: CAISO | I37: 0.005812533784
D38: 0.275131358 | E38: 0.01570461898 | F38: 2019 | H38: PJM | I38: 0.0006423595102
D39: 0.3126348056 | E39: 0.02528591583 | F39: 2020
A41: 2007-20 ERCOT | D41: 0.02866988535 | E41: 0.01221103785 | F41: 2007
D42: 0.04877505376 | E42: 0.08506083651 | F42: 2008
D43: 0.06102125101 | E43: 0.1707036188 | F43: 2009
D44: 0.07744855047 | E44: 0.07716663567 | F44: 2010
D45: 0.08446383978 | E45: 0.08479260773 | F45: 2011
D46: 0.09174225231 | E46: 0.03794342906 | F46: 2012
D47: 0.09860319647 | E47: 0.01098066763 | F47: 2013
D48: 0.1062614139 | E48: 0.00512064749 | F48: 2014
D49: 0.117289641 | E49: 0.009519259763 | F49: 2015
D50: 0.1510455221 | E50: 0.01567669526 | F50: 2016
D51: 0.1736987272 | E51: 0.02157937785 | F51: 2017
D52: 0.1851303609 | E52: 0.02538171212 | F52: 2018
D53: 0.1993133381 | E53: 0.02691535119 | F53: 2019
D54: 0.2273367928 | E54: 0.04611486993 | F54: 2020
A56: 2009-20 MISO | F56: 2007
F57: 2008
D58: 0.02714458276 | E58: 0.01947533746 | F58: 2009
D59: 0.03418919388 | E59: 0.03879733092 | F59: 2010
D60: 0.04560506076 | E60: 0.03185828482 | F60: 2011
D61: 0.06214660257 | E61: 0.02601906753 | F61: 2012
D62: 0.06853903369 | E62: 0.04722765101 | F62: 2013
D63: 0.05675085807 | E63: 0.05515661055 | F63: 2014
D64: 0.06222216655 | E64: 0.05426408632 | F64: 2015
D65: 0.06903076503 | E65: 0.04309120888 | F65: 2016
D66: 0.07693471278 | E66: 0.04258114528 | F66: 2017
D67: 0.07337324221 | E67: 0.04243139865 | F67: 2018
D68: 0.08502380665 | E68: 0.05473711608 | F68: 2019
D69: 0.1097422847 | E69: 0.05031808743 | F69: 2020
A71: 2015-20 CAISO | F71: 2007
F72: 2008
F73: 2009
F74: 2010
F75: 2011
F76: 2012
F77: 2013
F78: 2014
D79: 0.05172870548 | E79: 0.004041127704 | F79: 2015
D80: 0.05834646084 | E80: 0.005366273756 | F80: 2016
D81: 0.0582060201 | E81: 0.002405716298 | F81: 2017
D82: 0.06975310746 | E82: 0.001730663417 | F82: 2018
D83: 0.06884366751 | E83: 0.00272474401 | F83: 2019
D84: 0.06624761734 | E84: 0.005812533784 | F84: 2020
A86: 2012-20 NYISO | F86: 2007
F87: 2008
F88: 2009
F89: 2010
F90: 2011
D91: 0.01862337809 | E91: 0.002943558184 | F91: 2012
D92: 0.02164620933 | E92: 0.0140502247 | F92: 2013
D93: 0.02479072144 | E93: 0.00735477216 | F93: 2014
D94: 0.02416220386 | E94: 0.009450058366 | F94: 2015
D95: 0.0243047662 | E95: 0.005603500134 | F95: 2016
D96: 0.02650443172 | E96: 0.009985658915 | F96: 2017
D97: 0.02451363582 | E97: 0.01642740942 | F97: 2018
D98: 0.02834848974 | E98: 0.015313751 | F98: 2019
D99: 0.02944363837 | E99: 0.01353997946 | F99: 2020
A101: 2014-20 ISO-NE | F101: 2007
F102: 2008
F103: 2009
F104: 2010
F105: 2011
F106: 2012
F107: 2013
D108: 0.01532389146 | E108: 0.03065787101 | F108: 2014
D109: 0.01721801187 | E109: 0.02319782202 | F109: 2015
D110: 0.02035411625 | E110: 0.04179122667 | F110: 2016
D111: 0.02707486738 | E111: 0.02695405609 | F111: 2017
D112: 0.02717707706 | E112: 0.02784357348 | F112: 2018
D113: 0.02930642281 | E113: 0.01885513932 | F113: 2019
D114: 0.03039199654 | E114: 0.01506205994 | F114: 2020
A116: 2012-20 PJM | F116: 2007
F117: 2008
F118: 2009
F119: 2010
F120: 2011
D121: 0.01685911282 | E121: 0.01986500316 | F121: 2012
D122: 0.01868566433 | E122: 0.01906463542 | F122: 2013
D123: 0.0193882431 | E123: 0.007362341176 | F123: 2014
D124: 0.02085090767 | E124: 0.003305442516 | F124: 2015
D125: 0.02222086811 | E125: 0.002152268868 | F125: 2016
D126: 0.02626697867 | E126: 0.003568012484 | F126: 2017
D127: 0.02649522433 | E127: 0.001777646159 | F127: 2018
D128: 0.03031581865 | E128: 0.0001312095569 | F128: 2019
D129: 0.03400586816 | E129: 0.0006423595102 | F129: 2020
A131: 2007-20 Total | E131: 0.01221103785 | F131: 2007
E132: 0.08506083651 | F132: 2008
E133: 0.110523182 | F133: 2009
E134: 0.06019140179 | F134: 2010
E135: 0.06026456766 | F135: 2011
E136: 0.02958728642 | F136: 2012
E137: 0.02762294467 | F137: 2013
E138: 0.02306806355 | F138: 2014
E139: 0.02156565248 | F139: 2015
E140: 0.02114867766 | F140: 2016
E141: 0.02542312935 | F141: 2017
E142: 0.02180323875 | F142: 2018
E143: 0.0259155336 | F143: 2019
E144: 0.0344422831 | F144: 2020

Sheet Inter-Annual Variability
A1: Inter-annual variability in the wind resource by region and nationally
A22: Source: ERA, Berkeley Lab; methodology behind the index of inter-annual variability is explained in report appendix
A25: Year | B25: National | C25: CAISO | D25: ERCOT | E25: SPP | F25: MISO | G25: PJM | H25: NYISO | I25: ISO-NE | J25: West (non-ISO)
A26: 2000 | B26: 0.9568091384 | C26: 0.9354816514 | E26: 1.008568105 | F26: 0.9671963697 | J26: 0.8618903601
A27: 2001 | B27: 0.9832592135 | C27: 0.7784597834 | D27: 0.9492321419 | E27: 0.9961844697 | F27: 1.087605704 | H27: 0.9072104829 | J27: 0.8765351829
A28: 2002 | B28: 0.9793256429 | C28: 0.9315416138 | D28: 0.9542833264 | E28: 1.023783435 | F28: 1.007341901 | G28: 1.070937584 | H28: 1.021885749 | J28: 0.9866919999
A29: 2003 | B29: 0.9203388887 | C29: 0.9212588939 | D29: 0.8830605033 | E29: 0.9452823053 | F29: 0.9521574834 | G29: 1.061045398 | H29: 0.9706638986 | J29: 0.9029277613
A30: 2004 | B30: 0.9522460193 | C30: 0.9123421232 | D30: 0.9681369083 | E30: 0.9317470199 | F30: 0.9917895858 | G30: 0.9956631665 | H30: 0.9624793229 | J30: 0.9160195149
A31: 2005 | B31: 0.9074165668 | C31: 0.9184294605 | D31: 0.8781043411 | E31: 0.9245192954 | F31: 0.9401752472 | G31: 0.9205349835 | H31: 0.8338162181 | J31: 0.8866036651
A32: 2006 | B32: 0.9875307216 | C32: 0.90581276 | D32: 0.9894393576 | E32: 0.9806261822 | F32: 0.965968186 | G32: 1.016256801 | H32: 0.9987085113 | J32: 1.045006951
A33: 2007 | B33: 1.003222085 | C33: 1.098458797 | D33: 0.8927589131 | E33: 0.9264082991 | F33: 1.081424669 | G33: 1.042646489 | H33: 0.9958749075 | J33: 1.050715084
A34: 2008 | B34: 1.092447569 | C34: 1.172537037 | D34: 1.067575798 | E34: 1.09296402 | F34: 1.032485653 | G34: 1.05599113 | H34: 0.9864631958 | I34: 0.9402973122 | J34: 1.151483273
A35: 2009 | B35: 1.005940617 | C35: 1.048440913 | D35: 0.9927598038 | E35: 1.013548539 | F35: 0.9819576665 | G35: 1.004915667 | H35: 0.9580009827 | I35: 0.9876103426 | J35: 1.043086245
A36: 2010 | B36: 1.009159518 | C36: 1.054435349 | D36: 1.02025068 | E36: 1.021391424 | F36: 1.00316084 | G36: 0.9944537607 | H36: 0.9612226137 | I36: 1.063677571 | J36: 1.001559919
A37: 2011 | B37: 1.083056345 | C37: 1.091900372 | D37: 1.118504502 | E37: 1.069148362 | F37: 1.032486864 | G37: 1.011093155 | H37: 0.9745827823 | I37: 0.9625167477 | J37: 1.155231655
A38: 2012 | B38: 1.02622597 | C38: 1.04111696 | D38: 1.032598179 | E38: 1.021181098 | F38: 0.9933768404 | G38: 0.9765608311 | H38: 0.9399712602 | I38: 0.8886784854 | J38: 1.096002142
A39: 2013 | B39: 1.013959708 | C39: 0.998003524 | D39: 1.007277886 | E39: 1.023583225 | F39: 1.021250687 | G39: 1.010006695 | H39: 1.028959113 | I39: 0.9853815617 | J39: 1.01301885
A40: 2014 | B40: 1.069041037 | C40: 0.9651569883 | D40: 1.063467991 | E40: 1.082753504 | F40: 1.082162947 | G40: 1.067723771 | H40: 1.101209975 | I40: 1.012966953 | J40: 1.087055066
A41: 2015 | B41: 0.9527690247 | C41: 0.8556258966 | D41: 0.9216560526 | E41: 0.9628442846 | F41: 1.013205417 | G41: 1.012127992 | H41: 1.017809315 | I41: 1.010871763 | J41: 0.901622989
A42: 2016 | B42: 1.010043566 | C42: 1.033352307 | D42: 0.9835174493 | E42: 1.019046943 | F42: 1.019334942 | G42: 0.992441573 | H42: 1.03197923 | I42: 0.999091582 | J42: 1.021604957
A43: 2017 | B43: 1.013050813 | C43: 1.050577779 | D43: 1.019687584 | E43: 1.012686298 | F43: 1.001261105 | G43: 1.05009111 | H43: 1.093626768 | I43: 1.042739049 | J43: 0.9733134547
A44: 2018 | B44: 0.9851689842 | C44: 1.011161713 | D44: 1.026462031 | E44: 0.9904480638 | F44: 0.9232548116 | G44: 0.9634530168 | H44: 1.016658125 | I44: 1.037680382 | J44: 0.993354564
A45: 2019 | B45: 0.9988192387 | C45: 1.089886966 | D45: 1.025245786 | E45: 1.008547254 | F45: 0.9934681551 | G45: 1.016743359 | H45: 1.069154059 | I45: 1.082179847 | J45: 0.894753347
A46: 2020 | B46: 1.029928968 | C46: 1.015372189 | D46: 1.027435024 | E46: 1.012445638 | F46: 1.002493846 | G46: 0.9828515023 | H46: 1.065985002 | I46: 1.051149069 | J46: 1.123243166

Sheet Performance with Project Age
A1: Changes in project-level capacity factors as projects age
A22: Source: EIA, FERC, Berkeley Lab
A26: Full Sample | I26: Older: Pre-2008 | R26: Newer: Post-2007
D27: Indexed Capacity Factor (Year 2=100%) | L27: Indexed Capacity Factor (Year 2=100%) | U27: Indexed Capacity Factor (Year 2=100%)
D28: Capacity- | F28: Median | L28: Capacity- | N28: Median | U28: Capacity- | W28: Median
A29: Sample | B29: Sample | C29: Years | D29: Weighted | E29: 25th | F29: 50th | G29: 75th | I29: Sample | J29: Sample | K29: Years | L29: Weighted | M29: 25th | N29: 50th | O29: 75th | R29: Sample | S29: Sample | T29: Years | U29: Weighted | V29: 25th | W29: 50th | X29: 75th
A30: Projects | B30: GW | C30: Post-COD | D30: Average | E30: Percentile | F30: Percentile | G30: Percentile | I30: Projects | J30: GW | K30: Post-COD | L30: Average | M30: Percentile | N30: Percentile | O30: Percentile | R30: Projects | S30: GW | T30: Post-COD | U30: Average | V30: Percentile | W30: Percentile | X30: Percentile
A31: 970 | B31: 94.41361 | C31: 1 | D31: 0.9802397634 | E31: 0.9266964413 | F31: 0.9864466132 | G31: 1.037906467 | I31: 188 | J31: 14.9825 | K31: 1 | L31: 0.9798688501 | M31: 0.9287283546 | N31: 0.9937705853 | O31: 1.048815605 | P31: =O31-M31 -> 0.1200872506 | R31: 782 | S31: 79.43111 | T31: 1 | U31: 0.9803097261 | V31: 0.9261022421 | W31: 0.9841243113 | X31: 1.035338273 | Y31: =X31-V31 -> 0.1092360311
A32: 1002 | B32: 95.34091 | C32: 2 | D32: 1 | E32: 1 | F32: 1 | G32: 1 | I32: 209 | J32: 15.2913 | K32: 2 | L32: 1 | M32: 1 | N32: 1 | O32: 1 | P32: =O32-M32 -> 0 | R32: 793 | S32: 80.04961 | T32: 2 | U32: 1 | V32: 1 | W32: 1 | X32: 1 | Y32: =X32-V32 -> 0
A33: 944 | B33: 87.3312 | C33: 3 | D33: 1.008148536 | E33: 0.9526274917 | F33: 0.9986846284 | G33: 1.046993965 | I33: 208 | J33: 15.1144 | K33: 3 | L33: 0.9893692006 | M33: 0.9234103961 | N33: 0.9717755342 | O33: 1.030369687 | P33: 0.1069592907 | R33: 736 | S33: 72.2168 | T33: 3 | U33: 1.012078901 | V33: 0.9634174987 | W33: 1.002856836 | X33: 1.050115466 | Y33: 0.0866979675
A34: 881 | B34: 80.6111 | C34: 4 | D34: 1.002215603 | E34: 0.9380916246 | F34: 0.9955961216 | G34: 1.059865467 | I34: 209 | J34: 15.2913 | K34: 4 | L34: 0.9738654497 | M34: 0.907037363 | N34: 0.9686346313 | O34: 1.029987156 | P34: 0.1229497931 | R34: 672 | S34: 65.3198 | T34: 4 | U34: 1.008852345 | V34: 0.9515114762 | W34: 1.000858703 | X34: 1.062681923 | Y34: 0.1111704466
A35: 812 | B35: 72.01994 | C35: 5 | D35: 0.9965875351 | E35: 0.9250553542 | F35: 0.9882036581 | G35: 1.049811741 | I35: 209 | J35: 15.2913 | K35: 5 | L35: 0.9691486096 | M35: 0.888806024 | N35: 0.9693609364 | O35: 1.037683664 | P35: 0.1488776397 | R35: 603 | S35: 56.72864 | T35: 5 | U35: 1.003983744 | V35: 0.9302813155 | W35: 0.9908446625 | X35: 1.052446323 | Y35: 0.1221650076
A36: 753 | B36: 63.96925 | C36: 6 | D36: 0.9962729933 | E36: 0.9079244724 | F36: 0.9821187581 | G36: 1.060255706 | I36: 209 | J36: 15.2913 | K36: 6 | L36: 0.9617105217 | M36: 0.8744892325 | N36: 0.9457970791 | O36: 1.032225517 | P36: 0.1577362847 | R36: 544 | S36: 48.67795 | T36: 6 | U36: 1.00713017 | V36: 0.922993867 | W36: 0.9896298257 | X36: 1.065910705 | Y36: 0.1429168375
A37: 705 | B37: 58.46915 | C37: 7 | D37: 0.994688701 | E37: 0.903260086 | F37: 0.9700829209 | G37: 1.052742065 | I37: 208 | J37: 15.2838 | K37: 7 | L37: 0.9582756581 | M37: 0.8763777187 | N37: 0.9435190238 | O37: 1.005629877 | P37: 0.129252158 | R37: 497 | S37: 43.18535 | T37: 7 | U37: 1.007575702 | V37: 0.9175155291 | W37: 0.9853361052 | X37: 1.06710575 | Y37: 0.1495902207
A38: 687 | B38: 57.34765 | C38: 8 | D38: 0.9847853643 | E38: 0.8994530332 | F38: 0.968734715 | G38: 1.042699942 | I38: 206 | J38: 15.2772 | K38: 8 | L38: 0.9541856548 | M38: 0.8659813578 | N38: 0.9472686319 | O38: 1.014294441 | P38: 0.1483130832 | R38: 481 | S38: 42.07045 | T38: 8 | U38: 0.9958971513 | V38: 0.9108120234 | W38: 0.9777013247 | X38: 1.052765264 | Y38: 0.1419532405
A39: 548 | B39: 43.45985 | C39: 9 | D39: 0.9943142179 | E39: 0.8895628447 | F39: 0.9727601367 | G39: 1.057053694 | I39: 208 | J39: 15.2853 | K39: 9 | L39: 0.9752494801 | M39: 0.882837792 | N39: 0.9504895455 | O39: 1.031826294 | P39: 0.1489885025 | R39: 340 | S39: 28.17455 | T39: 9 | U39: 1.004657249 | V39: 0.8987660147 | W39: 0.9836781413 | X39: 1.084769231 | Y39: 0.1860032161
A40: 449 | B40: 36.42215 | C40: 10 | D40: 0.9848870618 | E40: 0.8551220769 | F40: 0.9489586048 | G40: 1.062844812 | I40: 208 | J40: 15.2879 | K40: 10 | L40: 0.9639428535 | M40: 0.8197913405 | N40: 0.9268644948 | O40: 1.004658605 | P40: 0.1848672649 | R40: 241 | S40: 21.13425 | T40: 10 | U40: 1.000037491 | V40: 0.8855913625 | W40: 0.9771962691 | X40: 1.097552356 | Y40: 0.2119609935
A41: 373 | B41: 29.0493 | C41: 11 | D41: 0.9371552985 | E41: 0.8449109946 | F41: 0.9327521171 | G41: 0.9914559594 | I41: 204 | J41: 14.9707 | K41: 11 | L41: 0.9338903734 | M41: 0.8540058521 | N41: 0.922293364 | O41: 0.988588006 | P41: 0.1345821539 | R41: 169 | S41: 14.0786 | T41: 11 | U41: 0.9406271079 | V41: 0.8102274616 | W41: 0.9436872199 | X41: 0.9982401457 | Y41: 0.1880126841
A42: 269 | B42: 18.5651 | C42: 12 | D42: 0.910859301 | E42: 0.8074904547 | F42: 0.8931769218 | G42: 0.9727776204 | I42: 198 | J42: 13.1458 | K42: 12 | L42: 0.9297752102 | M42: 0.839593852 | N42: 0.9016171664 | O42: 0.9792199902 | P42: 0.1396261382 | R42: 71 | S42: 5.4193 | T42: 12 | U42: 0.864974268 | V42: 0.589846302 | W42: 0.8489091445 | X42: 0.9557501014 | Y42: 0.3659037994
A43: 193 | B43: 12.6163 | C43: 13 | D43: 0.8997224597 | E43: 0.7832242583 | F43: 0.8880152928 | G43: 0.9681609971 | I43: 193 | J43: 12.6163 | K43: 13 | L43: 0.8997224597 | M43: 0.7832242583 | N43: 0.8880152928 | O43: 0.9681609971 | P43: 0.1849367388 | T43: 13
A44: 157 | B44: 8.0956 | C44: 14 | D44: 0.8715059096 | E44: 0.7210983777 | F44: 0.8731133567 | G44: 0.9627490324 | I44: 157 | J44: 8.0956 | K44: 14 | L44: 0.8715059096 | M44: 0.7210983777 | N44: 0.8731133567 | O44: 0.9627490324 | P44: 0.2416506547 | T44: 14
A45: 123 | B45: 6.0243 | C45: 15 | D45: 0.8283296803 | E45: 0.78012999 | F45: 0.8399883713 | G45: 0.9321415734 | I45: 123 | J45: 6.0243 | K45: 15 | L45: 0.8283296803 | M45: 0.78012999 | N45: 0.8399883713 | O45: 0.9321415734 | P45: 0.1520115834 | T45: 15
A46: 110 | B46: 4.63 | C46: 16 | D46: 0.7936282956 | E46: 0.6867821767 | F46: 0.8036802884 | G46: 0.9127866874 | I46: 110 | J46: 4.63 | K46: 16 | L46: 0.7936282956 | M46: 0.6867821767 | N46: 0.8036802884 | O46: 0.9127866874 | P46: 0.2260045107 | T46: 16
A47: 89 | B47: 3.0023 | C47: 17 | D47: 0.7712959379 | E47: 0.643603986 | F47: 0.7700221152 | G47: 0.8616280437 | I47: 89 | J47: 3.0023 | K47: 17 | L47: 0.7712959379 | M47: 0.643603986 | N47: 0.7700221152 | O47: 0.8616280437 | P47: 0.2180240577 | T47: 17
A48: 64 | B48: 1.98 | C48: 18 | D48: 0.7934558105 | E48: 0.5818528375 | F48: 0.712917501 | G48: 0.8523502764 | I48: 64 | J48: 1.98 | K48: 18 | L48: 0.7934558105 | M48: 0.5818528375 | N48: 0.712917501 | O48: 0.8523502764 | P48: 0.270497439 | T48: 18
A49: 52 | B49: 1.6452 | C49: 19 | D49: 0.7138450217 | E49: 0.6629921772 | F49: 0.7922865678 | G49: 0.89152783 | I49: 52 | J49: 1.6452 | K49: 19 | L49: 0.7138450217 | M49: 0.6629921772 | N49: 0.7922865678 | O49: 0.89152783 | P49: 0.2285356528 | T49: 19
A50: 18 | B50: 0.7151 | C50: 20 | D50: 0.6330535831 | E50: 0.5173476636 | F50: 0.7505673639 | G50: 0.8243376174 | I50: 18 | J50: 0.7151 | K50: 20 | L50: 0.6330535831 | M50: 0.5173476636 | N50: 0.7505673639 | O50: 0.8243376174 | P50: 0.3069899539 | T50: 20
A51: 16 | B51: 0.72 | C51: 21 | D51: 0.7603443579 | E51: 0.5609995467 | F51: 0.7193647715 | G51: 0.828318126 | I51: 16 | J51: 0.72 | K51: 21 | L51: 0.7603443579 | M51: 0.5609995467 | N51: 0.7193647715 | O51: 0.828318126 | P51: 0.2673185793 | T51: 21
A52: 4 | B52: 0.1396 | C52: 22 | D52: 0.8019447909 | E52: 0.7890356243 | F52: 0.8091828217 | G52: 0.8833535944 | I52: 4 | J52: 0.1396 | K52: 22 | L52: 0.8019447909 | M52: 0.7890356243 | N52: 0.8091828217 | O52: 0.8833535944 | P52: 0.09431797005 | T52: 22
A54: Years with fewer than 10 projects are excluded from the graph.

Sheet Wind Turbine Prices
A1: Reported wind turbine transaction prices over time
A21: Sources: Berkeley Lab, annual financial reports, forecast providers
B24: U.S. turbine orders | D24: Vestas global average | F24: SGRE global average | H24: Nordex global average
A25: Order Date | B25: (2020 $/kW) | D25: (2020 $/kW) | F25: (2020 $/kW) | H25: (2020 $/kW)
A26: 1997-02-01 | B26: 1875.988881 | D26: 2005-06-30 | E26: 1391.5251
A27: 1997-12-01 | B27: 1461.282732 | D27: 2006-06-30 | E27: 1397.030175
A28: 1998-01-01 | B28: 1430.949453 | D28: 2007-06-30 | E28: 1650.572776
A29: 1998-05-01 | B29: 1207.711793 | D29: 2008-06-30 | E29: 1886.999207
A30: 1998-05-01 | B30: 1381.369697 | D30: 2009-06-30 | E30: 1736.07205
A31: 1998-08-01 | B31: 1130.087375 | D31: 2010-06-30 | E31: 1554.555316
A32: 1998-08-01 | B32: 1130.087375 | D32: 2011-06-30 | E32: 1592.116132
A33: 1998-11-01 | B33: 1402.592821 | D33: 2012-06-30 | E33: 1485.338343
A34: 1998-11-01 | B34: 1255.374109 | D34: 2013-06-30 | E34: 1442.245767
A35: 2000-07-01 | B35: 693.1265716 | D35: 2014-06-30 | E35: 1292.091426
A36: 2000-12-01 | B36: 963.7652514 | D36: 2015-06-30 | E36: 1104.942417
A37: 2001-03-01 | B37: 1118.881143 | D37: 2016-06-30 | E37: 1077.251602 | F37: 2016-06-30 | G37: 1060.420492 | H37: 2016-06-30 | I37: 1123.004824
A38: 2001-04-01 | B38: 715.6880854 | D38: 2017-06-30 | E38: 949.3762408 | F38: 2017-06-30 | G38: 967.3455853 | H38: 2017-06-30 | I38: 963.7569722
A39: 2002-02-01 | B39: 933.8596605 | D39: 2018-06-30 | E39: 907.8433639 | F39: 2018-06-30 | G39: 894.4832427 | H39: 2018-06-30 | I39: 931.3521237
A40: 2002-04-01 | B40: 708.5262673 | D40: 2019-06-30 | E40: 874.5794417 | F40: 2019-06-30 | G40: 836.7183939 | H40: 2019-06-30 | I40: 805.8028476
A41: 2002-05-01 | B41: 847.5633072 | D41: 2020-06-30 | E41: 840.0892805 | F41: 2020-06-30 | G41: 777.1051595 | H41: 2020-06-30 | I41: 799.5036546
A42: 2002-06-01 | B42: 950.3747313
A43: 2002-08-01 | B43: 848.4070298
A44: 2002-12-01 | B44: 961.9646284
A45: 2003-05-01 | B45: 1158.138521
A46: 2003-06-01 | B46: 1118.066543
A47: 2003-07-01 | B47: 1192.37175
A48: 2004-12-01 | B48: 1146.260469
A49: 2004-08-01 | B49: 1200.102001
A50: 2005-03-01 | B50: 1312.610052
A51: 2005-05-01 | B51: 1524.262078
A52: 2005-11-01 | B52: 1498.544494
A53: 2006-01-01 | B53: 1534.233334
A54: 2006-05-01 | B54: 1517.97856
A55: 2006-06-01 | B55: 1385.484975
A56: 2006-07-01 | B56: 1430.817711
A57: 2006-07-01 | B57: 1364.126131
A58: 2006-09-01 | B58: 1324.495991
A59: 2006-09-01 | B59: 1820.620096
A60: 2007-03-01 | B60: 1501.739988
A61: 2007-03-01 | B61: 1583.159626
A62: 2007-03-01 | B62: 1339.787636
A63: 2007-04-01 | B63: 1371.192066
A64: 2007-05-01 | B64: 1192.219924
A65: 2007-06-01 | B65: 1634.991752
A66: 2007-06-01 | B66: 1817.172367
A67: 2007-06-01 | B67: 1536.646383
A68: 2007-06-01 | B68: 1362.005302
A69: 2007-07-01 | B69: 1799.91613
A70: 2007-08-01 | B70: 2314.104185
A71: 2007-09-01 | B71: 1611.791389
A72: 2007-09-01 | B72: 1631.328254
A73: 2007-10-01 | B73: 1707.215331
A74: 2007-10-01 | B74: 1778.606645
A75: 2007-11-01 | B75: 1789.715563
A76: 2007-12-01 | B76: 1585.979088
A77: 2008-01-01 | B77: 2006.056426
A78: 2008-01-01 | B78: 1521.584061
A79: 2008-02-01 | B79: 1703.782578
A80: 2008-03-01 | B80: 1618.147207
A81: 2008-04-01 | B81: 2137.967699
A82: 2008-04-01 | B82: 2422.900485
A83: 2008-06-01 | B83: 1974.684998
A84: 2008-08-01 | B84: 1844.038225
A85: 2008-10-01 | B85: 1756.85638
A86: 2008-11-01 | B86: 1783.183171
A87: 2008-11-01 | B87: 1326.05172
A88: 2008-12-01 | B88: 2021.011855
A89: 2009-02-01 | B89: 1436.0829
A90: 2009-03-01 | B90: 1666.851982
A91: 2009-04-09 | B91: 1283.460722
A92: 2009-05-01 | B92: 1558.020277
A93: 2009-06-01 | B93: 1711.509062
A94: 2009-07-01 | B94: 1887.183291
A95: 2009-07-01 | B95: 1961.748828
A96: 2009-08-01 | B96: 1596.286343
A97: 2009-09-01 | B97: 1956.878152
A98: 2009-10-01 | B98: 1854.156824
A99: 2009-12-01 | B99: 1906.628808
A100: 2010-01-01 | B100: 2324.25632
A101: 2010-01-01 | B101: 1783.205634
A102: 2010-03-01 | B102: 1782.518815
A103: 2010-06-01 | B103: 1406.512682
A104: 2010-07-01 | B104: 1773.575939
A105: 2010-07-01 | B105: 1654.984592
A106: 2010-07-01 | B106: 1812.988737
A107: 2010-08-01 | B107: 1583.639037
A108: 2010-10-01 | B108: 1454.997358
A109: 2010-10-01 | B109: 1390.806298
A110: 2011-02-01 | B110: 1430.639973
A111: 2011-02-01 | B111: 1742.285231
A112: 2011-03-01 | B112: 1364.897231
A113: 2011-05-31 | B113: 1305.823221
A114: 2011-05-01 | B114: 1934.55292
A115: 2011-06-01 | B115: 1389.905401
A116: 2011-08-01 | B116: 1922.166662
A117: 2011-09-01 | B117: 1921.19295
A118: 2011-09-01 | B118: 1488.924536
A119: 2011-10-01 | B119: 1543.033316
A120: 2011-10-01 | B120: 1123.328254
A121: 2011-11-01 | B121: 1546.854602
A122: 2011-12-01 | B122: 1182.566413
A123: 2012-01-01 | B123: 1718.035722
A124: 2012-01-01 | B124: 1148.319555
A125: 2012-02-01 | B125: 1294.254693
A126: 2012-02-01 | B126: 1101.395171
A127: 2012-10-01 | B127: 1312.807569
A128: 2013-01-17 | B128: 1314.562503
A129: 2013-01-01 | B129: 1453.520796
A130: 2013-05-01 | B130: 1394.18679
A131: 2013-05-01 | B131: 1232.633929
A132: 2013-07-01 | B132: 1273.779488
A133: 2013-11-01 | B133: 1478.274168
A134: 2013-12-01 | B134: 1022.167349
A135: 2013-12-01 | B135: 1397.081084
A136: 2013-12-01 | B136: 1656.369219
A137: 2013-12-01 | B137: 1146.474256
A138: 2014-01-01 | B138: 1022.627925
A139: 2014-03-01 | B139: 959.0378921
A140: 2014-04-01 | B140: 1099.306885
A141: 2014-05-01 | B141: 1350.77751
A142: 2014-06-01 | B142: 1048.360713
A143: 2014-07-01 | B143: 1223.589728
A144: 2014-12-01 | B144: 1272.011116
A145: 2015-01-01 | B145: 1297.651054
A146: 2015-09-01 | B146: 1399.213603
A147: 2016-07-01 | B147: 945.342393

Sheet CapEx Over Time
A1: Installed wind power project costs over time
A22: Note: Size of bubble reflects project capacity. | L22: Note: Size of bubble reflects project capacity.
A23: Sources: Berkeley Lab, EIA (some data points suppressed to protect confidentiality) | L23: Sources: Berkeley Lab, EIA (some data points suppressed to protect confidentiality)
B26: Capacity-
A27: Commercial | B27: Weighted
A28: Operation | B28: Average
A29: Date | B29: 2020 $/kW
A30: 1982
A31: 1983 | B31: 4608.512984
A32: 1984
A33: 1985 | B33: 3528.795802 | C33: 1985
A34: 1986
A35: 1987
A36: 1988
A37: 1989
A38: 1990 | B38: 3289.678268 | C38: 1990
A39: 1991
A40: 1992
A41: 1993
A42: 1994 | B42: 2095.311491
A43: 1995 | C43: 1995
A44: 1996
A45: 1997
A46: 1998 | B46: 1579.072986
A47: 1999 | B47: 1855.37308
A48: 2000 | B48: 1869.015731 | C48: 2000
A49: 2001 | B49: 1468.543497
A50: 2002 | B50: 1716.444995
A51: 2003 | B51: 1560.447717
A52: 2004 | B52: 1438.309735
A53: 2005 | B53: 1689.240208 | C53: 2005
A54: 2006 | B54: 1886.37281
A55: 2007 | B55: 2075.793688
A56: 2008 | B56: 2320.763626
A57: 2009 | B57: 2537.712273
A58: 2010 | B58: 2535.169651 | C58: 2010
A59: 2011 | B59: 2429.708835
A60: 2012 | B60: 2193.163671
A61: 2013 | B61: 2063.434175
A62: 2014 | B62: 1904.336806
A63: 2015 | B63: 1734.791721 | C63: 2015
A64: 2016 | B64: 1773.759969
A65: 2017 | B65: 1693.065353
A66: 2018 | B66: 1490.661663
A67: 2019 | B67: 1429.614958
A68: 2020 | B68: 1462.330084 | C68: 2020

Sheet CapEx Trend by Region
A1: Installed wind power project costs by region, over time
A23: Note: NYISO data are not available over this period. For other regions, data for specific years are missing. | L23: Sources: Berkeley Lab, EIA
A24: Sources: Berkeley Lab, EIA
B26: National | C26: ERCOT | D26: West (non-ISO) | E26: SPP | F26: PJM | G26: MISO | H26: ISO-NE | I26: CAISO | J26: NYISO
B27: Capacity- | C27: Capacity- | D27: Capacity- | E27: Capacity- | F27: Capacity- | G27: Capacity- | H27: Capacity- | I27: Capacity- | J27: Capacity-
A28: Commercial | B28: Weighted | C28: Weighted | D28: Weighted | E28: Weighted | F28: Weighted | G28: Weighted | H28: Weighted | I28: Weighted | J28: Weighted
A29: Operation | B29: Average | C29: Average | D29: Average | E29: Average | F29: Average | G29: Average | H29: Average | I29: Average | J29: Average
A30: Date | B30: 2020 $/kW | C30: 2020 $/kW | D30: 2020 $/kW | E30: 2020 $/kW | F30: 2020 $/kW | G30: 2020 $/kW | H30: 2020 $/kW | I30: 2020 $/kW | J30: 2020 $/kW
A31: 2010 | B31: 2535.169651 | C31: 2435.205681 | D31: 2490.897746 | E31: 2595.923689 | F31: 2390.627026 | G31: 2565.383623 | H31: 2828.438857 | I31: 2893.146247
A32: 2011 | B32: 2429.708835 | D32: 2297.902974 | E32: 2428.781812 | F32: 2698.812261 | G32: 2378.397747 | H32: 2947.28613 | I32: 2585.392955
A33: 2012 | B33: 2193.163671 | C33: 2066.679677 | D33: 2335.269874 | E33: 1974.964615 | F33: 2191.098456 | G33: 2054.874743 | H33: 2625.885233 | I33: 2441.716433 | J33: 2240.492693
A34: 2013 | B34: 2063.434175 | E34: 1753.952007 | G34: 1973.189997 | I34: 2496.219927
A35: 2014 | B35: 1904.336806 | C35: 1696.714171 | D35: 1960.839237 | E35: 1989.948299 | F35: 2138.59996 | G35: 1947.445664 | I35: 2446.13294
A36: 2015 | B36: 1734.791721 | C36: 1651.026744 | E36: 1665.224743 | F36: 2158.172655 | G36: 1870.602751 | H36: 2165.774003
A37: 2016 | B37: 1773.759969 | C37: 1709.350151 | D37: 1718.458767 | E37: 1711.226972 | F37: 1932.300054 | G37: 1750.02067 | H37: 2766.699214
A38: 2017 | B38: 1693.065353 | C38: 1491.916511 | D38: 1798.525301 | E38: 1689.196728 | F38: 1888.404929 | G38: 1775.964148 | H38: 2247.223591 | I38: 2065.770809
A39: 2018 | B39: 1490.661663 | C39: 1282.550855 | D39: 1434.470216 | E39: 1368.474263 | F39: 1834.708909 | G39: 1613.385903 | I39: 1813.008092
A40: 2019 | B40: 1429.614958 | C40: 1306.948719 | D40: 1449.327019 | E40: 1430.980044 | F40: 1537.13246 | G40: 1506.444387 | H40: 2461.229777
A41: 2020 | B41: 1462.330084 | C41: 1282.788762 | D41: 1378.056883 | E41: 1470.872833 | F41: 1419.472963 | G41: 1632.798682
B44: National | C44: ERCOT | D44: West (non-ISO) | E44: SPP | F44: PJM | G44: MISO | H44: ISO-NE | I44: CAISO | J44: NYISO
A45: Commercial | B45: Sample | C45: Sample | D45: Sample | E45: Sample | F45: Sample | G45: Sample | H45: Sample | I45: Sample | J45: Sample
A46: Operation | B46: Capacity | C46: Capacity | D46: Capacity | E46: Capacity | F46: Capacity | G46: Capacity | H46: Capacity | I46: Capacity | J46: Capacity
A47: Date | B47: (MW) | C47: (MW) | D47: (MW) | E47: (MW) | F47: (MW) | G47: (MW) | H47: (MW) | I47: (MW) | J47: (MW)
A48: 2010 | B48: 5140.77 | C48: 653.87 | D48: 1263.8 | E48: 826.8 | F48: 975.9 | G48: 885.2 | H48: 95.7 | I48: 439.5
A49: 2011 | B49: 6375.45 | D49: 1937.9 | E49: 1018.1 | F49: 567 | G49: 1466.45 | H49: 193.5 | I49: 915.7
A50: 2012 | B50: 9556.04 | C50: 505.2 | D50: 1884.45 | E50: 1867.85 | F50: 1354.33 | G50: 2000.23 | H50: 314.05 | I50: 1341.98 | J50: 287.95
A51: 2013 | B51: 858.47 | E51: 328.55 | G51: 221.35 | I51: 269.11
A52: 2014 | B52: 5101.428 | C52: 1688.49 | D52: 547.12 | E52: 1241.2 | F52: 240.85 | G52: 1132.408 | I52: 106.4
A53: 2015 | B53: 8172.25 | C53: 3445.49 | E53: 2534.86 | F53: 362.1 | G53: 1078.15 | H53: 166.85
A54: 2016 | B54: 8172.622 | C54: 2610.94 | D54: 348.55 | E54: 3117.235 | F54: 428.7 | G54: 1278.797 | H54: 310.7
A55: 2017 | B55: 6808.4 | C55: 1796.975 | D55: 747.5 | E55: 2334.085 | F55: 806.25 | G55: 1018.09 | H55: 54.3 | I55: 49.7
A56: 2018 | B56: 7475.57 | C56: 2056.56 | D56: 785.71 | E56: 1966.975 | F56: 509.5 | G56: 1646.075 | I56: 329.85
A57: 2019 | B57: 8616.77 | C57: 3152.97 | D57: 577.45 | E57: 1212.97 | F57: 493.95 | G57: 3008.23 | H57: 38.4
A58: 2020 | B58: 12173.185 | C58: 2209.37 | D58: 2780.875 | E58: 2557.15 | F58: 533.56 | G58: 3541.13

Sheet 2020 CapEx by Region
A1: Installed wind power project costs by region, in 2020
A22: Notes: Size of bubble reflects project capacity. Other regions lack adequate data for inclusion.
A23: Sources: Berkeley Lab
B25: 2020
B26: Capacity-
B27: Weighted
B28: Average | D28: Region | F28: Project | G28: Region
A29: Region | B29: 2020 $/kW | D29: Name | E29: 2020 $/kW | F29: MW | G29: Code
A30: ERCOT | B30: 1282.788762 | D30: ERCOT | E30: 1441.171554 | F30: 491.6 | G30: 1
A31: West (non-ISO) | B31: 1378.056883 | D31: ERCOT | E31: 1113.325614 | F31: 300 | G31: 1
A32: PJM | B32: 1419.472963 | D32: ERCOT | E32: 1396.450803 | F32: 242.8 | G32: 1
A33: SPP | B33: 1470.872833 | D33: ERCOT | E33: 1136.363636 | F33: 220 | G33: 1
A34: MISO | B34: 1632.798682 | D34: ERCOT | E34: 1150.129766 | F34: 200 | G34: 1
D35: ERCOT | E35: 1492.222885 | F35: 179.88 | G35: 1
D36: ERCOT | E36: 1371.390772 | F36: 162.15 | G36: 1
D37: ERCOT | E37: 944.4887963 | F37: 160.74 | G37: 1
D38: ERCOT | E38: 1171.428465 | F38: 151.2 | G38: 1
D39: ERCOT | E39: 1440 | F39: 50.6 | G39: 1
D40: ERCOT | E40: 1587.301587 | F40: 50.4 | G40: 1
D41: West (non-ISO) | E41: 1514.909037 | F41: 496.4 | G41: 2
D42: West (non-ISO) | E42: 1517.9682 | F42: 299.54 | G42: 2
D43: West (non-ISO) | E43: 1058.230033 | F43: 299.36 | G43: 2
D44: West (non-ISO) | E44: 1286.203061 | F44: 250.9 | G44: 2
D45: West (non-ISO) | E45: 1762.363831 | F45: 247.395 | G45: 2
D46: West (non-ISO) | E46: 1133.567897 | F46: 226.56 | G46: 2
D47: West (non-ISO) | E47: 1243.638067 | F47: 202.22 | G47: 2
D48: West (non-ISO) | E48: 1215.180408 | F48: 199.4 | G48: 2
D49: West (non-ISO) | E49: 1534.356237 | F49: 149.9 | G49: 2
D50: West (non-ISO) | E50: 1487.09761 | F50: 136.8 | G50: 2
D51: West (non-ISO) | E51: 1215.180408 | F51: 133.28 | G51: 2
D52: West (non-ISO) | E52: 1564.455569 | F52: 79.9 | G52: 2
D53: West (non-ISO) | E53: 1334.008781 | F53: 59.22 | G53: 2
D54: PJM | E54: 1652.805458 | F54: 260.92 | G54: 3
D55: PJM | E55: 1188.672021 | F55: 146.64 | G55: 3
D56: PJM | E56: 1204.89785 | F56: 126 | G56: 3
D57: SPP | E57: 1742.354198 | F57: 522.8 | G57: 4
D58: SPP | E58: 1448.622199 | F58: 310.64 | G58: 4
D59: SPP | E59: 1210.180384 | F59: 250.9 | G59: 4
D60: SPP | E60: 1213.372196 | F60: 250.24 | G60: 4
D61: SPP | E61: 1387.802011 | F61: 216.6 | G61: 4
D62: SPP | E62: 1413.19654 | F62: 198.84 | G62: 4
D63: SPP | E63: 1199.354531 | F63: 195.84 | G63: 4
D64: SPP | E64: 1552.473608 | F64: 193.24 | G64: 4
D65: SPP | E65: 1166.666667 | F65: 162.25 | G65: 4
D66: SPP | E66: 1856.091031 | F66: 149.4 | G66: 4
D67: SPP | E67: 1973.684211 | F67: 106.4 | G67: 4
D68: MISO | E68: 1537.5 | F68: 400 | G68: 5
D69: MISO | E69: 1485.840026 | F69: 250.4 | G69: 5
D70: MISO | E70: 1410.891089 | F70: 202 | G70: 5
D71: MISO | E71: 1751.209396 | F71: 201.26 | G71: 5
D72: MISO | E72: 1678.899915 | F72: 200.6 | G72: 5
D73: MISO | E73: 1743.647895 | F73: 200 | G73: 5
D74: MISO | E74: 1681.990446 | F74: 199.82 | G74: 5
D75: MISO | E75: 1572.700665 | F75: 168.8 | G75: 5
D76: MISO | E76: 1630.847829 | F76: 168.6 | G76: 5
D77: MISO | E77: 1569.686774 | F77: 152.2 | G77: 5
D78: MISO | E78: 1655.159752 | F78: 150 | G78: 5
D79: MISO | E79: 1693.440007 | F79: 150 | G79: 5
D80: MISO | E80: 1725.869484 | F80: 149.66 | G80: 5
D81: MISO | E81: 1498.01682 | F81: 131.3 | G81: 5
D82: MISO | E82: 1882.459395 | F82: 130.92 | G82: 5
D83: MISO | E83: 1498.01682 | F83: 122.8 | G83: 5
D84: MISO | E84: 1856.580893 | F84: 112.42 | G84: 5
D85: MISO | E85: 1738.235294 | F85: 102 | G85: 5
D86: MISO | E86: 1654.498806 | F86: 90 | G86: 5
D87: MISO | E87: 1572.700665 | F87: 83.7 | G87: 5
D88: MISO | E88: 2020.763271 | F88: 72.45 | G88: 5
D89: MISO | E89: 1607.714626 | F89: 60.4 | G89: 5
D90: MISO | E90: 1358.695652 | F90: 36.8 | G90: 5
D91: MISO | E91: 1750 | F91: 5 | G91: 5

Sheet CapEx by Project Capacity
A1: Installed wind power project costs by project size: 2019 and 2020 projects
A22: Sources: Berkeley Lab
B24: 2019-2020 | C24: 2019-2020 | D24: 2019-2020
A25: Project | B25: Sample | C25: Sample | D25: Average Cost | F25: Individual Projects:
A26: Size Bin | B26: Projects | C26: MW | D26: 2020 $/kW | F26: 2020 $/kW | G26: Bin
A27: ≤5 MW | B27: 5 | C27: 20.8 | D27: 2394.620199 | F27: 1750 | G27: 1
A28: 5-20 MW | B28: none | C28: 0 | F28: 2060.364836 | G28: 1
A29: 20-50 MW | B29: 4 | C29: 144.64 | D29: 1556.283432 | F29: 2591.892436 | G29: 1
A30: 50-100 MW | B30: 14 | C30: 1007.27 | D30: 1670.723403 | F30: 2754.141331 | G30: 1
A31: 100-200 MW | B31: 45 | C31: 6953.73 | D31: 1501.266925 | F31: 3036.342582 | G31: 1
A32: >200 MW | B32: 46 | C32: 12663.515 | D32: 1399.508317 | F32: 1309.920897 | G32: 3
F33: 1358.695652 | G33: 3
A34: Total | B34: =SUM(B27:B32) -> 114 | C34: =SUM(C27:C32) -> 20789.955 | F34: 1447.417012 | G34: 3
F35: 2340.514074 | G35: 3
F36: 1251.051523 | G36: 4
F37: 1334.008781 | G37: 4
F38: 1440 | G38: 4
F39: 1564.455569 | G39: 4
F40: 1572.700665 | G40: 4
F41: 1587.301587 | G41: 4
F42: 1607.714626 | G42: 4
F43: 1622.136888 | G43: 4
F44: 1654.498806 | G44: 4
F45: 1705.974703 | G45: 4
F46: 1810.229559 | G46: 4
F47: 1880.212139 | G47: 4
F48: 2020.763271 | G48: 4
F49: 2056.292612 | G49: 4
F50: 944.4887963 | G50: 5
F51: 1150.129766 | G51: 5
F52: 1166.666667 | G52: 5
F53: 1171.428465 | G53: 5
F54: 1188.672021 | G54: 5
F55: 1199.354531 | G55: 5
F56: 1204.89785 | G56: 5
F57: 1215.180408 | G57: 5
F58: 1215.180408 | G58: 5
F59: 1237.946477 | G59: 5
F60: 1371.390772 | G60: 5
F61: 1403.755754 | G61: 5
F62: 1413.19654 | G62: 5
F63: 1421.921902 | G63: 5
F64: 1468.413121 | G64: 5
F65: 1487.09761 | G65: 5
F66: 1492.222885 | G66: 5
F67: 1498.01682 | G67: 5
F68: 1498.01682 | G68: 5
F69: 1519.689462 | G69: 5
F70: 1523.921207 | G70: 5
F71: 1528.040422 | G71: 5
F72: 1534.356237 | G72: 5
F73: 1552.473608 | G73: 5
F74: 1559.696907 | G74: 5
F75: 1563.759115 | G75: 5
F76: 1569.686774 | G76: 5
F77: 1572.700665 | G77: 5
F78: 1610.341492 | G78: 5
F79: 1630.847829 | G79: 5
F80: 1637.704927 | G80: 5
F81: 1655.159752 | G81: 5
F82: 1669.153843 | G82: 5
F83: 1675.016304 | G83: 5
F84: 1681.990446 | G84: 5
F85: 1693.440007 | G85: 5
F86: 1725.869484 | G86: 5
F87: 1738.235294 | G87: 5
F88: 1743.647895 | G88: 5
F89: 1765.484261 | G89: 5
F90: 1792.924396 | G90: 5
F91: 1856.091031 | G91: 5
F92: 1856.580893 | G92: 5
F93: 1882.459395 | G93: 5
F94: 1973.684211 | G94: 5
F95: 1058.230033 | G95: 6
F96: 1089.778304 | G96: 6
F97: 1113.325614 | G97: 6
F98: 1133.567897 | G98: 6
F99: 1136.363636 | G99: 6
F100: 1147.128851 | G100: 6
F101: 1153.233564 | G101: 6
F102: 1184.693295 | G102: 6
F103: 1198.448613 | G103: 6
F104: 1210.180384 | G104: 6
F105: 1213.372196 | G105: 6
F106: 1239.785908 | G106: 6
F107: 1243.638067 | G107: 6
F108: 1257.918411 | G108: 6
F109: 1260.330579 | G109: 6
F110: 1285.010742 | G110: 6
F111: 1286.203061 | G111: 6
F112: 1312.269924 | G112: 6
F113: 1327.486166 | G113: 6
F114: 1349.485592 | G114: 6
F115: 1349.680546 | G115: 6
F116: 1350.053606 | G116: 6
F117: 1383.287025 | G117: 6
F118: 1387.802011 | G118: 6
F119: 1396.450803 | G119: 6
F120: 1410.891089 | G120: 6
F121: 1435.122187 | G121: 6
F122: 1441.171554 | G122: 6
F123: 1448.622199 | G123: 6
F124: 1454.294147 | G124: 6
F125: 1469.309815 | G125: 6
F126: 1485.840026 | G126: 6
F127: 1493.524617 | G127: 6
F128: 1514.909037 | G128: 6
F129: 1517.9682 | G129: 6
F130: 1518.171291 | G130: 6
F131: 1537.5 | G131: 6
F132: 1577.863833 | G132: 6
F133: 1606.765328 | G133: 6
F134: 1607.039855 | G134: 6
F135: 1652.805458 | G135: 6
F136: 1678.899915 | G136: 6
F137: 1681.411995 | G137: 6
F138: 1742.354198 | G138: 6
F139: 1751.209396 | G139: 6
F140: 1762.363831 | G140: 6

Sheet O&M Over Time
A1: Average O&M costs for available data years from 2000 to 2020, by COD
A22: Source: Berkeley Lab; some data points suppressed to protect confidentiality
B24: Average | C24: Average
B25: $/kW-yr | C25: $/kW-yr
A26: Commercial | B26: (projects | C26: (projects
A27: Operation | B27: with 2020 | C27: with no 2020
A28: Date | B28: O&M data) | C28: O&M data)
A29: 2019 | B29: 5.075164706
A30: 2019 | B30: 7.265695619
A31: 2018 | B31: 11.27512755
A32: 2012 | B32: 14.72729125
A33: 2012 | B33: 14.73265528
A34: 2009 | B34: 15.64976903
A35: 2009 | B35: 15.80000987
A36: 2019 | B36: 16.12440794
A37: 2019 | B37: 17.26520588
A38: 2010 | B38: 17.62431336
A39: 2019 | B39: 17.89761881
A40: 2018 | B40: 18.14383371
A41: 2007 | B41: 19.07901585
A42: 2018 | B42: 19.24413435
A43: 2008 | B43: 19.64587354
A44: 2009 | B44: 19.93934751
A45: 2008 | B45: 20.1908308
A46: 2012 | B46: 20.19221756
A47: 2019 | B47: 20.26581022
A48: 2008 | B48: 20.29139946
A49: 2008 | B49: 20.33241209
A50: 2012 | B50: 20.47208463
A51: 2019 | B51: 20.89132294
A52: 2010 | B52: 21.30074549
A53: 2007 | B53: 21.41136981
A54: 2010 | B54: 21.42274596
A55: 2011 | B55: 21.98499858
A56: 2016 | B56: 22.11808278
A57: 2008 | B57: 22.70074768
A58: 2007 | B58: 23.23332475
A59: 2008 | B59: 23.41406
A60: 2016 | B60: 23.6623563
A61: 2019 | B61: 23.68523839
A62: 2015 | B62: 24.0368023
A63: 2018 | B63: 24.11144542
A64: 2012 | B64: 24.36217021
A65: 2008 | B65: 24.43596045
A66: 2017 | B66: 25.26908289
A67: 2016 | B67: 25.47226802
A68: 2008 | B68: 25.51950705
A69: 2019 | B69: 25.54921548
A70: 2016 | B70: 25.72592163
A71: 2019 | B71: 25.89804036
A72: 2018 | B72: 25.93421199
A73: 2006 | B73: 26.04258414
A74: 2014 | B74: 26.18036992
A75: 2015 | B75: 26.60752715
A76: 2015 | B76: 27.01553781
A77: 2014 | B77: 27.14910215
A78: 2014 | B78: 27.58392927
A79: 2007 | B79: 27.63792549
A80: 2017 | B80: 27.77418874
A81: 2008 | B81: 27.78954058
A82: 2011 | B82: 27.92634733
A83: 2018 | B83: 27.95606667
A84: 2012 | B84: 28.10781013
A85: 2009 | B85: 28.80386997
A86: 2009 | B86: 28.89176337
A87: 2009 | B87: 29.01050605
A88: 2016 | B88: 29.36890569
A89: 2008 | B89: 30.87147788
A90: 2006 | B90: 30.91783115
A91: 2008 | B91: 31.151962
A92: 2009 | B92: 31.61239327
A93: 2012 | B93: 31.91393172
A94: 2015 | B94: 32.64888984
A95: 2010 | B95: 33.2396712
A96: 2014 | B96: 33.40179952
A97: 2011 | B97: 35.80827667
A98: 2012 | B98: 37.8089325
A99: 2014 | B99: 38.28971381
A100: 2012 | B100: 38.99116289
A101: 2014 | B101: 41.22298518
A102: 2008 | B102: 43.24345515
A103: 2006 | B103: 43.93284075
A104: 2001 | B104: 46.46682654
A105: 2006 | C105: 26.64441559
A106: 2009 | C106: 50.14364584
A107: 1999 | C107: 58.00439923
A108: 2007 | C108: 31.94589546
A109: 1999 | C109: 68.05821032
A110: 2010 | C110: 43.69120863
A111: 2009 | C111: 39.99797871
A112: 2008 | C112: 22.96757909
A113: 2017 | C113: 35.27643855
A114: 1984 | C114: 154.1671361
A115: 1984 | C115: 85.47414572
A116: 1984 | C116: 84.66723861
A117: 1984 | C117: 69.04309003
A118: 1985 | C118: 60.55159879
A119: 1985 | C119: 57.83364904
A120: 1985 | C120: 89.23415106
A121: 1985 | C121: 116.8267605
A122: 1985 | C122: 102.9259087
A123: 1985 | C123: 110.2538588
A124: 1987 | C124: 69.54832486
A125: 1987 | C125: 78.91895378
A126: 1987 | C126: 86.37469973
A127: 1987 | C127: 91.34671386
A128: 1987 | C128: 96.85091984
A129: 1987 | C129: 53.20529374
A130: 1989 | C130: 51.91172262
A131: 1989 | C131: 50.63098833
A132: 1989 | C132: 52.13619169
A133: 1990 | C133: 63.70505083
A134: 1990 | C134: 65.22046207
A135: 1990 | C135: 62.73314622
A136: 1990 | C136: 115.8236198
A137: 1990 | C137: 64.82508211
A138: 1994 | C138: 37.34995104
A139: 1994 | C139: 65.3382996
A140: 1994 | C140: 54.03481705
A141: 1994 | C141: 111.2065466
A142: 1994 | C142: 76.37866224
A143: 1998 | C143: 57.276706
A144: 1998 | C144: 36.01903779
A145: 1998 | C145: 58.36622121
A146: 1998 | C146: 36.86330428
A147: 1999 | C147: 44.38332005
A148: 1999 | C148: 138.7547168
A149: 1999 | C149: 68.25196901
A150: 1999 | C150: 42.56427319
A151: 1999 | C151: 123.9342058
A152: 1999 | C152: 27.81195815
A153: 1999 | C153: 20.41878185
A154: 1999 | C154: 97.46872529
A155: 1999 | C155: 39.79360444
A156: 1999 | C156: 27.8202251
A157: 1999 | C157: 45.79750324
A158: 1999 | C158: 35.62264799
A159: 1999 | C159: 73.63283574
A160: 1999 | C160: 72.80175216
A161: 1999 | C161: 62.63374926
A162: 1999 | C162: 14.38049725
A163: 1999 | C163: 34.07306671
A164: 2000 | C164: 52.10363826
A165: 2000 | C165: 34.1277922
A166: 2000 | C166: 36.68401616
A167: 2000 | C167: 29.81369643
A168: 2000 | C168: 27.70108659
A169: 2000 | C169: 20.07550392
A170: 2001 | C170: 7.916260126
A171: 2001 | C171: 4.665451642
A172: 2001 | C172: 16.07674981
A173: 2001 | C173: 26.15756302
A174: 2001 | C174: 39.23634484
A175: 2001 | C175: 25.51521536
A176: 2001 | C176: 61.20198054
A177: 2001 | C177: 38.56578405
A178: 2001 | C178: 29.88712336
A179: 2002 | C179: 7.772446106
A180: 2002 | C180: 7.126433753
A181: 2002 | C181: 36.37914701
A182: 2002 | C182: 40.49962025
A183: 2002 | C183: 35.72141225
A184: 2002 | C184: 18.09197113
A185: 2002 | C185: 30.92739343
A186: 2002 | C186: 22.46175388
A187: 2002 | C187: 36.99230254
A188: 2004 | C188: 55.42426315
A189: 2006 | C189: 124.6197011
A190: 2007 | C190: 95.30738869

Sheet O&M by Project Age
A1: Median annual O&M costs by project age and commercial operation date
A22: Source: Berkeley Lab; medians shown only for groups of two or more projects, and only projects >5 MW are included.
A25: 2020 $/kW-year
A26: Commercial Operation Date | B26: Years Since Commercial Operation Date
B27: 1 | C27: 2 | D27: 3 | E27: 4 | F27: 5 | G27: 6 | H27: 7 | I27: 8 | J27: 9 | K27: 10 | L27: 11 | M27: 12 | N27: 13 | O27: 14 | P27: 15 | Q27: 16 | R27: 17 | S27: 18 | T27: 19 | U27: 20
A28: 1998−2005 | B28: 30.92739343 | C28: 32.24560211 | D28: 32.74686323 | E28: 42.58600048 | F28: 51.00329589 | G28: 53.40299584 | H28: 31.5760902 | I28: 43.33261121 | J28: 49.03328849 | K28: 56.49794153 | L28: 75.74412671 | M28: 70.53113387 | N28: 59.17503482 | O28: 36.24161849 | P28: 54.40208581 | Q28: 44.60566991 | R28: 45.97852904 | S28: 44.40366797 | T28: 30.57182028 | U28: 41.06083273
A29: 2006−2011 | B29: 24.77816576 | C29: 26.35519612 | D29: 27.24973889 | E29: 26.51556341 | F29: 25.9298861 | G29: 25.61408311 | H29: 24.15733142 | I29: 23.79535002 | J29: 21.27377061 | K29: 19.08208897 | L29: 19.06231303 | M29: 20.89582917 | N29: 20.44394339 | O29: 24.28194355 | P29: n/a | Q29: n/a | R29: n/a | S29: n/a | T29: n/a | U29: n/a
A30: 2012−2019 | B30: 23.22081917 | C30: 26.70088312 | D30: 25.67625348 | E30: 26.56492312 | F30: 27.24110708 | G30: 29.944262 | H30: 30.75256449 | I30: 30.08945674 | J30: n/a | K30: n/a | L30: n/a | M30: n/a | N30: n/a | O30: n/a | P30: n/a | Q30: n/a | R30: n/a | S30: n/a | T30: n/a | U30: n/a
A31: n/a = insufficient data
A34: Sample Size
A35: Commercial Operation Date | B35: Years Since Commercial Operation Date
B36: 1 | C36: 2 | D36: 3 | E36: 4 | F36: 5 | G36: 6 | H36: 7 | I36: 8 | J36: 9 | K36: 10 | L36: 11 | M36: 12 | N36: 13 | O36: 14 | P36: 15 | Q36: 16 | R36: 17 | S36: 18 | T36: 19 | U36: 20
A37: 1998−2005 | B37: 19 | C37: 31 | D37: 24 | E37: 21 | F37: 9 | G37: 6 | H37: 4 | I37: 6 | J37: 5 | K37: 7 | L37: 6 | M37: 7 | N37: 7 | O37: 7 | P37: 7 | Q37: 6 | R37: 3 | S37: 3 | T37: 4 | U37: 2
A38: 2006−2011 | B38: 38 | C38: 40 | D38: 38 | E38: 38 | F38: 38 | G38: 38 | H38: 38 | I38: 38 | J38: 38 | K38: 34 | L38: 28 | M38: 22 | N38: 10 | O38: 4 | P38: 0 | Q38: 0 | R38: 0 | S38: 0 | T38: 0 | U38: 0
A39: 2012−2019 | B39: 43 | C39: 33 | D39: 26 | E39: 24 | F39: 19 | G39: 15 | H39: 9 | I39: 9 | J39: 0 | K39: 0 | L39: 0 | M39: 0 | N39: 0 | O39: 0 | P39: 0 | Q39: 0 | R39: 0 | S39: 0 | T39: 0 | U39: 0

Sheet Wind PPAs by Project
A1: Levelized wind PPA prices by PPA execution date and region (full sample) | K1: Levelized wind PPA prices by PPA execution date and region (recent sample) | T1: Levelized wind PPA prices by PPA execution date and consolidated region (full sample) | AE1: Levelized wind PPA prices by PPA execution date and consolidated region (recent sample)
A22: Note: Size of bubble reflects contract capacity. | K22: Note: Size of bubble reflects contract capacity. | T22: Note: Size of bubble reflects contract capacity. | AE22: Note: Size of bubble reflects contract capacity.
A23: Source: Berkeley Lab, FERC | K23: Source: Berkeley Lab, FERC | T23: Source: Berkeley Lab, FERC | AE23: Source: Berkeley Lab, FERC
A25: PPA Execution Date | B25: Capacity (MW) | C25: CAISO | D25: West (non-ISO) | E25: MISO | F25: SPP | G25: ERCOT | H25: PJM | I25: NYISO | J25: ISO-NE | K25: Southeast (non-ISO) | M25: West | N25: Central | O25: East | P25: Note: West = CAISO, West (non-ISO); Central = MISO, SPP, ERCOT; East = PJM, NYISO, ISO-NE, Southeast (non-ISO)
A26: 1996-09-06 | B26: 107.25 | E26: 36.07310506 | N26: 36.07310506
A27: 1996-11-27 | B27: 25.08 | D27: 67.36912959 | M27: 67.36912959
A28: 1997-03-11 | B28: 108.75 | E28: 52.40448406 | N28: 52.40448406
A29: 1997-05-14 | B29: 9 | E29: 54.3565154 | N29: 54.3565154
A30: 1997-07-16 | B30: 70.5 | E30: 62.63061167 | N30: 62.63061167
A31: 1998-02-27 | B31: 41.25 | E31: 51.78848407 | N31: 51.78848407
A32: 1998-04-09 | B32: 103.5 | E32: 37.08642246 | N32: 37.08642246
A33: 1998-09-21 | B33: 1.98 | E33: 44.90209683 | N33: 44.90209683
A34: 1999-08-31 | B34: 74.9 | G34: 35.07861551 | N34: 35.07861551
A35: 1999-11-12 | B35: 10.4 | H35: 193.7817433 | O35: 193.7817433
A36: 2000-05-10 | B36: 16.8 | D36: 45.92246307 | M36: 45.92246307
A37: 2000-09-21 | B37: 29.7 | D37: 50.3844164 | M37: 50.3844164
A38: 2000-10-31 | B38: 150 | G38: 34.31325932 | N38: 34.31325932
A39: 2000-11-30 | B39: 299.64 | D39: 33.39491232 | M39: 33.39491232
A40: 2001-01-22 | B40: 50 | D40: 42.34610305 | M40: 42.34610305
A41: 2001-02-23 | B41: 40.05 | E41: 39.00478432 | N41: 39.00478432
A42: 2001-03-13 | B42: 112.2 | F42: 30.75423492 | N42: 30.75423492
A43: 2001-04-17 | B43: 25.5 | E43: 101.8442248 | N43: 101.8442248
A44: 2001-04-18 | B44: 4.5 | E44: 88.32497293 | N44: 88.32497293
A45: 2001-04-25 | B45: 64.5 | H45: 53.44228333 | O45: 53.44228333
A46: 2001-11-01 | B46: 160.5 | G46: 30.24478409 | N46: 30.24478409
A47: 2001-11-07 | B47: 49.8 | D47: 77.7699181 | M47: 77.7699181
A48: 2001-11-09 | B48: 40.05 | E48: 50.14991355 | N48: 50.14991355
A49: 2001-12-20 | B49: 9 | H49: 51.26609408 | O49: 51.26609408
A50: 2001-12-20 | B50: 66 | H50: 50.30962348 | O50: 50.30962348
A51: 2001-12-21 | B51: 80 | F51: 30.86064072 | N51: 30.86064072
A52: 2001-12-31 | B52: 51 | E52: 35.23218577 | N52: 35.23218577
A53: 2002-03-30 | B53: 15 | H53: 51.26609408 | O53: 51.26609408
A54: 2002-04-23 | B54: 85.5 | E54: 29.93757773 | N54: 29.93757773
A55: 2002-09-13 | B55: 40.5 | E55: 23.85076665 | N55: 23.85076665
A56: 2002-09-13 | B56: 21 | E56: 33.67763534 | N56: 33.67763534
A57: 2002-09-13 | B57: 40.5 | D57: 26.07136322 | M57: 26.07136322
A58: 2002-09-19 | B58: 5.94 | E58: 32.21736309 | N58: 32.21736309
A59: 2002-09-27 | B59: 56.76 | E59: 29.00803597 | N59: 29.00803597
A60: 2002-10-02 | B60: 16.5 | C60: 61.77217748 | M60: 61.77217748
A61: 2002-10-07 | B61: 162 | C61: 42.83258452 | M61: 42.83258452
A62: 2002-10-14 | B62: 11.22 | E62: 32.21736309 | N62: 32.21736309
A63: 2002-10-21 | B63: 204 | D63: 30.56716984 | M63: 30.56716984
A64: 2002-10-30 | B64: 60 | C64: 56.91223436 | M64: 56.91223436
A65: 2002-10-31 | B65: 22.44 | C65: 58.04480346 | M65: 58.04480346
A66: 2002-11-25 | B66: 43.5 | E66: 30.39548851 | N66: 30.39548851
A67: 2002-12-20 | B67: 27 | K67: 81.59580545 | O67: 81.59580545
A68: 2003-01-10 | B68: 24 | D68: 42.90335438 | M68: 42.90335438
A69: 2003-01-21 | B69: 74.25 | F69: 27.54329888 | N69: 27.54329888
A70: 2003-03-27 | B70: 51 | F70: 20.65441681 | N70: 20.65441681
A71: 2003-04-01 | B71: 162 | D71: 44.09807565 | M71: 44.09807565
A72: 2003-04-21 | B72: 30 | H72: 45.51558445 | O72: 45.51558445
A73: 2003-05-28 | B73: 144 | D73: 46.87428914 | M73: 46.87428914
A74: 2003-05-30 | B74: 24 | H74: 59.17208211 | O74: 59.17208211
A75: 2003-06-06 | B75: 51 | F75: 29.32861537 | N75: 29.32861537
A76: 2003-11-13 | B76: 10 | E76: 36.25375336 | N76: 36.25375336
A77: 2004-01-06 | B77: 9 | D77: 63.97635965 | M77: 63.97635965
A78: 2004-04-07 | B78: 3.3 | E78: 31.63144248 | N78: 31.63144248
A79: 2004-05-27 | B79: 91.5 | G79: 32.32671213 | N79: 32.32671213
A80: 2004-05-30 | B80: 100.5 | E80: 28.27258262 | N80: 28.27258262
A81: 2004-05-31 | B81: 50 | C81: 56.64249988 | M81: 56.64249988
A82: 2004-07-02 | B82: 16.5 | E82: 71.75013953 | N82: 71.75013953
A83: 2004-07-02 | B83: 27.5 | E83: 71.75013953 | N83: 71.75013953
A84: 2004-07-08 | B84: 80 | F84: 32.41362587 | N84: 32.41362587
A85: 2004-09-09 | B85: 10.5 | D85: 63.70713109 | M85: 63.70713109
A86: 2004-10-06 | B86: 20.46 | C86: 52.65721145 | M86: 52.65721145
A87: 2004-11-19 | B87: 27.5 | E87: 71.75013953 | N87: 71.75013953
A88: 2004-12-08 | B88: 75 | D88: 48.75050877 | M88: 48.75050877
A89: 2004-12-16 | B89: 35 | G89: 35.07462259 | N89: 35.07462259
A90: 2005-01-26 | B90: 151.2 | F90: 32.71054177 | N90: 32.71054177
A91: 2005-02-28 | B91: 120 | F91: 33.05013143 | N91: 33.05013143
A92: 2005-02-28 | B92: 60 | D92: 41.73160575 | M92: 41.73160575
A93: 2005-03-28 | B93: 100 | G93: 35.07462259 | N93: 35.07462259
A94: 2005-04-01 | B94: 64.5 | D94: 63.1140527 | M94: 63.1140527
A95: 2005-04-01 | B95: 38 | C95: 66.22884608 | M95: 66.22884608
A96: 2005-04-08 | B96: 147 | F96: 28.47378824 | N96: 28.47378824
A97: 2005-05-27 | B97: 50.6 | E97: 31.13100459 | N97: 31.13100459
A98: 2005-06-15 | B98: 75 | C98: 64.23245377 | M98: 64.23245377
A99: 2005-06-16 | B99: 49.5 | E99: 30.43948998 | N99: 30.43948998
A100: 2005-10-11 | B100: 25 | C100: 71.11653035 | M100: 71.11653035
A101: 2005-10-12 | B101: 205.5 | E101: 48.78291914 | N101: 48.78291914
A102: 2005-11-08 | B102: 161 | F102: 39.86861185 | N102: 39.86861185
A103: 2005-11-18 | B103: 98.9 | E103: 44.63864119 | N103: 44.63864119
A104: 2005-12-22 | B104: 90 | D104: 65.35219248 | M104: 65.35219248
A105: 2005-12-29 | B105: 150 | E105: 42.95600898 | N105: 42.95600898
A106: 2005-12-30 | B106: 56.7 | K106: 45.98391236 | O106: 45.98391236
A107: 2006-01-16 | B107: 201 | D107: 50.581868 | M107: 50.581868
A108: 2006-02-01 | B108: 199.5 | D108: 68.19290949 | M108: 68.19290949
A109: 2006-02-21 | B109: 25.2 | F109: 45.88489204 | N109: 45.88489204
A110: 2006-03-01 | B110: 240.8 | G110: 53.16945004 | N110: 53.16945004
A111: 2006-03-15 | B111: 50.4 | K111: 47.5380143 | O111: 47.5380143
A112: 2006-03-21 | B112: 80 | H112: 69.03841964 | O112: 69.03841964
A113: 2006-04-01 | B113: 124.2 | G113: 45.36698435 | N113: 45.36698435
A114: 2006-04-20 | B114: 10.5 | D114: 69.49460331 | M114: 69.49460331
A115: 2006-05-24 | B115: 50 | C115: 68.1236109 | M115: 68.1236109
A116: 2006-06-30 | B116: 300.5 | D116: 52.13599752 | M116: 52.13599752
A117: 2006-07-14 | B117: 60.9 | D117: 59.49731622 | M117: 59.49731622
A118: 2006-07-31 | B118: 199.5 | D118: 50.66311893 | M118: 50.66311893
A119: 2006-07-31 | B119: 50 | E119: 38.13884115 | N119: 38.13884115
A120: 2006-08-16 | B120: 45 | C120: 73.91169474 | M120: 73.91169474
A121: 2006-08-24 | B121: 94.5 | F121: 30.19910365 | N121: 30.19910365
A122: 2006-08-31 | B122: 50 | E122: 50.95529751 | N122: 50.95529751
A123: 2006-09-01 | B123: 100.5 | E123: 60.12101431 | N123: 60.12101431
A124: 2006-09-12 | B124: 26 | H124: 69.52261402 | O124: 69.52261402
A125: 2006-09-27 | B125: 50.4 | K125: 48.00490025 | O125: 48.00490025
A126: 2006-10-01 | B126: 14.7 | E126: 35.86003246 | N126: 35.86003246
A127: 2006-10-01 | B127: 21 | E127: 33.68669716 | N127: 33.68669716
A128: 2006-10-26 | B128: 79.8 | D128: 67.5829503 | M128: 67.5829503
A129: 2006-10-27 | B129: 100.65 | E129: 48.12553618 | N129: 48.12553618
A130: 2006-11-10 | B130: 6 | C130: 69.68243539 | M130: 69.68243539
A131: 2006-11-22 | B131: 29.4 | D131: 49.93824218 | M131: 49.93824218
A132: 2006-12-01 | B132: 5 | K132: 57.51550759 | O132: 57.51550759
A133: 2006-12-11 | B133: 29.4 | H133: 72.56957986 | O133: 72.56957986
A134: 2006-12-15 | B134: 100.65 | D134: 66.88117787 | M134: 66.88117787
A135: 2006-12-20 | B135: 21 | D135: 69.49460331 | M135: 69.49460331
A136: 2006-12-20 | B136: 21 | D136: 69.49460331 | M136: 69.49460331
A137: 2006-12-28 | B137: 48 | E137: 42.54065116 | N137: 42.54065116
A138: 2007-01-01 | B138: 59.8 | G138: 44.08299114 | N138: 44.08299114
A139: 2007-02-16 | B139: 52.8 | E139: 67.27567476 | N139: 67.27567476
A140: 2007-02-20 | B140: 57.5 | E140: 79.88640324 | N140: 79.88640324
A141: 2007-02-22 | B141: 51 | F141: 51.20160716 | N141: 51.20160716
A142: 2007-02-23 | B142: 50.4 | F142: 45.03517181 | N142: 45.03517181
A143: 2007-02-28 | B143: 25.2 | F143: 46.5221822 | N143: 46.5221822
A144: 2007-04-23 | B144: 30 | E144: 63.85517408 | N144: 63.85517408
A145: 2007-06-06 | B145: 20.46 | E145: 57.04936915 | N145: 57.04936915
A146: 2007-06-19 | B146: 105 | F146: 41.04862441 | N146: 41.04862441
A147: 2007-06-26 | B147: 99 | D147: 64.45570579 | M147: 64.45570579
A148: 2007-07-02 | B148: 30 | E148: 64.18389063 | N148: 64.18389063
A149: 2007-08-03 | B149: 100.4333333 | H149: 69.22984112 | O149: 69.22984112
A150: 2007-08-17 | B150: 150 | C150: 91.3389101 | M150: 91.3389101
A151: 2007-08-29 | B151: 99 | H151: 67.38582265 | O151: 67.38582265
A152: 2007-09-17 | B152: 75 | H152: 63.54310597 | O152: 63.54310597
A153: 2007-09-25 | B153: 96 | F153: 47.89006182 | N153: 47.89006182
A154: 2007-09-25 | B154: 50 | F154: 42.43453597 | N154: 42.43453597
A155: 2007-10-05 | B155: 50 | D155: 70.12619779 | M155: 70.12619779
A156: 2007-10-15 | B156: 98.7 | D156: 72.08884121 | M156: 72.08884121
A157: 2007-11-01 | B157: 24 | F157: 46.00807648 | N157: 46.00807648
A158: 2007-11-01 | B158: 24 | F158: 46.00807648 | N158: 46.00807648
A159: 2007-11-02 | B159: 50 | E159: 57.20951541 | N159: 57.20951541
A160: 2007-12-03 | B160: 99 | E160: 52.27453932 | N160: 52.27453932
A161: 2007-12-22 | B161: 165.6 | G161: 58.82044615 | N161: 58.82044615
A162: 2007-12-31 | B162: 99 | E162: 40.69376435 | N162: 40.69376435
A163: 2007-12-31 | B163: 19.5 | E163: 40.69376435 | N163: 40.69376435
A164: 2008-01-02 | B164: 24 | J164: 56.92301241 | O164: 56.92301241
A165: 2008-01-16 | B165: 200.8666667 | H165: 76.1906844 | O165: 76.1906844
A166: 2008-02-27 | B166: 81 | F166: 58.75331747 | N166: 58.75331747
A167: 2008-02-28 | B167: 100 | D167: 59.99655992 | M167: 59.99655992
A168: 2008-03-25 | B168: 106 | E168: 81.78007342 | N168: 81.78007342
A169: 2008-04-03 | B169: 100.5 | E169: 71.61348245 | N169: 71.61348245
A170: 2008-04-30 | B170: 54 | E170: 62.12072456 | N170: 62.12072456
A171: 2008-05-28 | B171: 102.9 | D171: 83.2160229 | M171: 83.2160229
A172: 2008-05-30 | B172: 40 | H172: 86.8445717 | O172: 86.8445717
A173: 2008-05-30 | B173: 10 | H173: 95.42181335 | O173: 95.42181335
A174: 2008-05-30 | B174: 38 | H174: 86.21715528 | O174: 86.21715528
A175: 2008-06-12 | B175: 4.5 | J175: 136.9441352 | O175: 136.9441352
A176: 2008-06-12 | B176: 99 | E176: 45.39062774 | N176: 45.39062774
A177: 2008-06-15 | B177: 50.25 | H177: 98.20457754 | O177: 98.20457754
A178: 2008-06-30 | B178: 50.25 | H178: 98.20457754 | O178: 98.20457754
A179: 2008-07-23 | B179: 63 | D179: 96.3462427 | M179: 96.3462427
A180: 2008-07-23 | B180: 30 | E180: 64.41259154 | N180: 64.41259154
A181: 2008-07-28 | B181: 72 | D181: 104.4886183 | M181: 104.4886183
A182: 2008-08-11 | B182: 76.5 | D182: 83.81890004 | M182: 83.81890004
A183: 2008-08-14 | B183: 15 | F183: 47.45838901 | N183: 47.45838901
A184: 2008-08-14 | B184: 265 | D184: 100.2322851 | M184: 100.2322851
A185: 2008-08-14 | B185: 290 | D185: 101.0546968 | M185: 101.0546968
A186: 2008-08-14 | B186: 290 | D186: 100.7038384 | M186: 100.7038384
A187: 2008-08-15 | B187: 50 | F187: 46.87834204 | N187: 46.87834204
A188: 2008-08-20 | B188: 62.5 | H188: 94.34467363 | O188: 94.34467363
A189: 2008-09-05 | B189: 99 | D189: 66.11804174 | M189: 66.11804174
A190: 2008-09-22 | B190: 49.5 | E190: 63.81059994 | N190: 63.81059994
A191: 2008-09-24 | B191: 40.5 | E191: 45.07786162 | N191: 45.07786162
A192: 2008-10-07 | B192: 50 | E192: 69.02322459 | N192: 69.02322459
A193: 2008-10-08 | B193: 50 | E193: 70.5093998 | N193: 70.5093998
A194: 2008-10-17 | B194: 99 | H194: 69.37947079 | O194: 69.37947079
A195: 2008-11-20 | B195: 101.2 | C195: 108.529449 | M195: 108.529449
A196: 2008-11-21 | B196: 150 | E196: 60.60468532 | N196: 60.60468532
A197: 2008-12-02 | B197: 100 | E197: 59.0067189 | N197: 59.0067189
A198: 2008-12-09 | B198: 25 | F198: 67.12725396 | N198: 67.12725396
A199: 2008-12-12 | B199: 49.5 | E199: 54.14930594 | N199: 54.14930594
A200: 2008-12-16 | B200: 150.1 | K200: 72.56723085 | O200: 72.56723085
A201: 2008-12-22 | B201: 79.5 | F201: 60.8782394 | N201: 60.8782394
A202: 2008-12-22 | B202: 151.8 | D202: 60.32811051 | M202: 60.32811051
A203: 2008-12-23 | B203: 18.9 | F203: 39.33300242 | N203: 39.33300242
A204: 2009-01-28 | B204: 50.4 | E204: 54.09668671 | N204: 54.09668671
A205: 2009-01-30 | B205: 98.9 | F205: 62.32681833 | N205: 62.32681833
A206: 2009-02-02 | B206: 99 | F206: 52.53104563 | N206: 52.53104563
A207: 2009-02-05 | B207: 150 | H207: 93.79016785 | O207: 93.79016785
A208: 2009-02-05 | B208: 51 | H208: 96.54663778 | O208: 96.54663778
A209: 2009-02-05 | B209: 49.5 | H209: 96.54663778 | O209: 96.54663778
A210: 2009-02-19 | B210: 49.5 | H210: 93.81364561 | O210: 93.81364561
A211: 2009-03-17 | B211: 8 | E211: 116.480647 | N211: 116.480647
A212: 2009-03-17 | B212: 24.75 | E212: 119.0080178 | N212: 119.0080178
A213: 2009-03-24 | B213: 63 | D213: 88.77998128 | M213: 88.77998128
A214: 2009-03-31 | B214: 30 | D214: 61.00026384 | M214: 61.00026384
A215: 2009-03-31 | B215: 12 | D215: 61.00026384 | M215: 61.00026384
A216: 2009-04-01 | B216: 49.5 | E216: 50.82043649 | N216: 50.82043649
A217: 2009-04-01 | B217: 96.6 | D217: 81.10356798 | M217: 81.10356798
A218: 2009-04-10 | B218: 124.5 | D218: 106.3803118 | M218: 106.3803118
A219: 2009-04-29 | B219: 70 | H219: 69.50542065 | O219: 69.50542065
A220: 2009-04-30 | B220: 22.5 | D220: 64.2647233 | M220: 64.2647233
A221: 2009-06-10 | B221: 102.3 | E221: 75.47684644 | N221: 75.47684644
... 310 more rows

Sheet Wind PPA Average
A1: Generation-weighted average levelized wind PPA prices by PPA execution date and region
A22: Source: Berkeley Lab, FERC
A23: Note: West = CAISO, West (non-ISO); Central = MISO, SPP, ERCOT; East = PJM, NYISO, ISO-NE, Southeast (non-ISO)
A25: PPA | B25: Nationwide | C25: West | D25: Central | E25: East | G25: Nationwide | I25: West | K25: Central | M25: East
A26: Execution | B26: Average PPA | C26: Average PPA | D26: Average PPA | E26: Average PPA | G26: Sample | I26: Sample | K26: Sample | M26: Sample
A27: Year | B27: 2020 $/MWh | C27: 2020 $/MWh | D27: 2020 $/MWh | E27: 2020 $/MWh | G27: MW | H27: Projects | I27: MW | J27: Projects | K27: MW | L27: Projects | M27: MW | N27: Projects
A28: 1996-99 | B28: 43.75908154 | C28: 67.37952301 | D28: 41.41656324 | E28: 193.9917026 | G28: 553 | H28: 10 | I28: 25.08 | J28: 1 | K28: 517.13 | L28: 8 | M28: 10.4 | N28: 1
A29: 2000-01 | B29: 39.88791855 | C29: 40.12255959 | D29: 40.73446322 | E29: 52.31467267 | G29: 1249 | H29: 17 | I29: 445.94 | J29: 5 | K29: 663.8 | L29: 9 | M29: 139.5 | N29: 3
A30: 2002-03 | B30: 37.14418867 | C30: 40.34698474 | D30: 27.55453809 | E30: 56.86514642 | G30: 1382 | H30: 24 | I30: 835.44 | J30: 9 | K30: 450.67 | L30: 11 | M30: 96 | N30: 4
A31: 2004-05 | B31: 42.62746453 | C31: 55.82300435 | D31: 38.75585613 | E31: 46.10318318 | G31: 2190 | H31: 30 | I31: 517.46 | J31: 11 | K31: 1615.5 | L31: 18 | M31: 56.7 | N31: 1
A32: 2006 | B32: 54.58001689 | C32: 58.71328144 | D32: 45.15305272 | E32: 61.01185798 | G32: 2436 | H32: 31 | I32: 1324.75 | J32: 14 | K32: 869.55 | L32: 11 | M32: 241.2 | N32: 6
A33: 2007 | B33: 56.37498067 | C33: 78.00676757 | D33: 49.52438681 | E33: 67.67058492 | G33: 1781 | H33: 26 | I33: 397.7 | J33: 4 | K33: 1109.26 | L33: 19 | M33: 274.4333333 | N33: 3
A34: 2008 | B34: 70.275755 | C34: 81.22805848 | D34: 57.61660184 | E34: 83.43024745 | G34: 3489 | H34: 40 | I34: 1611.4 | J34: 11 | K34: 1148.4 | L34: 18 | M34: 729.4666667 | N34: 11
A35: 2009 | B35: 74.3252524 | C35: 95.51975786 | D35: 60.04661687 | E35: 83.60951035 | G35: 4048 | H35: 49 | I35: 1680 | J35: 21 | K35: 1858.4 | L35: 21 | M35: 510 | N35: 7
A36: 2010 | B36: 65.50133722 | C36: 89.23073307 | D36: 51.21452448 | E36: 79.63062681 | G36: 4865 | H36: 51 | I36: 2136.9 | J36: 18 | K36: 2290.6 | L36: 23 | M36: 437.34 | N36: 10
A37: 2011 | B37: 47.77624605 | C37: 64.20313817 | D37: 41.44976799 | E37: 51.18631542 | G37: 4634 | H37: 43 | I37: 1285.4 | J37: 10 | K37: 2842.31 | L37: 28 | M37: 506.16 | N37: 5
A38: 2012 | B38: 40.11422633 | C38: 49.44047278 | D38: 35.88255271 | E38: 53.30592039 | G38: 1092 | H38: 13 | I38: 141 | J38: 2 | K38: 763.3 | L38: 7 | M38: 188 | N38: 4
A39: 2013 | B39: 28.72294988 | C39: 36.87322402 | D39: 24.04329666 | E39: 51.99696097 | G39: 5412 | H39: 37 | I39: 1091.7 | J39: 10 | K39: 3702.2 | L39: 22 | M39: 617.6 | N39: 5
A40: 2014 | B40: 26.57614031 | C40: 66.03446165 | D40: 23.83607443 | E40: 38.6725538 | G40: 2155 | H40: 18 | I40: 72.95 | J40: 2 | K40: 1766.7 | L40: 14 | M40: 315 | N40: 2
A41: 2015 | B41: 31.15308719 | C41: 46.23142959 | D41: 24.90719756 | E41: 46.06072203 | G41: 3275 | H41: 25 | I41: 524 | J41: 2 | K41: 2182.41 | L41: 18 | M41: 568.3 | N41: 5
A42: 2016 | B42: 25.56001276 | C42: 41.04442136 | D42: 21.13889433 | E42: 36.16731285 | G42: 2498 | H42: 22 | I42: 516.65 | J42: 5 | K42: 1754.13 | L42: 13 | M42: 226.9 | N42: 4
A43: 2017 | B43: 18.35716237 | C43: 28.59792085 | D43: 16.29136143 | E43: 24.02370484 | G43: 3575 | H43: 31 | I43: 650.5 | J43: 6 | K43: 2616.205 | L43: 23 | M43: 308 | N43: 2
A44: 2018 | B44: 16.66544984 | C44: 16.09999443 | D44: 16.57065077 | E44: 30.25273954 | G44: 2519 | H44: 16 | I44: 1095.02 | J44: 7 | K44: 1276.02 | L44: 6 | M44: 147.6 | N44: 3
A45: 2019-20 | B45: 24.53760559 | C45: 29.52954978 | D45: 17.14246156 | E45: 27.62898403 | G45: 3312 | H45: 23 | I45: 1406.62 | J45: 9 | K45: 1359.47 | L45: 9 | M45: 546.1 | N45: 5
A47: 2019 | B47: 23.77275638 | C47: 28.48207194 | D47: 17.6186047 | E47: 26.8898966 | G47: 2676 | H47: 18 | I47: 1025.52 | J47: 7 | K47: 1160.6 | L47: 7 | M47: 489.9 | N47: 4
A48: 2020 | B48: 29.2793912 | C48: 34.83919563 | D48: 14.78467775 | E48: 31.10730564 | G48: 636 | H48: 5 | I48: 381.1 | J48: 2 | K48: 198.87 | L48: 2 | M48: 56.2 | N48: 1

Sheet Level10 Wind PPA Prices
A1: Level10 Energy wind PPA price indices
A21: Source: Level10 Energy
B23: Level10 PPA Price Index
B24: 25th percentile
B25: nominal | N25: Average | O25: Average
B26: 2018 | D26: 2019 | H26: 2020 | L26: 2021 | N26: previous | O26: calendar
A27: Region | B27: Q3 | C27: Q4 | D27: Q1 | E27: Q2 | F27: Q3 | G27: Q4 | H27: Q1 | I27: Q2 | J27: Q3 | K27: Q4 | L27: Q1 | M27: Q2 | N27: four quarters | O27: year 2020
A28: ISO-NE | B28: na | C28: na | D28: na | E28: na | F28: na | G28: na | H28: na | I28: na | J28: na | K28: na | L28: na | M28: na | N28: na | O28: na
A29: CAISO | B29: 38 | C29: 38 | D29: 39.7 | E29: 40 | F29: 40 | G29: 40 | H29: 48.3 | I29: 48 | J29: 49.7 | K29: 49 | L29: 50.3 | M29: 51.6 | N29: =AVERAGE(J29:M29) -> 50.15 | O29: =AVERAGE(H29:K29) -> 48.75
A30: PJM | B30: 30 | C30: 31.5 | D30: 32 | E30: 31 | F30: 28 | G30: 28 | H30: 29.1 | I30: 35.3 | J30: 35.6 | K30: 35.5 | L30: 35.5 | M30: 34 | N30: =AVERAGE(J30:M30) -> 35.15 | O30: =AVERAGE(H30:K30) -> 33.875
A31: NYISO | B31: na | C31: na | D31: na | E31: na | F31: na | G31: na | H31: na | I31: na | J31: na | K31: na | L31: na | M31: na | N31: na | O31: na
A32: MISO | B32: 17.9 | C32: 21.6 | D32: 22.2 | E32: 22.5 | F32: 27 | G32: 27 | H32: 27.4 | I32: 25.2 | J32: 30 | K32: 33 | L32: 28.4 | M32: 33.9 | N32: =AVERAGE(J32:M32) -> 31.325 | O32: =AVERAGE(H32:K32) -> 28.9
A33: ERCOT | B33: 15.5 | C33: 15.8 | D33: 14.8 | E33: 16 | F33: 15.5 | G33: 16 | H33: 16 | I33: 17 | J33: 17 | K33: 20.9 | L33: 20 | M33: 20.9 | N33: =AVERAGE(J33:M33) -> 19.7 | O33: =AVERAGE(H33:K33) -> 17.725
A34: SPP | B34: 14.5 | C34: 14.2 | D34: 14 | E34: 14 | F34: 16.8 | G34: 16.9 | H34: 19 | I34: 16.5 | J34: 20.4 | K34: 19.7 | L34: 18.6 | M34: 22.8 | N34: =AVERAGE(J34:M34) -> 20.375 | O34: =AVERAGE(H34:K34) -> 18.9

Sheet Wind LCOE Over Time
A1: Estimated levelized cost of wind energy by commercial operation date
A22: Note: Size of bubble reflects project capacity. | K22: Note: Size of bubble reflects project capacity. | V22: Note: Size of bubble reflects project capacity.
A23: Source: Berkeley Lab | K23: Source: Berkeley Lab | V23: Source: Berkeley Lab
A25: GW: | B25: 106.212025 | C25: 24.938595 | D25: 21.913155 | E25: 23.42568 | F25: 18.054245 | G25: 9.15899 | H25: 1.50273 | I25: 4.72707 | J25: 1.98606 | K25: 0.5055 | O25: Project-Level | P25: COD
A26: Projects: | B26: 1020 | C26: 145 | D26: 175 | E26: 253 | F26: 185 | G26: 95 | H26: 71 | I26: 67 | J26: 26 | K26: 3 | M26: Plant | N26: COD | O26: LCOE | P26: Year
B27: Nationwide | C27: ERCOT | D27: SPP | E27: MISO | F27: West (non-ISO) | G27: PJM | H27: ISO-NE | I27: CAISO | J27: NYISO | K27: Southeast (non-ISO) | M27: MW | N27: Year | O27: 2020 $/MWh | P27: Code
A28: 1998-99 | B28: 101.8302277 | C28: 102.9355436 | E28: 105.1513871 | F28: 88.20869479 | I28: 101.8509178 | M28: 107.25 | N28: 1998 | O28: 96.23451799 | P28: 1
A29: 2000-01 | B29: 85.94708699 | C29: 85.07364584 | D29: 71.64672987 | E29: 94.84796993 | F29: 88.27104578 | G29: 143.862738 | I29: 83.42174619 | J29: 118.9344291 | M29: 25.08 | N29: 1998 | O29: 83.77464327 | P29: 1
A30: 2002-03 | B30: 79.72550069 | C30: 70.76586712 | D30: 69.23016536 | E30: 72.25495976 | F30: 78.3029731 | G30: 96.63165973 | I30: 95.47472316 | M30: 1.2 | N30: 1998 | O30: 93.64989296 | P30: 1
A31: 2004-05 | B31: 67.42315742 | C31: 63.12982297 | D31: 61.5975353 | E31: 68.00215417 | F31: 73.47940869 | G31: 81.17401216 | I31: 78.77992715 | K31: 117.9630189 | M31: 0.66 | N31: 1998 | O31: 152.863473 | P31: 1
A32: 2006 | B32: 79.39066546 | C32: 76.27075295 | D32: 79.43580211 | E32: 67.6531164 | F32: 90.35411796 | G32: 87.04997952 | H32: 94.43929463 | I32: 75.75092237 | J32: 76.42644845 | M32: 74.9 | N32: 1999 | O32: 89.72407932 | P32: 1
A33: 2007 | B33: 79.02985254 | C33: 79.85962953 | D33: 72.2029541 | E33: 69.93499584 | F33: 84.19082381 | G33: 85.02697154 | J33: 123.6008465 | M33: 41.25 | N33: 1999 | O33: 98.81233486 | P33: 1
A34: 2008 | B34: 86.89635621 | C34: 85.48332427 | D34: 77.91231182 | E34: 86.39722339 | F34: 82.99586754 | G34: 92.98880813 | H34: 90.23547993 | I34: 65.83904753 | J34: 132.1692659 | M34: 41.4 | N34: 1999 | O34: 76.11227649 | P34: 1
A35: 2009 | B35: 93.27417969 | C35: 85.96476127 | D35: 76.84080682 | E35: 89.24879874 | F35: 99.56492362 | G35: 98.19017007 | H35: 123.3658664 | I35: 103.81423 | J35: 127.1461122 | M35: 1.8 | N35: 1999 | O35: 75.74345496 | P35: 1
A36: 2010 | B36: 90.04925305 | C36: 90.16489713 | D36: 76.96424286 | E36: 84.0279137 | F36: 90.79320963 | G36: 97.28609839 | H36: 123.6979099 | I36: 112.9222378 | M36: 60 | N36: 1999 | O36: 82.72139396 | P36: 1
A37: 2011 | B37: 89.24734325 | C37: 81.12799944 | D37: 68.03144456 | E37: 87.15050333 | F37: 86.53655223 | G37: 105.4797217 | H37: 113.2292184 | I37: 124.6218622 | J37: 120.519509 | M37: 16.5 | N37: 1999 | O37: 126.1933391 | P37: 1
A38: 2012 | B38: 75.08427671 | C38: 81.48343616 | D38: 58.71684671 | E38: 64.60646277 | F38: 89.56564081 | G38: 75.10082871 | H38: 96.37273301 | I38: 94.37971529 | J38: 93.53822961 | M38: 103.5 | N38: 1999 | O38: 90.02857463 | P38: 1
A39: 2013 | B39: 59.9345702 | D39: 44.65665265 | E39: 57.8734547 | F39: 55.99577396 | I39: 91.28927732 | M39: 3.3 | N39: 1999 | O39: 90.07658655 | P39: 1
A40: 2014 | B40: 50.16114901 | C40: 45.70540005 | D40: 45.60689225 | E40: 57.29144384 | F40: 50.51657261 | G40: 60.24342604 | H40: 80.24190297 | I40: 75.67635322 | J40: 66.56887951 | M40: 9.24 | N40: 1999 | O40: 149.3695151 | P40: 1
A41: 2015 | B41: 45.17579153 | C41: 45.61501962 | D41: 39.60973007 | E41: 48.01264924 | F41: 43.39276242 | G41: 60.883826 | H41: 78.3266909 | I41: 66.82803037 | M41: 16.5 | N41: 1999 | O41: 131.5384038 | P41: 1
A42: 2016 | B42: 42.23586412 | C42: 40.82133402 | D42: 38.4972932 | E42: 44.65351214 | F42: 41.75317101 | G42: 52.58531994 | H42: 78.86593059 | J42: 62.84628679 | M42: 1.32 | N42: 1999 | O42: 120.2060629 | P42: 1
A43: 2017 | B43: 38.73406493 | C43: 38.70140943 | D43: 35.46353463 | E43: 39.21746872 | F43: 39.48486254 | G43: 47.38679502 | H43: 56.58525631 | I43: 46.09690604 | M43: 28.5 | N43: 1999 | O43: 135.8214617 | P43: 1
A44: 2018 | B44: 33.22020017 | C44: 28.89909579 | D44: 28.62492676 | E44: 36.97652849 | F44: 35.02530441 | G44: 44.49514392 | I44: 44.88135962 | J44: 50.7985418 | M44: 10.2 | N44: 1999 | O44: 112.4697217 | P44: 1
A45: 2019 | B45: 33.93684891 | C45: 33.25557542 | D45: 29.73625366 | E45: 34.31431493 | F45: 35.08694952 | G45: 42.17564469 | H45: 66.04777081 | I45: 50.74336431 | M45: 79.5 | N45: 1999 | O45: 110.5688685 | P45: 1
A46: 2020 | B46: 32.69696174 | C46: 29.06496215 | D46: 31.5529149 | E46: 35.46553495 | F46: 32.12570753 | G46: 38.87359645 | H46: 60.31055887 | K46: 31.02614471 | M46: 11.22 | N46: 1999 | O46: 143.8509039 | P46: 1
M47: 24.75 | N47: 1999 | O47: 87.6739489 | P47: 1
M48: 34.32 | N48: 1999 | O48: 111.6027768 | P48: 1
M49: 11.25 | N49: 1999 | O49: 103.723796 | P49: 1
M50: 39.75 | N50: 1999 | O50: 134.9615168 | P50: 1
M51: 5.1 | N51: 1999 | O51: 192.7412739 | P51: 1
M52: 11.88 | N52: 1999 | O52: 94.63349548 | P52: 1
M53: 43.4 | N53: 1999 | O53: 99.86516267 | P53: 1
M54: 0.66 | N54: 1999 | O54: 146.4915597 | P54: 1
M55: 0.66 | N55: 1999 | O55: 112.3217078 | P55: 1
M56: 108.75 | N56: 1999 | O56: 123.5685645 | P56: 1
M57: 6.6 | N57: 2000 | O57: 123.5240898 | P57: 2
M58: 16.8 | N58: 2000 | O58: 77.47173344 | P58: 2
M59: 10.4 | N59: 2000 | O59: 308.7756722 | P59: 2
M60: 1.32 | N60: 2000 | O60: 94.74321929 | P60: 2
M61: 11.55 | N61: 2000 | O61: 153.6424769 | P61: 2
M62: 1.5 | N62: 2001 | O62: 69.82800281 | P62: 2
M63: 112.2 | N63: 2001 | O63: 70.36716997 | P63: 2
M64: 176.88 | N64: 2001 | O64: 85.88795941 | P64: 2
M65: 83.16 | N65: 2001 | O65: 90.05441487 | P65: 2
M66: 159.72 | N66: 2001 | O66: 88.49483111 | P66: 2
M67: 150 | N67: 2001 | O67: 67.99176829 | P67: 2
M68: 80.1 | N68: 2001 | O68: 88.34572812 | P68: 2
M69: 82.5 | N69: 2001 | O69: 82.78638887 | P69: 2
M70: 80 | N70: 2001 | O70: 72.30917816 | P70: 2
M71: 30 | N71: 2001 | O71: 112.5070177 | P71: 2
M72: 278.2 | N72: 2001 | O72: 100.4409235 | P72: 2
M73: 160.5 | N73: 2001 | O73: 79.77998726 | P73: 2
M74: 24 | N74: 2001 | O74: 94.47836986 | P74: 2
M75: 2.6 | N75: 2001 | O75: 123.5868078 | P75: 2
M76: 30 | N76: 2001 | O76: 106.9916206 | P76: 2
M77: 29.7 | N77: 2001 | O77: 85.95423488 | P77: 2
M78: 24.6 | N78: 2001 | O78: 118.2200988 | P78: 2
M79: 15 | N79: 2001 | O79: 102.5843467 | P79: 2
M80: 50 | N80: 2001 | O80: 80.34755292 | P80: 2
M81: 9.9 | N81: 2001 | O81: 129.6129768 | P81: 2
M82: 66.6 | N82: 2001 | O82: 83.42174619 | P82: 2
M83: 1.8 | N83: 2001 | O83: 221.1460512 | P83: 2
M84: 3.8 | N84: 2002 | O84: 74.9827852 | P84: 3
M85: 39.6 | N85: 2002 | O85: 85.34009903 | P85: 3
M86: 97.68 | N86: 2002 | O86: 77.44260208 | P86: 3
M87: 66 | N87: 2002 | O87: 90.01455048 | P87: 3
M88: 2.6 | N88: 2002 | O88: 80.28534505 | P88: 3
M89: 25.2 | N89: 2002 | O89: 114.8438868 | P89: 3
M90: 10.5 | N90: 2002 | O90: 97.82344241 | P90: 3
M91: 48.1 | N91: 2002 | O91: 101.5186078 | P91: 3
M92: 61.5 | N92: 2002 | O92: 95.61695844 | P92: 3
M93: 40.92 | N93: 2002 | O93: 159.569317 | P93: 3
M94: 204 | N94: 2003 | O94: 73.07451737 | P94: 3
M95: 40.5 | N95: 2003 | O95: 59.17831107 | P95: 3
M96: 40.5 | N96: 2003 | O96: 70.2314438 | P96: 3
M97: 21 | N97: 2003 | O97: 70.2314438 | P97: 3
M98: 160 | N98: 2003 | O98: 70.76586712 | P98: 3
M99: 144 | N99: 2003 | O99: 80.10955484 | P99: 3
M100: 51 | N100: 2003 | O100: 68.60397581 | P100: 3
M101: 43.5 | N101: 2003 | O101: 61.29169715 | P101: 3
M102: 102 | N102: 2003 | O102: 74.66027013 | P102: 3
M103: 162 | N103: 2003 | O103: 87.58710625 | P103: 3
M104: 74.25 | N104: 2003 | O104: 62.99140049 | P104: 3
M105: 41 | N105: 2003 | O105: 79.12847919 | P105: 3
M106: 30 | N106: 2003 | O106: 82.05552699 | P106: 3
M107: 162 | N107: 2003 | O107: 74.12528851 | P107: 3
M108: 85.5 | N108: 2003 | O108: 76.7573067 | P108: 3
M109: 64.5 | N109: 2003 | O109: 94.2216451 | P109: 3
M110: 50.4 | N110: 2003 | O110: 122.5144525 | P110: 3
M111: 3.6 | N111: 2003 | O111: 126.3587289 | P111: 3
M112: 15.6 | N112: 2003 | O112: 96.42877127 | P112: 3
M113: 10.56 | N113: 2003 | O113: 97.067065 | P113: 3
M114: 22.44 | N114: 2003 | O114: 75.19588459 | P114: 3
M115: 160.5 | N115: 2004 | O115: 67.79441431 | P115: 4
M116: 1.65 | N116: 2004 | O116: 75.1649041 | P116: 4
M117: 3.3 | N117: 2004 | O117: 71.22594517 | P117: 4
M118: 3.6 | N118: 2004 | O118: 108.1904744 | P118: 4
M119: 27 | N119: 2004 | O119: 117.9630189 | P119: 4
M120: 20.46 | N120: 2004 | O120: 67.60698547 | P120: 4
M121: 4.5 | N121: 2004 | O121: 75.34792608 | P121: 4
M122: 114 | N122: 2005 | O122: 50.61962632 | P122: 4
M123: 10.5 | N123: 2005 | O123: 68.8728535 | P123: 4
M124: 40.5 | N124: 2005 | O124: 45.64108634 | P124: 4
M125: 106.5 | N125: 2005 | O125: 45.64108634 | P125: 4
M126: 150 | N126: 2005 | O126: 69.77498082 | P126: 4
M127: 1.65 | N127: 2005 | O127: 81.65300722 | P127: 4
M128: 3.3 | N128: 2005 | O128: 60.67144085 | P128: 4
M129: 1.65 | N129: 2005 | O129: 95.34416762 | P129: 4
M130: 91.5 | N130: 2005 | O130: 59.08390585 | P130: 4
M131: 100.5 | N131: 2005 | O131: 61.78086062 | P131: 4
M132: 75 | N132: 2005 | O132: 68.38102251 | P132: 4
M133: 64.5 | N133: 2005 | O133: 74.96034953 | P133: 4
M134: 15 | N134: 2005 | O134: 74.4971398 | P134: 4
M135: 35 | N135: 2005 | O135: 79.6611192 | P135: 4
M136: 1.65 | N136: 2005 | O136: 61.15579832 | P136: 4
M137: 120 | N137: 2005 | O137: 60.5068641 | P137: 4
M138: 149.4 | N138: 2005 | O138: 80.40201263 | P138: 4
M139: 120.6 | N139: 2005 | O139: 74.63714469 | P139: 4
M140: 135 | N140: 2005 | O140: 67.36526009 | P140: 4
M141: 54.45 | N141: 2005 | O141: 78.51038102 | P141: 4
M142: 59.4 | N142: 2005 | O142: 74.84205439 | P142: 4
M143: 50 | N143: 2005 | O143: 83.70467632 | P143: 4
M144: 150 | N144: 2005 | O144: 75.85091753 | P144: 4
M145: 135 | N145: 2005 | O145: 69.81842513 | P145: 4
M146: 7.5 | N146: 2005 | O146: 91.83723311 | P146: 4
M147: 11.88 | N147: 2006 | O147: 58.46911351 | P147: 5
M148: 38 | N148: 2006 | O148: 70.78520199 | P148: 5
M149: 1.65 | N149: 2006 | O149: 97.0511093 | P149: 5
M150: 321.75 | N150: 2006 | O150: 76.42644845 | P150: 5
M151: 6.25 | N151: 2006 | O151: 77.34639059 | P151: 5
M152: 49.5 | N152: 2006 | O152: 59.23741213 | P152: 5
M153: 24 | N153: 2006 | O153: 77.98429037 | P153: 5
M154: 199.5 | N154: 2006 | O154: 81.91520173 | P154: 5
M155: 150 | N155: 2006 | O155: 76.56775013 | P155: 5
M156: 100.5 | N156: 2006 | O156: 70.9651171 | P156: 5
M157: 26 | N157: 2006 | O157: 80.1944733 | P157: 5
M158: 98.9 | N158: 2006 | O158: 72.88423602 | P158: 5
M159: 50.6 | N159: 2006 | O159: 68.10209275 | P159: 5
M160: 124.2 | N160: 2006 | O160: 76.27075295 | P160: 5
M161: 120 | N161: 2006 | O161: 87.44042664 | P161: 5
M162: 228.6 | N162: 2006 | O162: 90.96204921 | P162: 5
M163: 24 | N163: 2006 | O163: 95.02416478 | P163: 5
M164: 99 | N164: 2006 | O164: 66.98294462 | P164: 5
M165: 100.5 | N165: 2006 | O165: 107.3992126 | P165: 5
M166: 1.8 | N166: 2006 | O166: 107.3901474 | P166: 5
M167: 0.66 | N167: 2006 | O167: 148.0510047 | P167: 5
M168: 0.66 | N168: 2006 | O168: 219.9434257 | P168: 5
M169: 42 | N169: 2006 | O169: 92.77017657 | P169: 5
M170: 80.5 | N170: 2007 | O170: 66.19879737 | P170: 6
M171: 80 | N171: 2007 | O171: 78.09474286 | P171: 6
M172: 75 | N172: 2007 | O172: 56.1525286 | P172: 6
M173: 94.5 | N173: 2007 | O173: 77.81267512 | P173: 6
M174: 14.7 | N174: 2007 | O174: 68.61875176 | P174: 6
M175: 56.7 | N175: 2007 | O175: 105.531457 | P175: 6
M176: 200 | N176: 2007 | O176: 78.14699108 | P176: 6
M177: 232.5 | N177: 2007 | O177: 82.26094836 | P177: 6
M178: 21 | N178: 2007 | O178: 66.58387271 | P178: 6
M179: 159 | N179: 2007 | O179: 50.69314828 | P179: 6
M180: 80 | N180: 2007 | O180: 86.50133454 | P180: 6
M181: 48 | N181: 2007 | O181: 63.56681956 | P181: 6
M182: 300.5 | N182: 2007 | O182: 81.69820953 | P182: 6
M183: 140.4 | N183: 2007 | O183: 94.78507809 | P183: 6
M184: 150 | N184: 2007 | O184: 68.27739317 | P184: 6
M185: 161 | N185: 2007 | O185: 63.48769035 | P185: 6
M186: 400.5 | N186: 2007 | O186: 82.85035329 | P186: 6
M187: 20 | N187: 2007 | O187: 124.7081078 | P187: 6
M188: 130.5 | N188: 2007 | O188: 77.77238111 | P188: 6
M189: 204.7 | N189: 2007 | O189: 90.95752857 | P189: 6
M190: 34.5 | N190: 2007 | O190: 88.66361083 | P190: 6
M191: 90 | N191: 2007 | O191: 92.5378992 | P191: 6
M192: 125.4 | N192: 2007 | O192: 95.49117428 | P192: 6
M193: 205.5 | N193: 2007 | O193: 78.48135802 | P193: 6
M194: 34.5 | N194: 2007 | O194: 123.001796 | P194: 6
M195: 123 | N195: 2007 | O195: 87.19938582 | P195: 6
M196: 75 | N196: 2007 | O196: 87.19938582 | P196: 6
M197: 198 | N197: 2007 | O197: 86.2474951 | P197: 6
M198: 59.8 | N198: 2007 | O198: 81.6914062 | P198: 6
M199: 1.5 | N199: 2007 | O199: 110.7510868 | P199: 6
M200: 100 | N200: 2008 | O200: 68.94976599 | P200: 7
M201: 112.5 | N201: 2008 | O201: 57.76965657 | P201: 7
M202: 10 | N202: 2008 | O202: 87.62034817 | P202: 7
M203: 10 | N203: 2008 | O203: 80.443959 | P203: 7
M204: 50.4 | N204: 2008 | O204: 96.64341395 | P204: 7
M205: 100.65 | N205: 2008 | O205: 65.51577033 | P205: 7
M206: 200 | N206: 2008 | O206: 71.18371701 | P206: 7
M207: 69 | N207: 2008 | O207: 81.67222199 | P207: 7
M208: 0.9 | N208: 2008 | O208: 89.98647237 | P208: 7
M209: 142.5 | N209: 2008 | O209: 63.26188895 | P209: 7
M210: 130.5 | N210: 2008 | O210: 86.66575967 | P210: 7
M211: 170.2 | N211: 2008 | O211: 81.72362348 | P211: 7
M212: 45 | N212: 2008 | O212: 65.83904753 | P212: 7
M213: 105 | N213: 2008 | O213: 78.31240765 | P213: 7
M214: 96 | N214: 2008 | O214: 78.31240765 | P214: 7
M215: 60 | N215: 2008 | O215: 85.97890479 | P215: 7
M216: 18.9 | N216: 2008 | O216: 87.03563492 | P216: 7
M217: 29.4 | N217: 2008 | O217: 74.46450405 | P217: 7
M218: 52.8 | N218: 2008 | O218: 88.8463319 | P218: 7
M219: 60.9 | N219: 2008 | O219: 83.03540671 | P219: 7
M220: 37.8 | N220: 2008 | O220: 78.18204598 | P220: 7
M221: 29.4 | N221: 2008 | O221: 109.786546 | P221: 7
... 826 more rows

Sheet Wind LCOE by Region
A1: Estimated levelized cost of wind energy by region, over last five years
A22: Source: Berkeley Lab | K22: Source: Berkeley Lab
B24: National | C24: ERCOT | D24: SPP | E24: MISO | F24: West (non-ISO) | G24: PJM | H24: ISO-NE | I24: CAISO | J24: NYISO | K24: Southeast (non-ISO)
A25: COD | B25: 2020 $/MWh | C25: 2020 $/MWh | D25: 2020 $/MWh | E25: 2020 $/MWh | F25: 2020 $/MWh | G25: 2020 $/MWh | H25: 2020 $/MWh | I25: 2020 $/MWh | J25: 2020 $/MWh | K25: 2020 $/MWh
A26: 2016 | B26: 42.23586412 | C26: 40.82133402 | D26: 38.4972932 | E26: 44.65351214 | F26: 41.75317101 | G26: 52.58531994 | H26: 78.86593059 | J26: 62.84628679
A27: 2017 | B27: 38.73406493 | C27: 38.70140943 | D27: 35.46353463 | E27: 39.21746872 | F27: 39.48486254 | G27: 47.38679502 | H27: 56.58525631 | I27: 46.09690604
A28: 2018 | B28: 33.22020017 | C28: 28.89909579 | D28: 28.62492676 | E28: 36.97652849 | F28: 35.02530441 | G28: 44.49514392 | I28: 44.88135962 | J28: 50.7985418
A29: 2019 | B29: 33.93684891 | C29: 33.25557542 | D29: 29.73625366 | E29: 34.31431493 | F29: 35.08694952 | G29: 42.17564469 | H29: 66.04777081 | I29: 50.74336431
A30: 2020 | B30: 32.69696174 | C30: 29.06496215 | D30: 31.5529149 | E30: 35.46553495 | F30: 32.12570753 | G30: 38.87359645 | H30: 60.31055887 | K30: 31.02614471
B33: National | C33: ERCOT | D33: SPP | E33: MISO | F33: West (non-ISO) | G33: PJM | H33: ISO-NE | I33: CAISO | J33: NYISO | K33: Southeast (non-ISO)
A34: COD | B34: MW | C34: MW | D34: MW | E34: MW | F34: MW | G34: MW | H34: MW | I34: MW | J34: MW | K34: MW
A35: 2016 | B35: 8172.622 | C35: 2610.94 | D35: 3117.235 | E35: 1278.797 | F35: 348.55 | G35: 428.7 | H35: 310.7 | J35: 77.7
A36: 2017 | B36: 6771.65 | C36: 1796.975 | D36: 2334.085 | E36: 982.09 | F36: 747.5 | G36: 805.5 | H36: 54.3 | I36: 49.7
A37: 2018 | B37: 7473.27 | C37: 2056.56 | D37: 1966.975 | E37: 1643.775 | F37: 785.71 | G37: 509.5 | I37: 329.85 | J37: 158.4
A38: 2019 | B38: 8616.77 | C38: 3152.97 | D38: 1212.97 | E38: 3008.23 | F38: 577.45 | G38: 493.95 | H38: 38.4 | I38: 132.8
A39: 2020 | B39: 12173.185 | C39: 2209.37 | D39: 2557.15 | E39: 3541.13 | F39: 2780.875 | G39: 533.56 | H39: 72.6 | K39: 478.5
A40: TOTAL | B40: =SUM(B35:B39) -> 43207.497 | C40: =SUM(C35:C39) -> 11826.815 | D40: 11188.415 | E40: 10454.022 | F40: 5240.085 | G40: =SUM(G35:G39) -> 2771.21 | H40: =H35+H36+H38+H39 -> 476 | I40: =I36+I37 -> 379.55 | J40: =J35+J37 -> 236.1 | K40: 478.5

Sheet REC Prices
A1: Historical renewable energy certificate (REC) prices
A21: Source: Marex Spectron
A24: 2020$/MWh | B24: Primary Tier (new RE) RPS | O24: Voluntary Wind
B25: CT | C25: DC | D25: DE | E25: IL | F25: MA | G25: MD | H25: ME | I25: NH | J25: NJ | K25: OH | L25: PA | M25: RI | N25: TX | O25: National | P25: West
A26: 2010-01-29 | B26: 23.11612094 | C26: 1.155806047 | D26: 8.826155268 | E26: 5.463810404 | F26: 25.63787959 | G26: 1.05073277 | H26: 16.18128466 | I26: 28.57993134 | J26: 3.782637972 | L26: 1.576099155 | M26: 28.57993134 | N26: 0.8826155268 | O26: 0.8826155268 | P26: 5.043517296
A27: 2010-02-01 | B27: 20.59436229 | C27: 1.155806047 | D27: 8.40586216 | E27: 5.463810404 | F27: 23.95670716 | G27: 1.218850013 | H27: 16.39143121 | I27: 26.0581727 | J27: 2.942051756 | L27: 1.365952601 | M27: 26.89875891 | N27: 0.9246448376 | O27: 1.008703459 | P27: 4.833370742
A28: 2010-03-01 | B28: 17.23201743 | C28: 1.155806047 | D28: 8.40586216 | E28: 5.463810404 | F28: 21.0146554 | G28: 1.218850013 | H28: 16.39143121 | I28: 21.0146554 | J28: 2.311612094 | L28: 1.681172432 | M28: 21.0146554 | N28: 1.008703459 | O28: 0.9666741484 | P28: 4.20293108
A29: 2010-04-01 | B29: 12.24516768 | C29: 1.055617903 | D29: 3.800224452 | E29: 5.066965936 | F29: 14.35640349 | G29: 1.055617903 | H29: 13.089662 | I29: 19.42336942 | J29: 1.794550436 | L29: 1.688988645 | M29: 21.11235807 | N29: 0.8444943227 | O29: 0.8867190388 | P29: 3.694662662
A30: 2010-05-01 | B30: 14.56752707 | C30: 1.055617903 | D30: 3.800224452 | E30: 2.955730129 | F30: 15.83426855 | G30: 1.055617903 | H30: 13.089662 | I30: 19.42336942 | J30: 2.111235807 | L30: 1.266741484 | M30: 21.11235807 | N30: 0.8444943227 | O30: 0.8466055585 | P30: 6.544831001
A31: 2010-06-01 | B31: 14.03971811 | C31: 1.055617903 | D31: 3.800224452 | E31: 1.583426855 | F31: 16.88988645 | G31: 0.8444943227 | H31: 7.600448904 | I31: 19.42336942 | J31: 2.111235807 | L31: 2.005674016 | M31: 20.69011091 | N31: 0.7389325323 | O31: 0.7600448904 | P31: 6.544831001
A32: 2010-07-01 | B32: 11.43382625 | C32: 0.952818854 | D32: 3.811275416 | E32: 1.588031423 | F32: 13.33946396 | G32: 0.8469500924 | H32: 7.622550832 | I32: 15.66857671 | J32: 1.65155268 | L32: 1.270425139 | M32: 18.20942699 | N32: 0.7410813309 | O32: 0.7304944547 | P32: 6.563863216
A33: 2010-08-01 | B33: 9.52818854 | C33: 0.952818854 | D33: 3.811275416 | E33: 1.588031423 | F33: 12.06903882 | G33: 0.8469500924 | H33: 5.928650647 | I33: 15.66857671 | J33: 2.117375231 | K33: 28.79630314 | L33: 1.270425139 | M33: 18.20942699 | N33: 0.6987338262 | O33: 0.7199075786 | P33: 5.928650647
A34: 2010-09-01 | B34: 10.58687616 | C34: 0.952818854 | D34: 3.811275416 | E34: 1.588031423 | F34: 11.32795749 | G34: 0.8469500924 | H34: 5.928650647 | I34: 11.43382625 | J34: 2.117375231 | K34: 28.79630314 | L34: 1.270425139 | M34: 18.20942699 | N34: 0.6987338262 | O34: 0.7199075786 | P34: 5.293438078
A35: 2010-10-01 | B35: 9.794687968 | C35: 0.9581759968 | D35: 3.832703987 | E35: 1.596959995 | F35: 10.85932796 | G35: 0.8517119972 | H35: 5.96198398 | J35: 2.129279993 | K35: 28.9582079 | L35: 1.277567996 | M35: 12.77567996 | N35: 0.7026623977 | O35: 0.7239551976 | P35: 5.323199982
A36: 2010-11-01 | B36: 10.22054397 | C36: 0.9581759968 | D36: 3.832703987 | E36: 1.596959995 | F36: 11.07225596 | G36: 0.8517119972 | H36: 5.96198398 | I36: 13.20153596 | J36: 1.873766394 | K36: 28.9582079 | L36: 1.277567996 | M36: 13.20153596 | N36: 0.7026623977 | O36: 0.7239551976 | P36: 4.684415985
A37: 2010-12-01 | B37: 10.85932796 | C37: 1.384031995 | D37: 2.555135992 | E37: 1.490495995 | F37: 11.07225596 | G37: 0.8517119972 | H37: 6.387839979 | I37: 13.20153596 | J37: 1.596959995 | K37: 29.3840639 | L37: 1.277567996 | M37: 11.92396796 | N37: 0.7026623977 | O37: 0.7026623977 | P37: 4.418255985
A38: 2011-01-01 | B38: 11.81678902 | C38: 1.391469721 | D38: 2.568867177 | E38: 1.547684617 | F38: 13.20825874 | G38: 1.284433589 | H38: 8.691333949 | I38: 13.8290683 | J38: 1.575571869 | K38: 30.99766394 | L38: 1.284433589 | M38: 11.61342036 | N38: 0.7920673796 | O38: 0.7856452117 | P38: 7.492529267
A39: 2011-02-01 | B39: 11.39653136 | C39: 1.391469721 | D39: 1.676523842 | E39: 1.186974373 | F39: 11.92044506 | G39: 1.284433589 | H39: 8.562890591 | I39: 14.12876947 | J39: 1.144723268 | K39: 30.3982616 | L39: 1.135709699 | M39: 11.5599023 | N39: 0.8585424513 | O39: 0.79195471 | P39: 7.492529267
A40: 2011-03-01 | B40: 11.99270057 | C40: 1.391469721 | D40: 1.027546871 | E40: 1.038250484 | F40: 12.77918346 | G40: 1.284433589 | H40: 8.562890591 | I40: 14.12876947 | J40: 0.8255743428 | K40: 26.48911589 | L40: 0.9065495038 | M40: 11.5599023 | N40: 0.899103512 | O40: 0.8027709929 | P40: 7.36222441
A41: 2011-04-01 | B41: 12.4007814 | C41: 0.8188178857 | D41: 1.034296277 | E41: 1.045070196 | F41: 13.11186009 | G41: 1.137725904 | H41: 5.063742188 | I41: 14.26466948 | J41: 0.57317252 | K41: 26.2883637 | L41: 0.4740524602 | M41: 11.67892879 | N41: 0.9050092421 | O41: 0.8080439662 | P41: 6.033394948
A42: 2011-05-01 | B42: 13.57513863 | C42: 0.8188178857 | D42: 1.034296277 | E42: 1.045070196 | F42: 14.75513934 | G42: 0.9050092421 | H42: 3.878611038 | I42: 14.65253059 | J42: 0.7449395803 | K42: 26.2883637 | L42: 0.4740524602 | M42: 12.0667899 | N42: 0.8844874906 | O42: 0.8080439662 | P42: 5.622959917
A43: 2011-06-01 | B43: 15.18632933 | C43: 0.7571127101 | F43: 16.21964616 | G43: 0.8021672828 | H43: 3.878611038 | I43: 14.65253059 | J43: 0.9050092421 | K43: 26.2883637 | L43: 1.012748438 | M43: 12.0667899 | N43: 0.883461403 | O43: 0.8080439662 | P43: 5.063742188
A44: 2011-07-01 | B44: 21.07946396 | C44: 0.8175882625 | F44: 21.90355823 | G44: 0.8024075786 | H44: 7.872268946 | I44: 14.74695009 | J44: 1.096262246 | K44: 24.37584104 | L44: 1.019274492 | M44: 23.2047597 | N44: 0.9802384473 | O44: 0.8132509242 | P44: 4.185531423
A45: 2011-08-01 | B45: 24.58728628 | C45: 0.9542144177 | F45: 26.77402765 | G45: 0.9216843808 | H45: 13.26502619 | I45: 14.74695009 | J45: 1.236141405 | K45: 19.51802218 | L45: 0.8999976895 | M45: 23.2047597 | N45: 1.043672019 | O45: 0.8132509242 | P45: 3.79517098
A46: 2011-09-01 | B46: 21.63505633 | C46: 0.9707376111 | F46: 24.04640987 | G46: 0.9325277264 | H46: 12.88809084 | I46: 24.93969501 | J46: 1.219618211 | K46: 19.51802218 | L46: 0.9222007306 | M46: 23.53522357 | N46: 1.226847109 | O46: 0.8132509242 | P46: 3.79517098
A47: 2011-10-01 | B47: 24.067495 | C47: 1.001174695 | D47: 1.042545551 | F47: 25.89815534 | G47: 0.9339470557 | H47: 13.62135407 | I47: 24.97765382 | J47: 1.194583443 | K47: 15.82435211 | L47: 1.018757309 | M47: 24.10886586 | N47: 1.340415708 | O47: 0.7772549417 | P47: 3.80094732
A48: 2011-11-01 | B48: 29.82114669 | C48: 1.042545551 | D48: 1.042545551 | F48: 30.31526984 | G48: 1.146800106 | H48: 13.68341035 | I48: 29.5605103 | J48: 1.227162992 | K48: 12.85806179 | L48: 1.164175865 | M48: 29.4736315 | N48: 1.456305816 | O48: 0.716750066 | P48: 2.774691543
A49: 2011-12-01 | B49: 32.5351218 | C49: 1.206430552 | D49: 1.581588989 | E49: 1.998212305 | F49: 33.6655334 | G49: 1.80767131 | H49: 13.80188144 | I49: 32.26362556 | J49: 1.784964352 | K49: 8.608898865 | L49: 1.693149261 | M49: 32.93496171 | N49: 1.636875495 | O49: 0.716750066 | P49: 2.174438045
A50: 2012-01-01 | B50: 30.12577918 | C50: 1.757378512 | D50: 1.966992342 | E50: 2.134882093 | F50: 33.04149763 | G50: 2.094151443 | H50: 16.17304815 | I50: 33.22031511 | J50: 2.148790119 | K50: 6.695721407 | L50: 1.955071177 | M50: 33.22031511 | N50: 1.866655864 | O50: 0.7867969369 | P50: 2.523313409
A51: 2012-02-01 | B51: 32.85605727 | C51: 2.346861234 | D51: 1.966992342 | E51: 2.557090045 | F51: 39.65206785 | G51: 2.439486799 | H51: 19.50340555 | I51: 38.07014808 | J51: 2.895329469 | K51: 5.682422322 | L51: 2.490482897 | M51: 38.07014808 | N51: 1.926403611 | O51: 0.7826339901 | P51: 2.372879651
A52: 2012-03-01 | B52: 37.40762457 | C52: 2.354430228 | D52: 1.981893799 | E52: 2.557090045 | F52: 48.86684511 | G52: 2.449799553 | H52: 23.96154308 | I52: 38.16263173 | J52: 2.364364533 | K52: 5.682422322 | L52: 2.535234574 | M52: 47.49591105 | N52: 1.890498196 | O52: 0.699375055 | P52: 2.185547047
A53: 2012-04-01 | B53: 37.12369059 | C53: 2.413614559 | D53: 2.303904806 | E53: 2.567208212 | F53: 49.86047045 | G53: 2.413614559 | H53: 26.14226678 | I53: 36.86247689 | J53: 2.083440446 | K53: 4.905593226 | L53: 2.213002439 | M53: 49.42163144 | N53: 1.857751812 | O53: 0.702142417 | P53: 2.194195053
A54: 2012-05-01 | B54: 40.56398855 | C54: 2.413614559 | D54: 2.437464505 | E54: 1.318425028 | F54: 51.99288278 | G54: 2.429832522 | H54: 29.7647329 | I54: 39.49551096 | J54: 2.493750378 | K54: 2.947853354 | L54: 2.448912479 | M54: 52.66068128 | N54: 2.161759126 | O54: 0.7201661621 | P54: 1.795423952
A55: 2012-06-01 | B55: 41.7523973 | C55: 2.622585516 | D55: 2.955894193 | E55: 0.8776780213 | F55: 52.13825388 | G55: 2.763640912 | H55: 33.79060382 | I55: 42.21213341 | J55: 2.82215278 | K55: 2.633034064 | L55: 2.801255685 | M55: 52.66068128 | N55: 2.303904806 | O55: 0.7112326537 | P55: 1.360400933
A56: 2012-07-01 | B56: 43.121788 | C56: 2.646554001 | D56: 2.867100167 | E56: 0.8821846668 | F56: 52.62031041 | G56: 2.646554001 | H56: 38.73592674 | I56: 44.10923334 | J56: 2.90318954 | K56: 2.646554001 | L56: 2.926246639 | M56: 52.93108001 | N56: 2.31573475 | O56: 0.6912117361 | P56: 1.367386234
A57: 2012-08-01 | B57: 44.99141801 | C57: 2.786486741 | D57: 2.867100167 | E57: 0.8821846668 | F57: 53.22767658 | G57: 2.751503556 | H57: 40.61851988 | I57: 44.10923334 | J57: 3.069394237 | K57: 2.549209486 | L57: 3.019200972 | M57: 53.2504917 | N57: 2.31573475 | O57: 0.6947204251 | P57: 1.416289949
A58: 2012-09-01 | B58: 46.3036677 | C58: 2.818580011 | D58: 2.889154784 | F58: 54.66788107 | G58: 2.840634627 | H58: 37.82366759 | I58: 50.33966255 | J58: 3.255261421 | K58: 1.940806267 | L58: 3.151604722 | M58: 54.29846624 | N58: 2.260598209 | O58: 0.695823156 | P58: 1.414252294
A59: 2012-10-01 | B59: 46.83079442 | C59: 2.748743068 | D59: 3.325092421 | F59: 55.19171522 | G59: 2.947284819 | H59: 35.4483766 | I59: 54.49296392 | J59: 3.148717954 | K59: 1.859160371 | L59: 3.114021337 | M59: 55.09051676 | N59: 2.283230129 | O59: 0.6982694085 | P59: 0.9710233666
A60: 2012-11-01 | B60: 47.54882163 | C60: 2.434370694 | D60: 3.319046799 | F60: 56.0529974 | G60: 2.778971181 | H60: 29.05929256 | I60: 54.53151571 | J60: 2.962355066 | K60: 2.049466056 | L60: 2.844465426 | M60: 55.41820702 | N60: 2.268116073 | O60: 0.5728227399 | P60: 0.8342959167
A61: 2012-12-01 | B61: 48.32467652 | C61: 2.105891867 | D61: 3.280757856 | F61: 56.29434249 | G61: 2.804689068 | H61: 28.58523898 | I61: 54.57373911 | J61: 3.068585292 | K61: 2.194560998 | L61: 2.963026802 | M61: 55.42876287 | N61: 2.249451413 | O61: 0.551543108 | P61: 0.6322953525
A62: 2013-01-01 | B62: 48.03369996 | C62: 2.158807103 | D62: 3.293850013 | F62: 55.82321012 | G62: 3.269658988 | H62: 20.92039873 | I62: 48.0724056 | J62: 3.438996165 | K62: 2.292341563 | L62: 3.312235192 | M62: 55.86191576 | N62: 2.322338435 | O62: 0.6802516332 | P62: 0.73443953
A63: 2013-02-01 | B63: 48.0724056 | C63: 2.048641174 | D63: 3.293850013 | F63: 56.0065781 | G63: 3.515294659 | H63: 20.92039873 | I63: 48.0724056 | J63: 3.507505149 | K63: 2.339078624 | L63: 3.500828426 | M63: 55.86191576 | N63: 2.453695702 | O63: 0.6454165566 | P63: 0.73443953
A64: 2013-03-01 | B64: 48.41154073 | C64: 2.074023319 | D64: 3.293850013 | F64: 56.95350699 | G64: 3.643583123 | H64: 20.28452035 | I64: 48.0724056 | J64: 3.720948326 | K64: 3.555619947 | L64: 3.669018258 | M64: 55.86191576 | N64: 2.368646969 | O64: 0.6454165566 | P64: 0.73443953
A65: 2013-04-01 | B65: 48.61701435 | C65: 2.181272555 | D65: 3.859330605 | F65: 57.13919549 | G65: 4.346312384 | H65: 19.4995621 | I65: 48.2111962 | J65: 4.390952381 | K65: 4.910399613 | L65: 4.36254511 | M65: 56.02319558 | N65: 2.219825279 | O65: 0.6472799489 | P65: 0.7365599419
A66: 2013-05-01 | B66: 48.43439618 | C66: 2.053439838 | D66: 4.915251786 | F66: 57.33328243 | G66: 5.57805869 | H66: 19.19519849 | I66: 48.2111962 | J66: 5.891509101 | K66: 4.910399613 | L66: 5.887627362 | M66: 56.02319558 | N66: 2.148542439 | O66: 0.6472799489 | P66: 0.7365599419
A67: 2013-06-01 | B67: 48.33395619 | C67: 2.053439838 | D67: 6.71943547 | F67: 57.58559546 | G67: 6.563195482 | H67: 18.39167855 | I67: 48.2111962 | J67: 6.84219546 | K67: 4.910399613 | L67: 6.800903464 | M67: 57.58559546 | N67: 2.142719831 | O67: 0.6472799489 | P67: 0.7365599419
A68: 2013-07-01 | B68: 48.89121556 | C68: 2.063299005 | D68: 8.134234548 | F68: 57.8620808 | G68: 8.13715983 | H68: 18.39027374 | I68: 48.4426723 | J68: 8.365331837 | K68: 5.246005978 | L68: 8.274648091 | M68: 57.8620808 | N68: 2.062323911 | O68: 0.8308244513 | P68: 0.747073722
A69: 2013-08-01 | B69: 48.89121556 | C69: 1.91038653 | D69: 12.95474494 | F69: 57.8620808 | G69: 12.39100761 | H69: 13.96600611 | I69: 48.4426723 | J69: 12.59285208 | K69: 12.03930892 | L69: 12.56023075 | M69: 57.8620808 | N69: 1.782959467 | O69: 1.035727169 | P69: 1.060193165
A70: 2013-09-01 | B70: 48.89121556 | C70: 1.794173048 | D70: 11.40581438 | F70: 57.8620808 | G70: 10.9658148 | H70: 12.55921134 | I70: 48.02616784 | J70: 11.23921259 | K70: 13.23202623 | L70: 11.16445538 | M70: 57.8620808 | N70: 1.408639435 | O70: 1.076503829 | P70: 1.121358155
A71: 2013-10-01 | B71: 49.17856263 | C71: 2.175469723 | D71: 11.65906609 | F71: 58.2021521 | G71: 11.54725205 | H71: 15.24201961 | I71: 48.72738315 | J71: 11.72281972 | K71: 13.13324598 | L71: 11.66789352 | M71: 58.2021521 | N71: 1.088715686 | O71: 1.068118363 | P71: 1.127948684
A72: 2013-11-01 | B72: 49.17856263 | C72: 2.210779421 | D72: 11.84346118 | F72: 58.2021521 | G72: 11.73066631 | H72: 12.63302526 | I72: 48.72738315 | J72: 11.65009855 | K72: 10.8497921 | L72: 11.55019453 | M72: 58.2021521 | N72: 0.924917921 | O72: 1.048992276 | P72: 1.127948684
A73: 2013-12-01 | B73: 49.17856263 | C73: 2.23538921 | D73: 12.62277118 | F73: 58.2021521 | G73: 12.58278028 | H73: 7.875132631 | I73: 48.72738315 | J73: 12.81247164 | K73: 11.47431434 | L73: 12.73966768 | M73: 58.2021521 | N73: 0.9679850525 | O73: 1.048992276 | P73: 1.127948684
A74: 2014-01-01 | B74: 46.65202552 | C74: 2.491653464 | D74: 15.06317776 | F74: 56.62848781 | G74: 15.2463586 | H74: 5.633303483 | I74: 48.24747161 | J74: 15.49453911 | K74: 15.14688943 | L74: 15.32711575 | M74: 56.62848781 | N74: 1.092191182 | O74: 1.053289873 | P74: 1.132569756
A75: 2014-02-01 | B75: 46.43536 | C75: 2.491653464 | D75: 15.62946264 | F75: 56.62848781 | G75: 15.01221212 | H75: 3.62422322 | I75: 48.24747161 | J75: 15.14245764 | K75: 15.1141434 | L75: 15.09035943 | M75: 56.62848781 | N75: 1.074808699 | O75: 1.053289873 | P75: 1.132569756
A76: 2014-03-01 | B76: 46.89917428 | C76: 2.491653464 | D76: 12.9220816 | F76: 57.56690275 | G76: 12.81206054 | H76: 3.62422322 | I76: 48.24747161 | J76: 12.819611 | K76: 12.93286798 | L76: 12.819611 | M76: 56.62848781 | N76: 1.053829192 | O76: 1.050593279 | P76: 1.132569756
A77: 2014-04-01 | B77: 47.37808292 | C77: 2.505571693 | D77: 13.89453393 | F77: 58.38396188 | G77: 13.93077154 | H77: 3.644467917 | I77: 48.51697914 | J77: 13.92559474 | K77: 14.0436258 | L77: 13.75165422 | M77: 56.9448112 | N77: 0.9566728281 | O77: 1.047784526 | P77: 1.138896224
A78: 2014-05-01 | B78: 47.39879012 | C78: 1.506449096 | D78: 14.65552368 | F78: 57.77309936 | G78: 15.63083299 | H78: 3.644467917 | I78: 48.51697914 | J78: 15.62876227 | K78: 15.64946948 | L78: 15.62462083 | M78: 55.82662218 | N78: 0.9566728281 | O78: 1.047784526 | P78: 1.138896224
A79: 2014-06-01 | B79: 48.0071875 | C79: 1.252785846 | D79: 14.8707307 | F79: 56.40247966 | G79: 14.60498824 | H79: 3.644467917 | I79: 48.51697914 | J79: 14.68633797 | K79: 14.65379808 | L79: 14.68633797 | M79: 55.12257724 | N79: 0.9566728281 | O79: 1.047784526 | P79: 1.138896224
A80: 2014-07-01 | B80: 48.954313 | C80: 1.258171596 | D80: 13.43011151 | F80: 54.25554194 | G80: 13.13869311 | H80: 3.06337432 | I80: 48.72555453 | J80: 13.17549338 | K80: 13.20831525 | L80: 13.11581726 | M80: 55.35955022 | N80: 0.9428827453 | O80: 1.052288971 | P80: 1.14379236
A81: 2014-08-01 | B81: 48.86716692 | C81: 0.9803934513 | D81: 13.26799137 | F81: 49.16128495 | G81: 13.37692398 | H81: 2.28758472 | I81: 48.72555453 | J81: 14.13509492 | K81: 13.26799137 | L81: 13.99130388 | M81: 50.56651556 | N81: 0.9607855823 | O81: 1.015251885 | P81: 1.113090565
A82: 2014-09-01 | B82: 47.51937349 | C82: 0.9150338879 | D82: 13.26799137 | F82: 47.58176217 | G82: 13.08602441 | H82: 1.663697978 | I82: 48.72555453 | J82: 14.99407803 | K82: 13.26799137 | L82: 14.52616297 | M82: 48.82953565 | N82: 0.8859191732 | O82: 0.9566263373 | P82: 1.109478589
A83: 2014-10-01 | B83: 48.10602701 | C83: 0.9164950268 | D83: 13.28917789 | F83: 48.0761413 | G83: 13.76236826 | H83: 1.145618784 | I83: 48.80336018 | J83: 15.80953921 | K83: 9.304416903 | L83: 14.9119718 | M83: 47.6577414 | N83: 0.8128912412 | O83: 0.9164950268 | P83: 1.11125022
A84: 2014-11-01 | B84: 49.49073145 | C84: 0.7331960215 | D84: 16.58855999 | F84: 50.65926261 | G84: 15.55177499 | H84: 1.6955158 | I84: 48.80336018 | J84: 17.94611824 | K84: 7.520987314 | L84: 16.93224562 | M84: 47.6577414 | N84: 0.7561083971 | O84: 0.9164950268 | P84: 1.11125022
A85: 2014-12-01 | B85: 49.67004569 | C85: 0.6873712701 | D85: 17.41340551 | F85: 52.67854024 | G85: 16.02372012 | H85: 2.111923323 | I85: 49.14246334 | J85: 18.08583393 | K85: 6.071779553 | L85: 16.955158 | M85: 48.78343637 | N85: 0.7690588704 | O85: 0.8955750317 | P85: 1.163550208
A86: 2015-01-01 | B86: 48.16712467 | C86: 0.8470088461 | F86: 52.25649171 | G86: 16.59679496 | H86: 3.329764505 | I86: 48.30239636 | J86: 17.85586216 | K86: 7.554403222 | L86: 16.79449972 | M86: 47.61563243 | N86: 0.8012245841 | O86: 1.259067204
A87: 2015-02-01 | B87: 48.8518075 | C87: 0.8470088461 | F87: 50.82053076 | G87: 15.75550914 | H87: 4.303720623 | I87: 48.30239636 | J87: 16.52811856 | K87: 7.554403222 | L87: 15.71544791 | M87: 47.61563243 | N87: 0.8012245841 | O87: 0.8470088461 | P87: 1.259067204
A88: 2015-03-01 | B88: 47.19941186 | C88: 0.8470088461 | F88: 47.29306149 | G88: 15.30651121 | H88: 4.557615167 | I88: 47.66766 | J88: 15.67902861 | K88: 5.723032744 | L88: 15.37934981 | M88: 47.303467 | N88: 0.7710485933 | O88: 0.8470088461 | P88: 1.259067204
A89: 2015-04-01 | B89: 46.53509694 | C89: 0.8516090133 | D89: 14.98946946 | F89: 46.80710965 | G89: 14.38528739 | H89: 3.808177897 | I89: 46.51417289 | J89: 14.70751782 | K89: 5.181005105 | L89: 14.35913232 | M89: 44.14975474 | N89: 0.5984279553 | O89: 0.8516090133 | P89: 1.140360964
A90: 2015-05-01 | B90: 47.34814591 | C90: 0.8516090133 | D90: 15.16876768 | F90: 47.72079336 | G90: 14.75793483 | H90: 3.299025907 | I90: 46.95357803 | J90: 15.19634359 | K90: 4.953142153 | L90: 14.76341494 | M90: 43.73127366 | N90: 0.5940438677 | O90: 0.7902317871 | P90: 0.9897077722
A91: 2015-06-01 | B91: 47.37205912 | C91: 1.164423626 | D91: 15.21963406 | F91: 47.61791676 | G91: 14.84352418 | H91: 3.452468973 | I91: 46.95357803 | J91: 15.67734774 | K91: 3.28214717 | L91: 15.2745597 | M91: 43.73127366 | N91: 0.5523950356 | O91: 0.6674773347 | P91: 0.9897077722
A92: 2015-07-01 | B92: 45.94726256 | C92: 1.054066543 | D92: 14.95017714 | F92: 46.24842443 | G92: 14.23592157 | H92: 3.383051668 | I92: 47.1017164 | J92: 15.09824839 | K92: 2.42435305 | L92: 14.83724144 | M92: 43.86924566 | N92: 0.4698125165 | O92: 0.6183857055 | P92: 0.9928302966
A93: 2015-08-01 | B93: 45.87029898 | C93: 0.6926723 | D93: 14.25865929 | F93: 45.94726256 | G93: 13.8314564 | H93: 3.155507144 | I93: 47.1017164 | J93: 14.5406209 | K93: 2.426661958 | L93: 14.5131339 | M93: 43.86924566 | N93: 0.41560338 | O93: 0.5849232755 | P93: 0.9928302966
A94: 2015-09-01 | B94: 45.7163718 | C94: 0.6926723 | D94: 14.30079686 | F94: 45.93152001 | G94: 13.66453537 | H94: 2.959599827 | I94: 47.1017164 | J94: 14.07908925 | K94: 2.135739592 | L94: 13.98463394 | M94: 43.86924566 | N94: 0.3683757232 | O94: 0.55413784 | P94: 0.6569891815
A95: 2015-10-01 | B95: 45.51648988 | C95: 0.6927449168 | D95: 14.27054529 | F95: 45.95207948 | G95: 13.62398336 | H95: 4.156469501 | I95: 47.10665434 | J95: 14.20127079 | K95: 1.928140018 | L95: 14.08581331 | M95: 43.87384473 | N95: 0.3463724584 | O95: 0.5541959335 | P95: 0.6234704251
A96: 2015-11-01 | B96: 45.37479205 | C96: 0.6927449168 | D96: 14.63539094 | F96: 46.1719985 | G96: 13.82191048 | H96: 18.75909251 | I96: 47.10665434 | J96: 14.82804001 | K96: 1.721663547 | L96: 14.28374043 | M96: 43.87384473 | N96: 0.3463724584 | O96: 0.5541959335 | P96: 0.6234704251
A97: 2015-12-01 | B97: 44.99830025 | C97: 0.6927449168 | D97: 14.51993346 | F97: 45.31957325 | G97: 13.85489834 | H97: 27.50900104 | I97: 47.10665434 | J97: 15.0094732 | K97: 1.79305476 | L97: 14.31672828 | M97: 43.43209435 | N97: 0.3594241742 | O97: 0.4406460058 | P97: 0.6234704251
A98: 2016-01-01 | B98: 46.95895498 | C98: 1.527388497 | D98: 15.22993134 | E98: 0.8826437483 | F98: 46.95346077 | G98: 13.84539213 | H98: 30.657654 | I98: 46.1513071 | J98: 14.99917481 | K98: 2.07680882 | L98: 14.38382405 | M98: 43.84374175 | N98: 0.3738255875 | O98: 0.3530574993 | P98: 0.6230426459
A99: 2016-02-01 | B99: 44.21734757 | C99: 2.07680882 | D99: 15.22993134 | E99: 0.8826437483 | F99: 44.4481041 | G99: 12.65315003 | H99: 32.30591497 | I99: 46.1513071 | J99: 13.34541964 | K99: 2.07680882 | L99: 13.08938977 | M99: 43.84374175 | N99: 0.3738255875 | O99: 0.3530574993 | P99: 0.6230426459
A100: 2016-03-01 | B100: 38.54637432 | C100: 2.07680882 | D100: 15.10953663 | E100: 0.8826437483 | F100: 39.79045304 | G100: 11.7886491 | H100: 32.00492819 | I100: 46.1513071 | J100: 11.70336951 | K100: 2.07680882 | L100: 11.58799124 | M100: 43.84374175 | N100: 0.3738255875 | O100: 0.3530574993 | P100: 0.6230426459
A101: 2016-04-01 | B101: 32.86182051 | C101: 3.031696573 | D101: 13.9413784 | E101: 0.888762873 | F101: 34.02360205 | G101: 12.25956132 | H101: 25.55919373 | I101: 46.47126133 | J101: 12.71320935 | K101: 2.09120676 | L101: 12.1987061 | M101: 38.83669697 | N101: 0.3631397136 | O101: 0.3555051492 | P101: 0.627362028
A102: 2016-05-01 | B102: 34.62108969 | C102: 3.252988293 | D102: 13.9413784 | E102: 0.6709288355 | F102: 35.19141881 | G102: 12.14061702 | H102: 25.98165975 | I102: 38.97248962 | J102: 12.63173376 | K102: 2.207384913 | L102: 12.050843 | M102: 34.853446 | N102: 0.34853446 | O102: 0.3555051492 | P102: 0.627362028
A103: 2016-06-01 | B103: 36.80735131 | C103: 3.252988293 | D103: 13.9413784 | E103: 0.5692729513 | F103: 36.95521441 | G103: 11.17422602 | H103: 27.8827568 | I103: 37.17700907 | J103: 11.81109353 | K103: 2.207384913 | L103: 11.59669203 | M103: 34.853446 | N103: 0.34853446 | O103: 0.3555591855 | P103: 0.627362028
A104: 2016-07-01 | B104: 34.33879374 | C104: 3.264017252 | D104: 13.98864537 | E104: 0.5026475547 | F104: 34.33879374 | G104: 11.25197784 | H104: 27.97729073 | I104: 37.30305431 | J104: 12.63418923 | K104: 2.21486885 | L104: 12.47764962 | M104: 34.97161341 | N104: 0.3497161341 | O104: 0.3590418977 | P104: 0.6294890415
A105: 2016-08-01 | B105: 33.1470075 | C105: 2.594995082 | D105: 13.54263059 | E105: 0.4604595766 | F105: 33.1470075 | G105: 10.86654191 | H105: 26.86225378 | I105: 35.51899519 | J105: 11.9329227 | K105: 2.21486885 | L105: 11.95623711 | M105: 34.97161341 | N105: 0.2929506167 | O105: 0.3055201241 | P105: 0.6294890415
A106: 2016-09-01 | B106: 27.77593902 | C106: 2.469207856 | D106: 13.52235719 | E106: 0.4604595766 | F106: 27.64876951 | G106: 9.60659623 | H106: 25.99556597 | I106: 31.06115119 | J106: 10.57626369 | K106: 2.21486885 | L106: 10.16296281 | M106: 34.48413032 | N106: 0.3030873163 | O106: 0.3030873163 | P106: 0.6294890415
A107: 2016-10-01 | B107: 25.30290467 | C107: 1.874289235 | D107: 9.527636945 | E107: 0.4808444407 | F107: 24.23188225 | G107: 7.870899139 | H107: 19.01064796 | I107: 25.30290467 | J107: 8.634002613 | K107: 2.186670774 | L107: 8.567063712 | M107: 23.69637104 | N107: 0.2992168886 | O107: 0.3045720007 | P107: 0.6325726168
A108: 2016-11-01 | B108: 18.71946374 | C108: 1.874289235 | D108: 7.49715694 | E108: 0.7122299093 | F108: 18.83660681 | G108: 6.876298631 | H108: 20.61718159 | I108: 21.5543262 | J108: 7.630700048 | K108: 2.108575389 | L108: 7.368299555 | M108: 21.5543262 | N108: 0.2743490868 | O108: 0.3045720007 | P108: 0.6325726168
A109: 2016-12-01 | B109: 20.25958693 | C109: 2.096244539 | D109: 7.49715694 | E109: 1.210766184 | F109: 20.25958693 | G109: 6.547681473 | H109: 20.29657948 | I109: 21.36936345 | J109: 7.239442171 | K109: 2.108575389 | L109: 6.965697295 | M109: 21.3077092 | N109: 0.2624004929 | O109: 0.3045720007 | P109: 0.6851287001
A110: 2017-01-01 | B110: 22.82945933 | C110: 2.354766306 | D110: 7.064298917 | E110: 1.170318854 | F110: 22.82945933 | G110: 7.04663817 | H110: 18.36717719 | I110: 23.31218643 | J110: 7.441061526 | K110: 2.354766306 | L110: 7.229132559 | M110: 22.13480327 | N110: 0.2778624241 | O110: 0.2745800226 | P110: 2.590242936
A111: 2017-02-01 | B111: 24.96052284 | C111: 2.354766306 | D111: 7.064298917 | E111: 1.170318854 | F111: 24.96052284 | G111: 7.078150484 | H111: 18.36717719 | I111: 23.31218643 | J111: 7.126630967 | K111: 2.354766306 | L111: 7.008892651 | M111: 22.13480327 | N111: 0.2778624241 | O111: 0.2660885926 | P111: 2.590242936
A112: 2017-03-01 | B112: 24.96052284 | C112: 2.354766306 | D112: 7.064298917 | E112: 1.170318854 | F112: 24.96052284 | G112: 5.958582565 | H112: 18.36717719 | I112: 23.31218643 | J112: 6.030249366 | K112: 2.354766306 | L112: 6.030249366 | M112: 22.13480327 | N112: 0.2876910139 | O112: 0.2660885926 | P112: 2.590242936
A113: 2017-04-01 | B113: 24.26672967 | C113: 2.250142454 | D113: 7.086083971 | E113: 0.9613453921 | F113: 24.26672967 | G113: 5.25862021 | H113: 19.51781024 | I113: 23.38407711 | J113: 5.544549915 | K113: 2.36202799 | L113: 5.544549915 | M113: 21.40743263 | N113: 0.3070636388 | O113: 0.2669091629 | P113: 2.59823079
A114: 2017-05-01 | B114: 16.85629066 | C114: 1.589000648 | D114: 5.690340159 | E114: 0.5716107737 | F114: 16.85629066 | G114: 5.294163646 | H114: 12.15370766 | I114: 13.33472166 | J114: 5.572238759 | K114: 1.181013995 | L114: 5.529292796 | M114: 13.35619464 | N114: 0.285590657 | O114: 0.2669091629 | P114: 2.59823079
A115: 2017-06-01 | B115: 19.40620724 | C115: 1.728575029 | D115: 5.497083323 | E115: 0.8148996567 | F115: 19.62093706 | G115: 4.568376863 | H115: 12.32549151 | I115: 17.0495475 | J115: 5.182504141 | K115: 1.062912596 | L115: 5.068697338 | M115: 16.79187171 | N115: 0.2834433589 | O115: 0.2669091629 | P115: 2.59823079
A116: 2017-07-01 | B116: 23.38128686 | C116: 1.78030103 | D116: 4.998030299 | E116: 0.8189384737 | F116: 23.31534978 | G116: 3.600164305 | H116: 12.81816741 | I116: 17.56563683 | J116: 4.295141077 | K116: 1.298960381 | L116: 4.143485804 | M116: 20.41411848 | N116: 0.2848481648 | O116: 0.2682320218 | P116: 2.611108177
A117: 2017-08-01 | B117: 17.66884268 | C117: 1.78030103 | D117: 3.79797553 | E117: 0.8808619878 | F117: 17.66884268 | G117: 3.102368055 | H117: 12.81816741 | I117: 16.16203718 | J117: 3.709218493 | K117: 2.115720064 | L117: 3.591563817 | M117: 16.90511934 | N117: 0.2848481648 | O117: 0.2848481648 | P117: 2.611108177
A118: 2017-09-01 | B118: 16.40375616 | C118: 1.78030103 | D118: 3.79797553 | E118: 0.937625209 | F118: 16.40375616 | G118: 3.060868437 | H118: 12.81816741 | I118: 15.59168902 | J118: 3.640559439 | K118: 2.136361236 | L118: 3.525620706 | M118: 15.59168902 | N118: 0.2970916385 | O118: 0.289220834 | P118: 2.611108177
A119: 2017-10-01 | B119: 12.73063911 | C119: 1.79228281 | D119: 3.823536661 | E119: 0.9439356131 | F119: 12.86098695 | G119: 2.628681454 | H119: 11.16646502 | I119: 14.33826248 | J119: 3.258696017 | K119: 2.150739372 | L119: 3.160935137 | M119: 13.55617543 | N119: 0.3299972834 | O119: 0.2987138016 | P119: 2.628681454
A120: 2017-11-01 | B120: 11.42281577 | C120: 1.79228281 | D120: 3.823536661 | E120: 0.9439356131 | F120: 11.51840419 | G120: 3.379050524 | H120: 10.9926679 | I120: 14.33826248 | J120: 4.149732132 | K120: 2.742192699 | L120: 3.877305145 | M120: 12.42649415 | N120: 0.3441182994 | O120: 0.2987138016 | P120: 2.628681454
A121: 2017-12-01 | B121: 13.00283607 | C121: 2.389710413 | D121: 4.020336342 | E121: 0.9439356131 | F121: 13.00283607 | G121: 4.470164184 | H121: 9.137128049 | I121: 14.282034 | J121: 5.111168859 | K121: 3.465080099 | L121: 4.924209162 | M121: 12.45460839 | N121: 0.5032448987 | O121: 0.4260713095 | P121: 2.628681454
A122: 2018-01-01 | B122: 23.27079912 | C122: 2.403771675 | D122: 5.528674853 | E122: 0.9494898116 | F122: 23.27079912 | G122: 5.666033234 | H122: 8.413200863 | I122: 21.63394508 | J122: 5.86634754 | K122: 3.821996963 | L122: 5.757605488 | M122: 20.67243641 | N122: 0.6181127164 | O122: 0.5120033668 | P122: 2.644148843
A123: 2018-02-01 | B123: 18.49639047 | C123: 2.88452601 | D123: 5.648863436 | E123: 0.9146983795 | F123: 18.69881335 | G123: 5.408486269 | H123: 8.413200863 | I123: 24.03771675 | J123: 5.535000568 | K123: 4.80754335 | L123: 5.356615406 | M123: 23.07620808 | N123: 0.5144071385 | O123: 0.5120033668 | P123: 2.644148843
A124: 2018-03-01 | B124: 17.33004912 | C124: 2.88452601 | D124: 5.648863436 | E124: 0.8893955198 | F124: 17.33004912 | G124: 5.288297685 | H124: 8.413200863 | I124: 24.03771675 | J124: 5.441681211 | K124: 4.80754335 | L124: 5.251668783 | M124: 23.07620808 | N124: 0.5904121095 | O124: 0.517841098 | P124: 2.644148843
A125: 2018-04-01 | B125: 17.01722099 | C125: 2.909321363 | D125: 5.697421002 | E125: 0.8970407535 | F125: 17.05185576 | G125: 5.345300757 | H125: 8.13917286 | I125: 23.04367238 | J125: 5.500002766 | K125: 4.779599381 | L125: 5.358000176 | M125: 18.42570196 | N125: 0.7190179939 | O125: 0.5784007947 | P125: 2.666877916
A126: 2018-05-01 | B126: 14.84966112 | C126: 2.909321363 | D126: 5.697421002 | E126: 0.8970407535 | F126: 14.91027198 | G126: 6.622012147 | H126: 6.523932752 | I126: 16.46411407 | J126: 6.962534988 | K126: 4.606425491 | L126: 6.764172168 | M126: 14.81109057 | N126: 0.8243077194 | O126: 0.6303529619 | P126: 2.666877916
A127: 2018-06-01 | B127: 14.75441548 | C127: 2.88623151 | D127: 6.061086172 | E127: 1.115239856 | F127: 14.75441548 | G127: 7.207497328 | H127: 5.841732577 | I127: 13.43829391 | J127: 8.044504466 | K127: 4.606425491 | L127: 7.765117256 | M127: 13.09194613 | N127: 0.8243077194 | O127: 0.6303529619 | P127: 2.666877916
A128: 2018-07-01 | B128: 9.550837661 | C128: 2.434072705 | D128: 6.085181762 | E128: 1.119673444 | F128: 9.411747792 | G128: 6.973038758 | H128: 5.354959951 | I128: 11.21991609 | J128: 7.897986386 | K128: 4.624738139 | L128: 7.743828448 | M128: 11.03446293 | N128: 0.8275847197 | O128: 0.6328589033 | P128: 2.677479975
A129: 2018-08-01 | B129: 5.471372124 | C129: 2.434072705 | D129: 6.085181762 | E129: 1.119673444 | F129: 5.450206274 | G129: 6.461933885 | H129: 4.783482011 | I129: 5.238547778 | J129: 6.933932331 | K129: 4.624738139 | L129: 6.838686008 | M129: 5.386708725 | N129: 0.7073626939 | O129: 0.6328589033 | P129: 2.677479975
A130: 2018-09-01 | B130: 4.099490871 | C130: 2.434072705 | D130: 6.085181762 | E130: 1.119673444 | F130: 4.125112689 | G130: 5.529188313 | H130: 3.407701787 | I130: 4.624738139 | J130: 6.083900671 | K130: 4.445385414 | L130: 5.917358855 | M130: 4.137923598 | N130: 0.5547123585 | O130: 0.5431825405 | P130: 2.677479975
A131: 2018-10-01 | B131: 3.636571337 | C131: 2.44564739 | D131: 6.114118475 | E131: 1.124997799 | F131: 3.636571337 | G131: 5.684535195 | H131: 3.423906346 | I131: 4.646730041 | J131: 6.051382303 | K131: 4.402165302 | L131: 5.808944214 | M131: 4.157600563 | N131: 0.5380424258 | O131: 0.5135859519 | P131: 2.690212129
A132: 2018-11-01 | B132: 3.839666403 | C132: 2.44564739 | D132: 6.114118475 | E132: 1.124997799 | F132: 3.839666403 | G132: 5.138305167 | H132: 3.497275768 | I132: 3.949720535 | J132: 5.556510871 | K132: 4.518333553 | L132: 5.3412939 | M132: 4.341024118 | N132: 0.6211944371 | O132: 0.5845097263 | P132: 2.029887334
A133: 2018-12-01 | B133: 5.01357715 | C133: 2.677983892 | D133: 6.114118475 | E133: 0.7966696374 | F133: 5.09306069 | G133: 5.558956518 | H133: 4.035318194 | I133: 4.866838306 | J133: 5.8573255 | K133: 4.603931212 | L133: 5.732597483 | M133: 5.380424258 | N133: 0.758150691 | O133: 0.7026344952 | P133: 1.868474606
A134: 2019-01-01 | B134: 13.0008911 | C134: 3.06487105 | D134: 6.1297421 | E134: 0.5744444025 | F134: 13.0008911 | G134: 6.001309409 | H134: 3.187465892 | I134: 12.77321497 | J134: 6.109893411 | K134: 5.108118417 | L134: 5.955774182 | M134: 12.74986357 | N134: 0.7124511675 | O134: 0.7439755555 | P134: 1.103353578
A135: 2019-02-01 | B135: 13.5047897 | C135: 3.05196633 | D135: 6.1297421 | E135: 0.5394173048 | F135: 13.49833734 | G135: 5.458696649 | H135: 3.187465892 | I135: 13.24024294 | J135: 5.582581963 | K135: 5.549029691 | L135: 5.440630041 | M135: 12.67243525 | N135: 0.6294922519 | O135: 0.6436874441 | P135: 1.103353578
A136: 2019-03-01 | B136: 12.19818678 | C136: 2.819681366 | D136: 6.1297421 | E136: 0.5394173048 | F136: 12.19818678 | G136: 5.597680486 | H136: 3.187465892 | I136: 13.43639468 | J136: 5.685948772 | K136: 5.51676789 | L136: 5.587872899 | M136: 11.57295309 | N136: 0.5835514479 | O136: 0.5855129654 | P136: 1.103353578
A137: 2019-04-01 | B137: 17.31484941 | C137: 2.837825676 | D137: 6.169186251 | E137: 0.5428883901 | F137: 17.31484941 | G137: 6.003499535 | H137: 3.19622602 | I137: 16.2866517 | J137: 6.031701529 | K137: 5.581644703 | L137: 6.003499535 | M137: 15.7931168 | N137: 0.5692102514 | O137: 0.5555792875 | P137: 1.110453525
A138: 2019-05-01 | B138: 20.63312383 | C138: 2.837825676 | E138: 0.5428883901 | F138: 20.63312383 | G138: 6.465307191 | H138: 2.961209401 | I138: 20.7060324 | J138: 6.578595884 | K138: 6.133292804 | L138: 6.461942181 | M138: 20.05546367 | N138: 0.5626297861 | O138: 0.5478237391 | P138: 1.110453525
A139: 2019-06-01 | B139: 18.68646515 | C139: 2.837825676 | E139: 0.6415953701 | F139: 18.84069481 | G139: 5.563372161 | H139: 2.961209401 | I139: 19.03810877 | J139: 5.984110664 | K139: 5.206793196 | L139: 5.945861709 | M139: 19.3835832 | N139: 0.5744746237 | O139: 0.5655909955 | P139: 1.110453525
A140: 2019-07-01 | B140: 23.25322762 | C140: 2.735673838 | E140: 0.6438266878 | F140: 23.53622837 | G140: 5.959523956 | H140: 2.523423282 | I140: 22.88178915 | J140: 6.308558205 | K140: 4.811012612 | L140: 6.223657982 | M140: 22.74028878 | N140: 0.6273183112 | O140: 0.6055036707 | P140: 1.114315421
A141: 2019-08-01 | B141: 26.27083023 | C141: 2.723882141 | E141: 0.6438266878 | F141: 26.27083023 | G141: 6.399997459 | H141: 5.357718591 | I141: 25.60111541 | J141: 6.692645954 | K141: 4.457261685 | L141: 6.560954131 | M141: 25.60111541 | N141: 0.6938020461 | O141: 0.6110725678 | P141: 1.125081754
A142: 2019-09-01 | B142: 32.49467581 | C142: 2.135771224 | E142: 0.6438266878 | F142: 32.53181966 | G142: 6.827039147 | H142: 4.704887334 | I142: 31.39274167 | J142: 7.089522335 | K142: 4.605837074 | L142: 7.023901538 | M142: 31.39274167 | N142: 0.6965709511 | O142: 0.6965709511 | P142: 1.238128246
A143: 2019-10-01 | B143: 37.141666 | C143: 2.112655136 | E143: 0.646223924 | F143: 37.141666 | G143: 7.235978921 | H143: 1.988381304 | I143: 34.2455454 | J143: 7.453187966 | K143: 6.072127473 | L143: 7.350526974 | M143: 34.12667478 | N143: 0.6909625033 | O143: 0.6909625033 | P143: 1.242738315
A144: 2019-11-01 | B144: 37.82502988 | C144: 2.112655136 | E144: 0.808909667 | F144: 37.91660007 | G144: 8.170677387 | H144: 10.36705384 | I144: 36.41877337 | J144: 8.322422276 | K144: 6.362820174 | L144: 8.212538046 | M144: 36.41877337 | N144: 0.6700321738 | O144: 0.6873723704 | P144: 1.242738315
A145: 2019-12-01 | B145: 41.25891207 | C145: 2.112655136 | E145: 0.8699168207 | F145: 41.32992569 | G145: 9.112230752 | H145: 1.988381304 | I145: 39.38888679 | J145: 9.229403222 | K145: 6.878852465 | L145: 9.119332114 | M145: 39.38888679 | N145: 0.7541646233 | O145: 0.7046918028
A146: 2020-01-01 | B146: 40.90585902 | C146: 3.351380663 | E146: 0.8734981516 | F146: 41.15542992 | G146: 9.4432875 | H146: 3.993134407 | I146: 40.16903064 | J146: 9.462302426 | K146: 8.544832258 | L146: 9.371981528 | M146: 40.16903064 | N146: 0.8606630767 | O146: 0.8136011355
A147: 2020-02-01 | B147: 39.55698772 | C147: 3.408613088 | E147: 0.8734981516 | F147: 39.93791173 | G147: 9.48763481 | H147: 3.993134407 | I147: 42.67662398 | J147: 9.58746317 | K147: 8.235839715 | L147: 9.465304782 | M147: 42.67662398 | N147: 0.8435496435 | O147: 0.8136011355
A148: 2020-03-01 | B148: 35.11008804 | C148: 3.23874964 | E148: 0.8734981516 | F148: 35.22352936 | G148: 9.237639997 | H148: 3.51668087 | I148: 35.3823472 | J148: 9.350967875 | K148: 7.708337584 | L148: 9.238660969 | M148: 35.35965894 | N148: 0.8630615503 | O148: 0.8446840567
A149: 2020-04-01 | B149: 29.75513442 | C149: 3.475569932 | E149: 0.8688924831 | F149: 29.99156775 | G149: 8.017454177 | H149: 3.475569932 | I149: 29.01036943 | J149: 8.108481009 | K149: 6.679241536 | L149: 7.998539511 | M149: 29.01036943 | N149: 0.7958345845 | O149: 0.7632067851
A150: 2020-05-01 | B150: 36.59801271 | C150: 3.475569932 | E150: 0.8688924831 | F150: 36.72867323 | G150: 9.89361486 | H150: 3.475569932 | I150: 35.7225872 | J150: 9.949798885 | K150: 8.259051707 | L150: 9.891001649 | M150: 35.7225872 | N150: 0.8155829894 | O150: 0.8305619118
A151: 2020-06-01 | B151: 41.67298623 | C151: 3.475569932 | E151: 0.8688924831 | F151: 42.29362372 | G151: 9.916658625 | H151: 3.475569932 | I151: 41.30060374 | J151: 10.38834312 | K151: 8.639273832 | L151: 10.28001366 | M151: 41.30060374 | N151: 0.9808329172 | O151: 0.961198204
A152: 2020-07-01 | B152: 43.83287723 | C152: 3.21103296 | E152: 0.876771411 | F152: 43.97521025 | G152: 9.064905458 | H152: 3.097166543 | I152: 43.99798353 | J152: 9.67978411 | K152: 8.406757568 | L152: 9.532896432 | M152: 43.99798353 | N152: 1.136386842 | O152: 1.104504245
A153: 2020-08-01 | B153: 42.53832451 | C153: 3.006073409 | E153: 0.876771411 | F153: 42.72918631 | G153: 9.248447278 | H153: 1.252530587 | I153: 43.0870522 | J153: 9.865169481 | K153: 8.19155004 | L153: 9.768545693 | M153: 43.0870522 | N153: 1.415717429 | O153: 1.415717429
A154: 2020-09-01 | B154: 44.06521894 | C154: 2.755567292 | E154: 0.876771411 | F154: 44.99567023 | G154: 9.824611348 | H154: 1.252530587 | I154: 43.42106035 | J154: 10.24689309 | K154: 8.657968573 | L154: 10.14430487 | M154: 43.42106035 | N154: 1.324103764 | O154: 1.327682422
A155: 2020-10-01 | B155: 45.2258812 | C155: 2.928500212 | E155: 0.8808379544 | F155: 45.70633827 | G155: 10.26576598 | H155: 1.258339935 | I155: 44.97993294 | J155: 10.64212401 | K155: 9.437549511 | L155: 10.53230525 | M155: 44.5681126 | N155: 1.293802242 | O155: 1.293802242
A156: 2020-11-01 | B156: 44.4634416 | C156: 3.020015844 | E156: 0.8808379544 | F156: 44.76544318 | G156: 10.60025561 | H156: 2.491513071 | I156: 44.29356571 | J156: 10.85947364 | K156: 9.972343984 | L156: 10.75880644 | M156: 43.53856175 | N156: 1.428215826 | O156: 1.418904111
A157: 2020-12-01 | B157: 43.31338513 | C157: 3.020015844 | E157: 10.06671948 | F157: 44.2604515 | G157: 10.88795186 | H157: 3.020015844 | I157: 43.08820851 | J157: 11.00716301 | K157: 10.06671948 | L157: 10.90649581 | M157: 43.04847146 | N157: 1.624715541 | O157: 1.600608397

Sheet Wind & PV PPAs vs Gas
A1: Levelized wind and solar PPA prices and levelized gas price projections
A22: Sources: Berkeley Lab, FERC, EIA
A23: Note: Smallest bubble sizes reflect smallest-volume PPAs (<5 MW), whereas largest reflect largest-volume PPAs (>500 MW)
B25: Levelized Gas | C25: Solar | D25: Wind | F25: Wind | G25: Wind | H25: Wind | J25: Solar | K25: Solar | L25: Solar
B26: Price Projection | C26: Average | D26: Average | F26: PPA | G26: Project | H26: Project | J26: PPA | K26: Project | L26: Project
B27: 2020 $/MWh | C27: 2020 $/MWh | D27: 2020 $/MWh | F27: Date | G27: 2020 $/MWh | H27: Capacity | J27: Date | K27: 2020 $/MWh | L27: Capacity
A28: 2008 | B28: 60.10550555 | C28: 156.3631535 | D28: 70.275755 | F28: 2008-01-02 | G28: 56.92301241 | H28: 24 | J28: 2008-07-01 | K28: 150.7304052 | L28: 550
A29: 2009 | B29: 57.64536671 | C29: 167.6650529 | D29: 74.3252524 | F29: 2008-01-16 | G29: 76.1906844 | H29: 200.8666667 | J29: 2008-07-23 | K29: 131.7706902 | L29: 210
A30: 2010 | B30: 56.83171364 | C30: 139.8022444 | D30: 65.50133722 | F30: 2008-02-27 | G30: 58.75331747 | H30: 81 | J30: 2008-12-19 | K30: 168.7879319 | L30: 10
A31: 2011 | B31: 46.00009289 | C31: 110.8550444 | D31: 47.77624605 | F31: 2008-02-28 | G31: 59.99655992 | H31: 100 | J31: 2009-02-23 | K31: 132.0967887 | L31: 30
A32: 2012 | B32: 44.48750292 | C32: 84.0957756 | D32: 40.11422633 | F32: 2008-03-25 | G32: 81.78007342 | H32: 106 | J32: 2009-03-01 | K32: 159.5023979 | L32: 30
A33: 2013 | B33: 43.17249335 | C33: 68.88197368 | D33: 28.72294988 | F33: 2008-04-03 | G33: 71.61348245 | H33: 100.5 | J33: 2009-03-05 | K33: 150.7603611 | L33: 19
A34: 2014 | B34: 46.0809173 | C34: 57.2713525 | D34: 26.57614031 | F34: 2008-04-30 | G34: 62.12072456 | H34: 54 | J34: 2009-05-01 | K34: 210.0705299 | L34: 12.6
A35: 2015 | B35: 47.09131368 | C35: 46.32037239 | D35: 31.15308719 | F35: 2008-05-28 | G35: 83.2160229 | H35: 102.9 | J35: 2009-05-08 | K35: 142.7834086 | L35: 230
A36: 2016 | B36: 39.78608763 | C36: 39.31147421 | D36: 25.56001276 | F36: 2008-05-30 | G36: 86.8445717 | H36: 40 | J36: 2009-06-01 | K36: 131.3546881 | L36: 20
A37: 2017 | B37: 38.12266199 | C37: 38.30521671 | D37: 18.35716237 | F37: 2008-05-30 | G37: 95.42181335 | H37: 10 | J37: 2009-06-01 | K37: 201.8761794 | L37: 14
A38: 2018 | B38: 34.48012332 | C38: 27.39348315 | D38: 16.66544984 | F38: 2008-05-30 | G38: 86.21715528 | H38: 38 | J38: 2009-06-01 | K38: 227.7499129 | L38: 10.08
A39: 2019 | B39: 30.65534149 | C39: 25.95537763 | D39: 23.77275638 | F39: 2008-06-12 | G39: 136.9441352 | H39: 4.5 | J39: 2009-06-22 | K39: 166.3715968 | L39: 48
A40: 2020 | B40: 25.67761151 | C40: 24.23954652 | D40: 29.2793912 | F40: 2008-06-12 | G40: 45.39062774 | H40: 99 | J40: 2009-08-17 | K40: 145.5888818 | L40: 250
A41: 2021 | B41: 26.593576 | F41: 2008-06-15 | G41: 98.20457754 | H41: 50.25 | J41: 2009-09-08 | K41: 194.7926208 | L41: 250
F42: 2008-06-30 | G42: 98.20457754 | H42: 50.25 | J42: 2009-11-20 | K42: 117.4512467 | L42: 21
F43: 2008-07-23 | G43: 96.3462427 | H43: 63 | J43: 2009-12-23 | K43: 133.1772693 | L43: 50
F44: 2008-07-23 | G44: 64.41259154 | H44: 30 | J44: 2009-12-24 | K44: 240.0826394 | L44: 6
F45: 2008-07-28 | G45: 104.4886183 | H45: 72 | J45: 2009-12-24 | K45: 240.0826394 | L45: 19
F46: 2008-08-11 | G46: 83.81890004 | H46: 76.5 | J46: 2009-12-24 | K46: 240.0826394 | L46: 20
F47: 2008-08-14 | G47: 47.45838901 | H47: 15 | J47: 2010-01-26 | K47: 164.2326075 | L47: 50
F48: 2008-08-14 | G48: 100.2322851 | H48: 265 | J48: 2010-01-26 | K48: 164.2326075 | L48: 20
F49: 2008-08-14 | G49: 101.0546968 | H49: 290 | J49: 2010-01-26 | K49: 163.2080788 | L49: 20
F50: 2008-08-14 | G50: 100.7038384 | H50: 290 | J50: 2010-02-02 | K50: 139.127084 | L50: 50
F51: 2008-08-15 | G51: 46.87834204 | H51: 50 | J51: 2010-02-24 | K51: 141.8306416 | L51: 300
F52: 2008-08-20 | G52: 94.34467363 | H52: 62.5 | J52: 2010-03-06 | K52: 133.8151211 | L52: 40
F53: 2008-09-05 | G53: 66.11804174 | H53: 99 | J53: 2010-04-19 | K53: 106.661653 | L53: 29
F54: 2008-09-22 | G54: 63.81059994 | H54: 49.5 | J54: 2010-04-21 | K54: 140.6436811 | L54: 66
F55: 2008-09-24 | G55: 45.07786162 | H55: 40.5 | J55: 2010-04-29 | K55: 132.5178722 | L55: 25
F56: 2008-10-07 | G56: 69.02322459 | H56: 50 | J56: 2010-05-10 | K56: 133.2147192 | L56: 125
F57: 2008-10-08 | G57: 70.5093998 | H57: 50 | J57: 2010-05-20 | K57: 160.5557605 | L57: 25.8
F58: 2008-10-17 | G58: 69.37947079 | H58: 99 | J58: 2010-06-01 | K58: 323.5796626 | L58: 32
F59: 2008-11-20 | G59: 108.529449 | H59: 101.2 | J59: 2010-06-01 | K59: 132.5178722 | L59: 20
F60: 2008-11-21 | G60: 60.60468532 | H60: 150 | J60: 2010-06-24 | K60: 128.0717099 | L60: 23
F61: 2008-12-02 | G61: 59.0067189 | H61: 100 | J61: 2010-06-30 | K61: 100.7843554 | L61: 12
F62: 2008-12-09 | G62: 67.12725396 | H62: 25 | J62: 2010-06-30 | K62: 100.4796315 | L62: 10
F63: 2008-12-12 | G63: 54.14930594 | H63: 49.5 | J63: 2010-07-26 | K63: 134.098016 | L63: 20
F64: 2008-12-16 | G64: 72.56723085 | H64: 150.1 | J64: 2010-07-29 | K64: 154.4947826 | L64: 150
F65: 2008-12-22 | G65: 60.8782394 | H65: 79.5 | J65: 2010-07-29 | K65: 128.9424666 | L65: 45
F66: 2008-12-22 | G66: 60.32811051 | H66: 151.8 | J66: 2010-08-10 | K66: 133.6436758 | L66: 30
F67: 2008-12-23 | G67: 39.33300242 | H67: 18.9 | J67: 2010-08-10 | K67: 193.8167346 | L67: 5.5
F68: 2009-01-28 | G68: 54.09668671 | H68: 50.4 | J68: 2010-08-24 | K68: 114.4345592 | L68: 23
F69: 2009-01-30 | G69: 62.32681833 | H69: 98.9 | J69: 2010-09-20 | K69: 124.4615005 | L69: 62.5
F70: 2009-02-02 | G70: 52.53104563 | H70: 99 | J70: 2010-11-10 | K70: 130.4610553 | L70: 130
F71: 2009-02-05 | G71: 93.79016785 | H71: 150 | J71: 2010-11-15 | K71: 78.97446707 | L71: 14
F72: 2009-02-05 | G72: 96.54663778 | H72: 51 | J72: 2010-11-15 | K72: 77.03929545 | L72: 20
F73: 2009-02-05 | G73: 96.54663778 | H73: 49.5 | J73: 2010-12-01 | K73: 138.7308345 | L73: 9
F74: 2009-02-19 | G74: 93.81364561 | H74: 49.5 | J74: 2010-12-01 | K74: 149.3925483 | L74: 7.65
F75: 2009-03-17 | G75: 116.480647 | H75: 8 | J75: 2010-12-21 | K75: 124.7022245 | L75: 60
F76: 2009-03-17 | G76: 119.0080178 | H76: 24.75 | J76: 2010-12-30 | K76: 110.4907139 | L76: 309
F77: 2009-03-24 | G77: 88.77998128 | H77: 63 | J77: 2010-12-30 | K77: 147.9332837 | L77: 20
F78: 2009-03-31 | G78: 61.00026384 | H78: 30 | J78: 2011-01-05 | K78: 110.7279342 | L78: 270
F79: 2009-03-31 | G79: 61.00026384 | H79: 12 | J79: 2011-01-07 | K79: 123.3054447 | L79: 110
F80: 2009-04-01 | G80: 50.82043649 | H80: 49.5 | J80: 2011-01-25 | K80: 135.5090953 | L80: 26
F81: 2009-04-01 | G81: 81.10356798 | H81: 96.6 | J81: 2011-02-07 | K81: 115.5669526 | L81: 250
F82: 2009-04-10 | G82: 106.3803118 | H82: 124.5 | J82: 2011-02-11 | K82: 114.5086409 | L82: 30
F83: 2009-04-29 | G83: 69.50542065 | H83: 70 | J83: 2011-02-11 | K83: 118.1193583 | L83: 20
F84: 2009-04-30 | G84: 64.2647233 | H84: 22.5 | J84: 2011-03-08 | K84: 94.32048885 | L84: 150
F85: 2009-06-10 | G85: 75.47684644 | H85: 102.3 | J85: 2011-06-03 | K85: 119.618819 | L85: 110
F86: 2009-06-22 | G86: 73.47086885 | H86: 205.5 | J86: 2011-06-03 | K86: 111.7442508 | L86: 127
F87: 2009-06-30 | G87: 73.59001646 | H87: 70 | J87: 2011-06-21 | K87: 107.1079168 | L87: 150
F88: 2009-06-30 | G88: 66.18039261 | H88: 51 | J88: 2011-07-08 | K88: 126.5100172 | L88: 23
F89: 2009-07-09 | G89: 86.55544599 | H89: 21 | J89: 2011-07-14 | K89: 101.0646236 | L89: 20
F90: 2009-07-09 | G90: 86.55544599 | H90: 21 | J90: 2011-07-18 | K90: 196.3227736 | L90: 6
F91: 2009-07-09 | G91: 86.55544599 | H91: 22.5 | J91: 2011-07-21 | K91: 115.9313491 | L91: 150
F92: 2009-07-30 | G92: 54.90099239 | H92: 69 | J92: 2011-09-29 | K92: 85.82776324 | L92: 250
F93: 2009-08-01 | G93: 65.4388842 | H93: 100 | J93: 2011-10-01 | K93: 137.6909772 | L93: 9
F94: 2009-08-05 | G94: 75.11936102 | H94: 18.9 | J94: 2011-12-01 | K94: 225.7711896 | L94: 20
F95: 2009-08-05 | G95: 75.46501191 | H95: 16.8 | J95: 2011-12-08 | K95: 108.1472544 | L95: 19
F96: 2009-08-17 | G96: 105.0755432 | H96: 90 | J96: 2011-12-20 | K96: 85.45749116 | L96: 20
F97: 2009-08-26 | G97: 67.4993067 | H97: 200.2 | J97: 2011-12-20 | K97: 114.934909 | L97: 30
F98: 2009-09-08 | G98: 56.34878038 | H98: 36 | J98: 2011-12-20 | K98: 84.64056754 | L98: 20
F99: 2009-09-25 | G99: 47.41044149 | H99: 151.8 | J99: 2012-01-01 | K99: 86.33288531 | L99: 15
F100: 2009-09-25 | G100: 49.5303197 | H100: 129.6 | J100: 2012-01-01 | K100: 77.45618889 | L100: 15
F101: 2009-10-01 | G101: 67.20431689 | H101: 150 | J101: 2012-02-03 | K101: 86.71512353 | L101: 200
F102: 2009-10-05 | G102: 50.01361014 | H102: 99 | J102: 2012-02-27 | K102: 76.75697234 | L102: 20
F103: 2009-10-09 | G103: 77.49235204 | H103: 5 | J103: 2012-07-03 | K103: 91.37579266 | L103: 20
F104: 2009-11-02 | G104: 71.42507914 | H104: 60 | J104: 2012-07-03 | K104: 94.20718003 | L104: 20
F105: 2009-11-16 | G105: 65.10679654 | H105: 50 | J105: 2012-08-03 | K105: 87.99418834 | L105: 20
F106: 2009-11-24 | G106: 76.74227421 | H106: 209.4 | J106: 2012-08-13 | K106: 91.28766997 | L106: 20
F107: 2009-11-24 | G107: 67.43623498 | H107: 150 | J107: 2012-08-16 | K107: 89.01428111 | L107: 102
F108: 2009-11-30 | G108: 115.4589901 | H108: 150 | J108: 2012-08-29 | K108: 86.05127936 | L108: 20
F109: 2009-11-30 | G109: 115.4589901 | H109: 150 | J109: 2012-08-31 | K109: 91.6466231 | L109: 250
F110: 2009-11-30 | G110: 115.3451387 | H110: 150 | J110: 2012-09-17 | K110: 83.85064536 | L110: 20
F111: 2009-11-30 | G111: 115.1149487 | H111: 102 | J111: 2012-09-17 | K111: 100.9137564 | L111: 20.8
F112: 2009-11-30 | G112: 115.1149487 | H112: 168 | J112: 2012-10-17 | K112: 86.45576044 | L112: 10
F113: 2009-12-02 | G113: 99.98828611 | H113: 50 | J113: 2012-10-25 | K113: 55.83403173 | L113: 50
F114: 2009-12-09 | G114: 124.9273468 | H114: 10.25 | J114: 2012-11-01 | K114: 71.03271235 | L114: 20
F115: 2009-12-17 | G115: 126.6534718 | H115: 120 | J115: 2012-11-15 | K115: 82.26990646 | L115: 20
F116: 2009-12-28 | G116: 73.931558 | H116: 70 | J116: 2012-12-12 | K116: 80.77785758 | L116: 250
F117: 2010-01-28 | G117: 104.7911833 | H117: 151.8 | J117: 2012-12-13 | K117: 83.79413414 | L117: 20
F118: 2010-02-05 | G118: 54.48701757 | H118: 81 | J118: 2013-02-04 | K118: 99.91057584 | L118: 28.8
F119: 2010-02-12 | G119: 74.0706471 | H119: 198 | J119: 2013-02-28 | K119: 80.46987052 | L119: 45
F120: 2010-03-05 | G120: 110.6251427 | H120: 65.1 | J120: 2013-03-22 | K120: 86.87988724 | L120: 20
F121: 2010-03-29 | G121: 59.00894506 | H121: 250.2 | J121: 2013-03-22 | K121: 85.54537933 | L121: 20
F122: 2010-04-01 | G122: 60.75192107 | H122: 40.5 | J122: 2013-03-25 | K122: 75.76944474 | L122: 20
F123: 2010-04-16 | G123: 43.11258282 | H123: 102.4 | J123: 2013-04-10 | K123: 85.05792221 | L123: 20
F124: 2010-04-19 | G124: 87.71705825 | H124: 50.4 | J124: 2013-04-16 | K124: 62.48902244 | L124: 20
F125: 2010-04-23 | G125: 50.83660618 | H125: 51 | J125: 2013-06-01 | K125: 58.95173297 | L125: 20
F126: 2010-04-29 | G126: 113.5119964 | H126: 143.5 | J126: 2013-06-03 | K126: 66.35722702 | L126: 48
F127: 2010-05-04 | G127: 79.21753543 | H127: 32.5 | J127: 2013-06-03 | K127: 67.24666183 | L127: 40
F128: 2010-05-04 | G128: 82.61627496 | H128: 20 | J128: 2013-06-19 | K128: 152.212955 | L128: 12
F129: 2010-05-19 | G129: 60.03117706 | H129: 250.8 | J129: 2013-07-03 | K129: 57.23783845 | L129: 50
F130: 2010-06-01 | G130: 53.17577548 | H130: 36 | J130: 2013-07-10 | K130: 58.75522719 | L130: 40
F131: 2010-06-02 | G131: 116.9711996 | H131: 102 | J131: 2013-07-10 | K131: 63.0270919 | L131: 20
F132: 2010-06-03 | G132: 49.95257133 | H132: 100 | J132: 2013-07-17 | K132: 79.57267914 | L132: 20
F133: 2010-06-03 | G133: 99.26395977 | H133: 36.8 | J133: 2013-07-17 | K133: 79.57267914 | L133: 12
F134: 2010-06-03 | G134: 94.44253232 | H134: 90 | J134: 2013-09-06 | K134: 66.28936479 | L134: 15
F135: 2010-06-04 | G135: 66.61136406 | H135: 30 | J135: 2013-09-19 | K135: 100.7192787 | L135: 20
F136: 2010-06-09 | G136: 117.9646491 | H136: 150 | J136: 2013-09-27 | K136: 63.68742869 | L136: 20
F137: 2010-06-09 | G137: 120.4778678 | H137: 168 | J137: 2013-10-09 | K137: 65.82685163 | L137: 20
F138: 2010-06-09 | G138: 117.9646491 | H138: 150 | J138: 2013-10-22 | K138: 63.91986456 | L138: 20
F139: 2010-06-09 | G139: 120.4778678 | H139: 132 | J139: 2013-12-01 | K139: 81.5360472 | L139: 7.314
F140: 2010-06-21 | G140: 93.30570884 | H140: 81.6 | J140: 2013-12-06 | K140: 67.08628961 | L140: 20
F141: 2010-06-30 | G141: 56.06344509 | H141: 114 | J141: 2013-12-19 | K141: 56.08065927 | L141: 150
F142: 2010-07-07 | G142: 37.79161197 | H142: 78.2 | J142: 2014-01-30 | K142: 68.41520328 | L142: 7
F143: 2010-07-09 | G143: 56.25632802 | H143: 42.5 | J143: 2014-02-20 | K143: 48.85891785 | L143: 10.416
F144: 2010-07-15 | G144: 45.17534538 | H144: 99.2 | J144: 2014-03-17 | K144: 63.18045751 | L144: 20
F145: 2010-07-21 | G145: 81.18640704 | H145: 99.2 | J145: 2014-03-26 | K145: 59.11710634 | L145: 26.66
F146: 2010-07-22 | G146: 114.3028801 | H146: 102.5 | J146: 2014-04-01 | K146: 64.79562043 | L146: 10.3
F147: 2010-08-10 | G147: 90.72368741 | H147: 110.4 | J147: 2014-05-01 | K147: 43.76779255 | L147: 157.5
F148: 2010-08-16 | G148: 56.24681525 | H148: 199.8 | J148: 2014-05-27 | K148: 62.7096459 | L148: 30
F149: 2010-08-20 | G149: 123.8321128 | H149: 49 | J149: 2014-06-01 | K149: 65.58458669 | L149: 20
F150: 2010-09-01 | G150: 71.64572071 | H150: 79.2 | J150: 2014-06-12 | K150: 56.86209041 | L150: 30
F151: 2010-09-08 | G151: 81.92253731 | H151: 55.2 | J151: 2014-07-18 | K151: 54.48843193 | L151: 93.6
F152: 2010-09-17 | G152: 35.14729037 | H152: 148.8 | J152: 2014-07-23 | K152: 57.44522772 | L152: 75
F153: 2010-09-22 | G153: 44.20215523 | H153: 80 | J153: 2014-07-24 | K153: 57.23783845 | L153: 56
F154: 2010-10-11 | G154: 112.0617462 | H154: 49.8 | J154: 2014-07-24 | K154: 57.80167124 | L154: 56
F155: 2010-10-18 | G155: 111.2556662 | H155: 31.68 | J155: 2014-08-19 | K155: 60.43582757 | L155: 105
F156: 2010-11-05 | G156: 39.59311774 | H156: 161 | J156: 2014-08-25 | K156: 60.4139943 | L156: 60
F157: 2010-11-12 | G157: 65.91768671 | H157: 99 | J157: 2014-09-03 | K157: 50.30075901 | L157: 60
F158: 2010-12-06 | G158: 34.01312172 | H158: 201 | J158: 2014-09-04 | K158: 46.39419988 | L158: 52
F159: 2010-12-09 | G159: 28.6327875 | H159: 167.9 | J159: 2014-09-04 | K159: 55.6020649 | L159: 120
F160: 2010-12-17 | G160: 103.7929234 | H160: 78.2 | J160: 2014-10-03 | K160: 59.11949866 | L160: 30
F161: 2010-12-17 | G161: 56.38440372 | H161: 50 | J161: 2014-10-08 | K161: 52.77112088 | L161: 101.3
F162: 2010-12-17 | G162: 98.15490293 | H162: 78.2 | J162: 2014-10-08 | K162: 53.53680314 | L162: 51
F163: 2010-12-17 | G163: 53.662648 | H163: 38.46 | J163: 2014-10-08 | K163: 53.48009915 | L163: 76.5
F164: 2010-12-22 | G164: 44.74089608 | H164: 27.3 | J164: 2014-10-08 | K164: 57.16171408 | L164: 30
F165: 2010-12-23 | G165: 65.72751769 | H165: 28.5 | J165: 2014-10-08 | K165: 59.67731806 | L165: 80
F166: 2010-12-23 | G166: 54.18717141 | H166: 48 | J166: 2014-10-08 | K166: 57.73982531 | L166: 103
F167: 2010-12-23 | G167: 72.3826724 | H167: 34.2 | J167: 2014-10-20 | K167: 56.49381262 | L167: 40
F168: 2011-02-01 | G168: 103.0694561 | H168: 257.6 | J168: 2014-10-21 | K168: 61.90740212 | L168: 11.4
F169: 2011-03-10 | G169: 65.45774286 | H169: 100 | J169: 2014-10-22 | K169: 56.28496861 | L169: 20
F170: 2011-04-06 | G170: 101.4018519 | H170: 155.1 | J170: 2014-10-22 | K170: 56.28496861 | L170: 20
F171: 2011-04-20 | G171: 33.06504569 | H171: 100.8 | J171: 2014-10-22 | K171: 56.28496861 | L171: 15
F172: 2011-05-05 | G172: 62.91476377 | H172: 165.6 | J172: 2014-10-22 | K172: 56.28496861 | L172: 20
F173: 2011-05-06 | G173: 31.19202113 | H173: 131.1 | J173: 2014-10-22 | K173: 49.75052347 | L173: 20
F174: 2011-05-13 | G174: 68.54559741 | H174: 214.4 | J174: 2014-10-22 | K174: 66.20441826 | L174: 14.7
F175: 2011-05-16 | G175: 30.27492156 | H175: 150.36 | J175: 2014-10-22 | K175: 64.2059753 | L175: 19.5
F176: 2011-05-16 | G176: 21.83830482 | H176: 108 | J176: 2014-10-22 | K176: 64.22196284 | L176: 19.5
F177: 2011-05-20 | G177: 53.02465184 | H177: 115 | J177: 2014-10-24 | K177: 66.35840065 | L177: 100
F178: 2011-06-07 | G178: 37.11612335 | H178: 202 | J178: 2014-11-07 | K178: 70.53812254 | L178: 40
F179: 2011-06-21 | G179: 47.29725001 | H179: 40 | J179: 2014-11-07 | K179: 70.53812254 | L179: 50
F180: 2011-06-27 | G180: 33.6495565 | H180: 200 | J180: 2014-11-13 | K180: 61.57230305 | L180: 30
F181: 2011-06-28 | G181: 61.75576218 | H181: 104.4 | J181: 2014-11-18 | K181: 48.83003544 | L181: 45
F182: 2011-06-29 | G182: 80.36317548 | H182: 20 | J182: 2014-12-09 | K182: 59.05724259 | L182: 130
F183: 2011-07-06 | G183: 40.73138444 | H183: 199.92 | J183: 2015-02-01 | K183: 57.60063079 | L183: 80
F184: 2011-07-15 | G184: 82.50263467 | H184: 162 | J184: 2015-03-02 | K184: 101.0901054 | L184: 6
F185: 2011-07-28 | G185: 85.31692748 | H185: 102.5 | J185: 2015-03-02 | K185: 42.28745953 | L185: 25
F186: 2011-08-03 | G186: 58.79867068 | H186: 120 | J186: 2015-03-03 | K186: 62.33270069 | L186: 62.25
F187: 2011-08-08 | G187: 46.38104523 | H187: 42 | J187: 2015-03-04 | K187: 37.45876351 | L187: 70
F188: 2011-08-15 | G188: 34.0219406 | H188: 200 | J188: 2015-03-04 | K188: 37.93510333 | L188: 70
F189: 2011-08-17 | G189: 42.11554768 | H189: 50 | J189: 2015-03-05 | K189: 83.88826905 | L189: 10.5
F190: 2011-08-17 | G190: 42.1433801 | H190: 37.5 | J190: 2015-03-23 | K190: 68.10352598 | L190: 20
F191: 2011-08-30 | G191: 26.40541305 | H191: 100.8 | J191: 2015-03-25 | K191: 47.09490628 | L191: 30
F192: 2011-09-07 | G192: 27.95488505 | H192: 104 | J192: 2015-04-03 | K192: 47.40774316 | L192: 81
F193: 2011-09-12 | G193: 36.31445082 | H193: 92.34 | J193: 2015-04-03 | K193: 45.32687068 | L193: 54
F194: 2011-09-12 | G194: 40.8240885 | H194: 201.6 | J194: 2015-04-14 | K194: 63.48912701 | L194: 6.8
F195: 2011-09-13 | G195: 69.8378065 | H195: 100.65 | J195: 2015-04-17 | K195: 52.96529742 | L195: 20
F196: 2011-10-01 | G196: 37.30132698 | H196: 48 | J196: 2015-04-30 | K196: 44.73521456 | L196: 50.6
F197: 2011-11-03 | G197: 27.37265905 | H197: 98.9 | J197: 2015-04-30 | K197: 59.72252901 | L197: 52
F198: 2011-11-03 | G198: 29.05410716 | H198: 100.8 | J198: 2015-05-27 | K198: 66.61099461 | L198: 4.9
F199: 2011-11-08 | G199: 30.11591347 | H199: 59.8 | J199: 2015-06-01 | K199: 74.00882243 | L199: 3.6
F200: 2011-11-16 | G200: 54.73709667 | H200: 39.9 | J200: 2015-06-05 | K200: 41.94413453 | L200: 100
F201: 2011-11-16 | G201: 77.92265805 | H201: 49.5 | J201: 2015-06-09 | K201: 67.58330731 | L201: 80
F202: 2011-11-28 | G202: 79.06279111 | H202: 20.65 | J202: 2015-06-19 | K202: 44.13461575 | L202: 100
F203: 2011-12-09 | G203: 38.51783268 | H203: 75 | J203: 2015-06-23 | K203: 49.03305814 | L203: 46
F204: 2011-12-13 | G204: 30.92083684 | H204: 79.6 | J204: 2015-06-25 | K204: 54.66730853 | L204: 100.815
F205: 2011-12-13 | G205: 30.1069509 | H205: 201.25 | J205: 2015-06-30 | K205: 61.05251969 | L205: 7.06
F206: 2011-12-15 | G206: 30.91237957 | H206: 49.2 | J206: 2015-07-01 | K206: 63.8280308 | L206: 13
F207: 2011-12-20 | G207: 64.13865013 | H207: 110.4 | J207: 2015-07-01 | K207: 65.78777369 | L207: 20
F208: 2011-12-20 | G208: 66.56432522 | H208: 30.4 | J208: 2015-07-01 | K208: 130.3379195 | L208: 27.6
F209: 2011-12-20 | G209: 31.41164377 | H209: 78.4 | J209: 2015-07-15 | K209: 51.94942711 | L209: 125
F210: 2011-12-22 | G210: 47.1296667 | H210: 14.4 | J210: 2015-07-16 | K210: 48.89487508 | L210: 150
F211: 2012-01-19 | G211: 34.12134281 | H211: 310.4 | J211: 2015-07-21 | K211: 46.3017907 | L211: 20
F212: 2012-02-07 | G212: 44.55463664 | H212: 21 | J212: 2015-08-05 | K212: 45.01543174 | L212: 30
F213: 2012-02-15 | G213: 28.9576091 | H213: 30.4 | J213: 2015-08-09 | K213: 41.03766729 | L213: 30
F214: 2012-02-17 | G214: 93.25331745 | H214: 50 | J214: 2015-08-12 | K214: 50.14147734 | L214: 10
F215: 2012-02-28 | G215: 30.93924676 | H215: 91 | J215: 2015-08-16 | K215: 50.14147734 | L215: 10
F216: 2012-03-13 | G216: 30.92083684 | H216: 51.2 | J216: 2015-08-28 | K216: 51.0211983 | L216: 150
F217: 2012-03-17 | G217: 38.09250064 | H217: 202 | J217: 2015-09-03 | K217: 74.94414327 | L217: 10.88
F218: 2012-03-29 | G218: 32.44628111 | H218: 48 | J218: 2015-09-23 | K218: 43.26299079 | L218: 52
F219: 2012-04-11 | G219: 45.15847892 | H219: 54 | J219: 2015-09-23 | K219: 46.99051179 | L219: 52
F220: 2012-05-27 | G220: 58.17269492 | H220: 69 | J220: 2015-09-24 | K220: 41.17406044 | L220: 25
F221: 2012-08-31 | G221: 47.49267811 | H221: 100.3 | J221: 2015-09-28 | K221: 19.7786309 | L221: 46.2
... 174 more rows

Sheet Recent Wind PPAs v Gas Forecast
A1: Wind PPA prices and natural gas fuel cost projections by calendar year over time
A22: Sources: Berkeley Lab, FERC, EIA
C25: 2021 | G25: 2025 | L25: 2030 | Q25: 2035 | V25: 2040
A26: Aggregate wind PPA prices among 39 PPAs executed 2018-2020 (2020 $/MWh)
B27: 10th Percentile | C27: 13.33732996 | D27: 13.20347518 | E27: 13.03329575 | F27: 12.81794983 | G27: 12.5563573 | H27: 12.26436349 | I27: 11.96059018 | J27: 11.65363265 | K27: 11.3544093 | L27: 11.06786207 | M27: 10.79727216 | N27: 10.68913956 | O27: 10.39192227 | P27: 10.13728304 | Q27: 9.867395624 | R27: 9.624054628 | S27: 9.421063637 | T27: 9.227459457 | U27: 9.124357056 | V27: 8.889944781
B28: 50th Percentile (Median) | C28: 23.00496453 | D28: 23.10661953 | E28: 22.4339439 | F28: 22.06327339 | G28: 21.61299955 | H28: 21.11039662 | I28: 20.58751787 | J28: 20.05915818 | K28: 19.89081327 | L28: 19.68384769 | M28: 19.58634443 | N28: 20.8319193 | O28: 19.63596615 | P28: 19.39436049 | Q28: 16.96695758 | R28: 14.89938826 | S28: 13.65158583 | T28: 13.37104382 | U28: 14.00312506 | V28: 12.82861114
B29: 90th Percentile | C29: 43.99794959 | D29: 43.20399306 | E29: 42.53142876 | F29: 41.82869248 | G29: 40.9750401 | H29: 40.02217952 | I29: 39.81549938 | J29: 38.79367125 | K29: 38.02625806 | L29: 37.27147214 | M29: 36.36024969 | N29: 35.79827571 | O29: 35.51863692 | P29: 35.48422032 | Q29: 36.0904374 | R29: 36.21005009 | S29: 36.29460568 | T29: 36.37801159 | U29: 36.56255904 | V29: 36.78937948
B30: Diff | C30: =C29-C27 -> 30.66061963 | D30: 30.00051788 | E30: 29.49813301 | F30: 29.01074266 | G30: 28.4186828 | H30: 27.75781603 | I30: 27.8549092 | J30: 27.1400386 | K30: 26.67184876 | L30: 26.20361007 | M30: 25.56297753 | N30: 25.10913615 | O30: 25.12671466 | P30: 25.34693728 | Q30: 26.22304177 | R30: 26.58599546 | S30: 26.87354204 | T30: 27.15055213 | U30: 27.43820198 | V30: 27.89943469
A31: AEO 2021 Gas Price Projection (converted from $/MMBtu to 2020 $/MWh using the heat rates implied by the modeling output)
B32: Min | C32: 27.13431036 | D32: 26.51501267 | E32: 23.07558216 | F32: 20.49039766 | G32: 20.09138811 | H32: 19.9370874 | I32: 20.15598027 | J32: 20.39014356 | K32: 21.01750862 | L32: 21.40822187 | M32: 21.59343609 | N32: 21.66483548 | O32: 21.84530692 | P32: 21.76947689 | Q32: 21.57219206 | R32: 21.49899279 | S32: 21.2856205 | T32: 21.07280711 | U32: 20.83631226 | V32: 20.68734232
B33: Reference Case | C33: 27.13431036 | D33: 27.82874156 | E33: 25.8445786 | F33: 24.04882418 | G33: 24.48718879 | H33: 24.86922115 | I33: 25.01624398 | J33: 25.7315528 | K33: 26.43662117 | L33: 26.60482202 | M33: 26.52156696 | N33: 26.83042837 | O33: 27.25808191 | P33: 27.44824118 | Q33: 27.38960585 | R33: 27.36111187 | S33: 27.16753419 | T33: 27.32754126 | U33: 27.28790305 | V33: 27.2348651
B34: Max | C34: 28.07759712 | D34: 31.25815247 | E34: 30.97773574 | F34: 30.50766482 | G34: 32.74007663 | H34: 34.75430579 | I34: 36.21807605 | J34: 37.12500019 | K34: 38.05474801 | L34: 39.07957354 | M34: 40.03152124 | N34: 41.0813358 | O34: 42.34252896 | P34: 43.17142262 | Q34: 43.5764193 | R34: 44.12866366 | S34: 44.4389115 | T34: 44.93162188 | U34: 45.65818564 | V34: 46.17098012
B35: Diff | C35: =C34-C32 -> 0.9432867605 | D35: 4.743139802 | E35: 7.902153584 | F35: 10.01726717 | G35: 12.64868852 | H35: 14.81721839 | I35: 16.06209578 | J35: 16.73485663 | K35: 17.03723939 | L35: 17.67135167 | M35: 18.43808515 | N35: 19.41650032 | O35: 20.49722204 | P35: 21.40194573 | Q35: 22.00422724 | R35: 22.62967087 | S35: 23.153291 | T35: 23.85881477 | U35: 24.82187338 | V35: 25.48363779

Sheet Market Value and PPAs over Time
A1: Regional wholesale market value of wind and average levelized long-term wind PPA prices over time
A21: Sources: Berkeley Lab, ABB, ISOs
K22: (All in 2020$)
A23: Wholesale market value: energy and capacity | K23: Levelized | L23: 10th | M23: 90th | N23: negative | O23: positive
A24: 2020 $/MWh | B24: MISO | C24: CAISO | D24: SPP | E24: NYISO | F24: PJM | G24: ISO-NE | H24: ERCOT | K24: PPA Price | L24: Percentile | M24: Percentile | N24: error | O24: error
A25: 2008 | B25: 45.91367106 | D25: 61.69956286 | F25: 59.52900274 | H25: 36.9632728 | K25: 70.275755 | L25: 47.40038432 | M25: 100.7389243 | N25: 22.87537069 | O25: 30.46316926
A26: 2009 | B26: 23.84681578 | D26: 32.61608106 | F26: 40.37646594 | H26: 20.19784617 | K26: 74.3252524 | L26: 53.78355849 | M26: 115.4589901 | N26: 20.5416939 | O26: 41.13373767
A27: 2010 | B27: 23.51389537 | D27: 35.42313643 | F27: 41.3145122 | H27: 26.0801147 | K27: 65.50133722 | L27: 43.11258282 | M27: 116.9711996 | N27: 22.3887544 | O27: 51.46986235
A28: 2011 | B28: 19.66861403 | C28: 32.13137322 | D28: 35.04467979 | E28: 40.88950742 | F28: 39.44651501 | G28: 51.26265978 | H28: 25.10766329 | K28: 47.77624605 | L28: 29.26467591 | M28: 80.10309861 | N28: 18.51157014 | O28: 32.32685256
A29: 2012 | B29: 16.40316064 | C29: 34.57110304 | D29: 33.14328936 | E29: 31.0516587 | F29: 32.39447142 | G29: 43.08131778 | H29: 18.46848149 | K29: 40.11422633 | L29: 30.92451882 | M29: 57.50162315 | N29: 9.189707509 | O29: 17.38739682
A30: 2013 | B30: 19.78903205 | C30: 40.59503983 | D30: 27.40066526 | E30: 41.74862423 | F30: 34.16836042 | G30: 62.71350284 | H30: 27.90358759 | K30: 28.72294988 | L30: 21.25974742 | M30: 56.05376186 | N30: 7.463202462 | O30: 27.33081198
A31: 2014 | B31: 22.62745683 | C31: 46.67260817 | D31: 27.51399987 | E31: 47.24231696 | F31: 42.89107755 | G31: 70.29376665 | H31: 32.65756962 | K31: 26.57614031 | L31: 21.51786789 | M31: 48.13652657 | N31: 5.058272418 | O31: 21.56038626
A32: 2015 | B32: 16.51354817 | C32: 29.91340734 | D32: 23.43001762 | E32: 28.8782971 | F32: 32.17267803 | G32: 45.4378906 | H32: 20.61986293 | K32: 31.15308719 | L32: 20.3175076 | M32: 46.81384376 | N32: 10.83557959 | O32: 15.66075657
A33: 2016 | B33: 17.64196763 | C33: 29.97979402 | D33: 20.45636863 | E33: 19.60637237 | F33: 26.90534826 | G33: 29.34716295 | H33: 16.96215857 | K33: 25.56001276 | L33: 18.35324546 | M33: 42.93532072 | N33: 7.206767301 | O33: 17.37530796
A34: 2017 | B34: 19.93009985 | C34: 31.55061574 | D34: 17.36854808 | E34: 21.96737171 | F34: 27.44328924 | G34: 32.56089375 | H34: 16.83451731 | K34: 18.35716237 | L34: 11.79737127 | M34: 36.40724741 | N34: 6.5597911 | O34: 18.05008504
A35: 2018 | B35: 22.39134985 | C35: 37.81924345 | D35: 22.25678465 | E35: 28.47738835 | F35: 34.3523501 | G35: 46.48880447 | H35: 18.73305688 | K35: 16.66544984 | L35: 10.90801013 | M35: 38.29769174 | N35: 5.757439709 | O35: 21.6322419
A36: 2019 | B36: 17.67051632 | C36: 37.06330205 | D36: 17.04989665 | E36: 19.53052108 | F36: 26.2305441 | G36: 35.49838539 | H36: 19.82912129 | K36: 24.54 | L36: 12.56 | M36: 40.68 | N36: =K36-L36 -> 11.98 | O36: =M36-K36 -> 16.14
A37: 2020 | B37: 11.12200181 | C37: 29.35831545 | D37: 13.94030527 | E37: 13.46218985 | F37: 20.1480607 | G37: 25.35686079 | H37: 10.94738147 | K37: 24.54 | L37: 12.56 | M37: 40.68 | N37: =K37-L37 -> 11.98 | O37: =M37-K37 -> 16.14
K39: Note: Given limited PPA sample for 2019-20,
K40: we use the average and distribution for all 2019-20
K41: PPAs for both 2019 and 2020

Sheet 2020 Market Value by Location
A1: Wholesale market value of wind in 2020, by region and plant, and compared to Level10 wind PPA prices
A21: Sources: Berkeley Lab, ABB, ISOs | H21: Sources: Berkeley Lab, ABB, ISOs | Q21: Sources: Berkeley Lab, ABB, ISOs, Level10 Energy
B24: 2020 Wind | C24: 2020 Wind | D24: Level10 Index
B25: Energy Value | C25: Capacity Value | D25: 25th percentile: 2020 avg.
B26: (2020 $/MWh) | C26: (2020 $/MWh) | D26: (2020 $/MWh)
A27: CAISO | B27: 24.56552695 | C27: 4.792788504 | D27: 48.75
A28: ISO-NE | B28: 18.73301845 | C28: 6.623842342
A29: PJM | B29: 16.89331153 | C29: 3.254749175 | D29: 33.875
A30: SPP | B30: 9.037415872 | C30: 4.902889394 | D30: 18.9
A31: NYISO | B31: 12.0865778 | C31: 1.375612056
A32: MISO | B32: 10.77064849 | C32: 0.3513533158 | D32: 28.9
A33: ERCOT | B33: 10.94738147 | C33: 0 | D33: 17.725

Sheet Value Relative to Flat Block
A1: Value factor of wind energy
A21: Sources: Berkeley Lab, ABB, ISOs | I21: Sources: Berkeley Lab, ABB, ISOs | Q21: Sources: Berkeley Lab, ABB, ISOs
A23: Value factor by region with wind penetration (value factor = market value of wind in proportion to that of a generalized flat-block, i.e., 24x7 average price across all pricing nodes in region)
B24: MISO | D24: CAISO | F24: SPP | H24: NYISO | J24: PJM | L24: ISO-NE | N24: ERCOT
B25: value factor | C25: penetration | D25: value factor | E25: penetration | F25: value factor | G25: penetration | H25: value factor | I25: penetration | J25: value factor | K25: penetration | L25: value factor | M25: penetration | N25: value factor | O25: penetration
A26: 2008 | B26: 0.8013377397 | C26: 0.01484161083 | F26: 0.8575518046 | G26: 0.03663543259 | N26: 0.4687035374 | O26: 0.04877505376
A27: 2009 | B27: 0.7505934833 | C27: 0.02714458276 | F27: 0.7606120988 | G27: 0.05103059383 | N27: 0.5649065022 | O27: 0.06102125101
A28: 2010 | B28: 0.6466890689 | C28: 0.03418919388 | F28: 0.7666208796 | G28: 0.04539417849 | N28: 0.6242473826 | O28: 0.07744855047
A29: 2011 | B29: 0.5717438797 | C29: 0.04560506076 | D29: 0.8895406809 | E29: 0.0316183521 | F29: 0.8105117112 | G29: 0.05466732338 | L29: 0.857727648 | M29: 0.005993590146 | N29: 0.5142014641 | O29: 0.08446383978
A30: 2012 | B30: 0.5656060452 | C30: 0.06214660257 | D30: 0.9907985458 | E30: 0.03968075084 | F30: 0.9489077138 | G30: 0.07762624885 | H30: 0.659831778 | I30: 0.0186 | J30: 0.775405381 | K30: 0.0169 | L30: 0.9406254097 | M30: 0.009298593959 | N30: 0.6386960271 | O30: 0.09174225231
A31: 2013 | B31: 0.6023891089 | C31: 0.06853903369 | D31: 0.8904358985 | E31: 0.05395639001 | F31: 0.713383882 | G31: 0.1101942343 | H31: 0.6579494749 | I31: 0.0216 | J31: 0.7435068971 | K31: 0.0187 | L31: 0.9576196883 | M31: 0.01388413213 | N31: 0.798160242 | O31: 0.09860319647
A32: 2014 | B32: 0.5795389972 | C32: 0.05675085807 | D32: 0.9104993712 | E32: 0.0548542859 | F32: 0.6516218983 | G32: 0.1196495057 | H32: 0.6738548912 | I32: 0.0248 | J32: 0.7317818414 | K32: 0.0194 | L32: 0.9768904801 | M32: 0.01532389146 | N32: 0.8036541407 | O32: 0.1062614139
A33: 2015 | B33: 0.6221091899 | C33: 0.06222216655 | D33: 0.8723546554 | E33: 0.05172870548 | F33: 0.7251336462 | G33: 0.1347678589 | H33: 0.608536836 | I33: 0.0242 | J33: 0.7596937811 | K33: 0.0209 | L33: 0.8643820316 | M33: 0.01721801187 | N33: 0.766275053 | O33: 0.117289641
A34: 2016 | B34: 0.6752911663 | C34: 0.06903076503 | D34: 0.9740748228 | E34: 0.05834646084 | F34: 0.6254421836 | G34: 0.1753955116 | H34: 0.5342336632 | I34: 0.0243047662 | J34: 0.7858071817 | K34: 0.02106730107 | L34: 0.8556236724 | M34: 0.02035411625 | N34: 0.7449020425 | O34: 0.1510455221
A35: 2017 | B35: 0.7086881129 | C35: 0.07693471278 | D35: 0.9780659217 | E35: 0.0582060201 | F35: 0.4898232254 | G35: 0.2298008427 | H35: 0.5840266782 | I35: 0.02650443172 | J35: 0.7612777349 | K35: 0.02626697867 | L35: 0.6870530709 | M35: 0.02707486738 | N35: 0.611979814 | O35: 0.1736987272
A36: 2018 | B36: 0.7483561325 | C36: 0.07337324221 | D36: 1.009262605 | E36: 0.06975310746 | F36: 0.6151572661 | G36: 0.2383081156 | H36: 0.6429483293 | I36: 0.02451363582 | J36: 0.794622232 | K36: 0.02650724963 | L36: 0.7437582965 | M36: 0.02717707706 | N36: 0.6176663442 | O36: 0.1851303609
A37: 2019 | B37: 0.7208510196 | C37: 0.08503175569 | D37: 1.020044615 | E37: 0.06905544255 | F37: 0.5105466817 | G37: 0.2751555829 | H37: 0.6157550222 | I37: 0.02836542259 | J37: 0.8221079014 | K37: 0.03031481243 | L37: 0.7326014982 | M37: 0.02934793694 | N37: 0.56935015 | O37: 0.1993458918
A38: 2020 | B38: 0.5415231027 | C38: 0.1097422847 | D38: 0.846037065 | E38: 0.06624761734 | F38: 0.5432138202 | G38: 0.3126348056 | H38: 0.5900829842 | I38: 0.02944363837 | J38: 0.8344650941 | K38: 0.03400586816 | L38: 0.815791249 | M38: 0.03039199654 | N38: 0.5187200868 | O38: 0.2273367928
A39: Notes: | B39: (1) value factor is average combined wind energy and capacity value in each ISO region relative to that of a flat baseload block located in that same ISO; generalized flat block is 24x7 average price across all pricing nodes in region
B40: (2) penetration is wind penetration in energy terms pre curtailment
